Workbook

Sheet Final Decision changes
B1: AER Draft Decision change log
B3: changes in the spreadsheet are also highlighted in orange
B5: Tab | C5: Cells | D5: Description of change
B6: Capital Expenditure | C6: V8 | D6: Updated actual inflation
B7: Capital Expenditure | C7: P18:Q21 | D7: Updated materials and installation rate as per IR031.
B8: Capital Expenditure | C8: R79:V79 | D8: Reduced smart cell volume installations from 75,505 to 33,454 as recommended by VGA and accepted by Jemena.
B9: Operating Expenditure | C9: N84:O84 | D9: Updated PE cell replacement period for LED lights to 10 years
B10: Operating Expenditure | C10: J42:N43 | D10: Updated smart lightng control SaaS costs as reduced volume of smart cell rollout
B11: Operating Expenditure | C11: H62 | D11: Updated pole inspection rate to 68
B12: Operating Expenditure | C12: J14:N14 | D12: Updated labour escalator
B13: Forecast Volumes | C13: I34 | D13: Corrected error in volume
B16: Jemena revised proposal change log
B18: changes in the spreadsheet are also highlighted in blue
B20: Tab | C20: Cells | D20: Description of change
B21: RAB Roll-Forward | C21: H110, H142, H174, H206, H238, H270, H302 | D21: Updated for actual net capex in 2024-25
B22: Capital Expenditure | C22: R26:R27 | D22: Added unit rates for lantern driven bracket replacement costs
B23: Capital Expenditure | C23: R37:R37 | D23: Added forecast volume for LED 118W, 155W, 162W
B24: Capital Expenditure | C24: P68:V69 | D24: Added forecast volumes for lantern driven bracket replacements
B25: Capital Expenditure | C25: P77:V78 | D25: Added calculation of forecast lantern driven bracket replacement costs
B26: Capital Expenditure | C26: L87 | D26: Updated the hardware cost per unit to reflect latest quote from Itron; updated the dollar basis to Real 2025-26 dollars
B27: Capital Expenditure | C27: P90:V93 | D27: Added calculation of perpetual licence costs for smart lighting control devices based on latest quote from Itron
B28: Capital Expenditure | C28: P96:V97 | D28: Added calculation of smart lighting control program development costs based on estimated internal labour costs
B29: Capital Expenditure | C29: R119 | D29: Updated the one-off smart lighting control implementation cost to reflect the latest (and lower) quote from Itron
B30: Capital Expenditure | C30: P121:V121 | D30: Added calculation to translate the perpetual licence costs into Real 2023-24 dollars
B31: Capital Expenditure | C31: P122:V122 | D31: Added calculation to translate the smart lighting control program costs into Real 2023-24 dollars
B32: Operating Expenditure | C32: J14:N14 | D32: Updated labour escalator
B33: Operating Expenditure | C33: J42:N42 | D33: Updated smart lighting control SaaS costs to reflect the latest (and lower) quote from Itron
B34: Operating Expenditure | C34: H62 | D34: Adjusted pole inspection rate back to 30
B35: 2025-26 Prices | C35: K45:K70 | D35: Hard coded the final 2025-26 approved prices
B36: Forecast Volumes | C36: I9I42 | D36: Updated opening values to reflect actuals
B37: Forecast Volumes | C37: Q27:W34,Z35:AF42,AI27:AO42,AR27:AX34,BA35:BG42,BJ27:BP42,BS9:BY42, CB9:CH42, CK27:CQ42 | D37: Reallocated the forecast volumes for council funded lights to JEN-funded lights, leaving the totals by light type unchanged
B38: Forecast Volumes | C38: I9:I34 | D38: Updated for actual volume for 2024-25
B40: * General update | D40: Adopted the name 'Smart lighting control' throughout the model to avoid referring to the provider directly
B43: Jemena response to information request change log
B45: changes in the spreadsheet are also highlighted in green
B47: Tab | C47: Cells | D47: Description of change
B48: Capital Expenditure | C48: Rows 46:49 | D48: Formulas duplicated so that the FILTER function does not produce a #SPILL error with the tariff updates
B49: Capital Expenditure | C49: Row 56 | D49: Formulas duplicated so that the FILTER function does not produce a #SPILL error with the tariff updates
B50: Forecast Volumes | C50: Rows 35:36 | D50: Added volumes for the new tariffs
B51: Forecast Volumes | C51: Rows 51:52 | D51: Added total for new tariff group
B52: Forecast Volumes | C52: Row 49, 50, and 54 | D52: Amended total calculations to accommodate new tariffs
B53: Outputs | C53: Rows 91:92 | D53: Added volumes for the new tariffs
B54: Outputs | C54: Cells K106:P107 | D54: Amended total calculations to accommodate new tariffs
B55: Outputs | C55: Rows 108:109 | D55: Added totals for new tariff groups
B58: AER Final Decision change log
B60: changes in the spreadsheet are also highlighted in green
B62: Tab | C62: Cells | D62: Description of change
B63: Operating Expenditure | C63: Row 14 | D63: Updated labour escalators (consistent with our Final Decision labour escalators for ANS)
B64: Operating Expenditure | C64: H62 | D64: Updated pole inspection rate to 68

Sheet Index
B1: =General!$B$1 -> JEN 2026-31 Revised Proposal - ACS Public Lighting PTRM input model
B2: Index
C4: Model index
C6: Sheet Name | D6: Sheet Description
C7: =General!B2 -> General | D7: Inputs NSP name, regulatory years for the prior and forecast regulatory control period etc.
C8: ='RAB Roll-Forward'!B2 -> RAB Roll-Forward | D8: Rolls forward the RAB
C9: ='Capital Expenditure'!C2 -> Capital Expenditure | D9: Calculates forecast capital expenditure
C10: ='Operating Expenditure'!C2 -> Operating Expenditure | D10: Calculates forecast operating expenditure
C11: ='2025-26 Prices'!C2 -> 2025-26 Prices | D11: Estimated the 2025-26 prices
C12: ='Forecast Volumes'!C2 -> Forecast Volumes | D12: Inputs forecast volumes
C13: =Outputs!B2 -> Outputs | D13: Outputs the price, RAB, volume and expenditure inputs needed for the PTRM
C15: End

Sheet General
B1: =$D$6&" "&$D$8&" "&D7&" - "&"ACS Public Lighting PTRM input model" -> JEN 2026-31 Revised Proposal - ACS Public Lighting PTRM input model | G1: Key: | H1: Input | I1: Internal Link
B2: General
B4: Input | General
C6: NSP Name | D6: JEN
C7: Determination stage | D7: Revised Proposal
C8: Determination years | D8: 2026-31
C9: Base regulatory year | D9: 2026-27
C11: Regulatory control period details
D12: Year 1 | E12: Year 2 | F12: Year 3 | G12: Year 4 | H12: Year 5
C13: Current Regulatory Control Period | D13: =IF(LEN(E13)>4,CONCATENATE(LEFT(E13,4)-1&"–"&IF(RIGHT(E13,2)="00","99",IF(RIGHT(E13,2)-1<10,"0","")&RIGHT(E13,2)-1)),E13-1) -> 2021–22 | E13: =IF(LEN(F13)>4,CONCATENATE(LEFT(F13,4)-1&"–"&IF(RIGHT(F13,2)="00","99",IF(RIGHT(F13,2)-1<10,"0","")&RIGHT(F13,2)-1)),F13-1) -> 2022–23 | F13: =IF(LEN(G13)>4,CONCATENATE(LEFT(G13,4)-1&"–"&IF(RIGHT(G13,2)="00","99",IF(RIGHT(G13,2)-1<10,"0","")&RIGHT(G13,2)-1)),G13-1) -> 2023–24 | G13: =IF(LEN(H13)>4,CONCATENATE(LEFT(H13,4)-1&"–"&IF(RIGHT(H13,2)="00","99",IF(RIGHT(H13,2)-1<10,"0","")&RIGHT(H13,2)-1)),H13-1) -> 2024–25 | H13: =IF(LEN(D9)>4,CONCATENATE(LEFT(D9,4)-1&"–"&IF(RIGHT(D9,2)="00","99",IF(RIGHT(D9,2)-1<10,"0","")&RIGHT(D9,2)-1)),D9-1) -> 2025–26
D15: Year 1 | E15: Year 2 | F15: Year 3 | G15: Year 4 | H15: Year 5
C16: Next Regulatory Control Period | D16: =D9 -> 2026-27 | E16: =IF(LEN(D16)>4,CONCATENATE(LEFT(D16,4)+1&"–"&IF(RIGHT(D16,2)+1>9,"","0")&RIGHT(D16,2)+1),D16+1) -> 2027–28 | F16: =IF(LEN(E16)>4,CONCATENATE(LEFT(E16,4)+1&"–"&IF(RIGHT(E16,2)+1>9,"","0")&RIGHT(E16,2)+1),E16+1) -> 2028–29 | G16: =IF(LEN(F16)>4,CONCATENATE(LEFT(F16,4)+1&"–"&IF(RIGHT(F16,2)+1>9,"","0")&RIGHT(F16,2)+1),F16+1) -> 2029–30 | H16: =IF(LEN(G16)>4,CONCATENATE(LEFT(G16,4)+1&"–"&IF(RIGHT(G16,2)+1>9,"","0")&RIGHT(G16,2)+1),G16+1) -> 2030–31
B19: End

Sheet RAB Roll-Forward
B1: =General!$B$1 -> JEN 2026-31 Revised Proposal - ACS Public Lighting PTRM input model | J1: Key: | K1: Input | L1: Internal Link
B2: RAB Roll-Forward
B4: Inputs
D6: Source | E6: Unit | H6: Standard life | J6: WARL
C8: Poles and brackets | D8: AER | E8: Years | H8: 35 | J8: =IFERROR((SUMPRODUCT($AF$86:$BN$86,$AF$113:$BN$113)/SUM($AF$113:$BN$113)-0.5)*2,"n/a") -> 28.23905332
C9: Existing lights - luminaires | D9: AER | E9: Years | H9: 20 | J9: =IFERROR((SUMPRODUCT($AF$118:$BN$118,$AF$145:$BN$145)/SUM($AF$145:$BN$145)-0.5)*2,"n/a") -> 12.65001146
C10: Energy efficient lights - luminaires & ballasts | D10: AER | E10: Years | H10: 20 | J10: =IFERROR((SUMPRODUCT($AF$150:$BN$150,$AF$177:$BN$177)/SUM($AF$177:$BN$177)-0.5)*2,"n/a") -> 16.5821542
C11: Replaced self-funded energy efficient lights | D11: JEN | E11: Years | H11: =H10 -> 20 | J11: =IFERROR((SUMPRODUCT($AF$182:$BN$182,$AF$209:$BN$209)/SUM($AF$209:$BN$209)-0.5)*2,"n/a") -> n/a
C12: Street light vision | D12: JEN | E12: Years | H12: 5 | J12: =IFERROR((SUMPRODUCT($AF$214:$BN$214,$AF$241:$BN$241)/SUM($AF$241:$BN$241)-0.5)*2,"n/a") -> n/a
C13: Smart lighting control devices | D13: JEN | E13: Years | H13: =H10 -> 20 | J13: =IFERROR((SUMPRODUCT($AF$246:$BN$246,$AF$273:$BN$273)/SUM($AF$273:$BN$273)-0.5)*2,"n/a") -> n/a
C14: in-house software | D14: JEN | E14: Years | H14: 5 | J14: =IFERROR((SUMPRODUCT($AF$278:$BN$278,$AF$305:$BN$305)/SUM($AF$305:$BN$305)-0.5)*2,"n/a") -> n/a
B17: Summary | RAB Roll-forward
D19: Source | E19: Unit | F19: Basis | J19: 2005 | K19: 2006 | L19: 2007 | M19: 2008 | N19: 2009 | O19: 2010 | P19: 2011 | Q19: 2012 | R19: 2013 | S19: 2014 | T19: 2015 | U19: 2016 | V19: 2017 | W19: 2018 | X19: 2019 | Y19: 2020 | Z19: HY2021 | AA19: 2021/22 | AB19: 2022/23 | AC19: 2023/24 | AD19: 2024/25 | AE19: 2025/26
C20: =C8 -> Poles and brackets
C21: Opening RAB | D21: Calculated | E21: $ | F21: nominal | J21: =H89 -> 1603596.8 | K21: =J25 -> 1662495.495 | L21: 1738557.761 | M21: 1708058.499 | N21: 1680638.14 | O21: 1704624.342 | P21: 1781742.03 | Q21: 1955605.746 | R21: 1885835.377 | S21: 2273461.15 | T21: 2907944.195 | U21: 3274973.58 | V21: 3639175.912 | W21: 4046125.82 | X21: 4703677.046 | Y21: 4928845.168 | Z21: 5134230.5 | AA21: 5258996.995 | AB21: 6301420.375 | AC21: 7479956.89 | AD21: 8704645.06 | AE21: 9360225.608
C22: Net Capex | D22: Calculated | E22: $ | F22: nominal | J22: =IF(ISERROR(INDEX($H$90:$H$111,MATCH(J$87,$C$90:$C$111,0))),0,INDEX($H$90:$H$111,MATCH(J$87,$C$90:$C$111,0))) -> 109050.4 | K22: 129623.6 | L22: 25274.90775 | M22: 29131.03834 | N22: 82127 | O22: 138409 | P22: 240569 | Q22: 377 | R22: 464413 | S22: 728309.1598 | T22: 478089.77 | U22: 489079.42 | V22: 546622.74 | W22: 816700.1 | X22: 401723.04 | Y22: 393297.69 | Z22: 224742.55 | AA22: 1266895.21 | AB22: 1441702.6 | AC22: 1530311.6 | AD22: 997312.9 | AE22: 1019673.251
C23: Straight-line Depreciation | D23: Calculated | E23: $ | F23: nominal | J23: =-J113 -> -50151.7053 | K23: -53561.33387 | L23: -55774.16969 | M23: -56551.39749 | N23: -58140.79804 | O23: -61291.31233 | P23: -66705.28376 | Q23: -70147.36947 | R23: -76787.22661 | S23: -93826.11461 | T23: -111060.385 | U23: -124877.0878 | V23: -139672.8329 | W23: -159148.8735 | X23: -176554.9183 | Y23: -187912.3573 | Z23: -99976.05573 | AA23: -224471.8302 | AB23: -263166.0846 | AC23: -305623.4303 | AD23: -341732.3518 | AE23: -370546.4396
C25: Closing RAB | D25: Calculated | E25: $ | F25: nominal | J25: =SUM(J21:J23) -> 1662495.495 | K25: 1738557.761 | L25: 1708058.499 | M25: 1680638.14 | N25: 1704624.342 | O25: 1781742.03 | P25: 1955605.746 | Q25: 1885835.377 | R25: 2273461.15 | S25: 2907944.195 | T25: 3274973.58 | U25: 3639175.912 | V25: 4046125.82 | W25: 4703677.046 | X25: 4928845.168 | Y25: 5134230.5 | Z25: 5258996.995 | AA25: 6301420.375 | AB25: 7479956.89 | AC25: 8704645.06 | AD25: 9360225.608 | AE25: 10009352.42
C28: =C9 -> Existing lights - luminaires
C29: Opening RAB | D29: Calculated | E29: $ | F29: nominal | J29: =H121 -> 2801660.112 | K29: =J33 -> 3068138.188 | L29: 3291934.914 | M29: 3403340.92 | N29: 4090615.571 | O29: 4400561.244 | P29: 4268314.492 | Q29: 4375747.29 | R29: 4255736.512 | S29: 4373321.51 | T29: 4470148.242 | U29: 3037662.965 | V29: 3232053.189 | W29: 3438698.131 | X29: 3395333.019 | Y29: 3559467.553 | Z29: 3429464.61 | AA29: 3343952.654 | AB29: 3258661.756 | AC29: 3192716.5 | AD29: 3176675.767 | AE29: 3131945.598
C30: Net Capex | D30: Calculated | E30: $ | F30: nominal | J30: =IF(ISERROR(INDEX($H$122:$H$143,MATCH(J$119,$C$122:$C$143,0))),0,INDEX($H$122:$H$143,MATCH(J$119,$C$122:$C$143,0))) -> 432949.6 | K30: =IF(ISERROR(INDEX($H$122:$H$143,MATCH(K$119,$C$122:$C$143,0))),0,INDEX($H$122:$H$143,MATCH(K$119,$C$122:$C$143,0))) -> 411376.4 | L30: 317200.0923 | M30: 924101.2717 | N30: 584487 | O30: 160930 | P30: 415008 | Q30: 203015 | R30: 457114 | S30: 459265.214 | T30: -1085707.86 | U30: 527205.07 | V30: 566810.17 | W30: 339456.79 | X30: 569684.98 | Y30: 297220.13 | Z30: 135194.7 | AA30: 372186.82 | AB30: 331295.63 | AC30: 319649.9 | AD30: 306617.14 | AE30: 0
C31: Straight-line Depreciation | D31: Calculated | E31: $ | F31: nominal | J31: =-J145 -> -166471.524 | K31: -187579.674 | L31: -205794.0863 | M31: -236826.6204 | N31: -274541.3272 | O31: -293176.7522 | P31: -307575.2022 | Q31: -323025.7772 | R31: -339529.0022 | S31: -362438.4825 | T31: -346777.4164 | U31: -332814.8466 | V31: -360165.2276 | W31: -382821.9016 | X31: -405550.4459 | Y31: -427223.0736 | Z31: -220706.6559 | AA31: -457477.7174 | AB31: -397240.8866 | AC31: -335690.6329 | AD31: -351347.3089 | AE31: -337365.2574
C33: Closing RAB | D33: Calculated | E33: $ | F33: nominal | J33: =SUM(J29:J31) -> 3068138.188 | K33: 3291934.914 | L33: 3403340.92 | M33: 4090615.571 | N33: 4400561.244 | O33: 4268314.492 | P33: 4375747.29 | Q33: 4255736.512 | R33: 4373321.51 | S33: 4470148.242 | T33: 3037662.965 | U33: 3232053.189 | V33: 3438698.131 | W33: 3395333.019 | X33: 3559467.553 | Y33: 3429464.61 | Z33: 3343952.654 | AA33: 3258661.756 | AB33: 3192716.5 | AC33: 3176675.767 | AD33: 3131945.598 | AE33: 2794580.341
C36: =C10 -> Energy efficient lights - luminaires & ballasts
C37: Opening RAB | D37: Calculated | E37: $ | F37: nominal | J37: =H153 -> 0 | K37: =J41 -> 0 | L37: 0 | M37: 0 | N37: 0 | O37: 0 | P37: 133624.725 | Q37: 165168.65 | R37: 470018.2 | S37: 446209.725 | T37: 424405.1425 | U37: 520478.5898 | V37: 950268.7813 | W37: 1301011.593 | X37: 1622779.06 | Y37: 2117884.757 | Z37: 2536393.357 | AA37: 2700777.528 | AB37: 3683322.952 | AC37: 3797137.672 | AD37: 4690131.107 | AE37: 9227778.354
C38: Net Capex | D38: Calculated | E38: $ | F38: nominal | J38: =IF(ISERROR(INDEX($H$154:$H$175,MATCH(J$151,$C$154:$C$175,0))),0,INDEX($H$154:$H$175,MATCH(J$151,$C$154:$C$175,0))) -> 0 | K38: =IF(ISERROR(INDEX($H$154:$H$175,MATCH(K$151,$C$154:$C$175,0))),0,INDEX($H$154:$H$175,MATCH(K$151,$C$154:$C$175,0))) -> 0 | L38: 0 | M38: 0 | N38: 0 | O38: 137051 | P38: 39381 | Q38: 321714 | R38: 1127 | S38: 3240.069195 | T38: 124306.77 | U38: 472955.06 | V38: 416134.93 | W38: 407756.88 | X38: 606450.29 | Y38: 558989.18 | Z38: 247807 | AA38: 1191570.7 | AB38: 361671.04 | AC38: 1179375.93 | AD38: 4977963.22 | AE38: 291991.1842
C39: Straight-line Depreciation | D39: Calculated | E39: $ | F39: nominal | J39: =-J177 -> 0 | K39: 0 | L39: 0 | M39: 0 | N39: 0 | O39: -3426.275 | P39: -7837.075 | Q39: -16864.45 | R39: -24935.475 | S39: -25044.65173 | T39: -28233.32271 | U39: -43164.86846 | V39: -65392.11821 | W39: -85989.41346 | X39: -111344.5927 | Y39: -140480.5795 | Z39: -83422.82948 | AA39: -209025.2765 | AB39: -247856.32 | AC39: -286382.4942 | AD39: -440315.973 | AE39: -572064.8331
C41: Closing RAB | D41: Calculated | E41: $ | F41: nominal | J41: =SUM(J37:J39) -> 0 | K41: 0 | L41: 0 | M41: 0 | N41: 0 | O41: 133624.725 | P41: 165168.65 | Q41: 470018.2 | R41: 446209.725 | S41: 424405.1425 | T41: 520478.5898 | U41: 950268.7813 | V41: 1301011.593 | W41: 1622779.06 | X41: 2117884.757 | Y41: 2536393.357 | Z41: 2700777.528 | AA41: 3683322.952 | AB41: 3797137.672 | AC41: 4690131.107 | AD41: 9227778.354 | AE41: 8947704.705
C44: =C11 -> Replaced self-funded energy efficient lights
C45: Opening RAB | D45: Calculated | E45: $ | F45: nominal | J45: =H185 -> 0 | K45: =J49 -> 0 | L45: =K49 -> 0 | M45: 0 | N45: 0 | O45: 0 | P45: 0 | Q45: 0 | R45: 0 | S45: 0 | T45: 0 | U45: 0 | V45: 0 | W45: 0 | X45: 0 | Y45: 0 | Z45: 0 | AA45: 0 | AB45: 0 | AC45: 0 | AD45: 0 | AE45: 0
C46: Net Capex | D46: Calculated | E46: $ | F46: nominal | J46: =IF(ISERROR(INDEX($H$186:$H$207,MATCH(J$183,$C$186:$C$207,0))),0,INDEX($H$186:$H$207,MATCH(J$183,$C$186:$C$207,0))) -> 0 | K46: 0 | L46: 0 | M46: 0 | N46: 0 | O46: 0 | P46: 0 | Q46: 0 | R46: 0 | S46: 0 | T46: 0 | U46: 0 | V46: 0 | W46: 0 | X46: 0 | Y46: 0 | Z46: 0 | AA46: 0 | AB46: 0 | AC46: 0 | AD46: 0 | AE46: =IF(ISERROR(INDEX($H$186:$H$207,MATCH(AE$183,$C$186:$C$207,0))),0,INDEX($H$186:$H$207,MATCH(AE$183,$C$186:$C$207,0))) -> 0
C47: Straight-line Depreciation | D47: Calculated | E47: $ | F47: nominal | J47: =-J209 -> 0 | K47: =-K209 -> 0 | L47: 0 | M47: 0 | N47: 0 | O47: 0 | P47: 0 | Q47: 0 | R47: 0 | S47: 0 | T47: 0 | U47: 0 | V47: 0 | W47: 0 | X47: 0 | Y47: 0 | Z47: 0 | AA47: 0 | AB47: 0 | AC47: 0 | AD47: 0 | AE47: 0
C49: Closing RAB | D49: Calculated | E49: $ | F49: nominal | J49: =SUM(J45:J47) -> 0 | K49: 0 | L49: 0 | M49: 0 | N49: 0 | O49: 0 | P49: 0 | Q49: 0 | R49: 0 | S49: 0 | T49: 0 | U49: 0 | V49: 0 | W49: 0 | X49: 0 | Y49: 0 | Z49: 0 | AA49: 0 | AB49: 0 | AC49: 0 | AD49: 0 | AE49: 0
C52: =C12 -> Street light vision
C53: Opening RAB | D53: Calculated | E53: $ | F53: nominal | J53: =H217 -> 0 | K53: =J57 -> 0 | L53: =K57 -> 0 | M53: 0 | N53: 0 | O53: 0 | P53: 0 | Q53: 0 | R53: 0 | S53: 0 | T53: 0 | U53: 0 | V53: 0 | W53: 0 | X53: 0 | Y53: 0 | Z53: 0 | AA53: 0 | AB53: 0 | AC53: 0 | AD53: 0 | AE53: 0
C54: Net Capex | D54: Calculated | E54: $ | F54: nominal | J54: =IF(ISERROR(INDEX($H$218:$H$239,MATCH(J$215,$C$218:$C$239,0))),0,INDEX($H$218:$H$239,MATCH(J$215,$C$218:$C$239,0))) -> 0 | K54: =IF(ISERROR(INDEX($H$218:$H$239,MATCH(K$215,$C$218:$C$239,0))),0,INDEX($H$218:$H$239,MATCH(K$215,$C$218:$C$239,0))) -> 0 | L54: 0 | M54: 0 | N54: 0 | O54: 0 | P54: 0 | Q54: 0 | R54: 0 | S54: 0 | T54: 0 | U54: 0 | V54: 0 | W54: 0 | X54: 0 | Y54: 0 | Z54: 0 | AA54: 0 | AB54: 0 | AC54: 0 | AD54: 0 | AE54: 0
C55: Straight-line Depreciation | D55: Calculated | E55: $ | F55: nominal | J55: =-J241 -> 0 | K55: =-K241 -> 0 | L55: 0 | M55: 0 | N55: 0 | O55: 0 | P55: 0 | Q55: 0 | R55: 0 | S55: 0 | T55: 0 | U55: 0 | V55: 0 | W55: 0 | X55: 0 | Y55: 0 | Z55: 0 | AA55: 0 | AB55: 0 | AC55: 0 | AD55: 0 | AE55: 0
C57: Closing RAB | D57: Calculated | E57: $ | F57: nominal | J57: =SUM(J53:J55) -> 0 | K57: 0 | L57: 0 | M57: 0 | N57: 0 | O57: 0 | P57: 0 | Q57: 0 | R57: 0 | S57: 0 | T57: 0 | U57: 0 | V57: 0 | W57: 0 | X57: 0 | Y57: 0 | Z57: 0 | AA57: 0 | AB57: 0 | AC57: 0 | AD57: 0 | AE57: 0
C60: =C13 -> Smart lighting control devices
C61: Opening RAB | D61: Calculated | E61: $ | F61: nominal | J61: =H249 -> 0 | K61: =J65 -> 0 | L61: =K65 -> 0 | M61: 0 | N61: 0 | O61: 0 | P61: 0 | Q61: 0 | R61: 0 | S61: 0 | T61: 0 | U61: 0 | V61: 0 | W61: 0 | X61: 0 | Y61: 0 | Z61: 0 | AA61: 0 | AB61: 0 | AC61: 0 | AD61: 0 | AE61: 0
C62: Net Capex | D62: Calculated | E62: $ | F62: nominal | J62: =IF(ISERROR(INDEX($H$250:$H$271,MATCH(J$247,$C$250:$C$271,0))),0,INDEX($H$250:$H$271,MATCH(J$247,$C$250:$C$271,0))) -> 0 | K62: =IF(ISERROR(INDEX($H$250:$H$271,MATCH(K$247,$C$250:$C$271,0))),0,INDEX($H$250:$H$271,MATCH(K$247,$C$250:$C$271,0))) -> 0 | L62: 0 | M62: 0 | N62: 0 | O62: 0 | P62: 0 | Q62: 0 | R62: 0 | S62: 0 | T62: 0 | U62: 0 | V62: 0 | W62: 0 | X62: 0 | Y62: 0 | Z62: 0 | AA62: 0 | AB62: 0 | AC62: 0 | AD62: 0 | AE62: 0
C63: Straight-line Depreciation | D63: Calculated | E63: $ | F63: nominal | J63: =-J273 -> 0 | K63: =-K273 -> 0 | L63: 0 | M63: 0 | N63: 0 | O63: 0 | P63: 0 | Q63: 0 | R63: 0 | S63: 0 | T63: 0 | U63: 0 | V63: 0 | W63: 0 | X63: 0 | Y63: 0 | Z63: 0 | AA63: 0 | AB63: 0 | AC63: 0 | AD63: 0 | AE63: 0
C65: Closing RAB | D65: Calculated | E65: $ | F65: nominal | J65: =SUM(J61:J63) -> 0 | K65: 0 | L65: 0 | M65: 0 | N65: 0 | O65: 0 | P65: 0 | Q65: 0 | R65: 0 | S65: 0 | T65: 0 | U65: 0 | V65: 0 | W65: 0 | X65: 0 | Y65: 0 | Z65: 0 | AA65: 0 | AB65: 0 | AC65: 0 | AD65: 0 | AE65: 0
C68: =C14 -> in-house software
C69: Opening RAB | D69: Calculated | E69: $ | F69: nominal | J69: =H281 -> 0 | K69: =J73 -> 0 | L69: =K73 -> 0 | M69: 0 | N69: 0 | O69: 0 | P69: 0 | Q69: 0 | R69: 0 | S69: 0 | T69: 0 | U69: 0 | V69: 0 | W69: 0 | X69: 0 | Y69: 0 | Z69: 0 | AA69: 0 | AB69: 0 | AC69: 0 | AD69: 0 | AE69: 0
C70: Net Capex | D70: Calculated | E70: $ | F70: nominal | J70: =IF(ISERROR(INDEX($H$282:$H$303,MATCH(J$279,$C$282:$C$303,0))),0,INDEX($H$282:$H$303,MATCH(J$279,$C$282:$C$303,0))) -> 0 | K70: =IF(ISERROR(INDEX($H$282:$H$303,MATCH(K$279,$C$282:$C$303,0))),0,INDEX($H$282:$H$303,MATCH(K$279,$C$282:$C$303,0))) -> 0 | L70: 0 | M70: 0 | N70: 0 | O70: 0 | P70: 0 | Q70: 0 | R70: 0 | S70: 0 | T70: 0 | U70: 0 | V70: 0 | W70: 0 | X70: 0 | Y70: 0 | Z70: 0 | AA70: 0 | AB70: 0 | AC70: 0 | AD70: 0 | AE70: 0
C71: Straight-line Depreciation | D71: Calculated | E71: $ | F71: nominal | J71: =-J305 -> 0 | K71: =-K305 -> 0 | L71: 0 | M71: 0 | N71: 0 | O71: 0 | P71: 0 | Q71: 0 | R71: 0 | S71: 0 | T71: 0 | U71: 0 | V71: 0 | W71: 0 | X71: 0 | Y71: 0 | Z71: 0 | AA71: 0 | AB71: 0 | AC71: 0 | AD71: 0 | AE71: 0
C73: Closing RAB | D73: Calculated | E73: $ | F73: nominal | J73: =SUM(J69:J71) -> 0 | K73: 0 | L73: 0 | M73: 0 | N73: 0 | O73: 0 | P73: 0 | Q73: 0 | R73: 0 | S73: 0 | T73: 0 | U73: 0 | V73: 0 | W73: 0 | X73: 0 | Y73: 0 | Z73: 0 | AA73: 0 | AB73: 0 | AC73: 0 | AD73: 0 | AE73: 0
C76: Total RAB
C77: Opening RAB | D77: Calculated | E77: $ | F77: nominal | J77: =J21+J29+J37+J45+J53+J61+J69 -> 4405256.912 | K77: =K21+K29+K37+K45+K53+K61+K69 -> 4730633.683 | L77: 5030492.675 | M77: 5111399.419 | N77: 5771253.711 | O77: 6105185.586 | P77: 6183681.247 | Q77: 6496521.686 | R77: 6611590.089 | S77: 7092992.385 | T77: 7802497.579 | U77: 6833115.135 | V77: 7821497.882 | W77: 8785835.544 | X77: 9721789.125 | Y77: 10606197.48 | Z77: 11100088.47 | AA77: 11303727.18 | AB77: 13243405.08 | AC77: 14469811.06 | AD77: 16571451.93 | AE77: 21719949.56
C78: Net Capex | D78: Calculated | E78: $ | F78: nominal | J78: =J22+J30+J38+J46+J54+J62+J70 -> 542000 | K78: 541000 | L78: 342475 | M78: 953232.31 | N78: 666614 | O78: 436390 | P78: 694958 | Q78: 525106 | R78: 922654 | S78: 1190814.443 | T78: -483311.32 | U78: 1489239.55 | V78: 1529567.84 | W78: 1563913.77 | X78: 1577858.31 | Y78: 1249507 | Z78: 607744.25 | AA78: 2830652.73 | AB78: 2134669.27 | AC78: 3029337.43 | AD78: 6281893.26 | AE78: 1311664.435
C79: Straight-line Depreciation | D79: Calculated | E79: $ | F79: nominal | J79: =J23+J31+J39+J47+J55+J63+J71 -> -216623.2293 | K79: -241141.0079 | L79: -261568.256 | M79: -293378.0179 | N79: -332682.1252 | O79: -357894.3395 | P79: -382117.5609 | Q79: -410037.5967 | R79: -441251.7038 | S79: -481309.2489 | T79: -486071.1241 | U79: -500856.8028 | V79: -565230.1787 | W79: -627960.1886 | X79: -693449.9569 | Y79: -755616.0104 | Z79: -404105.5412 | AA79: -890974.824 | AB79: -908263.2912 | AC79: -927696.5574 | AD79: -1133395.634 | AE79: -1279976.53
C81: Closing RAB | D81: Calculated | E81: $ | F81: nominal | J81: 4730633.683 | K81: 5030492.675 | L81: 5111399.419 | M81: 5771253.711 | N81: 6105185.586 | O81: 6183681.247 | P81: 6496521.686 | Q81: 6611590.089 | R81: 7092992.385 | S81: 7802497.579 | T81: 6833115.135 | U81: 7821497.882 | V81: 8785835.544 | W81: 9721789.125 | X81: 10606197.48 | Y81: 11100088.47 | Z81: 11303727.18 | AA81: 13243405.08 | AB81: 14469811.06 | AC81: 16571451.93 | AD81: 21719949.56 | AE81: 21751637.47
B84: =C8 -> Poles and brackets
J86: Depreciation ► | AF86: 1 | AG86: =AF86+1 -> 2 | AH86: =AG86+1 -> 3 | AI86: 4 | AJ86: 5 | AK86: 6 | AL86: 7 | AM86: 8 | AN86: 9 | AO86: 10 | AP86: 11 | AQ86: 12 | AR86: 13 | AS86: 14 | AT86: 15 | AU86: 16 | AV86: 17 | AW86: 18 | AX86: 19 | AY86: 20 | AZ86: 21 | BA86: 22 | BB86: 23 | BC86: 24 | BD86: 25 | BE86: 26 | BF86: 27 | BG86: 28 | BH86: 29 | BI86: 30 | BJ86: 31 | BK86: 32 | BL86: 33 | BM86: 34 | BN86: 35
D87: Source | E87: Unit | F87: Basis | H87: Capex | J87: 2005 | K87: 2006 | L87: 2007 | M87: 2008 | N87: 2009 | O87: 2010 | P87: 2011 | Q87: 2012 | R87: 2013 | S87: 2014 | T87: 2015 | U87: 2016 | V87: 2017 | W87: 2018 | X87: 2019 | Y87: 2020 | Z87: HY2021 | AA87: 2021/22 | AB87: 2022/23 | AC87: 2023/24 | AD87: 2024/25 | AE87: 2025/26 | AF87: =(LEFT(AE87,4)+1&IF(MID(AE87,5,1)="","","-"&TEXT(MOD(MID(AE87,6,2)+1,100),"00"))) -> 2026-27 | AG87: 2027-28 | AH87: 2028-29 | AI87: 2029-30 | AJ87: 2030-31 | AK87: 2031-32 | AL87: 2032-33 | AM87: 2033-34 | AN87: 2034-35 | AO87: 2035-36 | AP87: 2036-37 | AQ87: 2037-38 | AR87: 2038-39 | AS87: 2039-40 | AT87: 2040-41 | AU87: 2041-42 | AV87: 2042-43 | AW87: 2043-44 | AX87: 2044-45 | AY87: 2045-46 | AZ87: 2046-47 | BA87: 2047-48 | BB87: 2048-49 | BC87: 2049-50 | BD87: 2050-51 | BE87: 2051-52 | BF87: 2052-53 | BG87: 2053-54 | BH87: 2054-55 | BI87: 2055-56 | BJ87: 2056-57 | BK87: 2057-58 | BL87: =(LEFT(BK87,4)+1&IF(MID(BK87,5,1)="","","-"&TEXT(MOD(MID(BK87,6,2)+1,100),"00"))) -> 2058-59 | BM87: =(LEFT(BL87,4)+1&IF(MID(BL87,5,1)="","","-"&TEXT(MOD(MID(BL87,6,2)+1,100),"00"))) -> 2059-60 | BN87: =(LEFT(BM87,4)+1&IF(MID(BM87,5,1)="","","-"&TEXT(MOD(MID(BM87,6,2)+1,100),"00"))) -> 2060-61 | BP87: Check
C89: 2001-04 | D89: AER | E89: $ | F89: nominal | H89: 1603596.8 | J89: 48593.84244 | K89: 48593.84244 | L89: 48593.84244 | M89: 48593.84244 | N89: 48593.84244 | O89: 48593.84244 | P89: 48593.84244 | Q89: 48593.84244 | R89: 48593.84244 | S89: 48593.84244 | T89: 48593.84244 | U89: 48593.84244 | V89: 48593.84244 | W89: 48593.84244 | X89: 48593.84244 | Y89: 48593.84244 | Z89: 24296.92122 | AA89: 48593.84244 | AB89: 48593.84244 | AC89: 48593.84244 | AD89: 48593.84244 | AE89: 48593.84244 | AF89: =IF(ABS($H89-SUM($J89:AE89))>=ABS(AE89),AE89,IF(ABS($H89-SUM($J89:AE89))>0,$H89-SUM($J89:AE89),0)) -> 48593.84244 | AG89: =IF(ABS($H89-SUM($J89:AF89))>=ABS(AF89),AF89,IF(ABS($H89-SUM($J89:AF89))>0,$H89-SUM($J89:AF89),0)) -> 48593.84244 | AH89: =IF(ABS($H89-SUM($J89:AG89))>=ABS(AG89),AG89,IF(ABS($H89-SUM($J89:AG89))>0,$H89-SUM($J89:AG89),0)) -> 48593.84244 | AI89: =IF(ABS($H89-SUM($J89:AH89))>=ABS(AH89),AH89,IF(ABS($H89-SUM($J89:AH89))>0,$H89-SUM($J89:AH89),0)) -> 48593.84244 | AJ89: =IF(ABS($H89-SUM($J89:AI89))>=ABS(AI89),AI89,IF(ABS($H89-SUM($J89:AI89))>0,$H89-SUM($J89:AI89),0)) -> 48593.84244 | AK89: =IF(ABS($H89-SUM($J89:AJ89))>=ABS(AJ89),AJ89,IF(ABS($H89-SUM($J89:AJ89))>0,$H89-SUM($J89:AJ89),0)) -> 48593.84244 | AL89: =IF(ABS($H89-SUM($J89:AK89))>=ABS(AK89),AK89,IF(ABS($H89-SUM($J89:AK89))>0,$H89-SUM($J89:AK89),0)) -> 48593.84244 | AM89: =IF(ABS($H89-SUM($J89:AL89))>=ABS(AL89),AL89,IF(ABS($H89-SUM($J89:AL89))>0,$H89-SUM($J89:AL89),0)) -> 48593.84244 | AN89: =IF(ABS($H89-SUM($J89:AM89))>=ABS(AM89),AM89,IF(ABS($H89-SUM($J89:AM89))>0,$H89-SUM($J89:AM89),0)) -> 48593.84244 | AO89: =IF(ABS($H89-SUM($J89:AN89))>=ABS(AN89),AN89,IF(ABS($H89-SUM($J89:AN89))>0,$H89-SUM($J89:AN89),0)) -> 48593.84244 | AP89: =IF(ABS($H89-SUM($J89:AO89))>=ABS(AO89),AO89,IF(ABS($H89-SUM($J89:AO89))>0,$H89-SUM($J89:AO89),0)) -> 48593.84244 | AQ89: =IF(ABS($H89-SUM($J89:AP89))>=ABS(AP89),AP89,IF(ABS($H89-SUM($J89:AP89))>0,$H89-SUM($J89:AP89),0)) -> 24296.92122 | AR89: =IF(ABS($H89-SUM($J89:AQ89))>=ABS(AQ89),AQ89,IF(ABS($H89-SUM($J89:AQ89))>0,$H89-SUM($J89:AQ89),0)) -> 0 | AS89: =IF(ABS($H89-SUM($J89:AR89))>=ABS(AR89),AR89,IF(ABS($H89-SUM($J89:AR89))>0,$H89-SUM($J89:AR89),0)) -> 0 | AT89: =IF(ABS($H89-SUM($J89:AS89))>=ABS(AS89),AS89,IF(ABS($H89-SUM($J89:AS89))>0,$H89-SUM($J89:AS89),0)) -> 0 | AU89: =IF(ABS($H89-SUM($J89:AT89))>=ABS(AT89),AT89,IF(ABS($H89-SUM($J89:AT89))>0,$H89-SUM($J89:AT89),0)) -> 0 | AV89: =IF(ABS($H89-SUM($J89:AU89))>=ABS(AU89),AU89,IF(ABS($H89-SUM($J89:AU89))>0,$H89-SUM($J89:AU89),0)) -> 0 | AW89: =IF(ABS($H89-SUM($J89:AV89))>=ABS(AV89),AV89,IF(ABS($H89-SUM($J89:AV89))>0,$H89-SUM($J89:AV89),0)) -> 0 | AX89: =IF(ABS($H89-SUM($J89:AW89))>=ABS(AW89),AW89,IF(ABS($H89-SUM($J89:AW89))>0,$H89-SUM($J89:AW89),0)) -> 0 | AY89: =IF(ABS($H89-SUM($J89:AX89))>=ABS(AX89),AX89,IF(ABS($H89-SUM($J89:AX89))>0,$H89-SUM($J89:AX89),0)) -> 0 | AZ89: =IF(ABS($H89-SUM($J89:AY89))>=ABS(AY89),AY89,IF(ABS($H89-SUM($J89:AY89))>0,$H89-SUM($J89:AY89),0)) -> 0 | BA89: =IF(ABS($H89-SUM($J89:AZ89))>=ABS(AZ89),AZ89,IF(ABS($H89-SUM($J89:AZ89))>0,$H89-SUM($J89:AZ89),0)) -> 0 | BB89: =IF(ABS($H89-SUM($J89:BA89))>=ABS(BA89),BA89,IF(ABS($H89-SUM($J89:BA89))>0,$H89-SUM($J89:BA89),0)) -> 0 | BC89: =IF(ABS($H89-SUM($J89:BB89))>=ABS(BB89),BB89,IF(ABS($H89-SUM($J89:BB89))>0,$H89-SUM($J89:BB89),0)) -> 0 | BD89: =IF(ABS($H89-SUM($J89:BC89))>=ABS(BC89),BC89,IF(ABS($H89-SUM($J89:BC89))>0,$H89-SUM($J89:BC89),0)) -> 0 | BE89: =IF(ABS($H89-SUM($J89:BD89))>=ABS(BD89),BD89,IF(ABS($H89-SUM($J89:BD89))>0,$H89-SUM($J89:BD89),0)) -> 0 | BF89: =IF(ABS($H89-SUM($J89:BE89))>=ABS(BE89),BE89,IF(ABS($H89-SUM($J89:BE89))>0,$H89-SUM($J89:BE89),0)) -> 0 | BG89: =IF(ABS($H89-SUM($J89:BF89))>=ABS(BF89),BF89,IF(ABS($H89-SUM($J89:BF89))>0,$H89-SUM($J89:BF89),0)) -> 0 | BH89: =IF(ABS($H89-SUM($J89:BG89))>=ABS(BG89),BG89,IF(ABS($H89-SUM($J89:BG89))>0,$H89-SUM($J89:BG89),0)) -> 0 | BI89: =IF(ABS($H89-SUM($J89:BH89))>=ABS(BH89),BH89,IF(ABS($H89-SUM($J89:BH89))>0,$H89-SUM($J89:BH89),0)) -> 0 | BJ89: =IF(ABS($H89-SUM($J89:BI89))>=ABS(BI89),BI89,IF(ABS($H89-SUM($J89:BI89))>0,$H89-SUM($J89:BI89),0)) -> 0 | BK89: =IF(ABS($H89-SUM($J89:BJ89))>=ABS(BJ89),BJ89,IF(ABS($H89-SUM($J89:BJ89))>0,$H89-SUM($J89:BJ89),0)) -> 0 | BL89: =IF(ABS($H89-SUM($J89:BK89))>=ABS(BK89),BK89,IF(ABS($H89-SUM($J89:BK89))>0,$H89-SUM($J89:BK89),0)) -> 0 | BM89: =IF(ABS($H89-SUM($J89:BL89))>=ABS(BL89),BL89,IF(ABS($H89-SUM($J89:BL89))>0,$H89-SUM($J89:BL89),0)) -> 0 | BN89: =IF(ABS($H89-SUM($J89:BM89))>=ABS(BM89),BM89,IF(ABS($H89-SUM($J89:BM89))>0,$H89-SUM($J89:BM89),0)) -> 0 | BP89: =H89-SUM(J89:BN89) -> 0
C90: =TRANSPOSE(J87:AE87) -> 2005 | D90: AER | E90: $ | F90: nominal | H90: 109050.4 | J90: 1557.862857 | K90: 3115.725714 | L90: 3115.725714 | M90: 3115.725714 | N90: 3115.725714 | O90: 3115.725714 | P90: 3115.725714 | Q90: 3115.725714 | R90: 3115.725714 | S90: 3115.725714 | T90: 3115.725714 | U90: 3115.725714 | V90: 3115.725714 | W90: 3115.725714 | X90: 3115.725714 | Y90: 3115.725714 | Z90: 1557.862857 | AA90: 3115.725714 | AB90: 3115.725714 | AC90: 3115.725714 | AD90: 3115.725714 | AE90: 3115.725714 | AF90: =IF(ABS($H90-SUM($J90:AE90))>=ABS(AE90),AE90,IF(ABS($H90-SUM($J90:AE90))>0,$H90-SUM($J90:AE90),0)) -> 3115.725714 | AG90: =IF(ABS($H90-SUM($J90:AF90))>=ABS(AF90),AF90,IF(ABS($H90-SUM($J90:AF90))>0,$H90-SUM($J90:AF90),0)) -> 3115.725714 | AH90: =IF(ABS($H90-SUM($J90:AG90))>=ABS(AG90),AG90,IF(ABS($H90-SUM($J90:AG90))>0,$H90-SUM($J90:AG90),0)) -> 3115.725714 | AI90: =IF(ABS($H90-SUM($J90:AH90))>=ABS(AH90),AH90,IF(ABS($H90-SUM($J90:AH90))>0,$H90-SUM($J90:AH90),0)) -> 3115.725714 | AJ90: =IF(ABS($H90-SUM($J90:AI90))>=ABS(AI90),AI90,IF(ABS($H90-SUM($J90:AI90))>0,$H90-SUM($J90:AI90),0)) -> 3115.725714 | AK90: =IF(ABS($H90-SUM($J90:AJ90))>=ABS(AJ90),AJ90,IF(ABS($H90-SUM($J90:AJ90))>0,$H90-SUM($J90:AJ90),0)) -> 3115.725714 | AL90: =IF(ABS($H90-SUM($J90:AK90))>=ABS(AK90),AK90,IF(ABS($H90-SUM($J90:AK90))>0,$H90-SUM($J90:AK90),0)) -> 3115.725714 | AM90: =IF(ABS($H90-SUM($J90:AL90))>=ABS(AL90),AL90,IF(ABS($H90-SUM($J90:AL90))>0,$H90-SUM($J90:AL90),0)) -> 3115.725714 | AN90: =IF(ABS($H90-SUM($J90:AM90))>=ABS(AM90),AM90,IF(ABS($H90-SUM($J90:AM90))>0,$H90-SUM($J90:AM90),0)) -> 3115.725714 | AO90: =IF(ABS($H90-SUM($J90:AN90))>=ABS(AN90),AN90,IF(ABS($H90-SUM($J90:AN90))>0,$H90-SUM($J90:AN90),0)) -> 3115.725714 | AP90: =IF(ABS($H90-SUM($J90:AO90))>=ABS(AO90),AO90,IF(ABS($H90-SUM($J90:AO90))>0,$H90-SUM($J90:AO90),0)) -> 3115.725714 | AQ90: =IF(ABS($H90-SUM($J90:AP90))>=ABS(AP90),AP90,IF(ABS($H90-SUM($J90:AP90))>0,$H90-SUM($J90:AP90),0)) -> 3115.725714 | AR90: =IF(ABS($H90-SUM($J90:AQ90))>=ABS(AQ90),AQ90,IF(ABS($H90-SUM($J90:AQ90))>0,$H90-SUM($J90:AQ90),0)) -> 3115.725714 | AS90: =IF(ABS($H90-SUM($J90:AR90))>=ABS(AR90),AR90,IF(ABS($H90-SUM($J90:AR90))>0,$H90-SUM($J90:AR90),0)) -> 3115.725714 | AT90: =IF(ABS($H90-SUM($J90:AS90))>=ABS(AS90),AS90,IF(ABS($H90-SUM($J90:AS90))>0,$H90-SUM($J90:AS90),0)) -> 4.365574569e-11 | AU90: =IF(ABS($H90-SUM($J90:AT90))>=ABS(AT90),AT90,IF(ABS($H90-SUM($J90:AT90))>0,$H90-SUM($J90:AT90),0)) -> 0 | AV90: =IF(ABS($H90-SUM($J90:AU90))>=ABS(AU90),AU90,IF(ABS($H90-SUM($J90:AU90))>0,$H90-SUM($J90:AU90),0)) -> 0 | AW90: =IF(ABS($H90-SUM($J90:AV90))>=ABS(AV90),AV90,IF(ABS($H90-SUM($J90:AV90))>0,$H90-SUM($J90:AV90),0)) -> 0 | AX90: =IF(ABS($H90-SUM($J90:AW90))>=ABS(AW90),AW90,IF(ABS($H90-SUM($J90:AW90))>0,$H90-SUM($J90:AW90),0)) -> 0 | AY90: =IF(ABS($H90-SUM($J90:AX90))>=ABS(AX90),AX90,IF(ABS($H90-SUM($J90:AX90))>0,$H90-SUM($J90:AX90),0)) -> 0 | AZ90: =IF(ABS($H90-SUM($J90:AY90))>=ABS(AY90),AY90,IF(ABS($H90-SUM($J90:AY90))>0,$H90-SUM($J90:AY90),0)) -> 0 | BA90: =IF(ABS($H90-SUM($J90:AZ90))>=ABS(AZ90),AZ90,IF(ABS($H90-SUM($J90:AZ90))>0,$H90-SUM($J90:AZ90),0)) -> 0 | BB90: =IF(ABS($H90-SUM($J90:BA90))>=ABS(BA90),BA90,IF(ABS($H90-SUM($J90:BA90))>0,$H90-SUM($J90:BA90),0)) -> 0 | BC90: =IF(ABS($H90-SUM($J90:BB90))>=ABS(BB90),BB90,IF(ABS($H90-SUM($J90:BB90))>0,$H90-SUM($J90:BB90),0)) -> 0 | BD90: =IF(ABS($H90-SUM($J90:BC90))>=ABS(BC90),BC90,IF(ABS($H90-SUM($J90:BC90))>0,$H90-SUM($J90:BC90),0)) -> 0 | BE90: =IF(ABS($H90-SUM($J90:BD90))>=ABS(BD90),BD90,IF(ABS($H90-SUM($J90:BD90))>0,$H90-SUM($J90:BD90),0)) -> 0 | BF90: =IF(ABS($H90-SUM($J90:BE90))>=ABS(BE90),BE90,IF(ABS($H90-SUM($J90:BE90))>0,$H90-SUM($J90:BE90),0)) -> 0 | BG90: =IF(ABS($H90-SUM($J90:BF90))>=ABS(BF90),BF90,IF(ABS($H90-SUM($J90:BF90))>0,$H90-SUM($J90:BF90),0)) -> 0 | BH90: =IF(ABS($H90-SUM($J90:BG90))>=ABS(BG90),BG90,IF(ABS($H90-SUM($J90:BG90))>0,$H90-SUM($J90:BG90),0)) -> 0 | BI90: =IF(ABS($H90-SUM($J90:BH90))>=ABS(BH90),BH90,IF(ABS($H90-SUM($J90:BH90))>0,$H90-SUM($J90:BH90),0)) -> 0 | BJ90: =IF(ABS($H90-SUM($J90:BI90))>=ABS(BI90),BI90,IF(ABS($H90-SUM($J90:BI90))>0,$H90-SUM($J90:BI90),0)) -> 0 | BK90: =IF(ABS($H90-SUM($J90:BJ90))>=ABS(BJ90),BJ90,IF(ABS($H90-SUM($J90:BJ90))>0,$H90-SUM($J90:BJ90),0)) -> 0 | BL90: =IF(ABS($H90-SUM($J90:BK90))>=ABS(BK90),BK90,IF(ABS($H90-SUM($J90:BK90))>0,$H90-SUM($J90:BK90),0)) -> 0 | BM90: =IF(ABS($H90-SUM($J90:BL90))>=ABS(BL90),BL90,IF(ABS($H90-SUM($J90:BL90))>0,$H90-SUM($J90:BL90),0)) -> 0 | BN90: =IF(ABS($H90-SUM($J90:BM90))>=ABS(BM90),BM90,IF(ABS($H90-SUM($J90:BM90))>0,$H90-SUM($J90:BM90),0)) -> 0 | BP90: 0
C91: 2006 | D91: AER | E91: $ | F91: nominal | H91: 129623.6 | K91: 1851.765714 | L91: 3703.531429 | M91: 3703.531429 | N91: 3703.531429 | O91: 3703.531429 | P91: 3703.531429 | Q91: 3703.531429 | R91: 3703.531429 | S91: 3703.531429 | T91: 3703.531429 | U91: 3703.531429 | V91: 3703.531429 | W91: 3703.531429 | X91: 3703.531429 | Y91: 3703.531429 | Z91: 1851.765714 | AA91: 3703.531429 | AB91: 3703.531429 | AC91: 3703.531429 | AD91: 3703.531429 | AE91: 3703.531429 | AF91: =IF(ABS($H91-SUM($J91:AE91))>=ABS(AE91),AE91,IF(ABS($H91-SUM($J91:AE91))>0,$H91-SUM($J91:AE91),0)) -> 3703.531429 | AG91: =IF(ABS($H91-SUM($J91:AF91))>=ABS(AF91),AF91,IF(ABS($H91-SUM($J91:AF91))>0,$H91-SUM($J91:AF91),0)) -> 3703.531429 | AH91: =IF(ABS($H91-SUM($J91:AG91))>=ABS(AG91),AG91,IF(ABS($H91-SUM($J91:AG91))>0,$H91-SUM($J91:AG91),0)) -> 3703.531429 | AI91: =IF(ABS($H91-SUM($J91:AH91))>=ABS(AH91),AH91,IF(ABS($H91-SUM($J91:AH91))>0,$H91-SUM($J91:AH91),0)) -> 3703.531429 | AJ91: =IF(ABS($H91-SUM($J91:AI91))>=ABS(AI91),AI91,IF(ABS($H91-SUM($J91:AI91))>0,$H91-SUM($J91:AI91),0)) -> 3703.531429 | AK91: =IF(ABS($H91-SUM($J91:AJ91))>=ABS(AJ91),AJ91,IF(ABS($H91-SUM($J91:AJ91))>0,$H91-SUM($J91:AJ91),0)) -> 3703.531429 | AL91: =IF(ABS($H91-SUM($J91:AK91))>=ABS(AK91),AK91,IF(ABS($H91-SUM($J91:AK91))>0,$H91-SUM($J91:AK91),0)) -> 3703.531429 | AM91: =IF(ABS($H91-SUM($J91:AL91))>=ABS(AL91),AL91,IF(ABS($H91-SUM($J91:AL91))>0,$H91-SUM($J91:AL91),0)) -> 3703.531429 | AN91: =IF(ABS($H91-SUM($J91:AM91))>=ABS(AM91),AM91,IF(ABS($H91-SUM($J91:AM91))>0,$H91-SUM($J91:AM91),0)) -> 3703.531429 | AO91: =IF(ABS($H91-SUM($J91:AN91))>=ABS(AN91),AN91,IF(ABS($H91-SUM($J91:AN91))>0,$H91-SUM($J91:AN91),0)) -> 3703.531429 | AP91: =IF(ABS($H91-SUM($J91:AO91))>=ABS(AO91),AO91,IF(ABS($H91-SUM($J91:AO91))>0,$H91-SUM($J91:AO91),0)) -> 3703.531429 | AQ91: =IF(ABS($H91-SUM($J91:AP91))>=ABS(AP91),AP91,IF(ABS($H91-SUM($J91:AP91))>0,$H91-SUM($J91:AP91),0)) -> 3703.531429 | AR91: =IF(ABS($H91-SUM($J91:AQ91))>=ABS(AQ91),AQ91,IF(ABS($H91-SUM($J91:AQ91))>0,$H91-SUM($J91:AQ91),0)) -> 3703.531429 | AS91: =IF(ABS($H91-SUM($J91:AR91))>=ABS(AR91),AR91,IF(ABS($H91-SUM($J91:AR91))>0,$H91-SUM($J91:AR91),0)) -> 3703.531429 | AT91: =IF(ABS($H91-SUM($J91:AS91))>=ABS(AS91),AS91,IF(ABS($H91-SUM($J91:AS91))>0,$H91-SUM($J91:AS91),0)) -> 3703.531429 | AU91: =IF(ABS($H91-SUM($J91:AT91))>=ABS(AT91),AT91,IF(ABS($H91-SUM($J91:AT91))>0,$H91-SUM($J91:AT91),0)) -> 4.365574569e-11 | AV91: =IF(ABS($H91-SUM($J91:AU91))>=ABS(AU91),AU91,IF(ABS($H91-SUM($J91:AU91))>0,$H91-SUM($J91:AU91),0)) -> 0 | AW91: =IF(ABS($H91-SUM($J91:AV91))>=ABS(AV91),AV91,IF(ABS($H91-SUM($J91:AV91))>0,$H91-SUM($J91:AV91),0)) -> 0 | AX91: =IF(ABS($H91-SUM($J91:AW91))>=ABS(AW91),AW91,IF(ABS($H91-SUM($J91:AW91))>0,$H91-SUM($J91:AW91),0)) -> 0 | AY91: =IF(ABS($H91-SUM($J91:AX91))>=ABS(AX91),AX91,IF(ABS($H91-SUM($J91:AX91))>0,$H91-SUM($J91:AX91),0)) -> 0 | AZ91: =IF(ABS($H91-SUM($J91:AY91))>=ABS(AY91),AY91,IF(ABS($H91-SUM($J91:AY91))>0,$H91-SUM($J91:AY91),0)) -> 0 | BA91: =IF(ABS($H91-SUM($J91:AZ91))>=ABS(AZ91),AZ91,IF(ABS($H91-SUM($J91:AZ91))>0,$H91-SUM($J91:AZ91),0)) -> 0 | BB91: =IF(ABS($H91-SUM($J91:BA91))>=ABS(BA91),BA91,IF(ABS($H91-SUM($J91:BA91))>0,$H91-SUM($J91:BA91),0)) -> 0 | BC91: =IF(ABS($H91-SUM($J91:BB91))>=ABS(BB91),BB91,IF(ABS($H91-SUM($J91:BB91))>0,$H91-SUM($J91:BB91),0)) -> 0 | BD91: =IF(ABS($H91-SUM($J91:BC91))>=ABS(BC91),BC91,IF(ABS($H91-SUM($J91:BC91))>0,$H91-SUM($J91:BC91),0)) -> 0 | BE91: =IF(ABS($H91-SUM($J91:BD91))>=ABS(BD91),BD91,IF(ABS($H91-SUM($J91:BD91))>0,$H91-SUM($J91:BD91),0)) -> 0 | BF91: =IF(ABS($H91-SUM($J91:BE91))>=ABS(BE91),BE91,IF(ABS($H91-SUM($J91:BE91))>0,$H91-SUM($J91:BE91),0)) -> 0 | BG91: =IF(ABS($H91-SUM($J91:BF91))>=ABS(BF91),BF91,IF(ABS($H91-SUM($J91:BF91))>0,$H91-SUM($J91:BF91),0)) -> 0 | BH91: =IF(ABS($H91-SUM($J91:BG91))>=ABS(BG91),BG91,IF(ABS($H91-SUM($J91:BG91))>0,$H91-SUM($J91:BG91),0)) -> 0 | BI91: =IF(ABS($H91-SUM($J91:BH91))>=ABS(BH91),BH91,IF(ABS($H91-SUM($J91:BH91))>0,$H91-SUM($J91:BH91),0)) -> 0 | BJ91: =IF(ABS($H91-SUM($J91:BI91))>=ABS(BI91),BI91,IF(ABS($H91-SUM($J91:BI91))>0,$H91-SUM($J91:BI91),0)) -> 0 | BK91: =IF(ABS($H91-SUM($J91:BJ91))>=ABS(BJ91),BJ91,IF(ABS($H91-SUM($J91:BJ91))>0,$H91-SUM($J91:BJ91),0)) -> 0 | BL91: =IF(ABS($H91-SUM($J91:BK91))>=ABS(BK91),BK91,IF(ABS($H91-SUM($J91:BK91))>0,$H91-SUM($J91:BK91),0)) -> 0 | BM91: =IF(ABS($H91-SUM($J91:BL91))>=ABS(BL91),BL91,IF(ABS($H91-SUM($J91:BL91))>0,$H91-SUM($J91:BL91),0)) -> 0 | BN91: =IF(ABS($H91-SUM($J91:BM91))>=ABS(BM91),BM91,IF(ABS($H91-SUM($J91:BM91))>0,$H91-SUM($J91:BM91),0)) -> 0 | BP91: 0
C92: 2007 | D92: AER | E92: $ | F92: nominal | H92: 25274.90775 | L92: 361.0701107 | M92: 722.1402214 | N92: 722.1402214 | O92: 722.1402214 | P92: 722.1402214 | Q92: 722.1402214 | R92: 722.1402214 | S92: 722.1402214 | T92: 722.1402214 | U92: 722.1402214 | V92: 722.1402214 | W92: 722.1402214 | X92: 722.1402214 | Y92: 722.1402214 | Z92: 361.0701107 | AA92: 722.1402214 | AB92: 722.1402214 | AC92: 722.1402214 | AD92: 722.1402214 | AE92: 722.1402214 | AF92: =IF(ABS($H92-SUM($J92:AE92))>=ABS(AE92),AE92,IF(ABS($H92-SUM($J92:AE92))>0,$H92-SUM($J92:AE92),0)) -> 722.1402214 | AG92: =IF(ABS($H92-SUM($J92:AF92))>=ABS(AF92),AF92,IF(ABS($H92-SUM($J92:AF92))>0,$H92-SUM($J92:AF92),0)) -> 722.1402214 | AH92: =IF(ABS($H92-SUM($J92:AG92))>=ABS(AG92),AG92,IF(ABS($H92-SUM($J92:AG92))>0,$H92-SUM($J92:AG92),0)) -> 722.1402214 | AI92: =IF(ABS($H92-SUM($J92:AH92))>=ABS(AH92),AH92,IF(ABS($H92-SUM($J92:AH92))>0,$H92-SUM($J92:AH92),0)) -> 722.1402214 | AJ92: =IF(ABS($H92-SUM($J92:AI92))>=ABS(AI92),AI92,IF(ABS($H92-SUM($J92:AI92))>0,$H92-SUM($J92:AI92),0)) -> 722.1402214 | AK92: =IF(ABS($H92-SUM($J92:AJ92))>=ABS(AJ92),AJ92,IF(ABS($H92-SUM($J92:AJ92))>0,$H92-SUM($J92:AJ92),0)) -> 722.1402214 | AL92: =IF(ABS($H92-SUM($J92:AK92))>=ABS(AK92),AK92,IF(ABS($H92-SUM($J92:AK92))>0,$H92-SUM($J92:AK92),0)) -> 722.1402214 | AM92: =IF(ABS($H92-SUM($J92:AL92))>=ABS(AL92),AL92,IF(ABS($H92-SUM($J92:AL92))>0,$H92-SUM($J92:AL92),0)) -> 722.1402214 | AN92: =IF(ABS($H92-SUM($J92:AM92))>=ABS(AM92),AM92,IF(ABS($H92-SUM($J92:AM92))>0,$H92-SUM($J92:AM92),0)) -> 722.1402214 | AO92: =IF(ABS($H92-SUM($J92:AN92))>=ABS(AN92),AN92,IF(ABS($H92-SUM($J92:AN92))>0,$H92-SUM($J92:AN92),0)) -> 722.1402214 | AP92: =IF(ABS($H92-SUM($J92:AO92))>=ABS(AO92),AO92,IF(ABS($H92-SUM($J92:AO92))>0,$H92-SUM($J92:AO92),0)) -> 722.1402214 | AQ92: =IF(ABS($H92-SUM($J92:AP92))>=ABS(AP92),AP92,IF(ABS($H92-SUM($J92:AP92))>0,$H92-SUM($J92:AP92),0)) -> 722.1402214 | AR92: =IF(ABS($H92-SUM($J92:AQ92))>=ABS(AQ92),AQ92,IF(ABS($H92-SUM($J92:AQ92))>0,$H92-SUM($J92:AQ92),0)) -> 722.1402214 | AS92: =IF(ABS($H92-SUM($J92:AR92))>=ABS(AR92),AR92,IF(ABS($H92-SUM($J92:AR92))>0,$H92-SUM($J92:AR92),0)) -> 722.1402214 | AT92: =IF(ABS($H92-SUM($J92:AS92))>=ABS(AS92),AS92,IF(ABS($H92-SUM($J92:AS92))>0,$H92-SUM($J92:AS92),0)) -> 722.1402214 | AU92: =IF(ABS($H92-SUM($J92:AT92))>=ABS(AT92),AT92,IF(ABS($H92-SUM($J92:AT92))>0,$H92-SUM($J92:AT92),0)) -> 722.1402214 | AV92: =IF(ABS($H92-SUM($J92:AU92))>=ABS(AU92),AU92,IF(ABS($H92-SUM($J92:AU92))>0,$H92-SUM($J92:AU92),0)) -> 1.091393642e-11 | AW92: =IF(ABS($H92-SUM($J92:AV92))>=ABS(AV92),AV92,IF(ABS($H92-SUM($J92:AV92))>0,$H92-SUM($J92:AV92),0)) -> 0 | AX92: =IF(ABS($H92-SUM($J92:AW92))>=ABS(AW92),AW92,IF(ABS($H92-SUM($J92:AW92))>0,$H92-SUM($J92:AW92),0)) -> 0 | AY92: =IF(ABS($H92-SUM($J92:AX92))>=ABS(AX92),AX92,IF(ABS($H92-SUM($J92:AX92))>0,$H92-SUM($J92:AX92),0)) -> 0 | AZ92: =IF(ABS($H92-SUM($J92:AY92))>=ABS(AY92),AY92,IF(ABS($H92-SUM($J92:AY92))>0,$H92-SUM($J92:AY92),0)) -> 0 | BA92: =IF(ABS($H92-SUM($J92:AZ92))>=ABS(AZ92),AZ92,IF(ABS($H92-SUM($J92:AZ92))>0,$H92-SUM($J92:AZ92),0)) -> 0 | BB92: =IF(ABS($H92-SUM($J92:BA92))>=ABS(BA92),BA92,IF(ABS($H92-SUM($J92:BA92))>0,$H92-SUM($J92:BA92),0)) -> 0 | BC92: =IF(ABS($H92-SUM($J92:BB92))>=ABS(BB92),BB92,IF(ABS($H92-SUM($J92:BB92))>0,$H92-SUM($J92:BB92),0)) -> 0 | BD92: =IF(ABS($H92-SUM($J92:BC92))>=ABS(BC92),BC92,IF(ABS($H92-SUM($J92:BC92))>0,$H92-SUM($J92:BC92),0)) -> 0 | BE92: =IF(ABS($H92-SUM($J92:BD92))>=ABS(BD92),BD92,IF(ABS($H92-SUM($J92:BD92))>0,$H92-SUM($J92:BD92),0)) -> 0 | BF92: =IF(ABS($H92-SUM($J92:BE92))>=ABS(BE92),BE92,IF(ABS($H92-SUM($J92:BE92))>0,$H92-SUM($J92:BE92),0)) -> 0 | BG92: =IF(ABS($H92-SUM($J92:BF92))>=ABS(BF92),BF92,IF(ABS($H92-SUM($J92:BF92))>0,$H92-SUM($J92:BF92),0)) -> 0 | BH92: =IF(ABS($H92-SUM($J92:BG92))>=ABS(BG92),BG92,IF(ABS($H92-SUM($J92:BG92))>0,$H92-SUM($J92:BG92),0)) -> 0 | BI92: =IF(ABS($H92-SUM($J92:BH92))>=ABS(BH92),BH92,IF(ABS($H92-SUM($J92:BH92))>0,$H92-SUM($J92:BH92),0)) -> 0 | BJ92: =IF(ABS($H92-SUM($J92:BI92))>=ABS(BI92),BI92,IF(ABS($H92-SUM($J92:BI92))>0,$H92-SUM($J92:BI92),0)) -> 0 | BK92: =IF(ABS($H92-SUM($J92:BJ92))>=ABS(BJ92),BJ92,IF(ABS($H92-SUM($J92:BJ92))>0,$H92-SUM($J92:BJ92),0)) -> 0 | BL92: =IF(ABS($H92-SUM($J92:BK92))>=ABS(BK92),BK92,IF(ABS($H92-SUM($J92:BK92))>0,$H92-SUM($J92:BK92),0)) -> 0 | BM92: =IF(ABS($H92-SUM($J92:BL92))>=ABS(BL92),BL92,IF(ABS($H92-SUM($J92:BL92))>0,$H92-SUM($J92:BL92),0)) -> 0 | BN92: =IF(ABS($H92-SUM($J92:BM92))>=ABS(BM92),BM92,IF(ABS($H92-SUM($J92:BM92))>0,$H92-SUM($J92:BM92),0)) -> 0 | BP92: 0
C93: 2008 | D93: AER | E93: $ | F93: nominal | H93: 29131.03834 | M93: 416.1576905 | N93: 832.315381 | O93: 832.315381 | P93: 832.315381 | Q93: 832.315381 | R93: 832.315381 | S93: 832.315381 | T93: 832.315381 | U93: 832.315381 | V93: 832.315381 | W93: 832.315381 | X93: 832.315381 | Y93: 832.315381 | Z93: 416.1576905 | AA93: 832.315381 | AB93: 832.315381 | AC93: 832.315381 | AD93: 832.315381 | AE93: 832.315381 | AF93: =IF(ABS($H93-SUM($J93:AE93))>=ABS(AE93),AE93,IF(ABS($H93-SUM($J93:AE93))>0,$H93-SUM($J93:AE93),0)) -> 832.315381 | AG93: =IF(ABS($H93-SUM($J93:AF93))>=ABS(AF93),AF93,IF(ABS($H93-SUM($J93:AF93))>0,$H93-SUM($J93:AF93),0)) -> 832.315381 | AH93: =IF(ABS($H93-SUM($J93:AG93))>=ABS(AG93),AG93,IF(ABS($H93-SUM($J93:AG93))>0,$H93-SUM($J93:AG93),0)) -> 832.315381 | AI93: =IF(ABS($H93-SUM($J93:AH93))>=ABS(AH93),AH93,IF(ABS($H93-SUM($J93:AH93))>0,$H93-SUM($J93:AH93),0)) -> 832.315381 | AJ93: =IF(ABS($H93-SUM($J93:AI93))>=ABS(AI93),AI93,IF(ABS($H93-SUM($J93:AI93))>0,$H93-SUM($J93:AI93),0)) -> 832.315381 | AK93: =IF(ABS($H93-SUM($J93:AJ93))>=ABS(AJ93),AJ93,IF(ABS($H93-SUM($J93:AJ93))>0,$H93-SUM($J93:AJ93),0)) -> 832.315381 | AL93: =IF(ABS($H93-SUM($J93:AK93))>=ABS(AK93),AK93,IF(ABS($H93-SUM($J93:AK93))>0,$H93-SUM($J93:AK93),0)) -> 832.315381 | AM93: =IF(ABS($H93-SUM($J93:AL93))>=ABS(AL93),AL93,IF(ABS($H93-SUM($J93:AL93))>0,$H93-SUM($J93:AL93),0)) -> 832.315381 | AN93: =IF(ABS($H93-SUM($J93:AM93))>=ABS(AM93),AM93,IF(ABS($H93-SUM($J93:AM93))>0,$H93-SUM($J93:AM93),0)) -> 832.315381 | AO93: =IF(ABS($H93-SUM($J93:AN93))>=ABS(AN93),AN93,IF(ABS($H93-SUM($J93:AN93))>0,$H93-SUM($J93:AN93),0)) -> 832.315381 | AP93: =IF(ABS($H93-SUM($J93:AO93))>=ABS(AO93),AO93,IF(ABS($H93-SUM($J93:AO93))>0,$H93-SUM($J93:AO93),0)) -> 832.315381 | AQ93: =IF(ABS($H93-SUM($J93:AP93))>=ABS(AP93),AP93,IF(ABS($H93-SUM($J93:AP93))>0,$H93-SUM($J93:AP93),0)) -> 832.315381 | AR93: =IF(ABS($H93-SUM($J93:AQ93))>=ABS(AQ93),AQ93,IF(ABS($H93-SUM($J93:AQ93))>0,$H93-SUM($J93:AQ93),0)) -> 832.315381 | AS93: =IF(ABS($H93-SUM($J93:AR93))>=ABS(AR93),AR93,IF(ABS($H93-SUM($J93:AR93))>0,$H93-SUM($J93:AR93),0)) -> 832.315381 | AT93: =IF(ABS($H93-SUM($J93:AS93))>=ABS(AS93),AS93,IF(ABS($H93-SUM($J93:AS93))>0,$H93-SUM($J93:AS93),0)) -> 832.315381 | AU93: =IF(ABS($H93-SUM($J93:AT93))>=ABS(AT93),AT93,IF(ABS($H93-SUM($J93:AT93))>0,$H93-SUM($J93:AT93),0)) -> 832.315381 | AV93: =IF(ABS($H93-SUM($J93:AU93))>=ABS(AU93),AU93,IF(ABS($H93-SUM($J93:AU93))>0,$H93-SUM($J93:AU93),0)) -> 832.315381 | AW93: =IF(ABS($H93-SUM($J93:AV93))>=ABS(AV93),AV93,IF(ABS($H93-SUM($J93:AV93))>0,$H93-SUM($J93:AV93),0)) -> 0 | AX93: =IF(ABS($H93-SUM($J93:AW93))>=ABS(AW93),AW93,IF(ABS($H93-SUM($J93:AW93))>0,$H93-SUM($J93:AW93),0)) -> 0 | AY93: =IF(ABS($H93-SUM($J93:AX93))>=ABS(AX93),AX93,IF(ABS($H93-SUM($J93:AX93))>0,$H93-SUM($J93:AX93),0)) -> 0 | AZ93: =IF(ABS($H93-SUM($J93:AY93))>=ABS(AY93),AY93,IF(ABS($H93-SUM($J93:AY93))>0,$H93-SUM($J93:AY93),0)) -> 0 | BA93: =IF(ABS($H93-SUM($J93:AZ93))>=ABS(AZ93),AZ93,IF(ABS($H93-SUM($J93:AZ93))>0,$H93-SUM($J93:AZ93),0)) -> 0 | BB93: =IF(ABS($H93-SUM($J93:BA93))>=ABS(BA93),BA93,IF(ABS($H93-SUM($J93:BA93))>0,$H93-SUM($J93:BA93),0)) -> 0 | BC93: =IF(ABS($H93-SUM($J93:BB93))>=ABS(BB93),BB93,IF(ABS($H93-SUM($J93:BB93))>0,$H93-SUM($J93:BB93),0)) -> 0 | BD93: =IF(ABS($H93-SUM($J93:BC93))>=ABS(BC93),BC93,IF(ABS($H93-SUM($J93:BC93))>0,$H93-SUM($J93:BC93),0)) -> 0 | BE93: =IF(ABS($H93-SUM($J93:BD93))>=ABS(BD93),BD93,IF(ABS($H93-SUM($J93:BD93))>0,$H93-SUM($J93:BD93),0)) -> 0 | BF93: =IF(ABS($H93-SUM($J93:BE93))>=ABS(BE93),BE93,IF(ABS($H93-SUM($J93:BE93))>0,$H93-SUM($J93:BE93),0)) -> 0 | BG93: =IF(ABS($H93-SUM($J93:BF93))>=ABS(BF93),BF93,IF(ABS($H93-SUM($J93:BF93))>0,$H93-SUM($J93:BF93),0)) -> 0 | BH93: =IF(ABS($H93-SUM($J93:BG93))>=ABS(BG93),BG93,IF(ABS($H93-SUM($J93:BG93))>0,$H93-SUM($J93:BG93),0)) -> 0 | BI93: =IF(ABS($H93-SUM($J93:BH93))>=ABS(BH93),BH93,IF(ABS($H93-SUM($J93:BH93))>0,$H93-SUM($J93:BH93),0)) -> 0 | BJ93: =IF(ABS($H93-SUM($J93:BI93))>=ABS(BI93),BI93,IF(ABS($H93-SUM($J93:BI93))>0,$H93-SUM($J93:BI93),0)) -> 0 | BK93: =IF(ABS($H93-SUM($J93:BJ93))>=ABS(BJ93),BJ93,IF(ABS($H93-SUM($J93:BJ93))>0,$H93-SUM($J93:BJ93),0)) -> 0 | BL93: =IF(ABS($H93-SUM($J93:BK93))>=ABS(BK93),BK93,IF(ABS($H93-SUM($J93:BK93))>0,$H93-SUM($J93:BK93),0)) -> 0 | BM93: =IF(ABS($H93-SUM($J93:BL93))>=ABS(BL93),BL93,IF(ABS($H93-SUM($J93:BL93))>0,$H93-SUM($J93:BL93),0)) -> 0 | BN93: =IF(ABS($H93-SUM($J93:BM93))>=ABS(BM93),BM93,IF(ABS($H93-SUM($J93:BM93))>0,$H93-SUM($J93:BM93),0)) -> 0 | BP93: 0
C94: 2009 | D94: AER | E94: $ | F94: nominal | H94: 82127 | N94: 1173.242857 | O94: 2346.485714 | P94: 2346.485714 | Q94: 2346.485714 | R94: 2346.485714 | S94: 2346.485714 | T94: 2346.485714 | U94: 2346.485714 | V94: 2346.485714 | W94: 2346.485714 | X94: 2346.485714 | Y94: 2346.485714 | Z94: 1173.242857 | AA94: 2346.485714 | AB94: 2346.485714 | AC94: 2346.485714 | AD94: 2346.485714 | AE94: 2346.485714 | AF94: =IF(ABS($H94-SUM($J94:AE94))>=ABS(AE94),AE94,IF(ABS($H94-SUM($J94:AE94))>0,$H94-SUM($J94:AE94),0)) -> 2346.485714 | AG94: =IF(ABS($H94-SUM($J94:AF94))>=ABS(AF94),AF94,IF(ABS($H94-SUM($J94:AF94))>0,$H94-SUM($J94:AF94),0)) -> 2346.485714 | AH94: =IF(ABS($H94-SUM($J94:AG94))>=ABS(AG94),AG94,IF(ABS($H94-SUM($J94:AG94))>0,$H94-SUM($J94:AG94),0)) -> 2346.485714 | AI94: =IF(ABS($H94-SUM($J94:AH94))>=ABS(AH94),AH94,IF(ABS($H94-SUM($J94:AH94))>0,$H94-SUM($J94:AH94),0)) -> 2346.485714 | AJ94: =IF(ABS($H94-SUM($J94:AI94))>=ABS(AI94),AI94,IF(ABS($H94-SUM($J94:AI94))>0,$H94-SUM($J94:AI94),0)) -> 2346.485714 | AK94: =IF(ABS($H94-SUM($J94:AJ94))>=ABS(AJ94),AJ94,IF(ABS($H94-SUM($J94:AJ94))>0,$H94-SUM($J94:AJ94),0)) -> 2346.485714 | AL94: =IF(ABS($H94-SUM($J94:AK94))>=ABS(AK94),AK94,IF(ABS($H94-SUM($J94:AK94))>0,$H94-SUM($J94:AK94),0)) -> 2346.485714 | AM94: =IF(ABS($H94-SUM($J94:AL94))>=ABS(AL94),AL94,IF(ABS($H94-SUM($J94:AL94))>0,$H94-SUM($J94:AL94),0)) -> 2346.485714 | AN94: =IF(ABS($H94-SUM($J94:AM94))>=ABS(AM94),AM94,IF(ABS($H94-SUM($J94:AM94))>0,$H94-SUM($J94:AM94),0)) -> 2346.485714 | AO94: =IF(ABS($H94-SUM($J94:AN94))>=ABS(AN94),AN94,IF(ABS($H94-SUM($J94:AN94))>0,$H94-SUM($J94:AN94),0)) -> 2346.485714 | AP94: =IF(ABS($H94-SUM($J94:AO94))>=ABS(AO94),AO94,IF(ABS($H94-SUM($J94:AO94))>0,$H94-SUM($J94:AO94),0)) -> 2346.485714 | AQ94: =IF(ABS($H94-SUM($J94:AP94))>=ABS(AP94),AP94,IF(ABS($H94-SUM($J94:AP94))>0,$H94-SUM($J94:AP94),0)) -> 2346.485714 | AR94: =IF(ABS($H94-SUM($J94:AQ94))>=ABS(AQ94),AQ94,IF(ABS($H94-SUM($J94:AQ94))>0,$H94-SUM($J94:AQ94),0)) -> 2346.485714 | AS94: =IF(ABS($H94-SUM($J94:AR94))>=ABS(AR94),AR94,IF(ABS($H94-SUM($J94:AR94))>0,$H94-SUM($J94:AR94),0)) -> 2346.485714 | AT94: =IF(ABS($H94-SUM($J94:AS94))>=ABS(AS94),AS94,IF(ABS($H94-SUM($J94:AS94))>0,$H94-SUM($J94:AS94),0)) -> 2346.485714 | AU94: =IF(ABS($H94-SUM($J94:AT94))>=ABS(AT94),AT94,IF(ABS($H94-SUM($J94:AT94))>0,$H94-SUM($J94:AT94),0)) -> 2346.485714 | AV94: =IF(ABS($H94-SUM($J94:AU94))>=ABS(AU94),AU94,IF(ABS($H94-SUM($J94:AU94))>0,$H94-SUM($J94:AU94),0)) -> 2346.485714 | AW94: =IF(ABS($H94-SUM($J94:AV94))>=ABS(AV94),AV94,IF(ABS($H94-SUM($J94:AV94))>0,$H94-SUM($J94:AV94),0)) -> 2346.485714 | AX94: =IF(ABS($H94-SUM($J94:AW94))>=ABS(AW94),AW94,IF(ABS($H94-SUM($J94:AW94))>0,$H94-SUM($J94:AW94),0)) -> 0 | AY94: =IF(ABS($H94-SUM($J94:AX94))>=ABS(AX94),AX94,IF(ABS($H94-SUM($J94:AX94))>0,$H94-SUM($J94:AX94),0)) -> 0 | AZ94: =IF(ABS($H94-SUM($J94:AY94))>=ABS(AY94),AY94,IF(ABS($H94-SUM($J94:AY94))>0,$H94-SUM($J94:AY94),0)) -> 0 | BA94: =IF(ABS($H94-SUM($J94:AZ94))>=ABS(AZ94),AZ94,IF(ABS($H94-SUM($J94:AZ94))>0,$H94-SUM($J94:AZ94),0)) -> 0 | BB94: =IF(ABS($H94-SUM($J94:BA94))>=ABS(BA94),BA94,IF(ABS($H94-SUM($J94:BA94))>0,$H94-SUM($J94:BA94),0)) -> 0 | BC94: =IF(ABS($H94-SUM($J94:BB94))>=ABS(BB94),BB94,IF(ABS($H94-SUM($J94:BB94))>0,$H94-SUM($J94:BB94),0)) -> 0 | BD94: =IF(ABS($H94-SUM($J94:BC94))>=ABS(BC94),BC94,IF(ABS($H94-SUM($J94:BC94))>0,$H94-SUM($J94:BC94),0)) -> 0 | BE94: =IF(ABS($H94-SUM($J94:BD94))>=ABS(BD94),BD94,IF(ABS($H94-SUM($J94:BD94))>0,$H94-SUM($J94:BD94),0)) -> 0 | BF94: =IF(ABS($H94-SUM($J94:BE94))>=ABS(BE94),BE94,IF(ABS($H94-SUM($J94:BE94))>0,$H94-SUM($J94:BE94),0)) -> 0 | BG94: =IF(ABS($H94-SUM($J94:BF94))>=ABS(BF94),BF94,IF(ABS($H94-SUM($J94:BF94))>0,$H94-SUM($J94:BF94),0)) -> 0 | BH94: =IF(ABS($H94-SUM($J94:BG94))>=ABS(BG94),BG94,IF(ABS($H94-SUM($J94:BG94))>0,$H94-SUM($J94:BG94),0)) -> 0 | BI94: =IF(ABS($H94-SUM($J94:BH94))>=ABS(BH94),BH94,IF(ABS($H94-SUM($J94:BH94))>0,$H94-SUM($J94:BH94),0)) -> 0 | BJ94: =IF(ABS($H94-SUM($J94:BI94))>=ABS(BI94),BI94,IF(ABS($H94-SUM($J94:BI94))>0,$H94-SUM($J94:BI94),0)) -> 0 | BK94: =IF(ABS($H94-SUM($J94:BJ94))>=ABS(BJ94),BJ94,IF(ABS($H94-SUM($J94:BJ94))>0,$H94-SUM($J94:BJ94),0)) -> 0 | BL94: =IF(ABS($H94-SUM($J94:BK94))>=ABS(BK94),BK94,IF(ABS($H94-SUM($J94:BK94))>0,$H94-SUM($J94:BK94),0)) -> 0 | BM94: =IF(ABS($H94-SUM($J94:BL94))>=ABS(BL94),BL94,IF(ABS($H94-SUM($J94:BL94))>0,$H94-SUM($J94:BL94),0)) -> 0 | BN94: =IF(ABS($H94-SUM($J94:BM94))>=ABS(BM94),BM94,IF(ABS($H94-SUM($J94:BM94))>0,$H94-SUM($J94:BM94),0)) -> 0 | BP94: 0
C95: 2010 | D95: AER | E95: $ | F95: nominal | H95: 138409 | O95: 1977.271429 | P95: 3954.542857 | Q95: 3954.542857 | R95: 3954.542857 | S95: 3954.542857 | T95: 3954.542857 | U95: 3954.542857 | V95: 3954.542857 | W95: 3954.542857 | X95: 3954.542857 | Y95: 3954.542857 | Z95: 1977.271429 | AA95: 3954.542857 | AB95: 3954.542857 | AC95: 3954.542857 | AD95: 3954.542857 | AE95: 3954.542857 | AF95: =IF(ABS($H95-SUM($J95:AE95))>=ABS(AE95),AE95,IF(ABS($H95-SUM($J95:AE95))>0,$H95-SUM($J95:AE95),0)) -> 3954.542857 | AG95: =IF(ABS($H95-SUM($J95:AF95))>=ABS(AF95),AF95,IF(ABS($H95-SUM($J95:AF95))>0,$H95-SUM($J95:AF95),0)) -> 3954.542857 | AH95: =IF(ABS($H95-SUM($J95:AG95))>=ABS(AG95),AG95,IF(ABS($H95-SUM($J95:AG95))>0,$H95-SUM($J95:AG95),0)) -> 3954.542857 | AI95: =IF(ABS($H95-SUM($J95:AH95))>=ABS(AH95),AH95,IF(ABS($H95-SUM($J95:AH95))>0,$H95-SUM($J95:AH95),0)) -> 3954.542857 | AJ95: =IF(ABS($H95-SUM($J95:AI95))>=ABS(AI95),AI95,IF(ABS($H95-SUM($J95:AI95))>0,$H95-SUM($J95:AI95),0)) -> 3954.542857 | AK95: =IF(ABS($H95-SUM($J95:AJ95))>=ABS(AJ95),AJ95,IF(ABS($H95-SUM($J95:AJ95))>0,$H95-SUM($J95:AJ95),0)) -> 3954.542857 | AL95: =IF(ABS($H95-SUM($J95:AK95))>=ABS(AK95),AK95,IF(ABS($H95-SUM($J95:AK95))>0,$H95-SUM($J95:AK95),0)) -> 3954.542857 | AM95: =IF(ABS($H95-SUM($J95:AL95))>=ABS(AL95),AL95,IF(ABS($H95-SUM($J95:AL95))>0,$H95-SUM($J95:AL95),0)) -> 3954.542857 | AN95: =IF(ABS($H95-SUM($J95:AM95))>=ABS(AM95),AM95,IF(ABS($H95-SUM($J95:AM95))>0,$H95-SUM($J95:AM95),0)) -> 3954.542857 | AO95: =IF(ABS($H95-SUM($J95:AN95))>=ABS(AN95),AN95,IF(ABS($H95-SUM($J95:AN95))>0,$H95-SUM($J95:AN95),0)) -> 3954.542857 | AP95: =IF(ABS($H95-SUM($J95:AO95))>=ABS(AO95),AO95,IF(ABS($H95-SUM($J95:AO95))>0,$H95-SUM($J95:AO95),0)) -> 3954.542857 | AQ95: =IF(ABS($H95-SUM($J95:AP95))>=ABS(AP95),AP95,IF(ABS($H95-SUM($J95:AP95))>0,$H95-SUM($J95:AP95),0)) -> 3954.542857 | AR95: =IF(ABS($H95-SUM($J95:AQ95))>=ABS(AQ95),AQ95,IF(ABS($H95-SUM($J95:AQ95))>0,$H95-SUM($J95:AQ95),0)) -> 3954.542857 | AS95: =IF(ABS($H95-SUM($J95:AR95))>=ABS(AR95),AR95,IF(ABS($H95-SUM($J95:AR95))>0,$H95-SUM($J95:AR95),0)) -> 3954.542857 | AT95: =IF(ABS($H95-SUM($J95:AS95))>=ABS(AS95),AS95,IF(ABS($H95-SUM($J95:AS95))>0,$H95-SUM($J95:AS95),0)) -> 3954.542857 | AU95: =IF(ABS($H95-SUM($J95:AT95))>=ABS(AT95),AT95,IF(ABS($H95-SUM($J95:AT95))>0,$H95-SUM($J95:AT95),0)) -> 3954.542857 | AV95: =IF(ABS($H95-SUM($J95:AU95))>=ABS(AU95),AU95,IF(ABS($H95-SUM($J95:AU95))>0,$H95-SUM($J95:AU95),0)) -> 3954.542857 | AW95: =IF(ABS($H95-SUM($J95:AV95))>=ABS(AV95),AV95,IF(ABS($H95-SUM($J95:AV95))>0,$H95-SUM($J95:AV95),0)) -> 3954.542857 | AX95: =IF(ABS($H95-SUM($J95:AW95))>=ABS(AW95),AW95,IF(ABS($H95-SUM($J95:AW95))>0,$H95-SUM($J95:AW95),0)) -> 3954.542857 | AY95: =IF(ABS($H95-SUM($J95:AX95))>=ABS(AX95),AX95,IF(ABS($H95-SUM($J95:AX95))>0,$H95-SUM($J95:AX95),0)) -> 0 | AZ95: =IF(ABS($H95-SUM($J95:AY95))>=ABS(AY95),AY95,IF(ABS($H95-SUM($J95:AY95))>0,$H95-SUM($J95:AY95),0)) -> 0 | BA95: =IF(ABS($H95-SUM($J95:AZ95))>=ABS(AZ95),AZ95,IF(ABS($H95-SUM($J95:AZ95))>0,$H95-SUM($J95:AZ95),0)) -> 0 | BB95: =IF(ABS($H95-SUM($J95:BA95))>=ABS(BA95),BA95,IF(ABS($H95-SUM($J95:BA95))>0,$H95-SUM($J95:BA95),0)) -> 0 | BC95: =IF(ABS($H95-SUM($J95:BB95))>=ABS(BB95),BB95,IF(ABS($H95-SUM($J95:BB95))>0,$H95-SUM($J95:BB95),0)) -> 0 | BD95: =IF(ABS($H95-SUM($J95:BC95))>=ABS(BC95),BC95,IF(ABS($H95-SUM($J95:BC95))>0,$H95-SUM($J95:BC95),0)) -> 0 | BE95: =IF(ABS($H95-SUM($J95:BD95))>=ABS(BD95),BD95,IF(ABS($H95-SUM($J95:BD95))>0,$H95-SUM($J95:BD95),0)) -> 0 | BF95: =IF(ABS($H95-SUM($J95:BE95))>=ABS(BE95),BE95,IF(ABS($H95-SUM($J95:BE95))>0,$H95-SUM($J95:BE95),0)) -> 0 | BG95: =IF(ABS($H95-SUM($J95:BF95))>=ABS(BF95),BF95,IF(ABS($H95-SUM($J95:BF95))>0,$H95-SUM($J95:BF95),0)) -> 0 | BH95: =IF(ABS($H95-SUM($J95:BG95))>=ABS(BG95),BG95,IF(ABS($H95-SUM($J95:BG95))>0,$H95-SUM($J95:BG95),0)) -> 0 | BI95: =IF(ABS($H95-SUM($J95:BH95))>=ABS(BH95),BH95,IF(ABS($H95-SUM($J95:BH95))>0,$H95-SUM($J95:BH95),0)) -> 0 | BJ95: =IF(ABS($H95-SUM($J95:BI95))>=ABS(BI95),BI95,IF(ABS($H95-SUM($J95:BI95))>0,$H95-SUM($J95:BI95),0)) -> 0 | BK95: =IF(ABS($H95-SUM($J95:BJ95))>=ABS(BJ95),BJ95,IF(ABS($H95-SUM($J95:BJ95))>0,$H95-SUM($J95:BJ95),0)) -> 0 | BL95: =IF(ABS($H95-SUM($J95:BK95))>=ABS(BK95),BK95,IF(ABS($H95-SUM($J95:BK95))>0,$H95-SUM($J95:BK95),0)) -> 0 | BM95: =IF(ABS($H95-SUM($J95:BL95))>=ABS(BL95),BL95,IF(ABS($H95-SUM($J95:BL95))>0,$H95-SUM($J95:BL95),0)) -> 0 | BN95: =IF(ABS($H95-SUM($J95:BM95))>=ABS(BM95),BM95,IF(ABS($H95-SUM($J95:BM95))>0,$H95-SUM($J95:BM95),0)) -> 0 | BP95: 0
C96: 2011 | D96: AER | E96: $ | F96: nominal | H96: 240569 | P96: 3436.7 | Q96: 6873.4 | R96: 6873.4 | S96: 6873.4 | T96: 6873.4 | U96: 6873.4 | V96: 6873.4 | W96: 6873.4 | X96: 6873.4 | Y96: 6873.4 | Z96: 3436.7 | AA96: 6873.4 | AB96: 6873.4 | AC96: 6873.4 | AD96: 6873.4 | AE96: 6873.4 | AF96: =IF(ABS($H96-SUM($J96:AE96))>=ABS(AE96),AE96,IF(ABS($H96-SUM($J96:AE96))>0,$H96-SUM($J96:AE96),0)) -> 6873.4 | AG96: =IF(ABS($H96-SUM($J96:AF96))>=ABS(AF96),AF96,IF(ABS($H96-SUM($J96:AF96))>0,$H96-SUM($J96:AF96),0)) -> 6873.4 | AH96: =IF(ABS($H96-SUM($J96:AG96))>=ABS(AG96),AG96,IF(ABS($H96-SUM($J96:AG96))>0,$H96-SUM($J96:AG96),0)) -> 6873.4 | AI96: =IF(ABS($H96-SUM($J96:AH96))>=ABS(AH96),AH96,IF(ABS($H96-SUM($J96:AH96))>0,$H96-SUM($J96:AH96),0)) -> 6873.4 | AJ96: =IF(ABS($H96-SUM($J96:AI96))>=ABS(AI96),AI96,IF(ABS($H96-SUM($J96:AI96))>0,$H96-SUM($J96:AI96),0)) -> 6873.4 | AK96: =IF(ABS($H96-SUM($J96:AJ96))>=ABS(AJ96),AJ96,IF(ABS($H96-SUM($J96:AJ96))>0,$H96-SUM($J96:AJ96),0)) -> 6873.4 | AL96: =IF(ABS($H96-SUM($J96:AK96))>=ABS(AK96),AK96,IF(ABS($H96-SUM($J96:AK96))>0,$H96-SUM($J96:AK96),0)) -> 6873.4 | AM96: =IF(ABS($H96-SUM($J96:AL96))>=ABS(AL96),AL96,IF(ABS($H96-SUM($J96:AL96))>0,$H96-SUM($J96:AL96),0)) -> 6873.4 | AN96: =IF(ABS($H96-SUM($J96:AM96))>=ABS(AM96),AM96,IF(ABS($H96-SUM($J96:AM96))>0,$H96-SUM($J96:AM96),0)) -> 6873.4 | AO96: =IF(ABS($H96-SUM($J96:AN96))>=ABS(AN96),AN96,IF(ABS($H96-SUM($J96:AN96))>0,$H96-SUM($J96:AN96),0)) -> 6873.4 | AP96: =IF(ABS($H96-SUM($J96:AO96))>=ABS(AO96),AO96,IF(ABS($H96-SUM($J96:AO96))>0,$H96-SUM($J96:AO96),0)) -> 6873.4 | AQ96: =IF(ABS($H96-SUM($J96:AP96))>=ABS(AP96),AP96,IF(ABS($H96-SUM($J96:AP96))>0,$H96-SUM($J96:AP96),0)) -> 6873.4 | AR96: =IF(ABS($H96-SUM($J96:AQ96))>=ABS(AQ96),AQ96,IF(ABS($H96-SUM($J96:AQ96))>0,$H96-SUM($J96:AQ96),0)) -> 6873.4 | AS96: =IF(ABS($H96-SUM($J96:AR96))>=ABS(AR96),AR96,IF(ABS($H96-SUM($J96:AR96))>0,$H96-SUM($J96:AR96),0)) -> 6873.4 | AT96: =IF(ABS($H96-SUM($J96:AS96))>=ABS(AS96),AS96,IF(ABS($H96-SUM($J96:AS96))>0,$H96-SUM($J96:AS96),0)) -> 6873.4 | AU96: =IF(ABS($H96-SUM($J96:AT96))>=ABS(AT96),AT96,IF(ABS($H96-SUM($J96:AT96))>0,$H96-SUM($J96:AT96),0)) -> 6873.4 | AV96: =IF(ABS($H96-SUM($J96:AU96))>=ABS(AU96),AU96,IF(ABS($H96-SUM($J96:AU96))>0,$H96-SUM($J96:AU96),0)) -> 6873.4 | AW96: =IF(ABS($H96-SUM($J96:AV96))>=ABS(AV96),AV96,IF(ABS($H96-SUM($J96:AV96))>0,$H96-SUM($J96:AV96),0)) -> 6873.4 | AX96: =IF(ABS($H96-SUM($J96:AW96))>=ABS(AW96),AW96,IF(ABS($H96-SUM($J96:AW96))>0,$H96-SUM($J96:AW96),0)) -> 6873.4 | AY96: =IF(ABS($H96-SUM($J96:AX96))>=ABS(AX96),AX96,IF(ABS($H96-SUM($J96:AX96))>0,$H96-SUM($J96:AX96),0)) -> 6873.4 | AZ96: =IF(ABS($H96-SUM($J96:AY96))>=ABS(AY96),AY96,IF(ABS($H96-SUM($J96:AY96))>0,$H96-SUM($J96:AY96),0)) -> 1.164153218e-10 | BA96: =IF(ABS($H96-SUM($J96:AZ96))>=ABS(AZ96),AZ96,IF(ABS($H96-SUM($J96:AZ96))>0,$H96-SUM($J96:AZ96),0)) -> 0 | BB96: =IF(ABS($H96-SUM($J96:BA96))>=ABS(BA96),BA96,IF(ABS($H96-SUM($J96:BA96))>0,$H96-SUM($J96:BA96),0)) -> 0 | BC96: =IF(ABS($H96-SUM($J96:BB96))>=ABS(BB96),BB96,IF(ABS($H96-SUM($J96:BB96))>0,$H96-SUM($J96:BB96),0)) -> 0 | BD96: =IF(ABS($H96-SUM($J96:BC96))>=ABS(BC96),BC96,IF(ABS($H96-SUM($J96:BC96))>0,$H96-SUM($J96:BC96),0)) -> 0 | BE96: =IF(ABS($H96-SUM($J96:BD96))>=ABS(BD96),BD96,IF(ABS($H96-SUM($J96:BD96))>0,$H96-SUM($J96:BD96),0)) -> 0 | BF96: =IF(ABS($H96-SUM($J96:BE96))>=ABS(BE96),BE96,IF(ABS($H96-SUM($J96:BE96))>0,$H96-SUM($J96:BE96),0)) -> 0 | BG96: =IF(ABS($H96-SUM($J96:BF96))>=ABS(BF96),BF96,IF(ABS($H96-SUM($J96:BF96))>0,$H96-SUM($J96:BF96),0)) -> 0 | BH96: =IF(ABS($H96-SUM($J96:BG96))>=ABS(BG96),BG96,IF(ABS($H96-SUM($J96:BG96))>0,$H96-SUM($J96:BG96),0)) -> 0 | BI96: =IF(ABS($H96-SUM($J96:BH96))>=ABS(BH96),BH96,IF(ABS($H96-SUM($J96:BH96))>0,$H96-SUM($J96:BH96),0)) -> 0 | BJ96: =IF(ABS($H96-SUM($J96:BI96))>=ABS(BI96),BI96,IF(ABS($H96-SUM($J96:BI96))>0,$H96-SUM($J96:BI96),0)) -> 0 | BK96: =IF(ABS($H96-SUM($J96:BJ96))>=ABS(BJ96),BJ96,IF(ABS($H96-SUM($J96:BJ96))>0,$H96-SUM($J96:BJ96),0)) -> 0 | BL96: =IF(ABS($H96-SUM($J96:BK96))>=ABS(BK96),BK96,IF(ABS($H96-SUM($J96:BK96))>0,$H96-SUM($J96:BK96),0)) -> 0 | BM96: =IF(ABS($H96-SUM($J96:BL96))>=ABS(BL96),BL96,IF(ABS($H96-SUM($J96:BL96))>0,$H96-SUM($J96:BL96),0)) -> 0 | BN96: =IF(ABS($H96-SUM($J96:BM96))>=ABS(BM96),BM96,IF(ABS($H96-SUM($J96:BM96))>0,$H96-SUM($J96:BM96),0)) -> 0 | BP96: 0
C97: 2012 | D97: AER | E97: $ | F97: nominal | H97: 377 | Q97: 5.385714286 | R97: 10.77142857 | S97: 10.77142857 | T97: 10.77142857 | U97: 10.77142857 | V97: 10.77142857 | W97: 10.77142857 | X97: 10.77142857 | Y97: 10.77142857 | Z97: 5.385714286 | AA97: 10.77142857 | AB97: 10.77142857 | AC97: 10.77142857 | AD97: 10.77142857 | AE97: 10.77142857 | AF97: =IF(ABS($H97-SUM($J97:AE97))>=ABS(AE97),AE97,IF(ABS($H97-SUM($J97:AE97))>0,$H97-SUM($J97:AE97),0)) -> 10.77142857 | AG97: =IF(ABS($H97-SUM($J97:AF97))>=ABS(AF97),AF97,IF(ABS($H97-SUM($J97:AF97))>0,$H97-SUM($J97:AF97),0)) -> 10.77142857 | AH97: =IF(ABS($H97-SUM($J97:AG97))>=ABS(AG97),AG97,IF(ABS($H97-SUM($J97:AG97))>0,$H97-SUM($J97:AG97),0)) -> 10.77142857 | AI97: =IF(ABS($H97-SUM($J97:AH97))>=ABS(AH97),AH97,IF(ABS($H97-SUM($J97:AH97))>0,$H97-SUM($J97:AH97),0)) -> 10.77142857 | AJ97: =IF(ABS($H97-SUM($J97:AI97))>=ABS(AI97),AI97,IF(ABS($H97-SUM($J97:AI97))>0,$H97-SUM($J97:AI97),0)) -> 10.77142857 | AK97: =IF(ABS($H97-SUM($J97:AJ97))>=ABS(AJ97),AJ97,IF(ABS($H97-SUM($J97:AJ97))>0,$H97-SUM($J97:AJ97),0)) -> 10.77142857 | AL97: =IF(ABS($H97-SUM($J97:AK97))>=ABS(AK97),AK97,IF(ABS($H97-SUM($J97:AK97))>0,$H97-SUM($J97:AK97),0)) -> 10.77142857 | AM97: =IF(ABS($H97-SUM($J97:AL97))>=ABS(AL97),AL97,IF(ABS($H97-SUM($J97:AL97))>0,$H97-SUM($J97:AL97),0)) -> 10.77142857 | AN97: =IF(ABS($H97-SUM($J97:AM97))>=ABS(AM97),AM97,IF(ABS($H97-SUM($J97:AM97))>0,$H97-SUM($J97:AM97),0)) -> 10.77142857 | AO97: =IF(ABS($H97-SUM($J97:AN97))>=ABS(AN97),AN97,IF(ABS($H97-SUM($J97:AN97))>0,$H97-SUM($J97:AN97),0)) -> 10.77142857 | AP97: =IF(ABS($H97-SUM($J97:AO97))>=ABS(AO97),AO97,IF(ABS($H97-SUM($J97:AO97))>0,$H97-SUM($J97:AO97),0)) -> 10.77142857 | AQ97: =IF(ABS($H97-SUM($J97:AP97))>=ABS(AP97),AP97,IF(ABS($H97-SUM($J97:AP97))>0,$H97-SUM($J97:AP97),0)) -> 10.77142857 | AR97: =IF(ABS($H97-SUM($J97:AQ97))>=ABS(AQ97),AQ97,IF(ABS($H97-SUM($J97:AQ97))>0,$H97-SUM($J97:AQ97),0)) -> 10.77142857 | AS97: =IF(ABS($H97-SUM($J97:AR97))>=ABS(AR97),AR97,IF(ABS($H97-SUM($J97:AR97))>0,$H97-SUM($J97:AR97),0)) -> 10.77142857 | AT97: =IF(ABS($H97-SUM($J97:AS97))>=ABS(AS97),AS97,IF(ABS($H97-SUM($J97:AS97))>0,$H97-SUM($J97:AS97),0)) -> 10.77142857 | AU97: =IF(ABS($H97-SUM($J97:AT97))>=ABS(AT97),AT97,IF(ABS($H97-SUM($J97:AT97))>0,$H97-SUM($J97:AT97),0)) -> 10.77142857 | AV97: =IF(ABS($H97-SUM($J97:AU97))>=ABS(AU97),AU97,IF(ABS($H97-SUM($J97:AU97))>0,$H97-SUM($J97:AU97),0)) -> 10.77142857 | AW97: =IF(ABS($H97-SUM($J97:AV97))>=ABS(AV97),AV97,IF(ABS($H97-SUM($J97:AV97))>0,$H97-SUM($J97:AV97),0)) -> 10.77142857 | AX97: =IF(ABS($H97-SUM($J97:AW97))>=ABS(AW97),AW97,IF(ABS($H97-SUM($J97:AW97))>0,$H97-SUM($J97:AW97),0)) -> 10.77142857 | AY97: =IF(ABS($H97-SUM($J97:AX97))>=ABS(AX97),AX97,IF(ABS($H97-SUM($J97:AX97))>0,$H97-SUM($J97:AX97),0)) -> 10.77142857 | AZ97: =IF(ABS($H97-SUM($J97:AY97))>=ABS(AY97),AY97,IF(ABS($H97-SUM($J97:AY97))>0,$H97-SUM($J97:AY97),0)) -> 10.77142857 | BA97: =IF(ABS($H97-SUM($J97:AZ97))>=ABS(AZ97),AZ97,IF(ABS($H97-SUM($J97:AZ97))>0,$H97-SUM($J97:AZ97),0)) -> 0 | BB97: =IF(ABS($H97-SUM($J97:BA97))>=ABS(BA97),BA97,IF(ABS($H97-SUM($J97:BA97))>0,$H97-SUM($J97:BA97),0)) -> 0 | BC97: =IF(ABS($H97-SUM($J97:BB97))>=ABS(BB97),BB97,IF(ABS($H97-SUM($J97:BB97))>0,$H97-SUM($J97:BB97),0)) -> 0 | BD97: =IF(ABS($H97-SUM($J97:BC97))>=ABS(BC97),BC97,IF(ABS($H97-SUM($J97:BC97))>0,$H97-SUM($J97:BC97),0)) -> 0 | BE97: =IF(ABS($H97-SUM($J97:BD97))>=ABS(BD97),BD97,IF(ABS($H97-SUM($J97:BD97))>0,$H97-SUM($J97:BD97),0)) -> 0 | BF97: =IF(ABS($H97-SUM($J97:BE97))>=ABS(BE97),BE97,IF(ABS($H97-SUM($J97:BE97))>0,$H97-SUM($J97:BE97),0)) -> 0 | BG97: =IF(ABS($H97-SUM($J97:BF97))>=ABS(BF97),BF97,IF(ABS($H97-SUM($J97:BF97))>0,$H97-SUM($J97:BF97),0)) -> 0 | BH97: =IF(ABS($H97-SUM($J97:BG97))>=ABS(BG97),BG97,IF(ABS($H97-SUM($J97:BG97))>0,$H97-SUM($J97:BG97),0)) -> 0 | BI97: =IF(ABS($H97-SUM($J97:BH97))>=ABS(BH97),BH97,IF(ABS($H97-SUM($J97:BH97))>0,$H97-SUM($J97:BH97),0)) -> 0 | BJ97: =IF(ABS($H97-SUM($J97:BI97))>=ABS(BI97),BI97,IF(ABS($H97-SUM($J97:BI97))>0,$H97-SUM($J97:BI97),0)) -> 0 | BK97: =IF(ABS($H97-SUM($J97:BJ97))>=ABS(BJ97),BJ97,IF(ABS($H97-SUM($J97:BJ97))>0,$H97-SUM($J97:BJ97),0)) -> 0 | BL97: =IF(ABS($H97-SUM($J97:BK97))>=ABS(BK97),BK97,IF(ABS($H97-SUM($J97:BK97))>0,$H97-SUM($J97:BK97),0)) -> 0 | BM97: =IF(ABS($H97-SUM($J97:BL97))>=ABS(BL97),BL97,IF(ABS($H97-SUM($J97:BL97))>0,$H97-SUM($J97:BL97),0)) -> 0 | BN97: =IF(ABS($H97-SUM($J97:BM97))>=ABS(BM97),BM97,IF(ABS($H97-SUM($J97:BM97))>0,$H97-SUM($J97:BM97),0)) -> 0 | BP97: 0
C98: 2013 | D98: AER | E98: $ | F98: nominal | H98: 464413 | R98: 6634.471429 | S98: 13268.94286 | T98: 13268.94286 | U98: 13268.94286 | V98: 13268.94286 | W98: 13268.94286 | X98: 13268.94286 | Y98: 13268.94286 | Z98: 6634.471429 | AA98: 13268.94286 | AB98: 13268.94286 | AC98: 13268.94286 | AD98: 13268.94286 | AE98: 13268.94286 | AF98: =IF(ABS($H98-SUM($J98:AE98))>=ABS(AE98),AE98,IF(ABS($H98-SUM($J98:AE98))>0,$H98-SUM($J98:AE98),0)) -> 13268.94286 | AG98: =IF(ABS($H98-SUM($J98:AF98))>=ABS(AF98),AF98,IF(ABS($H98-SUM($J98:AF98))>0,$H98-SUM($J98:AF98),0)) -> 13268.94286 | AH98: =IF(ABS($H98-SUM($J98:AG98))>=ABS(AG98),AG98,IF(ABS($H98-SUM($J98:AG98))>0,$H98-SUM($J98:AG98),0)) -> 13268.94286 | AI98: =IF(ABS($H98-SUM($J98:AH98))>=ABS(AH98),AH98,IF(ABS($H98-SUM($J98:AH98))>0,$H98-SUM($J98:AH98),0)) -> 13268.94286 | AJ98: =IF(ABS($H98-SUM($J98:AI98))>=ABS(AI98),AI98,IF(ABS($H98-SUM($J98:AI98))>0,$H98-SUM($J98:AI98),0)) -> 13268.94286 | AK98: =IF(ABS($H98-SUM($J98:AJ98))>=ABS(AJ98),AJ98,IF(ABS($H98-SUM($J98:AJ98))>0,$H98-SUM($J98:AJ98),0)) -> 13268.94286 | AL98: =IF(ABS($H98-SUM($J98:AK98))>=ABS(AK98),AK98,IF(ABS($H98-SUM($J98:AK98))>0,$H98-SUM($J98:AK98),0)) -> 13268.94286 | AM98: =IF(ABS($H98-SUM($J98:AL98))>=ABS(AL98),AL98,IF(ABS($H98-SUM($J98:AL98))>0,$H98-SUM($J98:AL98),0)) -> 13268.94286 | AN98: =IF(ABS($H98-SUM($J98:AM98))>=ABS(AM98),AM98,IF(ABS($H98-SUM($J98:AM98))>0,$H98-SUM($J98:AM98),0)) -> 13268.94286 | AO98: =IF(ABS($H98-SUM($J98:AN98))>=ABS(AN98),AN98,IF(ABS($H98-SUM($J98:AN98))>0,$H98-SUM($J98:AN98),0)) -> 13268.94286 | AP98: =IF(ABS($H98-SUM($J98:AO98))>=ABS(AO98),AO98,IF(ABS($H98-SUM($J98:AO98))>0,$H98-SUM($J98:AO98),0)) -> 13268.94286 | AQ98: =IF(ABS($H98-SUM($J98:AP98))>=ABS(AP98),AP98,IF(ABS($H98-SUM($J98:AP98))>0,$H98-SUM($J98:AP98),0)) -> 13268.94286 | AR98: =IF(ABS($H98-SUM($J98:AQ98))>=ABS(AQ98),AQ98,IF(ABS($H98-SUM($J98:AQ98))>0,$H98-SUM($J98:AQ98),0)) -> 13268.94286 | AS98: =IF(ABS($H98-SUM($J98:AR98))>=ABS(AR98),AR98,IF(ABS($H98-SUM($J98:AR98))>0,$H98-SUM($J98:AR98),0)) -> 13268.94286 | AT98: =IF(ABS($H98-SUM($J98:AS98))>=ABS(AS98),AS98,IF(ABS($H98-SUM($J98:AS98))>0,$H98-SUM($J98:AS98),0)) -> 13268.94286 | AU98: =IF(ABS($H98-SUM($J98:AT98))>=ABS(AT98),AT98,IF(ABS($H98-SUM($J98:AT98))>0,$H98-SUM($J98:AT98),0)) -> 13268.94286 | AV98: =IF(ABS($H98-SUM($J98:AU98))>=ABS(AU98),AU98,IF(ABS($H98-SUM($J98:AU98))>0,$H98-SUM($J98:AU98),0)) -> 13268.94286 | AW98: =IF(ABS($H98-SUM($J98:AV98))>=ABS(AV98),AV98,IF(ABS($H98-SUM($J98:AV98))>0,$H98-SUM($J98:AV98),0)) -> 13268.94286 | AX98: =IF(ABS($H98-SUM($J98:AW98))>=ABS(AW98),AW98,IF(ABS($H98-SUM($J98:AW98))>0,$H98-SUM($J98:AW98),0)) -> 13268.94286 | AY98: =IF(ABS($H98-SUM($J98:AX98))>=ABS(AX98),AX98,IF(ABS($H98-SUM($J98:AX98))>0,$H98-SUM($J98:AX98),0)) -> 13268.94286 | AZ98: =IF(ABS($H98-SUM($J98:AY98))>=ABS(AY98),AY98,IF(ABS($H98-SUM($J98:AY98))>0,$H98-SUM($J98:AY98),0)) -> 13268.94286 | BA98: =IF(ABS($H98-SUM($J98:AZ98))>=ABS(AZ98),AZ98,IF(ABS($H98-SUM($J98:AZ98))>0,$H98-SUM($J98:AZ98),0)) -> 13268.94286 | BB98: =IF(ABS($H98-SUM($J98:BA98))>=ABS(BA98),BA98,IF(ABS($H98-SUM($J98:BA98))>0,$H98-SUM($J98:BA98),0)) -> 0 | BC98: =IF(ABS($H98-SUM($J98:BB98))>=ABS(BB98),BB98,IF(ABS($H98-SUM($J98:BB98))>0,$H98-SUM($J98:BB98),0)) -> 0 | BD98: =IF(ABS($H98-SUM($J98:BC98))>=ABS(BC98),BC98,IF(ABS($H98-SUM($J98:BC98))>0,$H98-SUM($J98:BC98),0)) -> 0 | BE98: =IF(ABS($H98-SUM($J98:BD98))>=ABS(BD98),BD98,IF(ABS($H98-SUM($J98:BD98))>0,$H98-SUM($J98:BD98),0)) -> 0 | BF98: =IF(ABS($H98-SUM($J98:BE98))>=ABS(BE98),BE98,IF(ABS($H98-SUM($J98:BE98))>0,$H98-SUM($J98:BE98),0)) -> 0 | BG98: =IF(ABS($H98-SUM($J98:BF98))>=ABS(BF98),BF98,IF(ABS($H98-SUM($J98:BF98))>0,$H98-SUM($J98:BF98),0)) -> 0 | BH98: =IF(ABS($H98-SUM($J98:BG98))>=ABS(BG98),BG98,IF(ABS($H98-SUM($J98:BG98))>0,$H98-SUM($J98:BG98),0)) -> 0 | BI98: =IF(ABS($H98-SUM($J98:BH98))>=ABS(BH98),BH98,IF(ABS($H98-SUM($J98:BH98))>0,$H98-SUM($J98:BH98),0)) -> 0 | BJ98: =IF(ABS($H98-SUM($J98:BI98))>=ABS(BI98),BI98,IF(ABS($H98-SUM($J98:BI98))>0,$H98-SUM($J98:BI98),0)) -> 0 | BK98: =IF(ABS($H98-SUM($J98:BJ98))>=ABS(BJ98),BJ98,IF(ABS($H98-SUM($J98:BJ98))>0,$H98-SUM($J98:BJ98),0)) -> 0 | BL98: =IF(ABS($H98-SUM($J98:BK98))>=ABS(BK98),BK98,IF(ABS($H98-SUM($J98:BK98))>0,$H98-SUM($J98:BK98),0)) -> 0 | BM98: =IF(ABS($H98-SUM($J98:BL98))>=ABS(BL98),BL98,IF(ABS($H98-SUM($J98:BL98))>0,$H98-SUM($J98:BL98),0)) -> 0 | BN98: =IF(ABS($H98-SUM($J98:BM98))>=ABS(BM98),BM98,IF(ABS($H98-SUM($J98:BM98))>0,$H98-SUM($J98:BM98),0)) -> 0 | BP98: 0
C99: 2014 | D99: AER | E99: $ | F99: nominal | H99: 728309.1598 | S99: 10404.41657 | T99: 20808.83314 | U99: 20808.83314 | V99: 20808.83314 | W99: 20808.83314 | X99: 20808.83314 | Y99: 20808.83314 | Z99: 10404.41657 | AA99: 20808.83314 | AB99: 20808.83314 | AC99: 20808.83314 | AD99: 20808.83314 | AE99: 20808.83314 | AF99: =IF(ABS($H99-SUM($J99:AE99))>=ABS(AE99),AE99,IF(ABS($H99-SUM($J99:AE99))>0,$H99-SUM($J99:AE99),0)) -> 20808.83314 | AG99: =IF(ABS($H99-SUM($J99:AF99))>=ABS(AF99),AF99,IF(ABS($H99-SUM($J99:AF99))>0,$H99-SUM($J99:AF99),0)) -> 20808.83314 | AH99: =IF(ABS($H99-SUM($J99:AG99))>=ABS(AG99),AG99,IF(ABS($H99-SUM($J99:AG99))>0,$H99-SUM($J99:AG99),0)) -> 20808.83314 | AI99: =IF(ABS($H99-SUM($J99:AH99))>=ABS(AH99),AH99,IF(ABS($H99-SUM($J99:AH99))>0,$H99-SUM($J99:AH99),0)) -> 20808.83314 | AJ99: =IF(ABS($H99-SUM($J99:AI99))>=ABS(AI99),AI99,IF(ABS($H99-SUM($J99:AI99))>0,$H99-SUM($J99:AI99),0)) -> 20808.83314 | AK99: =IF(ABS($H99-SUM($J99:AJ99))>=ABS(AJ99),AJ99,IF(ABS($H99-SUM($J99:AJ99))>0,$H99-SUM($J99:AJ99),0)) -> 20808.83314 | AL99: =IF(ABS($H99-SUM($J99:AK99))>=ABS(AK99),AK99,IF(ABS($H99-SUM($J99:AK99))>0,$H99-SUM($J99:AK99),0)) -> 20808.83314 | AM99: =IF(ABS($H99-SUM($J99:AL99))>=ABS(AL99),AL99,IF(ABS($H99-SUM($J99:AL99))>0,$H99-SUM($J99:AL99),0)) -> 20808.83314 | AN99: =IF(ABS($H99-SUM($J99:AM99))>=ABS(AM99),AM99,IF(ABS($H99-SUM($J99:AM99))>0,$H99-SUM($J99:AM99),0)) -> 20808.83314 | AO99: =IF(ABS($H99-SUM($J99:AN99))>=ABS(AN99),AN99,IF(ABS($H99-SUM($J99:AN99))>0,$H99-SUM($J99:AN99),0)) -> 20808.83314 | AP99: =IF(ABS($H99-SUM($J99:AO99))>=ABS(AO99),AO99,IF(ABS($H99-SUM($J99:AO99))>0,$H99-SUM($J99:AO99),0)) -> 20808.83314 | AQ99: =IF(ABS($H99-SUM($J99:AP99))>=ABS(AP99),AP99,IF(ABS($H99-SUM($J99:AP99))>0,$H99-SUM($J99:AP99),0)) -> 20808.83314 | AR99: =IF(ABS($H99-SUM($J99:AQ99))>=ABS(AQ99),AQ99,IF(ABS($H99-SUM($J99:AQ99))>0,$H99-SUM($J99:AQ99),0)) -> 20808.83314 | AS99: =IF(ABS($H99-SUM($J99:AR99))>=ABS(AR99),AR99,IF(ABS($H99-SUM($J99:AR99))>0,$H99-SUM($J99:AR99),0)) -> 20808.83314 | AT99: =IF(ABS($H99-SUM($J99:AS99))>=ABS(AS99),AS99,IF(ABS($H99-SUM($J99:AS99))>0,$H99-SUM($J99:AS99),0)) -> 20808.83314 | AU99: =IF(ABS($H99-SUM($J99:AT99))>=ABS(AT99),AT99,IF(ABS($H99-SUM($J99:AT99))>0,$H99-SUM($J99:AT99),0)) -> 20808.83314 | AV99: =IF(ABS($H99-SUM($J99:AU99))>=ABS(AU99),AU99,IF(ABS($H99-SUM($J99:AU99))>0,$H99-SUM($J99:AU99),0)) -> 20808.83314 | AW99: =IF(ABS($H99-SUM($J99:AV99))>=ABS(AV99),AV99,IF(ABS($H99-SUM($J99:AV99))>0,$H99-SUM($J99:AV99),0)) -> 20808.83314 | AX99: =IF(ABS($H99-SUM($J99:AW99))>=ABS(AW99),AW99,IF(ABS($H99-SUM($J99:AW99))>0,$H99-SUM($J99:AW99),0)) -> 20808.83314 | AY99: =IF(ABS($H99-SUM($J99:AX99))>=ABS(AX99),AX99,IF(ABS($H99-SUM($J99:AX99))>0,$H99-SUM($J99:AX99),0)) -> 20808.83314 | AZ99: =IF(ABS($H99-SUM($J99:AY99))>=ABS(AY99),AY99,IF(ABS($H99-SUM($J99:AY99))>0,$H99-SUM($J99:AY99),0)) -> 20808.83314 | BA99: =IF(ABS($H99-SUM($J99:AZ99))>=ABS(AZ99),AZ99,IF(ABS($H99-SUM($J99:AZ99))>0,$H99-SUM($J99:AZ99),0)) -> 20808.83314 | BB99: =IF(ABS($H99-SUM($J99:BA99))>=ABS(BA99),BA99,IF(ABS($H99-SUM($J99:BA99))>0,$H99-SUM($J99:BA99),0)) -> 20808.83314 | BC99: =IF(ABS($H99-SUM($J99:BB99))>=ABS(BB99),BB99,IF(ABS($H99-SUM($J99:BB99))>0,$H99-SUM($J99:BB99),0)) -> 2.328306437e-10 | BD99: =IF(ABS($H99-SUM($J99:BC99))>=ABS(BC99),BC99,IF(ABS($H99-SUM($J99:BC99))>0,$H99-SUM($J99:BC99),0)) -> 0 | BE99: =IF(ABS($H99-SUM($J99:BD99))>=ABS(BD99),BD99,IF(ABS($H99-SUM($J99:BD99))>0,$H99-SUM($J99:BD99),0)) -> 0 | BF99: =IF(ABS($H99-SUM($J99:BE99))>=ABS(BE99),BE99,IF(ABS($H99-SUM($J99:BE99))>0,$H99-SUM($J99:BE99),0)) -> 0 | BG99: =IF(ABS($H99-SUM($J99:BF99))>=ABS(BF99),BF99,IF(ABS($H99-SUM($J99:BF99))>0,$H99-SUM($J99:BF99),0)) -> 0 | BH99: =IF(ABS($H99-SUM($J99:BG99))>=ABS(BG99),BG99,IF(ABS($H99-SUM($J99:BG99))>0,$H99-SUM($J99:BG99),0)) -> 0 | BI99: =IF(ABS($H99-SUM($J99:BH99))>=ABS(BH99),BH99,IF(ABS($H99-SUM($J99:BH99))>0,$H99-SUM($J99:BH99),0)) -> 0 | BJ99: =IF(ABS($H99-SUM($J99:BI99))>=ABS(BI99),BI99,IF(ABS($H99-SUM($J99:BI99))>0,$H99-SUM($J99:BI99),0)) -> 0 | BK99: =IF(ABS($H99-SUM($J99:BJ99))>=ABS(BJ99),BJ99,IF(ABS($H99-SUM($J99:BJ99))>0,$H99-SUM($J99:BJ99),0)) -> 0 | BL99: =IF(ABS($H99-SUM($J99:BK99))>=ABS(BK99),BK99,IF(ABS($H99-SUM($J99:BK99))>0,$H99-SUM($J99:BK99),0)) -> 0 | BM99: =IF(ABS($H99-SUM($J99:BL99))>=ABS(BL99),BL99,IF(ABS($H99-SUM($J99:BL99))>0,$H99-SUM($J99:BL99),0)) -> 0 | BN99: =IF(ABS($H99-SUM($J99:BM99))>=ABS(BM99),BM99,IF(ABS($H99-SUM($J99:BM99))>0,$H99-SUM($J99:BM99),0)) -> 0 | BP99: 0
C100: 2015 | D100: AER | E100: $ | F100: nominal | H100: 478089.77 | T100: 6829.853857 | U100: 13659.70771 | V100: 13659.70771 | W100: 13659.70771 | X100: 13659.70771 | Y100: 13659.70771 | Z100: 6829.853857 | AA100: 13659.70771 | AB100: 13659.70771 | AC100: 13659.70771 | AD100: 13659.70771 | AE100: 13659.70771 | AF100: =IF(ABS($H100-SUM($J100:AE100))>=ABS(AE100),AE100,IF(ABS($H100-SUM($J100:AE100))>0,$H100-SUM($J100:AE100),0)) -> 13659.70771 | AG100: =IF(ABS($H100-SUM($J100:AF100))>=ABS(AF100),AF100,IF(ABS($H100-SUM($J100:AF100))>0,$H100-SUM($J100:AF100),0)) -> 13659.70771 | AH100: =IF(ABS($H100-SUM($J100:AG100))>=ABS(AG100),AG100,IF(ABS($H100-SUM($J100:AG100))>0,$H100-SUM($J100:AG100),0)) -> 13659.70771 | AI100: =IF(ABS($H100-SUM($J100:AH100))>=ABS(AH100),AH100,IF(ABS($H100-SUM($J100:AH100))>0,$H100-SUM($J100:AH100),0)) -> 13659.70771 | AJ100: =IF(ABS($H100-SUM($J100:AI100))>=ABS(AI100),AI100,IF(ABS($H100-SUM($J100:AI100))>0,$H100-SUM($J100:AI100),0)) -> 13659.70771 | AK100: =IF(ABS($H100-SUM($J100:AJ100))>=ABS(AJ100),AJ100,IF(ABS($H100-SUM($J100:AJ100))>0,$H100-SUM($J100:AJ100),0)) -> 13659.70771 | AL100: =IF(ABS($H100-SUM($J100:AK100))>=ABS(AK100),AK100,IF(ABS($H100-SUM($J100:AK100))>0,$H100-SUM($J100:AK100),0)) -> 13659.70771 | AM100: =IF(ABS($H100-SUM($J100:AL100))>=ABS(AL100),AL100,IF(ABS($H100-SUM($J100:AL100))>0,$H100-SUM($J100:AL100),0)) -> 13659.70771 | AN100: =IF(ABS($H100-SUM($J100:AM100))>=ABS(AM100),AM100,IF(ABS($H100-SUM($J100:AM100))>0,$H100-SUM($J100:AM100),0)) -> 13659.70771 | AO100: =IF(ABS($H100-SUM($J100:AN100))>=ABS(AN100),AN100,IF(ABS($H100-SUM($J100:AN100))>0,$H100-SUM($J100:AN100),0)) -> 13659.70771 | AP100: =IF(ABS($H100-SUM($J100:AO100))>=ABS(AO100),AO100,IF(ABS($H100-SUM($J100:AO100))>0,$H100-SUM($J100:AO100),0)) -> 13659.70771 | AQ100: =IF(ABS($H100-SUM($J100:AP100))>=ABS(AP100),AP100,IF(ABS($H100-SUM($J100:AP100))>0,$H100-SUM($J100:AP100),0)) -> 13659.70771 | AR100: =IF(ABS($H100-SUM($J100:AQ100))>=ABS(AQ100),AQ100,IF(ABS($H100-SUM($J100:AQ100))>0,$H100-SUM($J100:AQ100),0)) -> 13659.70771 | AS100: =IF(ABS($H100-SUM($J100:AR100))>=ABS(AR100),AR100,IF(ABS($H100-SUM($J100:AR100))>0,$H100-SUM($J100:AR100),0)) -> 13659.70771 | AT100: =IF(ABS($H100-SUM($J100:AS100))>=ABS(AS100),AS100,IF(ABS($H100-SUM($J100:AS100))>0,$H100-SUM($J100:AS100),0)) -> 13659.70771 | AU100: =IF(ABS($H100-SUM($J100:AT100))>=ABS(AT100),AT100,IF(ABS($H100-SUM($J100:AT100))>0,$H100-SUM($J100:AT100),0)) -> 13659.70771 | AV100: =IF(ABS($H100-SUM($J100:AU100))>=ABS(AU100),AU100,IF(ABS($H100-SUM($J100:AU100))>0,$H100-SUM($J100:AU100),0)) -> 13659.70771 | AW100: =IF(ABS($H100-SUM($J100:AV100))>=ABS(AV100),AV100,IF(ABS($H100-SUM($J100:AV100))>0,$H100-SUM($J100:AV100),0)) -> 13659.70771 | AX100: =IF(ABS($H100-SUM($J100:AW100))>=ABS(AW100),AW100,IF(ABS($H100-SUM($J100:AW100))>0,$H100-SUM($J100:AW100),0)) -> 13659.70771 | AY100: =IF(ABS($H100-SUM($J100:AX100))>=ABS(AX100),AX100,IF(ABS($H100-SUM($J100:AX100))>0,$H100-SUM($J100:AX100),0)) -> 13659.70771 | AZ100: =IF(ABS($H100-SUM($J100:AY100))>=ABS(AY100),AY100,IF(ABS($H100-SUM($J100:AY100))>0,$H100-SUM($J100:AY100),0)) -> 13659.70771 | BA100: =IF(ABS($H100-SUM($J100:AZ100))>=ABS(AZ100),AZ100,IF(ABS($H100-SUM($J100:AZ100))>0,$H100-SUM($J100:AZ100),0)) -> 13659.70771 | BB100: =IF(ABS($H100-SUM($J100:BA100))>=ABS(BA100),BA100,IF(ABS($H100-SUM($J100:BA100))>0,$H100-SUM($J100:BA100),0)) -> 13659.70771 | BC100: =IF(ABS($H100-SUM($J100:BB100))>=ABS(BB100),BB100,IF(ABS($H100-SUM($J100:BB100))>0,$H100-SUM($J100:BB100),0)) -> 13659.70771 | BD100: =IF(ABS($H100-SUM($J100:BC100))>=ABS(BC100),BC100,IF(ABS($H100-SUM($J100:BC100))>0,$H100-SUM($J100:BC100),0)) -> 2.910383046e-10 | BE100: =IF(ABS($H100-SUM($J100:BD100))>=ABS(BD100),BD100,IF(ABS($H100-SUM($J100:BD100))>0,$H100-SUM($J100:BD100),0)) -> 0 | BF100: =IF(ABS($H100-SUM($J100:BE100))>=ABS(BE100),BE100,IF(ABS($H100-SUM($J100:BE100))>0,$H100-SUM($J100:BE100),0)) -> 0 | BG100: =IF(ABS($H100-SUM($J100:BF100))>=ABS(BF100),BF100,IF(ABS($H100-SUM($J100:BF100))>0,$H100-SUM($J100:BF100),0)) -> 0 | BH100: =IF(ABS($H100-SUM($J100:BG100))>=ABS(BG100),BG100,IF(ABS($H100-SUM($J100:BG100))>0,$H100-SUM($J100:BG100),0)) -> 0 | BI100: =IF(ABS($H100-SUM($J100:BH100))>=ABS(BH100),BH100,IF(ABS($H100-SUM($J100:BH100))>0,$H100-SUM($J100:BH100),0)) -> 0 | BJ100: =IF(ABS($H100-SUM($J100:BI100))>=ABS(BI100),BI100,IF(ABS($H100-SUM($J100:BI100))>0,$H100-SUM($J100:BI100),0)) -> 0 | BK100: =IF(ABS($H100-SUM($J100:BJ100))>=ABS(BJ100),BJ100,IF(ABS($H100-SUM($J100:BJ100))>0,$H100-SUM($J100:BJ100),0)) -> 0 | BL100: =IF(ABS($H100-SUM($J100:BK100))>=ABS(BK100),BK100,IF(ABS($H100-SUM($J100:BK100))>0,$H100-SUM($J100:BK100),0)) -> 0 | BM100: =IF(ABS($H100-SUM($J100:BL100))>=ABS(BL100),BL100,IF(ABS($H100-SUM($J100:BL100))>0,$H100-SUM($J100:BL100),0)) -> 0 | BN100: =IF(ABS($H100-SUM($J100:BM100))>=ABS(BM100),BM100,IF(ABS($H100-SUM($J100:BM100))>0,$H100-SUM($J100:BM100),0)) -> 0 | BP100: 0
C101: 2016 | D101: AER | E101: $ | F101: nominal | H101: 489079.42 | U101: 6986.848857 | V101: 13973.69771 | W101: 13973.69771 | X101: 13973.69771 | Y101: 13973.69771 | Z101: 6986.848857 | AA101: 13973.69771 | AB101: 13973.69771 | AC101: 13973.69771 | AD101: 13973.69771 | AE101: 13973.69771 | AF101: =IF(ABS($H101-SUM($J101:AE101))>=ABS(AE101),AE101,IF(ABS($H101-SUM($J101:AE101))>0,$H101-SUM($J101:AE101),0)) -> 13973.69771 | AG101: =IF(ABS($H101-SUM($J101:AF101))>=ABS(AF101),AF101,IF(ABS($H101-SUM($J101:AF101))>0,$H101-SUM($J101:AF101),0)) -> 13973.69771 | AH101: =IF(ABS($H101-SUM($J101:AG101))>=ABS(AG101),AG101,IF(ABS($H101-SUM($J101:AG101))>0,$H101-SUM($J101:AG101),0)) -> 13973.69771 | AI101: =IF(ABS($H101-SUM($J101:AH101))>=ABS(AH101),AH101,IF(ABS($H101-SUM($J101:AH101))>0,$H101-SUM($J101:AH101),0)) -> 13973.69771 | AJ101: =IF(ABS($H101-SUM($J101:AI101))>=ABS(AI101),AI101,IF(ABS($H101-SUM($J101:AI101))>0,$H101-SUM($J101:AI101),0)) -> 13973.69771 | AK101: =IF(ABS($H101-SUM($J101:AJ101))>=ABS(AJ101),AJ101,IF(ABS($H101-SUM($J101:AJ101))>0,$H101-SUM($J101:AJ101),0)) -> 13973.69771 | AL101: =IF(ABS($H101-SUM($J101:AK101))>=ABS(AK101),AK101,IF(ABS($H101-SUM($J101:AK101))>0,$H101-SUM($J101:AK101),0)) -> 13973.69771 | AM101: =IF(ABS($H101-SUM($J101:AL101))>=ABS(AL101),AL101,IF(ABS($H101-SUM($J101:AL101))>0,$H101-SUM($J101:AL101),0)) -> 13973.69771 | AN101: =IF(ABS($H101-SUM($J101:AM101))>=ABS(AM101),AM101,IF(ABS($H101-SUM($J101:AM101))>0,$H101-SUM($J101:AM101),0)) -> 13973.69771 | AO101: =IF(ABS($H101-SUM($J101:AN101))>=ABS(AN101),AN101,IF(ABS($H101-SUM($J101:AN101))>0,$H101-SUM($J101:AN101),0)) -> 13973.69771 | AP101: =IF(ABS($H101-SUM($J101:AO101))>=ABS(AO101),AO101,IF(ABS($H101-SUM($J101:AO101))>0,$H101-SUM($J101:AO101),0)) -> 13973.69771 | AQ101: =IF(ABS($H101-SUM($J101:AP101))>=ABS(AP101),AP101,IF(ABS($H101-SUM($J101:AP101))>0,$H101-SUM($J101:AP101),0)) -> 13973.69771 | AR101: =IF(ABS($H101-SUM($J101:AQ101))>=ABS(AQ101),AQ101,IF(ABS($H101-SUM($J101:AQ101))>0,$H101-SUM($J101:AQ101),0)) -> 13973.69771 | AS101: =IF(ABS($H101-SUM($J101:AR101))>=ABS(AR101),AR101,IF(ABS($H101-SUM($J101:AR101))>0,$H101-SUM($J101:AR101),0)) -> 13973.69771 | AT101: =IF(ABS($H101-SUM($J101:AS101))>=ABS(AS101),AS101,IF(ABS($H101-SUM($J101:AS101))>0,$H101-SUM($J101:AS101),0)) -> 13973.69771 | AU101: =IF(ABS($H101-SUM($J101:AT101))>=ABS(AT101),AT101,IF(ABS($H101-SUM($J101:AT101))>0,$H101-SUM($J101:AT101),0)) -> 13973.69771 | AV101: =IF(ABS($H101-SUM($J101:AU101))>=ABS(AU101),AU101,IF(ABS($H101-SUM($J101:AU101))>0,$H101-SUM($J101:AU101),0)) -> 13973.69771 | AW101: =IF(ABS($H101-SUM($J101:AV101))>=ABS(AV101),AV101,IF(ABS($H101-SUM($J101:AV101))>0,$H101-SUM($J101:AV101),0)) -> 13973.69771 | AX101: =IF(ABS($H101-SUM($J101:AW101))>=ABS(AW101),AW101,IF(ABS($H101-SUM($J101:AW101))>0,$H101-SUM($J101:AW101),0)) -> 13973.69771 | AY101: =IF(ABS($H101-SUM($J101:AX101))>=ABS(AX101),AX101,IF(ABS($H101-SUM($J101:AX101))>0,$H101-SUM($J101:AX101),0)) -> 13973.69771 | AZ101: =IF(ABS($H101-SUM($J101:AY101))>=ABS(AY101),AY101,IF(ABS($H101-SUM($J101:AY101))>0,$H101-SUM($J101:AY101),0)) -> 13973.69771 | BA101: =IF(ABS($H101-SUM($J101:AZ101))>=ABS(AZ101),AZ101,IF(ABS($H101-SUM($J101:AZ101))>0,$H101-SUM($J101:AZ101),0)) -> 13973.69771 | BB101: =IF(ABS($H101-SUM($J101:BA101))>=ABS(BA101),BA101,IF(ABS($H101-SUM($J101:BA101))>0,$H101-SUM($J101:BA101),0)) -> 13973.69771 | BC101: =IF(ABS($H101-SUM($J101:BB101))>=ABS(BB101),BB101,IF(ABS($H101-SUM($J101:BB101))>0,$H101-SUM($J101:BB101),0)) -> 13973.69771 | BD101: =IF(ABS($H101-SUM($J101:BC101))>=ABS(BC101),BC101,IF(ABS($H101-SUM($J101:BC101))>0,$H101-SUM($J101:BC101),0)) -> 13973.69771 | BE101: =IF(ABS($H101-SUM($J101:BD101))>=ABS(BD101),BD101,IF(ABS($H101-SUM($J101:BD101))>0,$H101-SUM($J101:BD101),0)) -> 2.910383046e-10 | BF101: =IF(ABS($H101-SUM($J101:BE101))>=ABS(BE101),BE101,IF(ABS($H101-SUM($J101:BE101))>0,$H101-SUM($J101:BE101),0)) -> 0 | BG101: =IF(ABS($H101-SUM($J101:BF101))>=ABS(BF101),BF101,IF(ABS($H101-SUM($J101:BF101))>0,$H101-SUM($J101:BF101),0)) -> 0 | BH101: =IF(ABS($H101-SUM($J101:BG101))>=ABS(BG101),BG101,IF(ABS($H101-SUM($J101:BG101))>0,$H101-SUM($J101:BG101),0)) -> 0 | BI101: =IF(ABS($H101-SUM($J101:BH101))>=ABS(BH101),BH101,IF(ABS($H101-SUM($J101:BH101))>0,$H101-SUM($J101:BH101),0)) -> 0 | BJ101: =IF(ABS($H101-SUM($J101:BI101))>=ABS(BI101),BI101,IF(ABS($H101-SUM($J101:BI101))>0,$H101-SUM($J101:BI101),0)) -> 0 | BK101: =IF(ABS($H101-SUM($J101:BJ101))>=ABS(BJ101),BJ101,IF(ABS($H101-SUM($J101:BJ101))>0,$H101-SUM($J101:BJ101),0)) -> 0 | BL101: =IF(ABS($H101-SUM($J101:BK101))>=ABS(BK101),BK101,IF(ABS($H101-SUM($J101:BK101))>0,$H101-SUM($J101:BK101),0)) -> 0 | BM101: =IF(ABS($H101-SUM($J101:BL101))>=ABS(BL101),BL101,IF(ABS($H101-SUM($J101:BL101))>0,$H101-SUM($J101:BL101),0)) -> 0 | BN101: =IF(ABS($H101-SUM($J101:BM101))>=ABS(BM101),BM101,IF(ABS($H101-SUM($J101:BM101))>0,$H101-SUM($J101:BM101),0)) -> 0 | BP101: 0
C102: 2017 | D102: AER | E102: $ | F102: nominal | H102: 546622.74 | V102: 7808.896286 | W102: 15617.79257 | X102: 15617.79257 | Y102: 15617.79257 | Z102: 7808.896286 | AA102: 15617.79257 | AB102: 15617.79257 | AC102: 15617.79257 | AD102: 15617.79257 | AE102: 15617.79257 | AF102: =IF(ABS($H102-SUM($J102:AE102))>=ABS(AE102),AE102,IF(ABS($H102-SUM($J102:AE102))>0,$H102-SUM($J102:AE102),0)) -> 15617.79257 | AG102: =IF(ABS($H102-SUM($J102:AF102))>=ABS(AF102),AF102,IF(ABS($H102-SUM($J102:AF102))>0,$H102-SUM($J102:AF102),0)) -> 15617.79257 | AH102: =IF(ABS($H102-SUM($J102:AG102))>=ABS(AG102),AG102,IF(ABS($H102-SUM($J102:AG102))>0,$H102-SUM($J102:AG102),0)) -> 15617.79257 | AI102: =IF(ABS($H102-SUM($J102:AH102))>=ABS(AH102),AH102,IF(ABS($H102-SUM($J102:AH102))>0,$H102-SUM($J102:AH102),0)) -> 15617.79257 | AJ102: =IF(ABS($H102-SUM($J102:AI102))>=ABS(AI102),AI102,IF(ABS($H102-SUM($J102:AI102))>0,$H102-SUM($J102:AI102),0)) -> 15617.79257 | AK102: =IF(ABS($H102-SUM($J102:AJ102))>=ABS(AJ102),AJ102,IF(ABS($H102-SUM($J102:AJ102))>0,$H102-SUM($J102:AJ102),0)) -> 15617.79257 | AL102: =IF(ABS($H102-SUM($J102:AK102))>=ABS(AK102),AK102,IF(ABS($H102-SUM($J102:AK102))>0,$H102-SUM($J102:AK102),0)) -> 15617.79257 | AM102: =IF(ABS($H102-SUM($J102:AL102))>=ABS(AL102),AL102,IF(ABS($H102-SUM($J102:AL102))>0,$H102-SUM($J102:AL102),0)) -> 15617.79257 | AN102: =IF(ABS($H102-SUM($J102:AM102))>=ABS(AM102),AM102,IF(ABS($H102-SUM($J102:AM102))>0,$H102-SUM($J102:AM102),0)) -> 15617.79257 | AO102: =IF(ABS($H102-SUM($J102:AN102))>=ABS(AN102),AN102,IF(ABS($H102-SUM($J102:AN102))>0,$H102-SUM($J102:AN102),0)) -> 15617.79257 | AP102: =IF(ABS($H102-SUM($J102:AO102))>=ABS(AO102),AO102,IF(ABS($H102-SUM($J102:AO102))>0,$H102-SUM($J102:AO102),0)) -> 15617.79257 | AQ102: =IF(ABS($H102-SUM($J102:AP102))>=ABS(AP102),AP102,IF(ABS($H102-SUM($J102:AP102))>0,$H102-SUM($J102:AP102),0)) -> 15617.79257 | AR102: =IF(ABS($H102-SUM($J102:AQ102))>=ABS(AQ102),AQ102,IF(ABS($H102-SUM($J102:AQ102))>0,$H102-SUM($J102:AQ102),0)) -> 15617.79257 | AS102: =IF(ABS($H102-SUM($J102:AR102))>=ABS(AR102),AR102,IF(ABS($H102-SUM($J102:AR102))>0,$H102-SUM($J102:AR102),0)) -> 15617.79257 | AT102: =IF(ABS($H102-SUM($J102:AS102))>=ABS(AS102),AS102,IF(ABS($H102-SUM($J102:AS102))>0,$H102-SUM($J102:AS102),0)) -> 15617.79257 | AU102: =IF(ABS($H102-SUM($J102:AT102))>=ABS(AT102),AT102,IF(ABS($H102-SUM($J102:AT102))>0,$H102-SUM($J102:AT102),0)) -> 15617.79257 | AV102: =IF(ABS($H102-SUM($J102:AU102))>=ABS(AU102),AU102,IF(ABS($H102-SUM($J102:AU102))>0,$H102-SUM($J102:AU102),0)) -> 15617.79257 | AW102: =IF(ABS($H102-SUM($J102:AV102))>=ABS(AV102),AV102,IF(ABS($H102-SUM($J102:AV102))>0,$H102-SUM($J102:AV102),0)) -> 15617.79257 | AX102: =IF(ABS($H102-SUM($J102:AW102))>=ABS(AW102),AW102,IF(ABS($H102-SUM($J102:AW102))>0,$H102-SUM($J102:AW102),0)) -> 15617.79257 | AY102: =IF(ABS($H102-SUM($J102:AX102))>=ABS(AX102),AX102,IF(ABS($H102-SUM($J102:AX102))>0,$H102-SUM($J102:AX102),0)) -> 15617.79257 | AZ102: =IF(ABS($H102-SUM($J102:AY102))>=ABS(AY102),AY102,IF(ABS($H102-SUM($J102:AY102))>0,$H102-SUM($J102:AY102),0)) -> 15617.79257 | BA102: =IF(ABS($H102-SUM($J102:AZ102))>=ABS(AZ102),AZ102,IF(ABS($H102-SUM($J102:AZ102))>0,$H102-SUM($J102:AZ102),0)) -> 15617.79257 | BB102: =IF(ABS($H102-SUM($J102:BA102))>=ABS(BA102),BA102,IF(ABS($H102-SUM($J102:BA102))>0,$H102-SUM($J102:BA102),0)) -> 15617.79257 | BC102: =IF(ABS($H102-SUM($J102:BB102))>=ABS(BB102),BB102,IF(ABS($H102-SUM($J102:BB102))>0,$H102-SUM($J102:BB102),0)) -> 15617.79257 | BD102: =IF(ABS($H102-SUM($J102:BC102))>=ABS(BC102),BC102,IF(ABS($H102-SUM($J102:BC102))>0,$H102-SUM($J102:BC102),0)) -> 15617.79257 | BE102: =IF(ABS($H102-SUM($J102:BD102))>=ABS(BD102),BD102,IF(ABS($H102-SUM($J102:BD102))>0,$H102-SUM($J102:BD102),0)) -> 15617.79257 | BF102: =IF(ABS($H102-SUM($J102:BE102))>=ABS(BE102),BE102,IF(ABS($H102-SUM($J102:BE102))>0,$H102-SUM($J102:BE102),0)) -> 0 | BG102: =IF(ABS($H102-SUM($J102:BF102))>=ABS(BF102),BF102,IF(ABS($H102-SUM($J102:BF102))>0,$H102-SUM($J102:BF102),0)) -> 0 | BH102: =IF(ABS($H102-SUM($J102:BG102))>=ABS(BG102),BG102,IF(ABS($H102-SUM($J102:BG102))>0,$H102-SUM($J102:BG102),0)) -> 0 | BI102: =IF(ABS($H102-SUM($J102:BH102))>=ABS(BH102),BH102,IF(ABS($H102-SUM($J102:BH102))>0,$H102-SUM($J102:BH102),0)) -> 0 | BJ102: =IF(ABS($H102-SUM($J102:BI102))>=ABS(BI102),BI102,IF(ABS($H102-SUM($J102:BI102))>0,$H102-SUM($J102:BI102),0)) -> 0 | BK102: =IF(ABS($H102-SUM($J102:BJ102))>=ABS(BJ102),BJ102,IF(ABS($H102-SUM($J102:BJ102))>0,$H102-SUM($J102:BJ102),0)) -> 0 | BL102: =IF(ABS($H102-SUM($J102:BK102))>=ABS(BK102),BK102,IF(ABS($H102-SUM($J102:BK102))>0,$H102-SUM($J102:BK102),0)) -> 0 | BM102: =IF(ABS($H102-SUM($J102:BL102))>=ABS(BL102),BL102,IF(ABS($H102-SUM($J102:BL102))>0,$H102-SUM($J102:BL102),0)) -> 0 | BN102: =IF(ABS($H102-SUM($J102:BM102))>=ABS(BM102),BM102,IF(ABS($H102-SUM($J102:BM102))>0,$H102-SUM($J102:BM102),0)) -> 0 | BP102: 0
C103: 2018 | D103: AER | E103: $ | F103: nominal | H103: 816700.1 | W103: 11667.14429 | X103: 23334.28857 | Y103: 23334.28857 | Z103: 11667.14429 | AA103: 23334.28857 | AB103: 23334.28857 | AC103: 23334.28857 | AD103: 23334.28857 | AE103: 23334.28857 | AF103: =IF(ABS($H103-SUM($J103:AE103))>=ABS(AE103),AE103,IF(ABS($H103-SUM($J103:AE103))>0,$H103-SUM($J103:AE103),0)) -> 23334.28857 | AG103: =IF(ABS($H103-SUM($J103:AF103))>=ABS(AF103),AF103,IF(ABS($H103-SUM($J103:AF103))>0,$H103-SUM($J103:AF103),0)) -> 23334.28857 | AH103: =IF(ABS($H103-SUM($J103:AG103))>=ABS(AG103),AG103,IF(ABS($H103-SUM($J103:AG103))>0,$H103-SUM($J103:AG103),0)) -> 23334.28857 | AI103: =IF(ABS($H103-SUM($J103:AH103))>=ABS(AH103),AH103,IF(ABS($H103-SUM($J103:AH103))>0,$H103-SUM($J103:AH103),0)) -> 23334.28857 | AJ103: =IF(ABS($H103-SUM($J103:AI103))>=ABS(AI103),AI103,IF(ABS($H103-SUM($J103:AI103))>0,$H103-SUM($J103:AI103),0)) -> 23334.28857 | AK103: =IF(ABS($H103-SUM($J103:AJ103))>=ABS(AJ103),AJ103,IF(ABS($H103-SUM($J103:AJ103))>0,$H103-SUM($J103:AJ103),0)) -> 23334.28857 | AL103: =IF(ABS($H103-SUM($J103:AK103))>=ABS(AK103),AK103,IF(ABS($H103-SUM($J103:AK103))>0,$H103-SUM($J103:AK103),0)) -> 23334.28857 | AM103: =IF(ABS($H103-SUM($J103:AL103))>=ABS(AL103),AL103,IF(ABS($H103-SUM($J103:AL103))>0,$H103-SUM($J103:AL103),0)) -> 23334.28857 | AN103: =IF(ABS($H103-SUM($J103:AM103))>=ABS(AM103),AM103,IF(ABS($H103-SUM($J103:AM103))>0,$H103-SUM($J103:AM103),0)) -> 23334.28857 | AO103: =IF(ABS($H103-SUM($J103:AN103))>=ABS(AN103),AN103,IF(ABS($H103-SUM($J103:AN103))>0,$H103-SUM($J103:AN103),0)) -> 23334.28857 | AP103: =IF(ABS($H103-SUM($J103:AO103))>=ABS(AO103),AO103,IF(ABS($H103-SUM($J103:AO103))>0,$H103-SUM($J103:AO103),0)) -> 23334.28857 | AQ103: =IF(ABS($H103-SUM($J103:AP103))>=ABS(AP103),AP103,IF(ABS($H103-SUM($J103:AP103))>0,$H103-SUM($J103:AP103),0)) -> 23334.28857 | AR103: =IF(ABS($H103-SUM($J103:AQ103))>=ABS(AQ103),AQ103,IF(ABS($H103-SUM($J103:AQ103))>0,$H103-SUM($J103:AQ103),0)) -> 23334.28857 | AS103: =IF(ABS($H103-SUM($J103:AR103))>=ABS(AR103),AR103,IF(ABS($H103-SUM($J103:AR103))>0,$H103-SUM($J103:AR103),0)) -> 23334.28857 | AT103: =IF(ABS($H103-SUM($J103:AS103))>=ABS(AS103),AS103,IF(ABS($H103-SUM($J103:AS103))>0,$H103-SUM($J103:AS103),0)) -> 23334.28857 | AU103: =IF(ABS($H103-SUM($J103:AT103))>=ABS(AT103),AT103,IF(ABS($H103-SUM($J103:AT103))>0,$H103-SUM($J103:AT103),0)) -> 23334.28857 | AV103: =IF(ABS($H103-SUM($J103:AU103))>=ABS(AU103),AU103,IF(ABS($H103-SUM($J103:AU103))>0,$H103-SUM($J103:AU103),0)) -> 23334.28857 | AW103: =IF(ABS($H103-SUM($J103:AV103))>=ABS(AV103),AV103,IF(ABS($H103-SUM($J103:AV103))>0,$H103-SUM($J103:AV103),0)) -> 23334.28857 | AX103: =IF(ABS($H103-SUM($J103:AW103))>=ABS(AW103),AW103,IF(ABS($H103-SUM($J103:AW103))>0,$H103-SUM($J103:AW103),0)) -> 23334.28857 | AY103: =IF(ABS($H103-SUM($J103:AX103))>=ABS(AX103),AX103,IF(ABS($H103-SUM($J103:AX103))>0,$H103-SUM($J103:AX103),0)) -> 23334.28857 | AZ103: =IF(ABS($H103-SUM($J103:AY103))>=ABS(AY103),AY103,IF(ABS($H103-SUM($J103:AY103))>0,$H103-SUM($J103:AY103),0)) -> 23334.28857 | BA103: =IF(ABS($H103-SUM($J103:AZ103))>=ABS(AZ103),AZ103,IF(ABS($H103-SUM($J103:AZ103))>0,$H103-SUM($J103:AZ103),0)) -> 23334.28857 | BB103: =IF(ABS($H103-SUM($J103:BA103))>=ABS(BA103),BA103,IF(ABS($H103-SUM($J103:BA103))>0,$H103-SUM($J103:BA103),0)) -> 23334.28857 | BC103: =IF(ABS($H103-SUM($J103:BB103))>=ABS(BB103),BB103,IF(ABS($H103-SUM($J103:BB103))>0,$H103-SUM($J103:BB103),0)) -> 23334.28857 | BD103: =IF(ABS($H103-SUM($J103:BC103))>=ABS(BC103),BC103,IF(ABS($H103-SUM($J103:BC103))>0,$H103-SUM($J103:BC103),0)) -> 23334.28857 | BE103: =IF(ABS($H103-SUM($J103:BD103))>=ABS(BD103),BD103,IF(ABS($H103-SUM($J103:BD103))>0,$H103-SUM($J103:BD103),0)) -> 23334.28857 | BF103: =IF(ABS($H103-SUM($J103:BE103))>=ABS(BE103),BE103,IF(ABS($H103-SUM($J103:BE103))>0,$H103-SUM($J103:BE103),0)) -> 23334.28857 | BG103: =IF(ABS($H103-SUM($J103:BF103))>=ABS(BF103),BF103,IF(ABS($H103-SUM($J103:BF103))>0,$H103-SUM($J103:BF103),0)) -> 6.98491931e-10 | BH103: =IF(ABS($H103-SUM($J103:BG103))>=ABS(BG103),BG103,IF(ABS($H103-SUM($J103:BG103))>0,$H103-SUM($J103:BG103),0)) -> 0 | BI103: =IF(ABS($H103-SUM($J103:BH103))>=ABS(BH103),BH103,IF(ABS($H103-SUM($J103:BH103))>0,$H103-SUM($J103:BH103),0)) -> 0 | BJ103: =IF(ABS($H103-SUM($J103:BI103))>=ABS(BI103),BI103,IF(ABS($H103-SUM($J103:BI103))>0,$H103-SUM($J103:BI103),0)) -> 0 | BK103: =IF(ABS($H103-SUM($J103:BJ103))>=ABS(BJ103),BJ103,IF(ABS($H103-SUM($J103:BJ103))>0,$H103-SUM($J103:BJ103),0)) -> 0 | BL103: =IF(ABS($H103-SUM($J103:BK103))>=ABS(BK103),BK103,IF(ABS($H103-SUM($J103:BK103))>0,$H103-SUM($J103:BK103),0)) -> 0 | BM103: =IF(ABS($H103-SUM($J103:BL103))>=ABS(BL103),BL103,IF(ABS($H103-SUM($J103:BL103))>0,$H103-SUM($J103:BL103),0)) -> 0 | BN103: =IF(ABS($H103-SUM($J103:BM103))>=ABS(BM103),BM103,IF(ABS($H103-SUM($J103:BM103))>0,$H103-SUM($J103:BM103),0)) -> 0 | BP103: 0
C104: 2019 | D104: AER | E104: $ | F104: nominal | H104: 401723.04 | X104: 5738.900571 | Y104: 11477.80114 | Z104: 5738.900571 | AA104: 11477.80114 | AB104: 11477.80114 | AC104: 11477.80114 | AD104: 11477.80114 | AE104: 11477.80114 | AF104: =IF(ABS($H104-SUM($J104:AE104))>=ABS(AE104),AE104,IF(ABS($H104-SUM($J104:AE104))>0,$H104-SUM($J104:AE104),0)) -> 11477.80114 | AG104: =IF(ABS($H104-SUM($J104:AF104))>=ABS(AF104),AF104,IF(ABS($H104-SUM($J104:AF104))>0,$H104-SUM($J104:AF104),0)) -> 11477.80114 | AH104: =IF(ABS($H104-SUM($J104:AG104))>=ABS(AG104),AG104,IF(ABS($H104-SUM($J104:AG104))>0,$H104-SUM($J104:AG104),0)) -> 11477.80114 | AI104: =IF(ABS($H104-SUM($J104:AH104))>=ABS(AH104),AH104,IF(ABS($H104-SUM($J104:AH104))>0,$H104-SUM($J104:AH104),0)) -> 11477.80114 | AJ104: =IF(ABS($H104-SUM($J104:AI104))>=ABS(AI104),AI104,IF(ABS($H104-SUM($J104:AI104))>0,$H104-SUM($J104:AI104),0)) -> 11477.80114 | AK104: =IF(ABS($H104-SUM($J104:AJ104))>=ABS(AJ104),AJ104,IF(ABS($H104-SUM($J104:AJ104))>0,$H104-SUM($J104:AJ104),0)) -> 11477.80114 | AL104: =IF(ABS($H104-SUM($J104:AK104))>=ABS(AK104),AK104,IF(ABS($H104-SUM($J104:AK104))>0,$H104-SUM($J104:AK104),0)) -> 11477.80114 | AM104: =IF(ABS($H104-SUM($J104:AL104))>=ABS(AL104),AL104,IF(ABS($H104-SUM($J104:AL104))>0,$H104-SUM($J104:AL104),0)) -> 11477.80114 | AN104: =IF(ABS($H104-SUM($J104:AM104))>=ABS(AM104),AM104,IF(ABS($H104-SUM($J104:AM104))>0,$H104-SUM($J104:AM104),0)) -> 11477.80114 | AO104: =IF(ABS($H104-SUM($J104:AN104))>=ABS(AN104),AN104,IF(ABS($H104-SUM($J104:AN104))>0,$H104-SUM($J104:AN104),0)) -> 11477.80114 | AP104: =IF(ABS($H104-SUM($J104:AO104))>=ABS(AO104),AO104,IF(ABS($H104-SUM($J104:AO104))>0,$H104-SUM($J104:AO104),0)) -> 11477.80114 | AQ104: =IF(ABS($H104-SUM($J104:AP104))>=ABS(AP104),AP104,IF(ABS($H104-SUM($J104:AP104))>0,$H104-SUM($J104:AP104),0)) -> 11477.80114 | AR104: =IF(ABS($H104-SUM($J104:AQ104))>=ABS(AQ104),AQ104,IF(ABS($H104-SUM($J104:AQ104))>0,$H104-SUM($J104:AQ104),0)) -> 11477.80114 | AS104: =IF(ABS($H104-SUM($J104:AR104))>=ABS(AR104),AR104,IF(ABS($H104-SUM($J104:AR104))>0,$H104-SUM($J104:AR104),0)) -> 11477.80114 | AT104: =IF(ABS($H104-SUM($J104:AS104))>=ABS(AS104),AS104,IF(ABS($H104-SUM($J104:AS104))>0,$H104-SUM($J104:AS104),0)) -> 11477.80114 | AU104: =IF(ABS($H104-SUM($J104:AT104))>=ABS(AT104),AT104,IF(ABS($H104-SUM($J104:AT104))>0,$H104-SUM($J104:AT104),0)) -> 11477.80114 | AV104: =IF(ABS($H104-SUM($J104:AU104))>=ABS(AU104),AU104,IF(ABS($H104-SUM($J104:AU104))>0,$H104-SUM($J104:AU104),0)) -> 11477.80114 | AW104: =IF(ABS($H104-SUM($J104:AV104))>=ABS(AV104),AV104,IF(ABS($H104-SUM($J104:AV104))>0,$H104-SUM($J104:AV104),0)) -> 11477.80114 | AX104: =IF(ABS($H104-SUM($J104:AW104))>=ABS(AW104),AW104,IF(ABS($H104-SUM($J104:AW104))>0,$H104-SUM($J104:AW104),0)) -> 11477.80114 | AY104: =IF(ABS($H104-SUM($J104:AX104))>=ABS(AX104),AX104,IF(ABS($H104-SUM($J104:AX104))>0,$H104-SUM($J104:AX104),0)) -> 11477.80114 | AZ104: =IF(ABS($H104-SUM($J104:AY104))>=ABS(AY104),AY104,IF(ABS($H104-SUM($J104:AY104))>0,$H104-SUM($J104:AY104),0)) -> 11477.80114 | BA104: =IF(ABS($H104-SUM($J104:AZ104))>=ABS(AZ104),AZ104,IF(ABS($H104-SUM($J104:AZ104))>0,$H104-SUM($J104:AZ104),0)) -> 11477.80114 | BB104: =IF(ABS($H104-SUM($J104:BA104))>=ABS(BA104),BA104,IF(ABS($H104-SUM($J104:BA104))>0,$H104-SUM($J104:BA104),0)) -> 11477.80114 | BC104: =IF(ABS($H104-SUM($J104:BB104))>=ABS(BB104),BB104,IF(ABS($H104-SUM($J104:BB104))>0,$H104-SUM($J104:BB104),0)) -> 11477.80114 | BD104: =IF(ABS($H104-SUM($J104:BC104))>=ABS(BC104),BC104,IF(ABS($H104-SUM($J104:BC104))>0,$H104-SUM($J104:BC104),0)) -> 11477.80114 | BE104: =IF(ABS($H104-SUM($J104:BD104))>=ABS(BD104),BD104,IF(ABS($H104-SUM($J104:BD104))>0,$H104-SUM($J104:BD104),0)) -> 11477.80114 | BF104: =IF(ABS($H104-SUM($J104:BE104))>=ABS(BE104),BE104,IF(ABS($H104-SUM($J104:BE104))>0,$H104-SUM($J104:BE104),0)) -> 11477.80114 | BG104: =IF(ABS($H104-SUM($J104:BF104))>=ABS(BF104),BF104,IF(ABS($H104-SUM($J104:BF104))>0,$H104-SUM($J104:BF104),0)) -> 11477.80114 | BH104: =IF(ABS($H104-SUM($J104:BG104))>=ABS(BG104),BG104,IF(ABS($H104-SUM($J104:BG104))>0,$H104-SUM($J104:BG104),0)) -> 1.746229827e-10 | BI104: =IF(ABS($H104-SUM($J104:BH104))>=ABS(BH104),BH104,IF(ABS($H104-SUM($J104:BH104))>0,$H104-SUM($J104:BH104),0)) -> 0 | BJ104: =IF(ABS($H104-SUM($J104:BI104))>=ABS(BI104),BI104,IF(ABS($H104-SUM($J104:BI104))>0,$H104-SUM($J104:BI104),0)) -> 0 | BK104: =IF(ABS($H104-SUM($J104:BJ104))>=ABS(BJ104),BJ104,IF(ABS($H104-SUM($J104:BJ104))>0,$H104-SUM($J104:BJ104),0)) -> 0 | BL104: =IF(ABS($H104-SUM($J104:BK104))>=ABS(BK104),BK104,IF(ABS($H104-SUM($J104:BK104))>0,$H104-SUM($J104:BK104),0)) -> 0 | BM104: =IF(ABS($H104-SUM($J104:BL104))>=ABS(BL104),BL104,IF(ABS($H104-SUM($J104:BL104))>0,$H104-SUM($J104:BL104),0)) -> 0 | BN104: =IF(ABS($H104-SUM($J104:BM104))>=ABS(BM104),BM104,IF(ABS($H104-SUM($J104:BM104))>0,$H104-SUM($J104:BM104),0)) -> 0 | BP104: 0
C105: 2020 | D105: JEN | E105: $ | F105: nominal | H105: 393297.69 | Y105: =$H105/$H$8/2 -> 5618.538429 | Z105: =Y105 -> 5618.538429 | AA105: =$H105/$H$8 -> 11237.07686 | AB105: =IF(ABS($H105-SUM($J105:AA105))>=ABS(AA105),AA105,IF(ABS($H105-SUM($J105:AA105))>0,$H105-SUM($J105:AA105),0)) -> 11237.07686 | AC105: =IF(ABS($H105-SUM($J105:AB105))>=ABS(AB105),AB105,IF(ABS($H105-SUM($J105:AB105))>0,$H105-SUM($J105:AB105),0)) -> 11237.07686 | AD105: =IF(ABS($H105-SUM($J105:AC105))>=ABS(AC105),AC105,IF(ABS($H105-SUM($J105:AC105))>0,$H105-SUM($J105:AC105),0)) -> 11237.07686 | AE105: =IF(ABS($H105-SUM($J105:AD105))>=ABS(AD105),AD105,IF(ABS($H105-SUM($J105:AD105))>0,$H105-SUM($J105:AD105),0)) -> 11237.07686 | AF105: =IF(ABS($H105-SUM($J105:AE105))>=ABS(AE105),AE105,IF(ABS($H105-SUM($J105:AE105))>0,$H105-SUM($J105:AE105),0)) -> 11237.07686 | AG105: =IF(ABS($H105-SUM($J105:AF105))>=ABS(AF105),AF105,IF(ABS($H105-SUM($J105:AF105))>0,$H105-SUM($J105:AF105),0)) -> 11237.07686 | AH105: =IF(ABS($H105-SUM($J105:AG105))>=ABS(AG105),AG105,IF(ABS($H105-SUM($J105:AG105))>0,$H105-SUM($J105:AG105),0)) -> 11237.07686 | AI105: =IF(ABS($H105-SUM($J105:AH105))>=ABS(AH105),AH105,IF(ABS($H105-SUM($J105:AH105))>0,$H105-SUM($J105:AH105),0)) -> 11237.07686 | AJ105: =IF(ABS($H105-SUM($J105:AI105))>=ABS(AI105),AI105,IF(ABS($H105-SUM($J105:AI105))>0,$H105-SUM($J105:AI105),0)) -> 11237.07686 | AK105: =IF(ABS($H105-SUM($J105:AJ105))>=ABS(AJ105),AJ105,IF(ABS($H105-SUM($J105:AJ105))>0,$H105-SUM($J105:AJ105),0)) -> 11237.07686 | AL105: =IF(ABS($H105-SUM($J105:AK105))>=ABS(AK105),AK105,IF(ABS($H105-SUM($J105:AK105))>0,$H105-SUM($J105:AK105),0)) -> 11237.07686 | AM105: =IF(ABS($H105-SUM($J105:AL105))>=ABS(AL105),AL105,IF(ABS($H105-SUM($J105:AL105))>0,$H105-SUM($J105:AL105),0)) -> 11237.07686 | AN105: =IF(ABS($H105-SUM($J105:AM105))>=ABS(AM105),AM105,IF(ABS($H105-SUM($J105:AM105))>0,$H105-SUM($J105:AM105),0)) -> 11237.07686 | AO105: =IF(ABS($H105-SUM($J105:AN105))>=ABS(AN105),AN105,IF(ABS($H105-SUM($J105:AN105))>0,$H105-SUM($J105:AN105),0)) -> 11237.07686 | AP105: =IF(ABS($H105-SUM($J105:AO105))>=ABS(AO105),AO105,IF(ABS($H105-SUM($J105:AO105))>0,$H105-SUM($J105:AO105),0)) -> 11237.07686 | AQ105: =IF(ABS($H105-SUM($J105:AP105))>=ABS(AP105),AP105,IF(ABS($H105-SUM($J105:AP105))>0,$H105-SUM($J105:AP105),0)) -> 11237.07686 | AR105: =IF(ABS($H105-SUM($J105:AQ105))>=ABS(AQ105),AQ105,IF(ABS($H105-SUM($J105:AQ105))>0,$H105-SUM($J105:AQ105),0)) -> 11237.07686 | AS105: =IF(ABS($H105-SUM($J105:AR105))>=ABS(AR105),AR105,IF(ABS($H105-SUM($J105:AR105))>0,$H105-SUM($J105:AR105),0)) -> 11237.07686 | AT105: =IF(ABS($H105-SUM($J105:AS105))>=ABS(AS105),AS105,IF(ABS($H105-SUM($J105:AS105))>0,$H105-SUM($J105:AS105),0)) -> 11237.07686 | AU105: =IF(ABS($H105-SUM($J105:AT105))>=ABS(AT105),AT105,IF(ABS($H105-SUM($J105:AT105))>0,$H105-SUM($J105:AT105),0)) -> 11237.07686 | AV105: =IF(ABS($H105-SUM($J105:AU105))>=ABS(AU105),AU105,IF(ABS($H105-SUM($J105:AU105))>0,$H105-SUM($J105:AU105),0)) -> 11237.07686 | AW105: =IF(ABS($H105-SUM($J105:AV105))>=ABS(AV105),AV105,IF(ABS($H105-SUM($J105:AV105))>0,$H105-SUM($J105:AV105),0)) -> 11237.07686 | AX105: =IF(ABS($H105-SUM($J105:AW105))>=ABS(AW105),AW105,IF(ABS($H105-SUM($J105:AW105))>0,$H105-SUM($J105:AW105),0)) -> 11237.07686 | AY105: =IF(ABS($H105-SUM($J105:AX105))>=ABS(AX105),AX105,IF(ABS($H105-SUM($J105:AX105))>0,$H105-SUM($J105:AX105),0)) -> 11237.07686 | AZ105: =IF(ABS($H105-SUM($J105:AY105))>=ABS(AY105),AY105,IF(ABS($H105-SUM($J105:AY105))>0,$H105-SUM($J105:AY105),0)) -> 11237.07686 | BA105: =IF(ABS($H105-SUM($J105:AZ105))>=ABS(AZ105),AZ105,IF(ABS($H105-SUM($J105:AZ105))>0,$H105-SUM($J105:AZ105),0)) -> 11237.07686 | BB105: =IF(ABS($H105-SUM($J105:BA105))>=ABS(BA105),BA105,IF(ABS($H105-SUM($J105:BA105))>0,$H105-SUM($J105:BA105),0)) -> 11237.07686 | BC105: =IF(ABS($H105-SUM($J105:BB105))>=ABS(BB105),BB105,IF(ABS($H105-SUM($J105:BB105))>0,$H105-SUM($J105:BB105),0)) -> 11237.07686 | BD105: =IF(ABS($H105-SUM($J105:BC105))>=ABS(BC105),BC105,IF(ABS($H105-SUM($J105:BC105))>0,$H105-SUM($J105:BC105),0)) -> 11237.07686 | BE105: =IF(ABS($H105-SUM($J105:BD105))>=ABS(BD105),BD105,IF(ABS($H105-SUM($J105:BD105))>0,$H105-SUM($J105:BD105),0)) -> 11237.07686 | BF105: =IF(ABS($H105-SUM($J105:BE105))>=ABS(BE105),BE105,IF(ABS($H105-SUM($J105:BE105))>0,$H105-SUM($J105:BE105),0)) -> 11237.07686 | BG105: =IF(ABS($H105-SUM($J105:BF105))>=ABS(BF105),BF105,IF(ABS($H105-SUM($J105:BF105))>0,$H105-SUM($J105:BF105),0)) -> 11237.07686 | BH105: =IF(ABS($H105-SUM($J105:BG105))>=ABS(BG105),BG105,IF(ABS($H105-SUM($J105:BG105))>0,$H105-SUM($J105:BG105),0)) -> 11237.07686 | BI105: =IF(ABS($H105-SUM($J105:BH105))>=ABS(BH105),BH105,IF(ABS($H105-SUM($J105:BH105))>0,$H105-SUM($J105:BH105),0)) -> 1.164153218e-10 | BJ105: =IF(ABS($H105-SUM($J105:BI105))>=ABS(BI105),BI105,IF(ABS($H105-SUM($J105:BI105))>0,$H105-SUM($J105:BI105),0)) -> 0 | BK105: =IF(ABS($H105-SUM($J105:BJ105))>=ABS(BJ105),BJ105,IF(ABS($H105-SUM($J105:BJ105))>0,$H105-SUM($J105:BJ105),0)) -> 0 | BL105: =IF(ABS($H105-SUM($J105:BK105))>=ABS(BK105),BK105,IF(ABS($H105-SUM($J105:BK105))>0,$H105-SUM($J105:BK105),0)) -> 0 | BM105: =IF(ABS($H105-SUM($J105:BL105))>=ABS(BL105),BL105,IF(ABS($H105-SUM($J105:BL105))>0,$H105-SUM($J105:BL105),0)) -> 0 | BN105: =IF(ABS($H105-SUM($J105:BM105))>=ABS(BM105),BM105,IF(ABS($H105-SUM($J105:BM105))>0,$H105-SUM($J105:BM105),0)) -> 0 | BP105: 0
C106: HY2021 | D106: JEN | E106: $ | F106: nominal | H106: 224742.55 | Z106: =$H106/$H$8/2 -> 3210.607857 | AA106: =$H106/$H$8*2 -> 12842.43143 | AB106: =IF(ABS($H106-SUM($J106:AA106))>=ABS(AA106),AA106,IF(ABS($H106-SUM($J106:AA106))>0,$H106-SUM($J106:AA106),0)) -> 12842.43143 | AC106: =IF(ABS($H106-SUM($J106:AB106))>=ABS(AB106),AB106,IF(ABS($H106-SUM($J106:AB106))>0,$H106-SUM($J106:AB106),0)) -> 12842.43143 | AD106: =IF(ABS($H106-SUM($J106:AC106))>=ABS(AC106),AC106,IF(ABS($H106-SUM($J106:AC106))>0,$H106-SUM($J106:AC106),0)) -> 12842.43143 | AE106: =IF(ABS($H106-SUM($J106:AD106))>=ABS(AD106),AD106,IF(ABS($H106-SUM($J106:AD106))>0,$H106-SUM($J106:AD106),0)) -> 12842.43143 | AF106: =IF(ABS($H106-SUM($J106:AE106))>=ABS(AE106),AE106,IF(ABS($H106-SUM($J106:AE106))>0,$H106-SUM($J106:AE106),0)) -> 12842.43143 | AG106: =IF(ABS($H106-SUM($J106:AF106))>=ABS(AF106),AF106,IF(ABS($H106-SUM($J106:AF106))>0,$H106-SUM($J106:AF106),0)) -> 12842.43143 | AH106: =IF(ABS($H106-SUM($J106:AG106))>=ABS(AG106),AG106,IF(ABS($H106-SUM($J106:AG106))>0,$H106-SUM($J106:AG106),0)) -> 12842.43143 | AI106: =IF(ABS($H106-SUM($J106:AH106))>=ABS(AH106),AH106,IF(ABS($H106-SUM($J106:AH106))>0,$H106-SUM($J106:AH106),0)) -> 12842.43143 | AJ106: =IF(ABS($H106-SUM($J106:AI106))>=ABS(AI106),AI106,IF(ABS($H106-SUM($J106:AI106))>0,$H106-SUM($J106:AI106),0)) -> 12842.43143 | AK106: =IF(ABS($H106-SUM($J106:AJ106))>=ABS(AJ106),AJ106,IF(ABS($H106-SUM($J106:AJ106))>0,$H106-SUM($J106:AJ106),0)) -> 12842.43143 | AL106: =IF(ABS($H106-SUM($J106:AK106))>=ABS(AK106),AK106,IF(ABS($H106-SUM($J106:AK106))>0,$H106-SUM($J106:AK106),0)) -> 12842.43143 | AM106: =IF(ABS($H106-SUM($J106:AL106))>=ABS(AL106),AL106,IF(ABS($H106-SUM($J106:AL106))>0,$H106-SUM($J106:AL106),0)) -> 12842.43143 | AN106: =IF(ABS($H106-SUM($J106:AM106))>=ABS(AM106),AM106,IF(ABS($H106-SUM($J106:AM106))>0,$H106-SUM($J106:AM106),0)) -> 12842.43143 | AO106: =IF(ABS($H106-SUM($J106:AN106))>=ABS(AN106),AN106,IF(ABS($H106-SUM($J106:AN106))>0,$H106-SUM($J106:AN106),0)) -> 12842.43143 | AP106: =IF(ABS($H106-SUM($J106:AO106))>=ABS(AO106),AO106,IF(ABS($H106-SUM($J106:AO106))>0,$H106-SUM($J106:AO106),0)) -> 12842.43143 | AQ106: =IF(ABS($H106-SUM($J106:AP106))>=ABS(AP106),AP106,IF(ABS($H106-SUM($J106:AP106))>0,$H106-SUM($J106:AP106),0)) -> 12842.43143 | AR106: =IF(ABS($H106-SUM($J106:AQ106))>=ABS(AQ106),AQ106,IF(ABS($H106-SUM($J106:AQ106))>0,$H106-SUM($J106:AQ106),0)) -> 3210.607857 | AS106: =IF(ABS($H106-SUM($J106:AR106))>=ABS(AR106),AR106,IF(ABS($H106-SUM($J106:AR106))>0,$H106-SUM($J106:AR106),0)) -> 0 | AT106: =IF(ABS($H106-SUM($J106:AS106))>=ABS(AS106),AS106,IF(ABS($H106-SUM($J106:AS106))>0,$H106-SUM($J106:AS106),0)) -> 0 | AU106: =IF(ABS($H106-SUM($J106:AT106))>=ABS(AT106),AT106,IF(ABS($H106-SUM($J106:AT106))>0,$H106-SUM($J106:AT106),0)) -> 0 | AV106: =IF(ABS($H106-SUM($J106:AU106))>=ABS(AU106),AU106,IF(ABS($H106-SUM($J106:AU106))>0,$H106-SUM($J106:AU106),0)) -> 0 | AW106: =IF(ABS($H106-SUM($J106:AV106))>=ABS(AV106),AV106,IF(ABS($H106-SUM($J106:AV106))>0,$H106-SUM($J106:AV106),0)) -> 0 | AX106: =IF(ABS($H106-SUM($J106:AW106))>=ABS(AW106),AW106,IF(ABS($H106-SUM($J106:AW106))>0,$H106-SUM($J106:AW106),0)) -> 0 | AY106: =IF(ABS($H106-SUM($J106:AX106))>=ABS(AX106),AX106,IF(ABS($H106-SUM($J106:AX106))>0,$H106-SUM($J106:AX106),0)) -> 0 | AZ106: =IF(ABS($H106-SUM($J106:AY106))>=ABS(AY106),AY106,IF(ABS($H106-SUM($J106:AY106))>0,$H106-SUM($J106:AY106),0)) -> 0 | BA106: =IF(ABS($H106-SUM($J106:AZ106))>=ABS(AZ106),AZ106,IF(ABS($H106-SUM($J106:AZ106))>0,$H106-SUM($J106:AZ106),0)) -> 0 | BB106: =IF(ABS($H106-SUM($J106:BA106))>=ABS(BA106),BA106,IF(ABS($H106-SUM($J106:BA106))>0,$H106-SUM($J106:BA106),0)) -> 0 | BC106: =IF(ABS($H106-SUM($J106:BB106))>=ABS(BB106),BB106,IF(ABS($H106-SUM($J106:BB106))>0,$H106-SUM($J106:BB106),0)) -> 0 | BD106: =IF(ABS($H106-SUM($J106:BC106))>=ABS(BC106),BC106,IF(ABS($H106-SUM($J106:BC106))>0,$H106-SUM($J106:BC106),0)) -> 0 | BE106: =IF(ABS($H106-SUM($J106:BD106))>=ABS(BD106),BD106,IF(ABS($H106-SUM($J106:BD106))>0,$H106-SUM($J106:BD106),0)) -> 0 | BF106: =IF(ABS($H106-SUM($J106:BE106))>=ABS(BE106),BE106,IF(ABS($H106-SUM($J106:BE106))>0,$H106-SUM($J106:BE106),0)) -> 0 | BG106: =IF(ABS($H106-SUM($J106:BF106))>=ABS(BF106),BF106,IF(ABS($H106-SUM($J106:BF106))>0,$H106-SUM($J106:BF106),0)) -> 0 | BH106: =IF(ABS($H106-SUM($J106:BG106))>=ABS(BG106),BG106,IF(ABS($H106-SUM($J106:BG106))>0,$H106-SUM($J106:BG106),0)) -> 0 | BI106: =IF(ABS($H106-SUM($J106:BH106))>=ABS(BH106),BH106,IF(ABS($H106-SUM($J106:BH106))>0,$H106-SUM($J106:BH106),0)) -> 0 | BJ106: =IF(ABS($H106-SUM($J106:BI106))>=ABS(BI106),BI106,IF(ABS($H106-SUM($J106:BI106))>0,$H106-SUM($J106:BI106),0)) -> 0 | BK106: =IF(ABS($H106-SUM($J106:BJ106))>=ABS(BJ106),BJ106,IF(ABS($H106-SUM($J106:BJ106))>0,$H106-SUM($J106:BJ106),0)) -> 0 | BL106: =IF(ABS($H106-SUM($J106:BK106))>=ABS(BK106),BK106,IF(ABS($H106-SUM($J106:BK106))>0,$H106-SUM($J106:BK106),0)) -> 0 | BM106: =IF(ABS($H106-SUM($J106:BL106))>=ABS(BL106),BL106,IF(ABS($H106-SUM($J106:BL106))>0,$H106-SUM($J106:BL106),0)) -> 0 | BN106: =IF(ABS($H106-SUM($J106:BM106))>=ABS(BM106),BM106,IF(ABS($H106-SUM($J106:BM106))>0,$H106-SUM($J106:BM106),0)) -> 0 | BP106: 0
C107: 2021/22 | D107: JEN | E107: $ | F107: nominal | H107: 1266895.21 | AA107: =$H107/$H$8/2 -> 18098.503 | AB107: =$H107/$H$8 -> 36197.006 | AC107: =IF(ABS($H107-SUM($J107:AB107))>=ABS(AB107),AB107,IF(ABS($H107-SUM($J107:AB107))>0,$H107-SUM($J107:AB107),0)) -> 36197.006 | AD107: =IF(ABS($H107-SUM($J107:AC107))>=ABS(AC107),AC107,IF(ABS($H107-SUM($J107:AC107))>0,$H107-SUM($J107:AC107),0)) -> 36197.006 | AE107: =IF(ABS($H107-SUM($J107:AD107))>=ABS(AD107),AD107,IF(ABS($H107-SUM($J107:AD107))>0,$H107-SUM($J107:AD107),0)) -> 36197.006 | AF107: =IF(ABS($H107-SUM($J107:AE107))>=ABS(AE107),AE107,IF(ABS($H107-SUM($J107:AE107))>0,$H107-SUM($J107:AE107),0)) -> 36197.006 | AG107: =IF(ABS($H107-SUM($J107:AF107))>=ABS(AF107),AF107,IF(ABS($H107-SUM($J107:AF107))>0,$H107-SUM($J107:AF107),0)) -> 36197.006 | AH107: =IF(ABS($H107-SUM($J107:AG107))>=ABS(AG107),AG107,IF(ABS($H107-SUM($J107:AG107))>0,$H107-SUM($J107:AG107),0)) -> 36197.006 | AI107: =IF(ABS($H107-SUM($J107:AH107))>=ABS(AH107),AH107,IF(ABS($H107-SUM($J107:AH107))>0,$H107-SUM($J107:AH107),0)) -> 36197.006 | AJ107: =IF(ABS($H107-SUM($J107:AI107))>=ABS(AI107),AI107,IF(ABS($H107-SUM($J107:AI107))>0,$H107-SUM($J107:AI107),0)) -> 36197.006 | AK107: =IF(ABS($H107-SUM($J107:AJ107))>=ABS(AJ107),AJ107,IF(ABS($H107-SUM($J107:AJ107))>0,$H107-SUM($J107:AJ107),0)) -> 36197.006 | AL107: =IF(ABS($H107-SUM($J107:AK107))>=ABS(AK107),AK107,IF(ABS($H107-SUM($J107:AK107))>0,$H107-SUM($J107:AK107),0)) -> 36197.006 | AM107: =IF(ABS($H107-SUM($J107:AL107))>=ABS(AL107),AL107,IF(ABS($H107-SUM($J107:AL107))>0,$H107-SUM($J107:AL107),0)) -> 36197.006 | AN107: =IF(ABS($H107-SUM($J107:AM107))>=ABS(AM107),AM107,IF(ABS($H107-SUM($J107:AM107))>0,$H107-SUM($J107:AM107),0)) -> 36197.006 | AO107: =IF(ABS($H107-SUM($J107:AN107))>=ABS(AN107),AN107,IF(ABS($H107-SUM($J107:AN107))>0,$H107-SUM($J107:AN107),0)) -> 36197.006 | AP107: =IF(ABS($H107-SUM($J107:AO107))>=ABS(AO107),AO107,IF(ABS($H107-SUM($J107:AO107))>0,$H107-SUM($J107:AO107),0)) -> 36197.006 | AQ107: =IF(ABS($H107-SUM($J107:AP107))>=ABS(AP107),AP107,IF(ABS($H107-SUM($J107:AP107))>0,$H107-SUM($J107:AP107),0)) -> 36197.006 | AR107: =IF(ABS($H107-SUM($J107:AQ107))>=ABS(AQ107),AQ107,IF(ABS($H107-SUM($J107:AQ107))>0,$H107-SUM($J107:AQ107),0)) -> 36197.006 | AS107: =IF(ABS($H107-SUM($J107:AR107))>=ABS(AR107),AR107,IF(ABS($H107-SUM($J107:AR107))>0,$H107-SUM($J107:AR107),0)) -> 36197.006 | AT107: =IF(ABS($H107-SUM($J107:AS107))>=ABS(AS107),AS107,IF(ABS($H107-SUM($J107:AS107))>0,$H107-SUM($J107:AS107),0)) -> 36197.006 | AU107: =IF(ABS($H107-SUM($J107:AT107))>=ABS(AT107),AT107,IF(ABS($H107-SUM($J107:AT107))>0,$H107-SUM($J107:AT107),0)) -> 36197.006 | AV107: =IF(ABS($H107-SUM($J107:AU107))>=ABS(AU107),AU107,IF(ABS($H107-SUM($J107:AU107))>0,$H107-SUM($J107:AU107),0)) -> 36197.006 | AW107: =IF(ABS($H107-SUM($J107:AV107))>=ABS(AV107),AV107,IF(ABS($H107-SUM($J107:AV107))>0,$H107-SUM($J107:AV107),0)) -> 36197.006 | AX107: =IF(ABS($H107-SUM($J107:AW107))>=ABS(AW107),AW107,IF(ABS($H107-SUM($J107:AW107))>0,$H107-SUM($J107:AW107),0)) -> 36197.006 | AY107: =IF(ABS($H107-SUM($J107:AX107))>=ABS(AX107),AX107,IF(ABS($H107-SUM($J107:AX107))>0,$H107-SUM($J107:AX107),0)) -> 36197.006 | AZ107: =IF(ABS($H107-SUM($J107:AY107))>=ABS(AY107),AY107,IF(ABS($H107-SUM($J107:AY107))>0,$H107-SUM($J107:AY107),0)) -> 36197.006 | BA107: =IF(ABS($H107-SUM($J107:AZ107))>=ABS(AZ107),AZ107,IF(ABS($H107-SUM($J107:AZ107))>0,$H107-SUM($J107:AZ107),0)) -> 36197.006 | BB107: =IF(ABS($H107-SUM($J107:BA107))>=ABS(BA107),BA107,IF(ABS($H107-SUM($J107:BA107))>0,$H107-SUM($J107:BA107),0)) -> 36197.006 | BC107: =IF(ABS($H107-SUM($J107:BB107))>=ABS(BB107),BB107,IF(ABS($H107-SUM($J107:BB107))>0,$H107-SUM($J107:BB107),0)) -> 36197.006 | BD107: =IF(ABS($H107-SUM($J107:BC107))>=ABS(BC107),BC107,IF(ABS($H107-SUM($J107:BC107))>0,$H107-SUM($J107:BC107),0)) -> 36197.006 | BE107: =IF(ABS($H107-SUM($J107:BD107))>=ABS(BD107),BD107,IF(ABS($H107-SUM($J107:BD107))>0,$H107-SUM($J107:BD107),0)) -> 36197.006 | BF107: =IF(ABS($H107-SUM($J107:BE107))>=ABS(BE107),BE107,IF(ABS($H107-SUM($J107:BE107))>0,$H107-SUM($J107:BE107),0)) -> 36197.006 | BG107: =IF(ABS($H107-SUM($J107:BF107))>=ABS(BF107),BF107,IF(ABS($H107-SUM($J107:BF107))>0,$H107-SUM($J107:BF107),0)) -> 36197.006 | BH107: =IF(ABS($H107-SUM($J107:BG107))>=ABS(BG107),BG107,IF(ABS($H107-SUM($J107:BG107))>0,$H107-SUM($J107:BG107),0)) -> 36197.006 | BI107: =IF(ABS($H107-SUM($J107:BH107))>=ABS(BH107),BH107,IF(ABS($H107-SUM($J107:BH107))>0,$H107-SUM($J107:BH107),0)) -> 36197.006 | BJ107: =IF(ABS($H107-SUM($J107:BI107))>=ABS(BI107),BI107,IF(ABS($H107-SUM($J107:BI107))>0,$H107-SUM($J107:BI107),0)) -> 18098.503 | BK107: =IF(ABS($H107-SUM($J107:BJ107))>=ABS(BJ107),BJ107,IF(ABS($H107-SUM($J107:BJ107))>0,$H107-SUM($J107:BJ107),0)) -> 0 | BL107: =IF(ABS($H107-SUM($J107:BK107))>=ABS(BK107),BK107,IF(ABS($H107-SUM($J107:BK107))>0,$H107-SUM($J107:BK107),0)) -> 0 | BM107: =IF(ABS($H107-SUM($J107:BL107))>=ABS(BL107),BL107,IF(ABS($H107-SUM($J107:BL107))>0,$H107-SUM($J107:BL107),0)) -> 0 | BN107: =IF(ABS($H107-SUM($J107:BM107))>=ABS(BM107),BM107,IF(ABS($H107-SUM($J107:BM107))>0,$H107-SUM($J107:BM107),0)) -> 0 | BP107: 0
C108: 2022/23 | D108: JEN | E108: $ | F108: nominal | H108: 1441702.6 | AB108: =$H108/$H$8/2 -> 20595.75143 | AC108: =$H108/$H$8 -> 41191.50286 | AD108: =IF(ABS($H108-SUM($J108:AC108))>=ABS(AC108),AC108,IF(ABS($H108-SUM($J108:AC108))>0,$H108-SUM($J108:AC108),0)) -> 41191.50286 | AE108: =IF(ABS($H108-SUM($J108:AD108))>=ABS(AD108),AD108,IF(ABS($H108-SUM($J108:AD108))>0,$H108-SUM($J108:AD108),0)) -> 41191.50286 | AF108: =IF(ABS($H108-SUM($J108:AE108))>=ABS(AE108),AE108,IF(ABS($H108-SUM($J108:AE108))>0,$H108-SUM($J108:AE108),0)) -> 41191.50286 | AG108: =IF(ABS($H108-SUM($J108:AF108))>=ABS(AF108),AF108,IF(ABS($H108-SUM($J108:AF108))>0,$H108-SUM($J108:AF108),0)) -> 41191.50286 | AH108: =IF(ABS($H108-SUM($J108:AG108))>=ABS(AG108),AG108,IF(ABS($H108-SUM($J108:AG108))>0,$H108-SUM($J108:AG108),0)) -> 41191.50286 | AI108: =IF(ABS($H108-SUM($J108:AH108))>=ABS(AH108),AH108,IF(ABS($H108-SUM($J108:AH108))>0,$H108-SUM($J108:AH108),0)) -> 41191.50286 | AJ108: =IF(ABS($H108-SUM($J108:AI108))>=ABS(AI108),AI108,IF(ABS($H108-SUM($J108:AI108))>0,$H108-SUM($J108:AI108),0)) -> 41191.50286 | AK108: =IF(ABS($H108-SUM($J108:AJ108))>=ABS(AJ108),AJ108,IF(ABS($H108-SUM($J108:AJ108))>0,$H108-SUM($J108:AJ108),0)) -> 41191.50286 | AL108: =IF(ABS($H108-SUM($J108:AK108))>=ABS(AK108),AK108,IF(ABS($H108-SUM($J108:AK108))>0,$H108-SUM($J108:AK108),0)) -> 41191.50286 | AM108: =IF(ABS($H108-SUM($J108:AL108))>=ABS(AL108),AL108,IF(ABS($H108-SUM($J108:AL108))>0,$H108-SUM($J108:AL108),0)) -> 41191.50286 | AN108: =IF(ABS($H108-SUM($J108:AM108))>=ABS(AM108),AM108,IF(ABS($H108-SUM($J108:AM108))>0,$H108-SUM($J108:AM108),0)) -> 41191.50286 | AO108: =IF(ABS($H108-SUM($J108:AN108))>=ABS(AN108),AN108,IF(ABS($H108-SUM($J108:AN108))>0,$H108-SUM($J108:AN108),0)) -> 41191.50286 | AP108: =IF(ABS($H108-SUM($J108:AO108))>=ABS(AO108),AO108,IF(ABS($H108-SUM($J108:AO108))>0,$H108-SUM($J108:AO108),0)) -> 41191.50286 | AQ108: =IF(ABS($H108-SUM($J108:AP108))>=ABS(AP108),AP108,IF(ABS($H108-SUM($J108:AP108))>0,$H108-SUM($J108:AP108),0)) -> 41191.50286 | AR108: =IF(ABS($H108-SUM($J108:AQ108))>=ABS(AQ108),AQ108,IF(ABS($H108-SUM($J108:AQ108))>0,$H108-SUM($J108:AQ108),0)) -> 41191.50286 | AS108: =IF(ABS($H108-SUM($J108:AR108))>=ABS(AR108),AR108,IF(ABS($H108-SUM($J108:AR108))>0,$H108-SUM($J108:AR108),0)) -> 41191.50286 | AT108: =IF(ABS($H108-SUM($J108:AS108))>=ABS(AS108),AS108,IF(ABS($H108-SUM($J108:AS108))>0,$H108-SUM($J108:AS108),0)) -> 41191.50286 | AU108: =IF(ABS($H108-SUM($J108:AT108))>=ABS(AT108),AT108,IF(ABS($H108-SUM($J108:AT108))>0,$H108-SUM($J108:AT108),0)) -> 41191.50286 | AV108: =IF(ABS($H108-SUM($J108:AU108))>=ABS(AU108),AU108,IF(ABS($H108-SUM($J108:AU108))>0,$H108-SUM($J108:AU108),0)) -> 41191.50286 | AW108: =IF(ABS($H108-SUM($J108:AV108))>=ABS(AV108),AV108,IF(ABS($H108-SUM($J108:AV108))>0,$H108-SUM($J108:AV108),0)) -> 41191.50286 | AX108: =IF(ABS($H108-SUM($J108:AW108))>=ABS(AW108),AW108,IF(ABS($H108-SUM($J108:AW108))>0,$H108-SUM($J108:AW108),0)) -> 41191.50286 | AY108: =IF(ABS($H108-SUM($J108:AX108))>=ABS(AX108),AX108,IF(ABS($H108-SUM($J108:AX108))>0,$H108-SUM($J108:AX108),0)) -> 41191.50286 | AZ108: =IF(ABS($H108-SUM($J108:AY108))>=ABS(AY108),AY108,IF(ABS($H108-SUM($J108:AY108))>0,$H108-SUM($J108:AY108),0)) -> 41191.50286 | BA108: =IF(ABS($H108-SUM($J108:AZ108))>=ABS(AZ108),AZ108,IF(ABS($H108-SUM($J108:AZ108))>0,$H108-SUM($J108:AZ108),0)) -> 41191.50286 | BB108: =IF(ABS($H108-SUM($J108:BA108))>=ABS(BA108),BA108,IF(ABS($H108-SUM($J108:BA108))>0,$H108-SUM($J108:BA108),0)) -> 41191.50286 | BC108: =IF(ABS($H108-SUM($J108:BB108))>=ABS(BB108),BB108,IF(ABS($H108-SUM($J108:BB108))>0,$H108-SUM($J108:BB108),0)) -> 41191.50286 | BD108: =IF(ABS($H108-SUM($J108:BC108))>=ABS(BC108),BC108,IF(ABS($H108-SUM($J108:BC108))>0,$H108-SUM($J108:BC108),0)) -> 41191.50286 | BE108: =IF(ABS($H108-SUM($J108:BD108))>=ABS(BD108),BD108,IF(ABS($H108-SUM($J108:BD108))>0,$H108-SUM($J108:BD108),0)) -> 41191.50286 | BF108: =IF(ABS($H108-SUM($J108:BE108))>=ABS(BE108),BE108,IF(ABS($H108-SUM($J108:BE108))>0,$H108-SUM($J108:BE108),0)) -> 41191.50286 | BG108: =IF(ABS($H108-SUM($J108:BF108))>=ABS(BF108),BF108,IF(ABS($H108-SUM($J108:BF108))>0,$H108-SUM($J108:BF108),0)) -> 41191.50286 | BH108: =IF(ABS($H108-SUM($J108:BG108))>=ABS(BG108),BG108,IF(ABS($H108-SUM($J108:BG108))>0,$H108-SUM($J108:BG108),0)) -> 41191.50286 | BI108: =IF(ABS($H108-SUM($J108:BH108))>=ABS(BH108),BH108,IF(ABS($H108-SUM($J108:BH108))>0,$H108-SUM($J108:BH108),0)) -> 41191.50286 | BJ108: =IF(ABS($H108-SUM($J108:BI108))>=ABS(BI108),BI108,IF(ABS($H108-SUM($J108:BI108))>0,$H108-SUM($J108:BI108),0)) -> 41191.50286 | BK108: =IF(ABS($H108-SUM($J108:BJ108))>=ABS(BJ108),BJ108,IF(ABS($H108-SUM($J108:BJ108))>0,$H108-SUM($J108:BJ108),0)) -> 20595.75143 | BL108: =IF(ABS($H108-SUM($J108:BK108))>=ABS(BK108),BK108,IF(ABS($H108-SUM($J108:BK108))>0,$H108-SUM($J108:BK108),0)) -> 0 | BM108: =IF(ABS($H108-SUM($J108:BL108))>=ABS(BL108),BL108,IF(ABS($H108-SUM($J108:BL108))>0,$H108-SUM($J108:BL108),0)) -> 0 | BN108: =IF(ABS($H108-SUM($J108:BM108))>=ABS(BM108),BM108,IF(ABS($H108-SUM($J108:BM108))>0,$H108-SUM($J108:BM108),0)) -> 0 | BP108: 0
C109: 2023/24 | D109: JEN | E109: $ | F109: nominal | H109: 1530311.6 | AC109: =$H109/$H$8/2 -> 21861.59429 | AD109: =$H109/$H$8 -> 43723.18857 | AE109: =IF(ABS($H109-SUM($J109:AD109))>=ABS(AD109),AD109,IF(ABS($H109-SUM($J109:AD109))>0,$H109-SUM($J109:AD109),0)) -> 43723.18857 | AF109: =IF(ABS($H109-SUM($J109:AE109))>=ABS(AE109),AE109,IF(ABS($H109-SUM($J109:AE109))>0,$H109-SUM($J109:AE109),0)) -> 43723.18857 | AG109: =IF(ABS($H109-SUM($J109:AF109))>=ABS(AF109),AF109,IF(ABS($H109-SUM($J109:AF109))>0,$H109-SUM($J109:AF109),0)) -> 43723.18857 | AH109: =IF(ABS($H109-SUM($J109:AG109))>=ABS(AG109),AG109,IF(ABS($H109-SUM($J109:AG109))>0,$H109-SUM($J109:AG109),0)) -> 43723.18857 | AI109: =IF(ABS($H109-SUM($J109:AH109))>=ABS(AH109),AH109,IF(ABS($H109-SUM($J109:AH109))>0,$H109-SUM($J109:AH109),0)) -> 43723.18857 | AJ109: =IF(ABS($H109-SUM($J109:AI109))>=ABS(AI109),AI109,IF(ABS($H109-SUM($J109:AI109))>0,$H109-SUM($J109:AI109),0)) -> 43723.18857 | AK109: =IF(ABS($H109-SUM($J109:AJ109))>=ABS(AJ109),AJ109,IF(ABS($H109-SUM($J109:AJ109))>0,$H109-SUM($J109:AJ109),0)) -> 43723.18857 | AL109: =IF(ABS($H109-SUM($J109:AK109))>=ABS(AK109),AK109,IF(ABS($H109-SUM($J109:AK109))>0,$H109-SUM($J109:AK109),0)) -> 43723.18857 | AM109: =IF(ABS($H109-SUM($J109:AL109))>=ABS(AL109),AL109,IF(ABS($H109-SUM($J109:AL109))>0,$H109-SUM($J109:AL109),0)) -> 43723.18857 | AN109: =IF(ABS($H109-SUM($J109:AM109))>=ABS(AM109),AM109,IF(ABS($H109-SUM($J109:AM109))>0,$H109-SUM($J109:AM109),0)) -> 43723.18857 | AO109: =IF(ABS($H109-SUM($J109:AN109))>=ABS(AN109),AN109,IF(ABS($H109-SUM($J109:AN109))>0,$H109-SUM($J109:AN109),0)) -> 43723.18857 | AP109: =IF(ABS($H109-SUM($J109:AO109))>=ABS(AO109),AO109,IF(ABS($H109-SUM($J109:AO109))>0,$H109-SUM($J109:AO109),0)) -> 43723.18857 | AQ109: =IF(ABS($H109-SUM($J109:AP109))>=ABS(AP109),AP109,IF(ABS($H109-SUM($J109:AP109))>0,$H109-SUM($J109:AP109),0)) -> 43723.18857 | AR109: =IF(ABS($H109-SUM($J109:AQ109))>=ABS(AQ109),AQ109,IF(ABS($H109-SUM($J109:AQ109))>0,$H109-SUM($J109:AQ109),0)) -> 43723.18857 | AS109: =IF(ABS($H109-SUM($J109:AR109))>=ABS(AR109),AR109,IF(ABS($H109-SUM($J109:AR109))>0,$H109-SUM($J109:AR109),0)) -> 43723.18857 | AT109: =IF(ABS($H109-SUM($J109:AS109))>=ABS(AS109),AS109,IF(ABS($H109-SUM($J109:AS109))>0,$H109-SUM($J109:AS109),0)) -> 43723.18857 | AU109: =IF(ABS($H109-SUM($J109:AT109))>=ABS(AT109),AT109,IF(ABS($H109-SUM($J109:AT109))>0,$H109-SUM($J109:AT109),0)) -> 43723.18857 | AV109: =IF(ABS($H109-SUM($J109:AU109))>=ABS(AU109),AU109,IF(ABS($H109-SUM($J109:AU109))>0,$H109-SUM($J109:AU109),0)) -> 43723.18857 | AW109: =IF(ABS($H109-SUM($J109:AV109))>=ABS(AV109),AV109,IF(ABS($H109-SUM($J109:AV109))>0,$H109-SUM($J109:AV109),0)) -> 43723.18857 | AX109: =IF(ABS($H109-SUM($J109:AW109))>=ABS(AW109),AW109,IF(ABS($H109-SUM($J109:AW109))>0,$H109-SUM($J109:AW109),0)) -> 43723.18857 | AY109: =IF(ABS($H109-SUM($J109:AX109))>=ABS(AX109),AX109,IF(ABS($H109-SUM($J109:AX109))>0,$H109-SUM($J109:AX109),0)) -> 43723.18857 | AZ109: =IF(ABS($H109-SUM($J109:AY109))>=ABS(AY109),AY109,IF(ABS($H109-SUM($J109:AY109))>0,$H109-SUM($J109:AY109),0)) -> 43723.18857 | BA109: =IF(ABS($H109-SUM($J109:AZ109))>=ABS(AZ109),AZ109,IF(ABS($H109-SUM($J109:AZ109))>0,$H109-SUM($J109:AZ109),0)) -> 43723.18857 | BB109: =IF(ABS($H109-SUM($J109:BA109))>=ABS(BA109),BA109,IF(ABS($H109-SUM($J109:BA109))>0,$H109-SUM($J109:BA109),0)) -> 43723.18857 | BC109: =IF(ABS($H109-SUM($J109:BB109))>=ABS(BB109),BB109,IF(ABS($H109-SUM($J109:BB109))>0,$H109-SUM($J109:BB109),0)) -> 43723.18857 | BD109: =IF(ABS($H109-SUM($J109:BC109))>=ABS(BC109),BC109,IF(ABS($H109-SUM($J109:BC109))>0,$H109-SUM($J109:BC109),0)) -> 43723.18857 | BE109: =IF(ABS($H109-SUM($J109:BD109))>=ABS(BD109),BD109,IF(ABS($H109-SUM($J109:BD109))>0,$H109-SUM($J109:BD109),0)) -> 43723.18857 | BF109: =IF(ABS($H109-SUM($J109:BE109))>=ABS(BE109),BE109,IF(ABS($H109-SUM($J109:BE109))>0,$H109-SUM($J109:BE109),0)) -> 43723.18857 | BG109: =IF(ABS($H109-SUM($J109:BF109))>=ABS(BF109),BF109,IF(ABS($H109-SUM($J109:BF109))>0,$H109-SUM($J109:BF109),0)) -> 43723.18857 | BH109: =IF(ABS($H109-SUM($J109:BG109))>=ABS(BG109),BG109,IF(ABS($H109-SUM($J109:BG109))>0,$H109-SUM($J109:BG109),0)) -> 43723.18857 | BI109: =IF(ABS($H109-SUM($J109:BH109))>=ABS(BH109),BH109,IF(ABS($H109-SUM($J109:BH109))>0,$H109-SUM($J109:BH109),0)) -> 43723.18857 | BJ109: =IF(ABS($H109-SUM($J109:BI109))>=ABS(BI109),BI109,IF(ABS($H109-SUM($J109:BI109))>0,$H109-SUM($J109:BI109),0)) -> 43723.18857 | BK109: =IF(ABS($H109-SUM($J109:BJ109))>=ABS(BJ109),BJ109,IF(ABS($H109-SUM($J109:BJ109))>0,$H109-SUM($J109:BJ109),0)) -> 43723.18857 | BL109: =IF(ABS($H109-SUM($J109:BK109))>=ABS(BK109),BK109,IF(ABS($H109-SUM($J109:BK109))>0,$H109-SUM($J109:BK109),0)) -> 21861.59429 | BM109: =IF(ABS($H109-SUM($J109:BL109))>=ABS(BL109),BL109,IF(ABS($H109-SUM($J109:BL109))>0,$H109-SUM($J109:BL109),0)) -> 0 | BN109: =IF(ABS($H109-SUM($J109:BM109))>=ABS(BM109),BM109,IF(ABS($H109-SUM($J109:BM109))>0,$H109-SUM($J109:BM109),0)) -> 0 | BP109: 0
C110: 2024/25 | D110: JEN | E110: $ | F110: nominal | H110: 997312.9 | AD110: =$H110/$H$8/2 -> 14247.32714 | AE110: =$H110/$H$8 -> 28494.65429 | AF110: =IF(ABS($H110-SUM($J110:AE110))>=ABS(AE110),AE110,IF(ABS($H110-SUM($J110:AE110))>0,$H110-SUM($J110:AE110),0)) -> 28494.65429 | AG110: =IF(ABS($H110-SUM($J110:AF110))>=ABS(AF110),AF110,IF(ABS($H110-SUM($J110:AF110))>0,$H110-SUM($J110:AF110),0)) -> 28494.65429 | AH110: =IF(ABS($H110-SUM($J110:AG110))>=ABS(AG110),AG110,IF(ABS($H110-SUM($J110:AG110))>0,$H110-SUM($J110:AG110),0)) -> 28494.65429 | AI110: =IF(ABS($H110-SUM($J110:AH110))>=ABS(AH110),AH110,IF(ABS($H110-SUM($J110:AH110))>0,$H110-SUM($J110:AH110),0)) -> 28494.65429 | AJ110: =IF(ABS($H110-SUM($J110:AI110))>=ABS(AI110),AI110,IF(ABS($H110-SUM($J110:AI110))>0,$H110-SUM($J110:AI110),0)) -> 28494.65429 | AK110: =IF(ABS($H110-SUM($J110:AJ110))>=ABS(AJ110),AJ110,IF(ABS($H110-SUM($J110:AJ110))>0,$H110-SUM($J110:AJ110),0)) -> 28494.65429 | AL110: =IF(ABS($H110-SUM($J110:AK110))>=ABS(AK110),AK110,IF(ABS($H110-SUM($J110:AK110))>0,$H110-SUM($J110:AK110),0)) -> 28494.65429 | AM110: =IF(ABS($H110-SUM($J110:AL110))>=ABS(AL110),AL110,IF(ABS($H110-SUM($J110:AL110))>0,$H110-SUM($J110:AL110),0)) -> 28494.65429 | AN110: =IF(ABS($H110-SUM($J110:AM110))>=ABS(AM110),AM110,IF(ABS($H110-SUM($J110:AM110))>0,$H110-SUM($J110:AM110),0)) -> 28494.65429 | AO110: =IF(ABS($H110-SUM($J110:AN110))>=ABS(AN110),AN110,IF(ABS($H110-SUM($J110:AN110))>0,$H110-SUM($J110:AN110),0)) -> 28494.65429 | AP110: =IF(ABS($H110-SUM($J110:AO110))>=ABS(AO110),AO110,IF(ABS($H110-SUM($J110:AO110))>0,$H110-SUM($J110:AO110),0)) -> 28494.65429 | AQ110: =IF(ABS($H110-SUM($J110:AP110))>=ABS(AP110),AP110,IF(ABS($H110-SUM($J110:AP110))>0,$H110-SUM($J110:AP110),0)) -> 28494.65429 | AR110: =IF(ABS($H110-SUM($J110:AQ110))>=ABS(AQ110),AQ110,IF(ABS($H110-SUM($J110:AQ110))>0,$H110-SUM($J110:AQ110),0)) -> 28494.65429 | AS110: =IF(ABS($H110-SUM($J110:AR110))>=ABS(AR110),AR110,IF(ABS($H110-SUM($J110:AR110))>0,$H110-SUM($J110:AR110),0)) -> 28494.65429 | AT110: =IF(ABS($H110-SUM($J110:AS110))>=ABS(AS110),AS110,IF(ABS($H110-SUM($J110:AS110))>0,$H110-SUM($J110:AS110),0)) -> 28494.65429 | AU110: =IF(ABS($H110-SUM($J110:AT110))>=ABS(AT110),AT110,IF(ABS($H110-SUM($J110:AT110))>0,$H110-SUM($J110:AT110),0)) -> 28494.65429 | AV110: =IF(ABS($H110-SUM($J110:AU110))>=ABS(AU110),AU110,IF(ABS($H110-SUM($J110:AU110))>0,$H110-SUM($J110:AU110),0)) -> 28494.65429 | AW110: =IF(ABS($H110-SUM($J110:AV110))>=ABS(AV110),AV110,IF(ABS($H110-SUM($J110:AV110))>0,$H110-SUM($J110:AV110),0)) -> 28494.65429 | AX110: =IF(ABS($H110-SUM($J110:AW110))>=ABS(AW110),AW110,IF(ABS($H110-SUM($J110:AW110))>0,$H110-SUM($J110:AW110),0)) -> 28494.65429 | AY110: =IF(ABS($H110-SUM($J110:AX110))>=ABS(AX110),AX110,IF(ABS($H110-SUM($J110:AX110))>0,$H110-SUM($J110:AX110),0)) -> 28494.65429 | AZ110: =IF(ABS($H110-SUM($J110:AY110))>=ABS(AY110),AY110,IF(ABS($H110-SUM($J110:AY110))>0,$H110-SUM($J110:AY110),0)) -> 28494.65429 | BA110: =IF(ABS($H110-SUM($J110:AZ110))>=ABS(AZ110),AZ110,IF(ABS($H110-SUM($J110:AZ110))>0,$H110-SUM($J110:AZ110),0)) -> 28494.65429 | BB110: =IF(ABS($H110-SUM($J110:BA110))>=ABS(BA110),BA110,IF(ABS($H110-SUM($J110:BA110))>0,$H110-SUM($J110:BA110),0)) -> 28494.65429 | BC110: =IF(ABS($H110-SUM($J110:BB110))>=ABS(BB110),BB110,IF(ABS($H110-SUM($J110:BB110))>0,$H110-SUM($J110:BB110),0)) -> 28494.65429 | BD110: =IF(ABS($H110-SUM($J110:BC110))>=ABS(BC110),BC110,IF(ABS($H110-SUM($J110:BC110))>0,$H110-SUM($J110:BC110),0)) -> 28494.65429 | BE110: =IF(ABS($H110-SUM($J110:BD110))>=ABS(BD110),BD110,IF(ABS($H110-SUM($J110:BD110))>0,$H110-SUM($J110:BD110),0)) -> 28494.65429 | BF110: =IF(ABS($H110-SUM($J110:BE110))>=ABS(BE110),BE110,IF(ABS($H110-SUM($J110:BE110))>0,$H110-SUM($J110:BE110),0)) -> 28494.65429 | BG110: =IF(ABS($H110-SUM($J110:BF110))>=ABS(BF110),BF110,IF(ABS($H110-SUM($J110:BF110))>0,$H110-SUM($J110:BF110),0)) -> 28494.65429 | BH110: =IF(ABS($H110-SUM($J110:BG110))>=ABS(BG110),BG110,IF(ABS($H110-SUM($J110:BG110))>0,$H110-SUM($J110:BG110),0)) -> 28494.65429 | BI110: =IF(ABS($H110-SUM($J110:BH110))>=ABS(BH110),BH110,IF(ABS($H110-SUM($J110:BH110))>0,$H110-SUM($J110:BH110),0)) -> 28494.65429 | BJ110: =IF(ABS($H110-SUM($J110:BI110))>=ABS(BI110),BI110,IF(ABS($H110-SUM($J110:BI110))>0,$H110-SUM($J110:BI110),0)) -> 28494.65429 | BK110: =IF(ABS($H110-SUM($J110:BJ110))>=ABS(BJ110),BJ110,IF(ABS($H110-SUM($J110:BJ110))>0,$H110-SUM($J110:BJ110),0)) -> 28494.65429 | BL110: =IF(ABS($H110-SUM($J110:BK110))>=ABS(BK110),BK110,IF(ABS($H110-SUM($J110:BK110))>0,$H110-SUM($J110:BK110),0)) -> 28494.65429 | BM110: =IF(ABS($H110-SUM($J110:BL110))>=ABS(BL110),BL110,IF(ABS($H110-SUM($J110:BL110))>0,$H110-SUM($J110:BL110),0)) -> 14247.32714 | BN110: =IF(ABS($H110-SUM($J110:BM110))>=ABS(BM110),BM110,IF(ABS($H110-SUM($J110:BM110))>0,$H110-SUM($J110:BM110),0)) -> 0 | BP110: 0
C111: 2025/26 | D111: Capital Expenditure | E111: $ | F111: nominal | H111: ='Capital Expenditure'!$Q$147 -> 1019673.251 | AE111: =$H111/$H$8/2 -> 14566.76073 | AF111: =$H111/$H$8 -> 29133.52146 | AG111: =IF(ABS($H111-SUM($J111:AF111))>=ABS(AF111),AF111,IF(ABS($H111-SUM($J111:AF111))>0,$H111-SUM($J111:AF111),0)) -> 29133.52146 | AH111: =IF(ABS($H111-SUM($J111:AG111))>=ABS(AG111),AG111,IF(ABS($H111-SUM($J111:AG111))>0,$H111-SUM($J111:AG111),0)) -> 29133.52146 | AI111: =IF(ABS($H111-SUM($J111:AH111))>=ABS(AH111),AH111,IF(ABS($H111-SUM($J111:AH111))>0,$H111-SUM($J111:AH111),0)) -> 29133.52146 | AJ111: =IF(ABS($H111-SUM($J111:AI111))>=ABS(AI111),AI111,IF(ABS($H111-SUM($J111:AI111))>0,$H111-SUM($J111:AI111),0)) -> 29133.52146 | AK111: =IF(ABS($H111-SUM($J111:AJ111))>=ABS(AJ111),AJ111,IF(ABS($H111-SUM($J111:AJ111))>0,$H111-SUM($J111:AJ111),0)) -> 29133.52146 | AL111: =IF(ABS($H111-SUM($J111:AK111))>=ABS(AK111),AK111,IF(ABS($H111-SUM($J111:AK111))>0,$H111-SUM($J111:AK111),0)) -> 29133.52146 | AM111: =IF(ABS($H111-SUM($J111:AL111))>=ABS(AL111),AL111,IF(ABS($H111-SUM($J111:AL111))>0,$H111-SUM($J111:AL111),0)) -> 29133.52146 | AN111: =IF(ABS($H111-SUM($J111:AM111))>=ABS(AM111),AM111,IF(ABS($H111-SUM($J111:AM111))>0,$H111-SUM($J111:AM111),0)) -> 29133.52146 | AO111: =IF(ABS($H111-SUM($J111:AN111))>=ABS(AN111),AN111,IF(ABS($H111-SUM($J111:AN111))>0,$H111-SUM($J111:AN111),0)) -> 29133.52146 | AP111: =IF(ABS($H111-SUM($J111:AO111))>=ABS(AO111),AO111,IF(ABS($H111-SUM($J111:AO111))>0,$H111-SUM($J111:AO111),0)) -> 29133.52146 | AQ111: =IF(ABS($H111-SUM($J111:AP111))>=ABS(AP111),AP111,IF(ABS($H111-SUM($J111:AP111))>0,$H111-SUM($J111:AP111),0)) -> 29133.52146 | AR111: =IF(ABS($H111-SUM($J111:AQ111))>=ABS(AQ111),AQ111,IF(ABS($H111-SUM($J111:AQ111))>0,$H111-SUM($J111:AQ111),0)) -> 29133.52146 | AS111: =IF(ABS($H111-SUM($J111:AR111))>=ABS(AR111),AR111,IF(ABS($H111-SUM($J111:AR111))>0,$H111-SUM($J111:AR111),0)) -> 29133.52146 | AT111: =IF(ABS($H111-SUM($J111:AS111))>=ABS(AS111),AS111,IF(ABS($H111-SUM($J111:AS111))>0,$H111-SUM($J111:AS111),0)) -> 29133.52146 | AU111: =IF(ABS($H111-SUM($J111:AT111))>=ABS(AT111),AT111,IF(ABS($H111-SUM($J111:AT111))>0,$H111-SUM($J111:AT111),0)) -> 29133.52146 | AV111: =IF(ABS($H111-SUM($J111:AU111))>=ABS(AU111),AU111,IF(ABS($H111-SUM($J111:AU111))>0,$H111-SUM($J111:AU111),0)) -> 29133.52146 | AW111: =IF(ABS($H111-SUM($J111:AV111))>=ABS(AV111),AV111,IF(ABS($H111-SUM($J111:AV111))>0,$H111-SUM($J111:AV111),0)) -> 29133.52146 | AX111: =IF(ABS($H111-SUM($J111:AW111))>=ABS(AW111),AW111,IF(ABS($H111-SUM($J111:AW111))>0,$H111-SUM($J111:AW111),0)) -> 29133.52146 | AY111: =IF(ABS($H111-SUM($J111:AX111))>=ABS(AX111),AX111,IF(ABS($H111-SUM($J111:AX111))>0,$H111-SUM($J111:AX111),0)) -> 29133.52146 | AZ111: =IF(ABS($H111-SUM($J111:AY111))>=ABS(AY111),AY111,IF(ABS($H111-SUM($J111:AY111))>0,$H111-SUM($J111:AY111),0)) -> 29133.52146 | BA111: =IF(ABS($H111-SUM($J111:AZ111))>=ABS(AZ111),AZ111,IF(ABS($H111-SUM($J111:AZ111))>0,$H111-SUM($J111:AZ111),0)) -> 29133.52146 | BB111: =IF(ABS($H111-SUM($J111:BA111))>=ABS(BA111),BA111,IF(ABS($H111-SUM($J111:BA111))>0,$H111-SUM($J111:BA111),0)) -> 29133.52146 | BC111: =IF(ABS($H111-SUM($J111:BB111))>=ABS(BB111),BB111,IF(ABS($H111-SUM($J111:BB111))>0,$H111-SUM($J111:BB111),0)) -> 29133.52146 | BD111: =IF(ABS($H111-SUM($J111:BC111))>=ABS(BC111),BC111,IF(ABS($H111-SUM($J111:BC111))>0,$H111-SUM($J111:BC111),0)) -> 29133.52146 | BE111: =IF(ABS($H111-SUM($J111:BD111))>=ABS(BD111),BD111,IF(ABS($H111-SUM($J111:BD111))>0,$H111-SUM($J111:BD111),0)) -> 29133.52146 | BF111: =IF(ABS($H111-SUM($J111:BE111))>=ABS(BE111),BE111,IF(ABS($H111-SUM($J111:BE111))>0,$H111-SUM($J111:BE111),0)) -> 29133.52146 | BG111: =IF(ABS($H111-SUM($J111:BF111))>=ABS(BF111),BF111,IF(ABS($H111-SUM($J111:BF111))>0,$H111-SUM($J111:BF111),0)) -> 29133.52146 | BH111: =IF(ABS($H111-SUM($J111:BG111))>=ABS(BG111),BG111,IF(ABS($H111-SUM($J111:BG111))>0,$H111-SUM($J111:BG111),0)) -> 29133.52146 | BI111: =IF(ABS($H111-SUM($J111:BH111))>=ABS(BH111),BH111,IF(ABS($H111-SUM($J111:BH111))>0,$H111-SUM($J111:BH111),0)) -> 29133.52146 | BJ111: =IF(ABS($H111-SUM($J111:BI111))>=ABS(BI111),BI111,IF(ABS($H111-SUM($J111:BI111))>0,$H111-SUM($J111:BI111),0)) -> 29133.52146 | BK111: =IF(ABS($H111-SUM($J111:BJ111))>=ABS(BJ111),BJ111,IF(ABS($H111-SUM($J111:BJ111))>0,$H111-SUM($J111:BJ111),0)) -> 29133.52146 | BL111: =IF(ABS($H111-SUM($J111:BK111))>=ABS(BK111),BK111,IF(ABS($H111-SUM($J111:BK111))>0,$H111-SUM($J111:BK111),0)) -> 29133.52146 | BM111: =IF(ABS($H111-SUM($J111:BL111))>=ABS(BL111),BL111,IF(ABS($H111-SUM($J111:BL111))>0,$H111-SUM($J111:BL111),0)) -> 29133.52146 | BN111: =IF(ABS($H111-SUM($J111:BM111))>=ABS(BM111),BM111,IF(ABS($H111-SUM($J111:BM111))>0,$H111-SUM($J111:BM111),0)) -> 14566.76073 | BP111: 0
A113: =+IF(SUM(BP89:BP113)=0,"Ok","Check") -> Ok | C113: Total | D113: Calculated | E113: $ | F113: nominal | H113: =SUM(H89:H111) -> 13157031.78 | J113: =SUM(J89:J111) -> 50151.7053 | K113: 53561.33387 | L113: 55774.16969 | M113: 56551.39749 | N113: 58140.79804 | O113: 61291.31233 | P113: 66705.28376 | Q113: 70147.36947 | R113: 76787.22661 | S113: 93826.11461 | T113: 111060.385 | U113: 124877.0878 | V113: 139672.8329 | W113: 159148.8735 | X113: 176554.9183 | Y113: 187912.3573 | Z113: 99976.05573 | AA113: 224471.8302 | AB113: 263166.0846 | AC113: 305623.4303 | AD113: 341732.3518 | AE113: 370546.4396 | AF113: 385113.2004 | AG113: 385113.2004 | AH113: 385113.2004 | AI113: 385113.2004 | AJ113: 385113.2004 | AK113: 385113.2004 | AL113: 385113.2004 | AM113: 385113.2004 | AN113: 385113.2004 | AO113: 385113.2004 | AP113: =SUM(AP89:AP111) -> 385113.2004 | AQ113: 360816.2791 | AR113: 326887.5343 | AS113: 323676.9265 | AT113: 320561.2008 | AU113: 316857.6693 | AV113: 316135.5291 | AW113: 315303.2137 | AX113: 312956.728 | AY113: 309002.1852 | AZ113: 302128.7852 | BA113: 302118.0137 | BB113: 288849.0709 | BC113: 268040.2377 | BD113: 254380.53 | BE113: 240406.8323 | BF113: 224789.0397 | BG113: 201454.7512 | BH113: 189976.95 | BI113: 178739.8732 | BJ113: 160641.3702 | BK113: 121947.1157 | BL113: 79489.77003 | BM113: 43380.84861 | BN113: 14566.76073 | BP113: =H113-SUM(J113:BN113) -> 0
B116: =C9 -> Existing lights - luminaires
J118: Depreciation ► | AF118: 1 | AG118: =AF118+1 -> 2 | AH118: =AG118+1 -> 3 | AI118: 4 | AJ118: 5 | AK118: 6 | AL118: 7 | AM118: 8 | AN118: 9 | AO118: 10 | AP118: 11 | AQ118: 12 | AR118: 13 | AS118: 14 | AT118: 15 | AU118: 16 | AV118: 17 | AW118: 18 | AX118: 19 | AY118: 20 | AZ118: 21 | BA118: 22 | BB118: 23 | BC118: 24 | BD118: 25 | BE118: 26 | BF118: 27 | BG118: 28 | BH118: 29 | BI118: 30 | BJ118: 31 | BK118: 32 | BL118: 33 | BM118: 34 | BN118: 35
D119: Source | E119: Unit | F119: Basis | H119: Capex | J119: 2005 | K119: 2006 | L119: 2007 | M119: 2008 | N119: 2009 | O119: 2010 | P119: 2011 | Q119: 2012 | R119: 2013 | S119: 2014 | T119: 2015 | U119: 2016 | V119: 2017 | W119: 2018 | X119: 2019 | Y119: 2020 | Z119: HY2021 | AA119: 2021/22 | AB119: 2022/23 | AC119: 2023/24 | AD119: 2024/25 | AE119: 2025/26 | AF119: =(LEFT(AE119,4)+1&IF(MID(AE119,5,1)="","","-"&TEXT(MOD(MID(AE119,6,2)+1,100),"00"))) -> 2026-27 | AG119: 2027-28 | AH119: 2028-29 | AI119: 2029-30 | AJ119: 2030-31 | AK119: 2031-32 | AL119: 2032-33 | AM119: 2033-34 | AN119: 2034-35 | AO119: 2035-36 | AP119: 2036-37 | AQ119: 2037-38 | AR119: 2038-39 | AS119: 2039-40 | AT119: 2040-41 | AU119: 2041-42 | AV119: 2042-43 | AW119: 2043-44 | AX119: 2044-45 | AY119: 2045-46 | AZ119: 2046-47 | BA119: 2047-48 | BB119: 2048-49 | BC119: 2049-50 | BD119: 2050-51 | BE119: 2051-52 | BF119: 2052-53 | BG119: 2053-54 | BH119: 2054-55 | BI119: 2055-56 | BJ119: 2056-57 | BK119: 2057-58 | BL119: =(LEFT(BK119,4)+1&IF(MID(BK119,5,1)="","","-"&TEXT(MOD(MID(BK119,6,2)+1,100),"00"))) -> 2058-59 | BM119: =(LEFT(BL119,4)+1&IF(MID(BL119,5,1)="","","-"&TEXT(MOD(MID(BL119,6,2)+1,100),"00"))) -> 2059-60 | BN119: =(LEFT(BM119,4)+1&IF(MID(BM119,5,1)="","","-"&TEXT(MOD(MID(BM119,6,2)+1,100),"00"))) -> 2060-61 | BP119: Check
C121: 2001-04 | D121: AER | E121: $ | F121: nominal | H121: 2801660.112 | J121: 155647.784 | K121: 155647.784 | L121: 155647.784 | M121: 155647.784 | N121: 155647.784 | O121: 155647.784 | P121: 155647.784 | Q121: 155647.784 | R121: 155647.784 | S121: 155647.784 | T121: 155647.784 | U121: 155647.784 | V121: 155647.784 | W121: 155647.784 | X121: 155647.784 | Y121: 155647.784 | Z121: 77823.892 | AA121: 155647.784 | AB121: 77823.892 | AC121: 0 | AD121: 0 | AE121: 0 | AF121: =IF(ABS($H121-SUM($J121:AE121))>=ABS(AE121),AE121,IF(ABS($H121-SUM($J121:AE121))>0,$H121-SUM($J121:AE121),0)) -> 0 | AG121: =IF(ABS($H121-SUM($J121:AF121))>=ABS(AF121),AF121,IF(ABS($H121-SUM($J121:AF121))>0,$H121-SUM($J121:AF121),0)) -> 0 | AH121: =IF(ABS($H121-SUM($J121:AG121))>=ABS(AG121),AG121,IF(ABS($H121-SUM($J121:AG121))>0,$H121-SUM($J121:AG121),0)) -> 0 | AI121: =IF(ABS($H121-SUM($J121:AH121))>=ABS(AH121),AH121,IF(ABS($H121-SUM($J121:AH121))>0,$H121-SUM($J121:AH121),0)) -> 0 | AJ121: =IF(ABS($H121-SUM($J121:AI121))>=ABS(AI121),AI121,IF(ABS($H121-SUM($J121:AI121))>0,$H121-SUM($J121:AI121),0)) -> 0 | AK121: =IF(ABS($H121-SUM($J121:AJ121))>=ABS(AJ121),AJ121,IF(ABS($H121-SUM($J121:AJ121))>0,$H121-SUM($J121:AJ121),0)) -> 0 | AL121: =IF(ABS($H121-SUM($J121:AK121))>=ABS(AK121),AK121,IF(ABS($H121-SUM($J121:AK121))>0,$H121-SUM($J121:AK121),0)) -> 0 | AM121: =IF(ABS($H121-SUM($J121:AL121))>=ABS(AL121),AL121,IF(ABS($H121-SUM($J121:AL121))>0,$H121-SUM($J121:AL121),0)) -> 0 | AN121: =IF(ABS($H121-SUM($J121:AM121))>=ABS(AM121),AM121,IF(ABS($H121-SUM($J121:AM121))>0,$H121-SUM($J121:AM121),0)) -> 0 | AO121: =IF(ABS($H121-SUM($J121:AN121))>=ABS(AN121),AN121,IF(ABS($H121-SUM($J121:AN121))>0,$H121-SUM($J121:AN121),0)) -> 0 | AP121: =IF(ABS($H121-SUM($J121:AO121))>=ABS(AO121),AO121,IF(ABS($H121-SUM($J121:AO121))>0,$H121-SUM($J121:AO121),0)) -> 0 | AQ121: =IF(ABS($H121-SUM($J121:AP121))>=ABS(AP121),AP121,IF(ABS($H121-SUM($J121:AP121))>0,$H121-SUM($J121:AP121),0)) -> 0 | AR121: =IF(ABS($H121-SUM($J121:AQ121))>=ABS(AQ121),AQ121,IF(ABS($H121-SUM($J121:AQ121))>0,$H121-SUM($J121:AQ121),0)) -> 0 | AS121: =IF(ABS($H121-SUM($J121:AR121))>=ABS(AR121),AR121,IF(ABS($H121-SUM($J121:AR121))>0,$H121-SUM($J121:AR121),0)) -> 0 | AT121: =IF(ABS($H121-SUM($J121:AS121))>=ABS(AS121),AS121,IF(ABS($H121-SUM($J121:AS121))>0,$H121-SUM($J121:AS121),0)) -> 0 | AU121: =IF(ABS($H121-SUM($J121:AT121))>=ABS(AT121),AT121,IF(ABS($H121-SUM($J121:AT121))>0,$H121-SUM($J121:AT121),0)) -> 0 | AV121: =IF(ABS($H121-SUM($J121:AU121))>=ABS(AU121),AU121,IF(ABS($H121-SUM($J121:AU121))>0,$H121-SUM($J121:AU121),0)) -> 0 | AW121: =IF(ABS($H121-SUM($J121:AV121))>=ABS(AV121),AV121,IF(ABS($H121-SUM($J121:AV121))>0,$H121-SUM($J121:AV121),0)) -> 0 | AX121: =IF(ABS($H121-SUM($J121:AW121))>=ABS(AW121),AW121,IF(ABS($H121-SUM($J121:AW121))>0,$H121-SUM($J121:AW121),0)) -> 0 | AY121: =IF(ABS($H121-SUM($J121:AX121))>=ABS(AX121),AX121,IF(ABS($H121-SUM($J121:AX121))>0,$H121-SUM($J121:AX121),0)) -> 0 | AZ121: =IF(ABS($H121-SUM($J121:AY121))>=ABS(AY121),AY121,IF(ABS($H121-SUM($J121:AY121))>0,$H121-SUM($J121:AY121),0)) -> 0 | BA121: =IF(ABS($H121-SUM($J121:AZ121))>=ABS(AZ121),AZ121,IF(ABS($H121-SUM($J121:AZ121))>0,$H121-SUM($J121:AZ121),0)) -> 0 | BB121: =IF(ABS($H121-SUM($J121:BA121))>=ABS(BA121),BA121,IF(ABS($H121-SUM($J121:BA121))>0,$H121-SUM($J121:BA121),0)) -> 0 | BC121: =IF(ABS($H121-SUM($J121:BB121))>=ABS(BB121),BB121,IF(ABS($H121-SUM($J121:BB121))>0,$H121-SUM($J121:BB121),0)) -> 0 | BD121: =IF(ABS($H121-SUM($J121:BC121))>=ABS(BC121),BC121,IF(ABS($H121-SUM($J121:BC121))>0,$H121-SUM($J121:BC121),0)) -> 0 | BE121: =IF(ABS($H121-SUM($J121:BD121))>=ABS(BD121),BD121,IF(ABS($H121-SUM($J121:BD121))>0,$H121-SUM($J121:BD121),0)) -> 0 | BF121: =IF(ABS($H121-SUM($J121:BE121))>=ABS(BE121),BE121,IF(ABS($H121-SUM($J121:BE121))>0,$H121-SUM($J121:BE121),0)) -> 0 | BG121: =IF(ABS($H121-SUM($J121:BF121))>=ABS(BF121),BF121,IF(ABS($H121-SUM($J121:BF121))>0,$H121-SUM($J121:BF121),0)) -> 0 | BH121: =IF(ABS($H121-SUM($J121:BG121))>=ABS(BG121),BG121,IF(ABS($H121-SUM($J121:BG121))>0,$H121-SUM($J121:BG121),0)) -> 0 | BI121: =IF(ABS($H121-SUM($J121:BH121))>=ABS(BH121),BH121,IF(ABS($H121-SUM($J121:BH121))>0,$H121-SUM($J121:BH121),0)) -> 0 | BJ121: =IF(ABS($H121-SUM($J121:BI121))>=ABS(BI121),BI121,IF(ABS($H121-SUM($J121:BI121))>0,$H121-SUM($J121:BI121),0)) -> 0 | BK121: =IF(ABS($H121-SUM($J121:BJ121))>=ABS(BJ121),BJ121,IF(ABS($H121-SUM($J121:BJ121))>0,$H121-SUM($J121:BJ121),0)) -> 0 | BL121: =IF(ABS($H121-SUM($J121:BK121))>=ABS(BK121),BK121,IF(ABS($H121-SUM($J121:BK121))>0,$H121-SUM($J121:BK121),0)) -> 0 | BM121: =IF(ABS($H121-SUM($J121:BL121))>=ABS(BL121),BL121,IF(ABS($H121-SUM($J121:BL121))>0,$H121-SUM($J121:BL121),0)) -> 0 | BN121: =IF(ABS($H121-SUM($J121:BM121))>=ABS(BM121),BM121,IF(ABS($H121-SUM($J121:BM121))>0,$H121-SUM($J121:BM121),0)) -> 0 | BP121: =H121-SUM(J121:BN121) -> 0
C122: =TRANSPOSE(J119:AE119) -> 2005 | D122: AER | E122: $ | F122: nominal | H122: 432949.6 | J122: 10823.74 | K122: 21647.48 | L122: 21647.48 | M122: 21647.48 | N122: 21647.48 | O122: 21647.48 | P122: 21647.48 | Q122: 21647.48 | R122: 21647.48 | S122: 21647.48 | T122: 21647.48 | U122: 21647.48 | V122: 21647.48 | W122: 21647.48 | X122: 21647.48 | Y122: 21647.48 | Z122: 10823.74 | AA122: 21647.48 | AB122: 21647.48 | AC122: 21647.48 | AD122: 21647.48 | AE122: 5.820766091e-11 | AF122: =IF(ABS($H122-SUM($J122:AE122))>=ABS(AE122),AE122,IF(ABS($H122-SUM($J122:AE122))>0,$H122-SUM($J122:AE122),0)) -> 0 | AG122: =IF(ABS($H122-SUM($J122:AF122))>=ABS(AF122),AF122,IF(ABS($H122-SUM($J122:AF122))>0,$H122-SUM($J122:AF122),0)) -> 0 | AH122: =IF(ABS($H122-SUM($J122:AG122))>=ABS(AG122),AG122,IF(ABS($H122-SUM($J122:AG122))>0,$H122-SUM($J122:AG122),0)) -> 0 | AI122: =IF(ABS($H122-SUM($J122:AH122))>=ABS(AH122),AH122,IF(ABS($H122-SUM($J122:AH122))>0,$H122-SUM($J122:AH122),0)) -> 0 | AJ122: =IF(ABS($H122-SUM($J122:AI122))>=ABS(AI122),AI122,IF(ABS($H122-SUM($J122:AI122))>0,$H122-SUM($J122:AI122),0)) -> 0 | AK122: =IF(ABS($H122-SUM($J122:AJ122))>=ABS(AJ122),AJ122,IF(ABS($H122-SUM($J122:AJ122))>0,$H122-SUM($J122:AJ122),0)) -> 0 | AL122: =IF(ABS($H122-SUM($J122:AK122))>=ABS(AK122),AK122,IF(ABS($H122-SUM($J122:AK122))>0,$H122-SUM($J122:AK122),0)) -> 0 | AM122: =IF(ABS($H122-SUM($J122:AL122))>=ABS(AL122),AL122,IF(ABS($H122-SUM($J122:AL122))>0,$H122-SUM($J122:AL122),0)) -> 0 | AN122: =IF(ABS($H122-SUM($J122:AM122))>=ABS(AM122),AM122,IF(ABS($H122-SUM($J122:AM122))>0,$H122-SUM($J122:AM122),0)) -> 0 | AO122: =IF(ABS($H122-SUM($J122:AN122))>=ABS(AN122),AN122,IF(ABS($H122-SUM($J122:AN122))>0,$H122-SUM($J122:AN122),0)) -> 0 | AP122: =IF(ABS($H122-SUM($J122:AO122))>=ABS(AO122),AO122,IF(ABS($H122-SUM($J122:AO122))>0,$H122-SUM($J122:AO122),0)) -> 0 | AQ122: =IF(ABS($H122-SUM($J122:AP122))>=ABS(AP122),AP122,IF(ABS($H122-SUM($J122:AP122))>0,$H122-SUM($J122:AP122),0)) -> 0 | AR122: =IF(ABS($H122-SUM($J122:AQ122))>=ABS(AQ122),AQ122,IF(ABS($H122-SUM($J122:AQ122))>0,$H122-SUM($J122:AQ122),0)) -> 0 | AS122: =IF(ABS($H122-SUM($J122:AR122))>=ABS(AR122),AR122,IF(ABS($H122-SUM($J122:AR122))>0,$H122-SUM($J122:AR122),0)) -> 0 | AT122: =IF(ABS($H122-SUM($J122:AS122))>=ABS(AS122),AS122,IF(ABS($H122-SUM($J122:AS122))>0,$H122-SUM($J122:AS122),0)) -> 0 | AU122: =IF(ABS($H122-SUM($J122:AT122))>=ABS(AT122),AT122,IF(ABS($H122-SUM($J122:AT122))>0,$H122-SUM($J122:AT122),0)) -> 0 | AV122: =IF(ABS($H122-SUM($J122:AU122))>=ABS(AU122),AU122,IF(ABS($H122-SUM($J122:AU122))>0,$H122-SUM($J122:AU122),0)) -> 0 | AW122: =IF(ABS($H122-SUM($J122:AV122))>=ABS(AV122),AV122,IF(ABS($H122-SUM($J122:AV122))>0,$H122-SUM($J122:AV122),0)) -> 0 | AX122: =IF(ABS($H122-SUM($J122:AW122))>=ABS(AW122),AW122,IF(ABS($H122-SUM($J122:AW122))>0,$H122-SUM($J122:AW122),0)) -> 0 | AY122: =IF(ABS($H122-SUM($J122:AX122))>=ABS(AX122),AX122,IF(ABS($H122-SUM($J122:AX122))>0,$H122-SUM($J122:AX122),0)) -> 0 | AZ122: =IF(ABS($H122-SUM($J122:AY122))>=ABS(AY122),AY122,IF(ABS($H122-SUM($J122:AY122))>0,$H122-SUM($J122:AY122),0)) -> 0 | BA122: =IF(ABS($H122-SUM($J122:AZ122))>=ABS(AZ122),AZ122,IF(ABS($H122-SUM($J122:AZ122))>0,$H122-SUM($J122:AZ122),0)) -> 0 | BB122: =IF(ABS($H122-SUM($J122:BA122))>=ABS(BA122),BA122,IF(ABS($H122-SUM($J122:BA122))>0,$H122-SUM($J122:BA122),0)) -> 0 | BC122: =IF(ABS($H122-SUM($J122:BB122))>=ABS(BB122),BB122,IF(ABS($H122-SUM($J122:BB122))>0,$H122-SUM($J122:BB122),0)) -> 0 | BD122: =IF(ABS($H122-SUM($J122:BC122))>=ABS(BC122),BC122,IF(ABS($H122-SUM($J122:BC122))>0,$H122-SUM($J122:BC122),0)) -> 0 | BE122: =IF(ABS($H122-SUM($J122:BD122))>=ABS(BD122),BD122,IF(ABS($H122-SUM($J122:BD122))>0,$H122-SUM($J122:BD122),0)) -> 0 | BF122: =IF(ABS($H122-SUM($J122:BE122))>=ABS(BE122),BE122,IF(ABS($H122-SUM($J122:BE122))>0,$H122-SUM($J122:BE122),0)) -> 0 | BG122: =IF(ABS($H122-SUM($J122:BF122))>=ABS(BF122),BF122,IF(ABS($H122-SUM($J122:BF122))>0,$H122-SUM($J122:BF122),0)) -> 0 | BH122: =IF(ABS($H122-SUM($J122:BG122))>=ABS(BG122),BG122,IF(ABS($H122-SUM($J122:BG122))>0,$H122-SUM($J122:BG122),0)) -> 0 | BI122: =IF(ABS($H122-SUM($J122:BH122))>=ABS(BH122),BH122,IF(ABS($H122-SUM($J122:BH122))>0,$H122-SUM($J122:BH122),0)) -> 0 | BJ122: =IF(ABS($H122-SUM($J122:BI122))>=ABS(BI122),BI122,IF(ABS($H122-SUM($J122:BI122))>0,$H122-SUM($J122:BI122),0)) -> 0 | BK122: =IF(ABS($H122-SUM($J122:BJ122))>=ABS(BJ122),BJ122,IF(ABS($H122-SUM($J122:BJ122))>0,$H122-SUM($J122:BJ122),0)) -> 0 | BL122: =IF(ABS($H122-SUM($J122:BK122))>=ABS(BK122),BK122,IF(ABS($H122-SUM($J122:BK122))>0,$H122-SUM($J122:BK122),0)) -> 0 | BM122: =IF(ABS($H122-SUM($J122:BL122))>=ABS(BL122),BL122,IF(ABS($H122-SUM($J122:BL122))>0,$H122-SUM($J122:BL122),0)) -> 0 | BN122: =IF(ABS($H122-SUM($J122:BM122))>=ABS(BM122),BM122,IF(ABS($H122-SUM($J122:BM122))>0,$H122-SUM($J122:BM122),0)) -> 0 | BP122: 0
C123: 2006 | D123: AER | E123: $ | F123: nominal | H123: 411376.4 | K123: 10284.41 | L123: 20568.82 | M123: 20568.82 | N123: 20568.82 | O123: 20568.82 | P123: 20568.82 | Q123: 20568.82 | R123: 20568.82 | S123: 20568.82 | T123: 20568.82 | U123: 20568.82 | V123: 20568.82 | W123: 20568.82 | X123: 20568.82 | Y123: 20568.82 | Z123: 10284.41 | AA123: 20568.82 | AB123: 20568.82 | AC123: 20568.82 | AD123: 20568.82 | AE123: 20568.82 | AF123: =IF(ABS($H123-SUM($J123:AE123))>=ABS(AE123),AE123,IF(ABS($H123-SUM($J123:AE123))>0,$H123-SUM($J123:AE123),0)) -> 0 | AG123: =IF(ABS($H123-SUM($J123:AF123))>=ABS(AF123),AF123,IF(ABS($H123-SUM($J123:AF123))>0,$H123-SUM($J123:AF123),0)) -> 0 | AH123: =IF(ABS($H123-SUM($J123:AG123))>=ABS(AG123),AG123,IF(ABS($H123-SUM($J123:AG123))>0,$H123-SUM($J123:AG123),0)) -> 0 | AI123: =IF(ABS($H123-SUM($J123:AH123))>=ABS(AH123),AH123,IF(ABS($H123-SUM($J123:AH123))>0,$H123-SUM($J123:AH123),0)) -> 0 | AJ123: =IF(ABS($H123-SUM($J123:AI123))>=ABS(AI123),AI123,IF(ABS($H123-SUM($J123:AI123))>0,$H123-SUM($J123:AI123),0)) -> 0 | AK123: =IF(ABS($H123-SUM($J123:AJ123))>=ABS(AJ123),AJ123,IF(ABS($H123-SUM($J123:AJ123))>0,$H123-SUM($J123:AJ123),0)) -> 0 | AL123: =IF(ABS($H123-SUM($J123:AK123))>=ABS(AK123),AK123,IF(ABS($H123-SUM($J123:AK123))>0,$H123-SUM($J123:AK123),0)) -> 0 | AM123: =IF(ABS($H123-SUM($J123:AL123))>=ABS(AL123),AL123,IF(ABS($H123-SUM($J123:AL123))>0,$H123-SUM($J123:AL123),0)) -> 0 | AN123: =IF(ABS($H123-SUM($J123:AM123))>=ABS(AM123),AM123,IF(ABS($H123-SUM($J123:AM123))>0,$H123-SUM($J123:AM123),0)) -> 0 | AO123: =IF(ABS($H123-SUM($J123:AN123))>=ABS(AN123),AN123,IF(ABS($H123-SUM($J123:AN123))>0,$H123-SUM($J123:AN123),0)) -> 0 | AP123: =IF(ABS($H123-SUM($J123:AO123))>=ABS(AO123),AO123,IF(ABS($H123-SUM($J123:AO123))>0,$H123-SUM($J123:AO123),0)) -> 0 | AQ123: =IF(ABS($H123-SUM($J123:AP123))>=ABS(AP123),AP123,IF(ABS($H123-SUM($J123:AP123))>0,$H123-SUM($J123:AP123),0)) -> 0 | AR123: =IF(ABS($H123-SUM($J123:AQ123))>=ABS(AQ123),AQ123,IF(ABS($H123-SUM($J123:AQ123))>0,$H123-SUM($J123:AQ123),0)) -> 0 | AS123: =IF(ABS($H123-SUM($J123:AR123))>=ABS(AR123),AR123,IF(ABS($H123-SUM($J123:AR123))>0,$H123-SUM($J123:AR123),0)) -> 0 | AT123: =IF(ABS($H123-SUM($J123:AS123))>=ABS(AS123),AS123,IF(ABS($H123-SUM($J123:AS123))>0,$H123-SUM($J123:AS123),0)) -> 0 | AU123: =IF(ABS($H123-SUM($J123:AT123))>=ABS(AT123),AT123,IF(ABS($H123-SUM($J123:AT123))>0,$H123-SUM($J123:AT123),0)) -> 0 | AV123: =IF(ABS($H123-SUM($J123:AU123))>=ABS(AU123),AU123,IF(ABS($H123-SUM($J123:AU123))>0,$H123-SUM($J123:AU123),0)) -> 0 | AW123: =IF(ABS($H123-SUM($J123:AV123))>=ABS(AV123),AV123,IF(ABS($H123-SUM($J123:AV123))>0,$H123-SUM($J123:AV123),0)) -> 0 | AX123: =IF(ABS($H123-SUM($J123:AW123))>=ABS(AW123),AW123,IF(ABS($H123-SUM($J123:AW123))>0,$H123-SUM($J123:AW123),0)) -> 0 | AY123: =IF(ABS($H123-SUM($J123:AX123))>=ABS(AX123),AX123,IF(ABS($H123-SUM($J123:AX123))>0,$H123-SUM($J123:AX123),0)) -> 0 | AZ123: =IF(ABS($H123-SUM($J123:AY123))>=ABS(AY123),AY123,IF(ABS($H123-SUM($J123:AY123))>0,$H123-SUM($J123:AY123),0)) -> 0 | BA123: =IF(ABS($H123-SUM($J123:AZ123))>=ABS(AZ123),AZ123,IF(ABS($H123-SUM($J123:AZ123))>0,$H123-SUM($J123:AZ123),0)) -> 0 | BB123: =IF(ABS($H123-SUM($J123:BA123))>=ABS(BA123),BA123,IF(ABS($H123-SUM($J123:BA123))>0,$H123-SUM($J123:BA123),0)) -> 0 | BC123: =IF(ABS($H123-SUM($J123:BB123))>=ABS(BB123),BB123,IF(ABS($H123-SUM($J123:BB123))>0,$H123-SUM($J123:BB123),0)) -> 0 | BD123: =IF(ABS($H123-SUM($J123:BC123))>=ABS(BC123),BC123,IF(ABS($H123-SUM($J123:BC123))>0,$H123-SUM($J123:BC123),0)) -> 0 | BE123: =IF(ABS($H123-SUM($J123:BD123))>=ABS(BD123),BD123,IF(ABS($H123-SUM($J123:BD123))>0,$H123-SUM($J123:BD123),0)) -> 0 | BF123: =IF(ABS($H123-SUM($J123:BE123))>=ABS(BE123),BE123,IF(ABS($H123-SUM($J123:BE123))>0,$H123-SUM($J123:BE123),0)) -> 0 | BG123: =IF(ABS($H123-SUM($J123:BF123))>=ABS(BF123),BF123,IF(ABS($H123-SUM($J123:BF123))>0,$H123-SUM($J123:BF123),0)) -> 0 | BH123: =IF(ABS($H123-SUM($J123:BG123))>=ABS(BG123),BG123,IF(ABS($H123-SUM($J123:BG123))>0,$H123-SUM($J123:BG123),0)) -> 0 | BI123: =IF(ABS($H123-SUM($J123:BH123))>=ABS(BH123),BH123,IF(ABS($H123-SUM($J123:BH123))>0,$H123-SUM($J123:BH123),0)) -> 0 | BJ123: =IF(ABS($H123-SUM($J123:BI123))>=ABS(BI123),BI123,IF(ABS($H123-SUM($J123:BI123))>0,$H123-SUM($J123:BI123),0)) -> 0 | BK123: =IF(ABS($H123-SUM($J123:BJ123))>=ABS(BJ123),BJ123,IF(ABS($H123-SUM($J123:BJ123))>0,$H123-SUM($J123:BJ123),0)) -> 0 | BL123: =IF(ABS($H123-SUM($J123:BK123))>=ABS(BK123),BK123,IF(ABS($H123-SUM($J123:BK123))>0,$H123-SUM($J123:BK123),0)) -> 0 | BM123: =IF(ABS($H123-SUM($J123:BL123))>=ABS(BL123),BL123,IF(ABS($H123-SUM($J123:BL123))>0,$H123-SUM($J123:BL123),0)) -> 0 | BN123: =IF(ABS($H123-SUM($J123:BM123))>=ABS(BM123),BM123,IF(ABS($H123-SUM($J123:BM123))>0,$H123-SUM($J123:BM123),0)) -> 0 | BP123: 0
C124: 2007 | D124: AER | E124: $ | F124: nominal | H124: 317200.0923 | L124: 7930.002306 | M124: 15860.00461 | N124: 15860.00461 | O124: 15860.00461 | P124: 15860.00461 | Q124: 15860.00461 | R124: 15860.00461 | S124: 15860.00461 | T124: 15860.00461 | U124: 15860.00461 | V124: 15860.00461 | W124: 15860.00461 | X124: 15860.00461 | Y124: 15860.00461 | Z124: 7930.002306 | AA124: 15860.00461 | AB124: 15860.00461 | AC124: 15860.00461 | AD124: 15860.00461 | AE124: 15860.00461 | AF124: =IF(ABS($H124-SUM($J124:AE124))>=ABS(AE124),AE124,IF(ABS($H124-SUM($J124:AE124))>0,$H124-SUM($J124:AE124),0)) -> 15860.00461 | AG124: =IF(ABS($H124-SUM($J124:AF124))>=ABS(AF124),AF124,IF(ABS($H124-SUM($J124:AF124))>0,$H124-SUM($J124:AF124),0)) -> 0 | AH124: =IF(ABS($H124-SUM($J124:AG124))>=ABS(AG124),AG124,IF(ABS($H124-SUM($J124:AG124))>0,$H124-SUM($J124:AG124),0)) -> 0 | AI124: =IF(ABS($H124-SUM($J124:AH124))>=ABS(AH124),AH124,IF(ABS($H124-SUM($J124:AH124))>0,$H124-SUM($J124:AH124),0)) -> 0 | AJ124: =IF(ABS($H124-SUM($J124:AI124))>=ABS(AI124),AI124,IF(ABS($H124-SUM($J124:AI124))>0,$H124-SUM($J124:AI124),0)) -> 0 | AK124: =IF(ABS($H124-SUM($J124:AJ124))>=ABS(AJ124),AJ124,IF(ABS($H124-SUM($J124:AJ124))>0,$H124-SUM($J124:AJ124),0)) -> 0 | AL124: =IF(ABS($H124-SUM($J124:AK124))>=ABS(AK124),AK124,IF(ABS($H124-SUM($J124:AK124))>0,$H124-SUM($J124:AK124),0)) -> 0 | AM124: =IF(ABS($H124-SUM($J124:AL124))>=ABS(AL124),AL124,IF(ABS($H124-SUM($J124:AL124))>0,$H124-SUM($J124:AL124),0)) -> 0 | AN124: =IF(ABS($H124-SUM($J124:AM124))>=ABS(AM124),AM124,IF(ABS($H124-SUM($J124:AM124))>0,$H124-SUM($J124:AM124),0)) -> 0 | AO124: =IF(ABS($H124-SUM($J124:AN124))>=ABS(AN124),AN124,IF(ABS($H124-SUM($J124:AN124))>0,$H124-SUM($J124:AN124),0)) -> 0 | AP124: =IF(ABS($H124-SUM($J124:AO124))>=ABS(AO124),AO124,IF(ABS($H124-SUM($J124:AO124))>0,$H124-SUM($J124:AO124),0)) -> 0 | AQ124: =IF(ABS($H124-SUM($J124:AP124))>=ABS(AP124),AP124,IF(ABS($H124-SUM($J124:AP124))>0,$H124-SUM($J124:AP124),0)) -> 0 | AR124: =IF(ABS($H124-SUM($J124:AQ124))>=ABS(AQ124),AQ124,IF(ABS($H124-SUM($J124:AQ124))>0,$H124-SUM($J124:AQ124),0)) -> 0 | AS124: =IF(ABS($H124-SUM($J124:AR124))>=ABS(AR124),AR124,IF(ABS($H124-SUM($J124:AR124))>0,$H124-SUM($J124:AR124),0)) -> 0 | AT124: =IF(ABS($H124-SUM($J124:AS124))>=ABS(AS124),AS124,IF(ABS($H124-SUM($J124:AS124))>0,$H124-SUM($J124:AS124),0)) -> 0 | AU124: =IF(ABS($H124-SUM($J124:AT124))>=ABS(AT124),AT124,IF(ABS($H124-SUM($J124:AT124))>0,$H124-SUM($J124:AT124),0)) -> 0 | AV124: =IF(ABS($H124-SUM($J124:AU124))>=ABS(AU124),AU124,IF(ABS($H124-SUM($J124:AU124))>0,$H124-SUM($J124:AU124),0)) -> 0 | AW124: =IF(ABS($H124-SUM($J124:AV124))>=ABS(AV124),AV124,IF(ABS($H124-SUM($J124:AV124))>0,$H124-SUM($J124:AV124),0)) -> 0 | AX124: =IF(ABS($H124-SUM($J124:AW124))>=ABS(AW124),AW124,IF(ABS($H124-SUM($J124:AW124))>0,$H124-SUM($J124:AW124),0)) -> 0 | AY124: =IF(ABS($H124-SUM($J124:AX124))>=ABS(AX124),AX124,IF(ABS($H124-SUM($J124:AX124))>0,$H124-SUM($J124:AX124),0)) -> 0 | AZ124: =IF(ABS($H124-SUM($J124:AY124))>=ABS(AY124),AY124,IF(ABS($H124-SUM($J124:AY124))>0,$H124-SUM($J124:AY124),0)) -> 0 | BA124: =IF(ABS($H124-SUM($J124:AZ124))>=ABS(AZ124),AZ124,IF(ABS($H124-SUM($J124:AZ124))>0,$H124-SUM($J124:AZ124),0)) -> 0 | BB124: =IF(ABS($H124-SUM($J124:BA124))>=ABS(BA124),BA124,IF(ABS($H124-SUM($J124:BA124))>0,$H124-SUM($J124:BA124),0)) -> 0 | BC124: =IF(ABS($H124-SUM($J124:BB124))>=ABS(BB124),BB124,IF(ABS($H124-SUM($J124:BB124))>0,$H124-SUM($J124:BB124),0)) -> 0 | BD124: =IF(ABS($H124-SUM($J124:BC124))>=ABS(BC124),BC124,IF(ABS($H124-SUM($J124:BC124))>0,$H124-SUM($J124:BC124),0)) -> 0 | BE124: =IF(ABS($H124-SUM($J124:BD124))>=ABS(BD124),BD124,IF(ABS($H124-SUM($J124:BD124))>0,$H124-SUM($J124:BD124),0)) -> 0 | BF124: =IF(ABS($H124-SUM($J124:BE124))>=ABS(BE124),BE124,IF(ABS($H124-SUM($J124:BE124))>0,$H124-SUM($J124:BE124),0)) -> 0 | BG124: =IF(ABS($H124-SUM($J124:BF124))>=ABS(BF124),BF124,IF(ABS($H124-SUM($J124:BF124))>0,$H124-SUM($J124:BF124),0)) -> 0 | BH124: =IF(ABS($H124-SUM($J124:BG124))>=ABS(BG124),BG124,IF(ABS($H124-SUM($J124:BG124))>0,$H124-SUM($J124:BG124),0)) -> 0 | BI124: =IF(ABS($H124-SUM($J124:BH124))>=ABS(BH124),BH124,IF(ABS($H124-SUM($J124:BH124))>0,$H124-SUM($J124:BH124),0)) -> 0 | BJ124: =IF(ABS($H124-SUM($J124:BI124))>=ABS(BI124),BI124,IF(ABS($H124-SUM($J124:BI124))>0,$H124-SUM($J124:BI124),0)) -> 0 | BK124: =IF(ABS($H124-SUM($J124:BJ124))>=ABS(BJ124),BJ124,IF(ABS($H124-SUM($J124:BJ124))>0,$H124-SUM($J124:BJ124),0)) -> 0 | BL124: =IF(ABS($H124-SUM($J124:BK124))>=ABS(BK124),BK124,IF(ABS($H124-SUM($J124:BK124))>0,$H124-SUM($J124:BK124),0)) -> 0 | BM124: =IF(ABS($H124-SUM($J124:BL124))>=ABS(BL124),BL124,IF(ABS($H124-SUM($J124:BL124))>0,$H124-SUM($J124:BL124),0)) -> 0 | BN124: =IF(ABS($H124-SUM($J124:BM124))>=ABS(BM124),BM124,IF(ABS($H124-SUM($J124:BM124))>0,$H124-SUM($J124:BM124),0)) -> 0 | BP124: 0
C125: 2008 | D125: AER | E125: $ | F125: nominal | H125: 924101.2717 | M125: 23102.53179 | N125: 46205.06358 | O125: 46205.06358 | P125: 46205.06358 | Q125: 46205.06358 | R125: 46205.06358 | S125: 46205.06358 | T125: 46205.06358 | U125: 46205.06358 | V125: 46205.06358 | W125: 46205.06358 | X125: 46205.06358 | Y125: 46205.06358 | Z125: 23102.53179 | AA125: 46205.06358 | AB125: 46205.06358 | AC125: 46205.06358 | AD125: 46205.06358 | AE125: 46205.06358 | AF125: =IF(ABS($H125-SUM($J125:AE125))>=ABS(AE125),AE125,IF(ABS($H125-SUM($J125:AE125))>0,$H125-SUM($J125:AE125),0)) -> 46205.06358 | AG125: =IF(ABS($H125-SUM($J125:AF125))>=ABS(AF125),AF125,IF(ABS($H125-SUM($J125:AF125))>0,$H125-SUM($J125:AF125),0)) -> 46205.06358 | AH125: =IF(ABS($H125-SUM($J125:AG125))>=ABS(AG125),AG125,IF(ABS($H125-SUM($J125:AG125))>0,$H125-SUM($J125:AG125),0)) -> 2.328306437e-10 | AI125: =IF(ABS($H125-SUM($J125:AH125))>=ABS(AH125),AH125,IF(ABS($H125-SUM($J125:AH125))>0,$H125-SUM($J125:AH125),0)) -> 0 | AJ125: =IF(ABS($H125-SUM($J125:AI125))>=ABS(AI125),AI125,IF(ABS($H125-SUM($J125:AI125))>0,$H125-SUM($J125:AI125),0)) -> 0 | AK125: =IF(ABS($H125-SUM($J125:AJ125))>=ABS(AJ125),AJ125,IF(ABS($H125-SUM($J125:AJ125))>0,$H125-SUM($J125:AJ125),0)) -> 0 | AL125: =IF(ABS($H125-SUM($J125:AK125))>=ABS(AK125),AK125,IF(ABS($H125-SUM($J125:AK125))>0,$H125-SUM($J125:AK125),0)) -> 0 | AM125: =IF(ABS($H125-SUM($J125:AL125))>=ABS(AL125),AL125,IF(ABS($H125-SUM($J125:AL125))>0,$H125-SUM($J125:AL125),0)) -> 0 | AN125: =IF(ABS($H125-SUM($J125:AM125))>=ABS(AM125),AM125,IF(ABS($H125-SUM($J125:AM125))>0,$H125-SUM($J125:AM125),0)) -> 0 | AO125: =IF(ABS($H125-SUM($J125:AN125))>=ABS(AN125),AN125,IF(ABS($H125-SUM($J125:AN125))>0,$H125-SUM($J125:AN125),0)) -> 0 | AP125: =IF(ABS($H125-SUM($J125:AO125))>=ABS(AO125),AO125,IF(ABS($H125-SUM($J125:AO125))>0,$H125-SUM($J125:AO125),0)) -> 0 | AQ125: =IF(ABS($H125-SUM($J125:AP125))>=ABS(AP125),AP125,IF(ABS($H125-SUM($J125:AP125))>0,$H125-SUM($J125:AP125),0)) -> 0 | AR125: =IF(ABS($H125-SUM($J125:AQ125))>=ABS(AQ125),AQ125,IF(ABS($H125-SUM($J125:AQ125))>0,$H125-SUM($J125:AQ125),0)) -> 0 | AS125: =IF(ABS($H125-SUM($J125:AR125))>=ABS(AR125),AR125,IF(ABS($H125-SUM($J125:AR125))>0,$H125-SUM($J125:AR125),0)) -> 0 | AT125: =IF(ABS($H125-SUM($J125:AS125))>=ABS(AS125),AS125,IF(ABS($H125-SUM($J125:AS125))>0,$H125-SUM($J125:AS125),0)) -> 0 | AU125: =IF(ABS($H125-SUM($J125:AT125))>=ABS(AT125),AT125,IF(ABS($H125-SUM($J125:AT125))>0,$H125-SUM($J125:AT125),0)) -> 0 | AV125: =IF(ABS($H125-SUM($J125:AU125))>=ABS(AU125),AU125,IF(ABS($H125-SUM($J125:AU125))>0,$H125-SUM($J125:AU125),0)) -> 0 | AW125: =IF(ABS($H125-SUM($J125:AV125))>=ABS(AV125),AV125,IF(ABS($H125-SUM($J125:AV125))>0,$H125-SUM($J125:AV125),0)) -> 0 | AX125: =IF(ABS($H125-SUM($J125:AW125))>=ABS(AW125),AW125,IF(ABS($H125-SUM($J125:AW125))>0,$H125-SUM($J125:AW125),0)) -> 0 | AY125: =IF(ABS($H125-SUM($J125:AX125))>=ABS(AX125),AX125,IF(ABS($H125-SUM($J125:AX125))>0,$H125-SUM($J125:AX125),0)) -> 0 | AZ125: =IF(ABS($H125-SUM($J125:AY125))>=ABS(AY125),AY125,IF(ABS($H125-SUM($J125:AY125))>0,$H125-SUM($J125:AY125),0)) -> 0 | BA125: =IF(ABS($H125-SUM($J125:AZ125))>=ABS(AZ125),AZ125,IF(ABS($H125-SUM($J125:AZ125))>0,$H125-SUM($J125:AZ125),0)) -> 0 | BB125: =IF(ABS($H125-SUM($J125:BA125))>=ABS(BA125),BA125,IF(ABS($H125-SUM($J125:BA125))>0,$H125-SUM($J125:BA125),0)) -> 0 | BC125: =IF(ABS($H125-SUM($J125:BB125))>=ABS(BB125),BB125,IF(ABS($H125-SUM($J125:BB125))>0,$H125-SUM($J125:BB125),0)) -> 0 | BD125: =IF(ABS($H125-SUM($J125:BC125))>=ABS(BC125),BC125,IF(ABS($H125-SUM($J125:BC125))>0,$H125-SUM($J125:BC125),0)) -> 0 | BE125: =IF(ABS($H125-SUM($J125:BD125))>=ABS(BD125),BD125,IF(ABS($H125-SUM($J125:BD125))>0,$H125-SUM($J125:BD125),0)) -> 0 | BF125: =IF(ABS($H125-SUM($J125:BE125))>=ABS(BE125),BE125,IF(ABS($H125-SUM($J125:BE125))>0,$H125-SUM($J125:BE125),0)) -> 0 | BG125: =IF(ABS($H125-SUM($J125:BF125))>=ABS(BF125),BF125,IF(ABS($H125-SUM($J125:BF125))>0,$H125-SUM($J125:BF125),0)) -> 0 | BH125: =IF(ABS($H125-SUM($J125:BG125))>=ABS(BG125),BG125,IF(ABS($H125-SUM($J125:BG125))>0,$H125-SUM($J125:BG125),0)) -> 0 | BI125: =IF(ABS($H125-SUM($J125:BH125))>=ABS(BH125),BH125,IF(ABS($H125-SUM($J125:BH125))>0,$H125-SUM($J125:BH125),0)) -> 0 | BJ125: =IF(ABS($H125-SUM($J125:BI125))>=ABS(BI125),BI125,IF(ABS($H125-SUM($J125:BI125))>0,$H125-SUM($J125:BI125),0)) -> 0 | BK125: =IF(ABS($H125-SUM($J125:BJ125))>=ABS(BJ125),BJ125,IF(ABS($H125-SUM($J125:BJ125))>0,$H125-SUM($J125:BJ125),0)) -> 0 | BL125: =IF(ABS($H125-SUM($J125:BK125))>=ABS(BK125),BK125,IF(ABS($H125-SUM($J125:BK125))>0,$H125-SUM($J125:BK125),0)) -> 0 | BM125: =IF(ABS($H125-SUM($J125:BL125))>=ABS(BL125),BL125,IF(ABS($H125-SUM($J125:BL125))>0,$H125-SUM($J125:BL125),0)) -> 0 | BN125: =IF(ABS($H125-SUM($J125:BM125))>=ABS(BM125),BM125,IF(ABS($H125-SUM($J125:BM125))>0,$H125-SUM($J125:BM125),0)) -> 0 | BP125: 0
C126: 2009 | D126: AER | E126: $ | F126: nominal | H126: 584487 | N126: 14612.175 | O126: 29224.35 | P126: 29224.35 | Q126: 29224.35 | R126: 29224.35 | S126: 29224.35 | T126: 29224.35 | U126: 29224.35 | V126: 29224.35 | W126: 29224.35 | X126: 29224.35 | Y126: 29224.35 | Z126: 14612.175 | AA126: 29224.35 | AB126: 29224.35 | AC126: 29224.35 | AD126: 29224.35 | AE126: 29224.35 | AF126: =IF(ABS($H126-SUM($J126:AE126))>=ABS(AE126),AE126,IF(ABS($H126-SUM($J126:AE126))>0,$H126-SUM($J126:AE126),0)) -> 29224.35 | AG126: =IF(ABS($H126-SUM($J126:AF126))>=ABS(AF126),AF126,IF(ABS($H126-SUM($J126:AF126))>0,$H126-SUM($J126:AF126),0)) -> 29224.35 | AH126: =IF(ABS($H126-SUM($J126:AG126))>=ABS(AG126),AG126,IF(ABS($H126-SUM($J126:AG126))>0,$H126-SUM($J126:AG126),0)) -> 29224.35 | AI126: =IF(ABS($H126-SUM($J126:AH126))>=ABS(AH126),AH126,IF(ABS($H126-SUM($J126:AH126))>0,$H126-SUM($J126:AH126),0)) -> 2.328306437e-10 | AJ126: =IF(ABS($H126-SUM($J126:AI126))>=ABS(AI126),AI126,IF(ABS($H126-SUM($J126:AI126))>0,$H126-SUM($J126:AI126),0)) -> 0 | AK126: =IF(ABS($H126-SUM($J126:AJ126))>=ABS(AJ126),AJ126,IF(ABS($H126-SUM($J126:AJ126))>0,$H126-SUM($J126:AJ126),0)) -> 0 | AL126: =IF(ABS($H126-SUM($J126:AK126))>=ABS(AK126),AK126,IF(ABS($H126-SUM($J126:AK126))>0,$H126-SUM($J126:AK126),0)) -> 0 | AM126: =IF(ABS($H126-SUM($J126:AL126))>=ABS(AL126),AL126,IF(ABS($H126-SUM($J126:AL126))>0,$H126-SUM($J126:AL126),0)) -> 0 | AN126: =IF(ABS($H126-SUM($J126:AM126))>=ABS(AM126),AM126,IF(ABS($H126-SUM($J126:AM126))>0,$H126-SUM($J126:AM126),0)) -> 0 | AO126: =IF(ABS($H126-SUM($J126:AN126))>=ABS(AN126),AN126,IF(ABS($H126-SUM($J126:AN126))>0,$H126-SUM($J126:AN126),0)) -> 0 | AP126: =IF(ABS($H126-SUM($J126:AO126))>=ABS(AO126),AO126,IF(ABS($H126-SUM($J126:AO126))>0,$H126-SUM($J126:AO126),0)) -> 0 | AQ126: =IF(ABS($H126-SUM($J126:AP126))>=ABS(AP126),AP126,IF(ABS($H126-SUM($J126:AP126))>0,$H126-SUM($J126:AP126),0)) -> 0 | AR126: =IF(ABS($H126-SUM($J126:AQ126))>=ABS(AQ126),AQ126,IF(ABS($H126-SUM($J126:AQ126))>0,$H126-SUM($J126:AQ126),0)) -> 0 | AS126: =IF(ABS($H126-SUM($J126:AR126))>=ABS(AR126),AR126,IF(ABS($H126-SUM($J126:AR126))>0,$H126-SUM($J126:AR126),0)) -> 0 | AT126: =IF(ABS($H126-SUM($J126:AS126))>=ABS(AS126),AS126,IF(ABS($H126-SUM($J126:AS126))>0,$H126-SUM($J126:AS126),0)) -> 0 | AU126: =IF(ABS($H126-SUM($J126:AT126))>=ABS(AT126),AT126,IF(ABS($H126-SUM($J126:AT126))>0,$H126-SUM($J126:AT126),0)) -> 0 | AV126: =IF(ABS($H126-SUM($J126:AU126))>=ABS(AU126),AU126,IF(ABS($H126-SUM($J126:AU126))>0,$H126-SUM($J126:AU126),0)) -> 0 | AW126: =IF(ABS($H126-SUM($J126:AV126))>=ABS(AV126),AV126,IF(ABS($H126-SUM($J126:AV126))>0,$H126-SUM($J126:AV126),0)) -> 0 | AX126: =IF(ABS($H126-SUM($J126:AW126))>=ABS(AW126),AW126,IF(ABS($H126-SUM($J126:AW126))>0,$H126-SUM($J126:AW126),0)) -> 0 | AY126: =IF(ABS($H126-SUM($J126:AX126))>=ABS(AX126),AX126,IF(ABS($H126-SUM($J126:AX126))>0,$H126-SUM($J126:AX126),0)) -> 0 | AZ126: =IF(ABS($H126-SUM($J126:AY126))>=ABS(AY126),AY126,IF(ABS($H126-SUM($J126:AY126))>0,$H126-SUM($J126:AY126),0)) -> 0 | BA126: =IF(ABS($H126-SUM($J126:AZ126))>=ABS(AZ126),AZ126,IF(ABS($H126-SUM($J126:AZ126))>0,$H126-SUM($J126:AZ126),0)) -> 0 | BB126: =IF(ABS($H126-SUM($J126:BA126))>=ABS(BA126),BA126,IF(ABS($H126-SUM($J126:BA126))>0,$H126-SUM($J126:BA126),0)) -> 0 | BC126: =IF(ABS($H126-SUM($J126:BB126))>=ABS(BB126),BB126,IF(ABS($H126-SUM($J126:BB126))>0,$H126-SUM($J126:BB126),0)) -> 0 | BD126: =IF(ABS($H126-SUM($J126:BC126))>=ABS(BC126),BC126,IF(ABS($H126-SUM($J126:BC126))>0,$H126-SUM($J126:BC126),0)) -> 0 | BE126: =IF(ABS($H126-SUM($J126:BD126))>=ABS(BD126),BD126,IF(ABS($H126-SUM($J126:BD126))>0,$H126-SUM($J126:BD126),0)) -> 0 | BF126: =IF(ABS($H126-SUM($J126:BE126))>=ABS(BE126),BE126,IF(ABS($H126-SUM($J126:BE126))>0,$H126-SUM($J126:BE126),0)) -> 0 | BG126: =IF(ABS($H126-SUM($J126:BF126))>=ABS(BF126),BF126,IF(ABS($H126-SUM($J126:BF126))>0,$H126-SUM($J126:BF126),0)) -> 0 | BH126: =IF(ABS($H126-SUM($J126:BG126))>=ABS(BG126),BG126,IF(ABS($H126-SUM($J126:BG126))>0,$H126-SUM($J126:BG126),0)) -> 0 | BI126: =IF(ABS($H126-SUM($J126:BH126))>=ABS(BH126),BH126,IF(ABS($H126-SUM($J126:BH126))>0,$H126-SUM($J126:BH126),0)) -> 0 | BJ126: =IF(ABS($H126-SUM($J126:BI126))>=ABS(BI126),BI126,IF(ABS($H126-SUM($J126:BI126))>0,$H126-SUM($J126:BI126),0)) -> 0 | BK126: =IF(ABS($H126-SUM($J126:BJ126))>=ABS(BJ126),BJ126,IF(ABS($H126-SUM($J126:BJ126))>0,$H126-SUM($J126:BJ126),0)) -> 0 | BL126: =IF(ABS($H126-SUM($J126:BK126))>=ABS(BK126),BK126,IF(ABS($H126-SUM($J126:BK126))>0,$H126-SUM($J126:BK126),0)) -> 0 | BM126: =IF(ABS($H126-SUM($J126:BL126))>=ABS(BL126),BL126,IF(ABS($H126-SUM($J126:BL126))>0,$H126-SUM($J126:BL126),0)) -> 0 | BN126: =IF(ABS($H126-SUM($J126:BM126))>=ABS(BM126),BM126,IF(ABS($H126-SUM($J126:BM126))>0,$H126-SUM($J126:BM126),0)) -> 0 | BP126: 0
C127: 2010 | D127: AER | E127: $ | F127: nominal | H127: 160930 | O127: 4023.25 | P127: 8046.5 | Q127: 8046.5 | R127: 8046.5 | S127: 8046.5 | T127: 8046.5 | U127: 8046.5 | V127: 8046.5 | W127: 8046.5 | X127: 8046.5 | Y127: 8046.5 | Z127: 4023.25 | AA127: 8046.5 | AB127: 8046.5 | AC127: 8046.5 | AD127: 8046.5 | AE127: 8046.5 | AF127: =IF(ABS($H127-SUM($J127:AE127))>=ABS(AE127),AE127,IF(ABS($H127-SUM($J127:AE127))>0,$H127-SUM($J127:AE127),0)) -> 8046.5 | AG127: =IF(ABS($H127-SUM($J127:AF127))>=ABS(AF127),AF127,IF(ABS($H127-SUM($J127:AF127))>0,$H127-SUM($J127:AF127),0)) -> 8046.5 | AH127: =IF(ABS($H127-SUM($J127:AG127))>=ABS(AG127),AG127,IF(ABS($H127-SUM($J127:AG127))>0,$H127-SUM($J127:AG127),0)) -> 8046.5 | AI127: =IF(ABS($H127-SUM($J127:AH127))>=ABS(AH127),AH127,IF(ABS($H127-SUM($J127:AH127))>0,$H127-SUM($J127:AH127),0)) -> 8046.5 | AJ127: =IF(ABS($H127-SUM($J127:AI127))>=ABS(AI127),AI127,IF(ABS($H127-SUM($J127:AI127))>0,$H127-SUM($J127:AI127),0)) -> 0 | AK127: =IF(ABS($H127-SUM($J127:AJ127))>=ABS(AJ127),AJ127,IF(ABS($H127-SUM($J127:AJ127))>0,$H127-SUM($J127:AJ127),0)) -> 0 | AL127: =IF(ABS($H127-SUM($J127:AK127))>=ABS(AK127),AK127,IF(ABS($H127-SUM($J127:AK127))>0,$H127-SUM($J127:AK127),0)) -> 0 | AM127: =IF(ABS($H127-SUM($J127:AL127))>=ABS(AL127),AL127,IF(ABS($H127-SUM($J127:AL127))>0,$H127-SUM($J127:AL127),0)) -> 0 | AN127: =IF(ABS($H127-SUM($J127:AM127))>=ABS(AM127),AM127,IF(ABS($H127-SUM($J127:AM127))>0,$H127-SUM($J127:AM127),0)) -> 0 | AO127: =IF(ABS($H127-SUM($J127:AN127))>=ABS(AN127),AN127,IF(ABS($H127-SUM($J127:AN127))>0,$H127-SUM($J127:AN127),0)) -> 0 | AP127: =IF(ABS($H127-SUM($J127:AO127))>=ABS(AO127),AO127,IF(ABS($H127-SUM($J127:AO127))>0,$H127-SUM($J127:AO127),0)) -> 0 | AQ127: =IF(ABS($H127-SUM($J127:AP127))>=ABS(AP127),AP127,IF(ABS($H127-SUM($J127:AP127))>0,$H127-SUM($J127:AP127),0)) -> 0 | AR127: =IF(ABS($H127-SUM($J127:AQ127))>=ABS(AQ127),AQ127,IF(ABS($H127-SUM($J127:AQ127))>0,$H127-SUM($J127:AQ127),0)) -> 0 | AS127: =IF(ABS($H127-SUM($J127:AR127))>=ABS(AR127),AR127,IF(ABS($H127-SUM($J127:AR127))>0,$H127-SUM($J127:AR127),0)) -> 0 | AT127: =IF(ABS($H127-SUM($J127:AS127))>=ABS(AS127),AS127,IF(ABS($H127-SUM($J127:AS127))>0,$H127-SUM($J127:AS127),0)) -> 0 | AU127: =IF(ABS($H127-SUM($J127:AT127))>=ABS(AT127),AT127,IF(ABS($H127-SUM($J127:AT127))>0,$H127-SUM($J127:AT127),0)) -> 0 | AV127: =IF(ABS($H127-SUM($J127:AU127))>=ABS(AU127),AU127,IF(ABS($H127-SUM($J127:AU127))>0,$H127-SUM($J127:AU127),0)) -> 0 | AW127: =IF(ABS($H127-SUM($J127:AV127))>=ABS(AV127),AV127,IF(ABS($H127-SUM($J127:AV127))>0,$H127-SUM($J127:AV127),0)) -> 0 | AX127: =IF(ABS($H127-SUM($J127:AW127))>=ABS(AW127),AW127,IF(ABS($H127-SUM($J127:AW127))>0,$H127-SUM($J127:AW127),0)) -> 0 | AY127: =IF(ABS($H127-SUM($J127:AX127))>=ABS(AX127),AX127,IF(ABS($H127-SUM($J127:AX127))>0,$H127-SUM($J127:AX127),0)) -> 0 | AZ127: =IF(ABS($H127-SUM($J127:AY127))>=ABS(AY127),AY127,IF(ABS($H127-SUM($J127:AY127))>0,$H127-SUM($J127:AY127),0)) -> 0 | BA127: =IF(ABS($H127-SUM($J127:AZ127))>=ABS(AZ127),AZ127,IF(ABS($H127-SUM($J127:AZ127))>0,$H127-SUM($J127:AZ127),0)) -> 0 | BB127: =IF(ABS($H127-SUM($J127:BA127))>=ABS(BA127),BA127,IF(ABS($H127-SUM($J127:BA127))>0,$H127-SUM($J127:BA127),0)) -> 0 | BC127: =IF(ABS($H127-SUM($J127:BB127))>=ABS(BB127),BB127,IF(ABS($H127-SUM($J127:BB127))>0,$H127-SUM($J127:BB127),0)) -> 0 | BD127: =IF(ABS($H127-SUM($J127:BC127))>=ABS(BC127),BC127,IF(ABS($H127-SUM($J127:BC127))>0,$H127-SUM($J127:BC127),0)) -> 0 | BE127: =IF(ABS($H127-SUM($J127:BD127))>=ABS(BD127),BD127,IF(ABS($H127-SUM($J127:BD127))>0,$H127-SUM($J127:BD127),0)) -> 0 | BF127: =IF(ABS($H127-SUM($J127:BE127))>=ABS(BE127),BE127,IF(ABS($H127-SUM($J127:BE127))>0,$H127-SUM($J127:BE127),0)) -> 0 | BG127: =IF(ABS($H127-SUM($J127:BF127))>=ABS(BF127),BF127,IF(ABS($H127-SUM($J127:BF127))>0,$H127-SUM($J127:BF127),0)) -> 0 | BH127: =IF(ABS($H127-SUM($J127:BG127))>=ABS(BG127),BG127,IF(ABS($H127-SUM($J127:BG127))>0,$H127-SUM($J127:BG127),0)) -> 0 | BI127: =IF(ABS($H127-SUM($J127:BH127))>=ABS(BH127),BH127,IF(ABS($H127-SUM($J127:BH127))>0,$H127-SUM($J127:BH127),0)) -> 0 | BJ127: =IF(ABS($H127-SUM($J127:BI127))>=ABS(BI127),BI127,IF(ABS($H127-SUM($J127:BI127))>0,$H127-SUM($J127:BI127),0)) -> 0 | BK127: =IF(ABS($H127-SUM($J127:BJ127))>=ABS(BJ127),BJ127,IF(ABS($H127-SUM($J127:BJ127))>0,$H127-SUM($J127:BJ127),0)) -> 0 | BL127: =IF(ABS($H127-SUM($J127:BK127))>=ABS(BK127),BK127,IF(ABS($H127-SUM($J127:BK127))>0,$H127-SUM($J127:BK127),0)) -> 0 | BM127: =IF(ABS($H127-SUM($J127:BL127))>=ABS(BL127),BL127,IF(ABS($H127-SUM($J127:BL127))>0,$H127-SUM($J127:BL127),0)) -> 0 | BN127: =IF(ABS($H127-SUM($J127:BM127))>=ABS(BM127),BM127,IF(ABS($H127-SUM($J127:BM127))>0,$H127-SUM($J127:BM127),0)) -> 0 | BP127: 0
C128: 2011 | D128: AER | E128: $ | F128: nominal | H128: 415008 | P128: 10375.2 | Q128: 20750.4 | R128: 20750.4 | S128: 20750.4 | T128: 20750.4 | U128: 20750.4 | V128: 20750.4 | W128: 20750.4 | X128: 20750.4 | Y128: 20750.4 | Z128: 10375.2 | AA128: 20750.4 | AB128: 20750.4 | AC128: 20750.4 | AD128: 20750.4 | AE128: 20750.4 | AF128: =IF(ABS($H128-SUM($J128:AE128))>=ABS(AE128),AE128,IF(ABS($H128-SUM($J128:AE128))>0,$H128-SUM($J128:AE128),0)) -> 20750.4 | AG128: =IF(ABS($H128-SUM($J128:AF128))>=ABS(AF128),AF128,IF(ABS($H128-SUM($J128:AF128))>0,$H128-SUM($J128:AF128),0)) -> 20750.4 | AH128: =IF(ABS($H128-SUM($J128:AG128))>=ABS(AG128),AG128,IF(ABS($H128-SUM($J128:AG128))>0,$H128-SUM($J128:AG128),0)) -> 20750.4 | AI128: =IF(ABS($H128-SUM($J128:AH128))>=ABS(AH128),AH128,IF(ABS($H128-SUM($J128:AH128))>0,$H128-SUM($J128:AH128),0)) -> 20750.4 | AJ128: =IF(ABS($H128-SUM($J128:AI128))>=ABS(AI128),AI128,IF(ABS($H128-SUM($J128:AI128))>0,$H128-SUM($J128:AI128),0)) -> 20750.4 | AK128: =IF(ABS($H128-SUM($J128:AJ128))>=ABS(AJ128),AJ128,IF(ABS($H128-SUM($J128:AJ128))>0,$H128-SUM($J128:AJ128),0)) -> 0 | AL128: =IF(ABS($H128-SUM($J128:AK128))>=ABS(AK128),AK128,IF(ABS($H128-SUM($J128:AK128))>0,$H128-SUM($J128:AK128),0)) -> 0 | AM128: =IF(ABS($H128-SUM($J128:AL128))>=ABS(AL128),AL128,IF(ABS($H128-SUM($J128:AL128))>0,$H128-SUM($J128:AL128),0)) -> 0 | AN128: =IF(ABS($H128-SUM($J128:AM128))>=ABS(AM128),AM128,IF(ABS($H128-SUM($J128:AM128))>0,$H128-SUM($J128:AM128),0)) -> 0 | AO128: =IF(ABS($H128-SUM($J128:AN128))>=ABS(AN128),AN128,IF(ABS($H128-SUM($J128:AN128))>0,$H128-SUM($J128:AN128),0)) -> 0 | AP128: =IF(ABS($H128-SUM($J128:AO128))>=ABS(AO128),AO128,IF(ABS($H128-SUM($J128:AO128))>0,$H128-SUM($J128:AO128),0)) -> 0 | AQ128: =IF(ABS($H128-SUM($J128:AP128))>=ABS(AP128),AP128,IF(ABS($H128-SUM($J128:AP128))>0,$H128-SUM($J128:AP128),0)) -> 0 | AR128: =IF(ABS($H128-SUM($J128:AQ128))>=ABS(AQ128),AQ128,IF(ABS($H128-SUM($J128:AQ128))>0,$H128-SUM($J128:AQ128),0)) -> 0 | AS128: =IF(ABS($H128-SUM($J128:AR128))>=ABS(AR128),AR128,IF(ABS($H128-SUM($J128:AR128))>0,$H128-SUM($J128:AR128),0)) -> 0 | AT128: =IF(ABS($H128-SUM($J128:AS128))>=ABS(AS128),AS128,IF(ABS($H128-SUM($J128:AS128))>0,$H128-SUM($J128:AS128),0)) -> 0 | AU128: =IF(ABS($H128-SUM($J128:AT128))>=ABS(AT128),AT128,IF(ABS($H128-SUM($J128:AT128))>0,$H128-SUM($J128:AT128),0)) -> 0 | AV128: =IF(ABS($H128-SUM($J128:AU128))>=ABS(AU128),AU128,IF(ABS($H128-SUM($J128:AU128))>0,$H128-SUM($J128:AU128),0)) -> 0 | AW128: =IF(ABS($H128-SUM($J128:AV128))>=ABS(AV128),AV128,IF(ABS($H128-SUM($J128:AV128))>0,$H128-SUM($J128:AV128),0)) -> 0 | AX128: =IF(ABS($H128-SUM($J128:AW128))>=ABS(AW128),AW128,IF(ABS($H128-SUM($J128:AW128))>0,$H128-SUM($J128:AW128),0)) -> 0 | AY128: =IF(ABS($H128-SUM($J128:AX128))>=ABS(AX128),AX128,IF(ABS($H128-SUM($J128:AX128))>0,$H128-SUM($J128:AX128),0)) -> 0 | AZ128: =IF(ABS($H128-SUM($J128:AY128))>=ABS(AY128),AY128,IF(ABS($H128-SUM($J128:AY128))>0,$H128-SUM($J128:AY128),0)) -> 0 | BA128: =IF(ABS($H128-SUM($J128:AZ128))>=ABS(AZ128),AZ128,IF(ABS($H128-SUM($J128:AZ128))>0,$H128-SUM($J128:AZ128),0)) -> 0 | BB128: =IF(ABS($H128-SUM($J128:BA128))>=ABS(BA128),BA128,IF(ABS($H128-SUM($J128:BA128))>0,$H128-SUM($J128:BA128),0)) -> 0 | BC128: =IF(ABS($H128-SUM($J128:BB128))>=ABS(BB128),BB128,IF(ABS($H128-SUM($J128:BB128))>0,$H128-SUM($J128:BB128),0)) -> 0 | BD128: =IF(ABS($H128-SUM($J128:BC128))>=ABS(BC128),BC128,IF(ABS($H128-SUM($J128:BC128))>0,$H128-SUM($J128:BC128),0)) -> 0 | BE128: =IF(ABS($H128-SUM($J128:BD128))>=ABS(BD128),BD128,IF(ABS($H128-SUM($J128:BD128))>0,$H128-SUM($J128:BD128),0)) -> 0 | BF128: =IF(ABS($H128-SUM($J128:BE128))>=ABS(BE128),BE128,IF(ABS($H128-SUM($J128:BE128))>0,$H128-SUM($J128:BE128),0)) -> 0 | BG128: =IF(ABS($H128-SUM($J128:BF128))>=ABS(BF128),BF128,IF(ABS($H128-SUM($J128:BF128))>0,$H128-SUM($J128:BF128),0)) -> 0 | BH128: =IF(ABS($H128-SUM($J128:BG128))>=ABS(BG128),BG128,IF(ABS($H128-SUM($J128:BG128))>0,$H128-SUM($J128:BG128),0)) -> 0 | BI128: =IF(ABS($H128-SUM($J128:BH128))>=ABS(BH128),BH128,IF(ABS($H128-SUM($J128:BH128))>0,$H128-SUM($J128:BH128),0)) -> 0 | BJ128: =IF(ABS($H128-SUM($J128:BI128))>=ABS(BI128),BI128,IF(ABS($H128-SUM($J128:BI128))>0,$H128-SUM($J128:BI128),0)) -> 0 | BK128: =IF(ABS($H128-SUM($J128:BJ128))>=ABS(BJ128),BJ128,IF(ABS($H128-SUM($J128:BJ128))>0,$H128-SUM($J128:BJ128),0)) -> 0 | BL128: =IF(ABS($H128-SUM($J128:BK128))>=ABS(BK128),BK128,IF(ABS($H128-SUM($J128:BK128))>0,$H128-SUM($J128:BK128),0)) -> 0 | BM128: =IF(ABS($H128-SUM($J128:BL128))>=ABS(BL128),BL128,IF(ABS($H128-SUM($J128:BL128))>0,$H128-SUM($J128:BL128),0)) -> 0 | BN128: =IF(ABS($H128-SUM($J128:BM128))>=ABS(BM128),BM128,IF(ABS($H128-SUM($J128:BM128))>0,$H128-SUM($J128:BM128),0)) -> 0 | BP128: 0
C129: 2012 | D129: AER | E129: $ | F129: nominal | H129: 203015 | Q129: 5075.375 | R129: 10150.75 | S129: 10150.75 | T129: 10150.75 | U129: 10150.75 | V129: 10150.75 | W129: 10150.75 | X129: 10150.75 | Y129: 10150.75 | Z129: 5075.375 | AA129: 10150.75 | AB129: 10150.75 | AC129: 10150.75 | AD129: 10150.75 | AE129: 10150.75 | AF129: =IF(ABS($H129-SUM($J129:AE129))>=ABS(AE129),AE129,IF(ABS($H129-SUM($J129:AE129))>0,$H129-SUM($J129:AE129),0)) -> 10150.75 | AG129: =IF(ABS($H129-SUM($J129:AF129))>=ABS(AF129),AF129,IF(ABS($H129-SUM($J129:AF129))>0,$H129-SUM($J129:AF129),0)) -> 10150.75 | AH129: =IF(ABS($H129-SUM($J129:AG129))>=ABS(AG129),AG129,IF(ABS($H129-SUM($J129:AG129))>0,$H129-SUM($J129:AG129),0)) -> 10150.75 | AI129: =IF(ABS($H129-SUM($J129:AH129))>=ABS(AH129),AH129,IF(ABS($H129-SUM($J129:AH129))>0,$H129-SUM($J129:AH129),0)) -> 10150.75 | AJ129: =IF(ABS($H129-SUM($J129:AI129))>=ABS(AI129),AI129,IF(ABS($H129-SUM($J129:AI129))>0,$H129-SUM($J129:AI129),0)) -> 10150.75 | AK129: =IF(ABS($H129-SUM($J129:AJ129))>=ABS(AJ129),AJ129,IF(ABS($H129-SUM($J129:AJ129))>0,$H129-SUM($J129:AJ129),0)) -> 10150.75 | AL129: =IF(ABS($H129-SUM($J129:AK129))>=ABS(AK129),AK129,IF(ABS($H129-SUM($J129:AK129))>0,$H129-SUM($J129:AK129),0)) -> 0 | AM129: =IF(ABS($H129-SUM($J129:AL129))>=ABS(AL129),AL129,IF(ABS($H129-SUM($J129:AL129))>0,$H129-SUM($J129:AL129),0)) -> 0 | AN129: =IF(ABS($H129-SUM($J129:AM129))>=ABS(AM129),AM129,IF(ABS($H129-SUM($J129:AM129))>0,$H129-SUM($J129:AM129),0)) -> 0 | AO129: =IF(ABS($H129-SUM($J129:AN129))>=ABS(AN129),AN129,IF(ABS($H129-SUM($J129:AN129))>0,$H129-SUM($J129:AN129),0)) -> 0 | AP129: =IF(ABS($H129-SUM($J129:AO129))>=ABS(AO129),AO129,IF(ABS($H129-SUM($J129:AO129))>0,$H129-SUM($J129:AO129),0)) -> 0 | AQ129: =IF(ABS($H129-SUM($J129:AP129))>=ABS(AP129),AP129,IF(ABS($H129-SUM($J129:AP129))>0,$H129-SUM($J129:AP129),0)) -> 0 | AR129: =IF(ABS($H129-SUM($J129:AQ129))>=ABS(AQ129),AQ129,IF(ABS($H129-SUM($J129:AQ129))>0,$H129-SUM($J129:AQ129),0)) -> 0 | AS129: =IF(ABS($H129-SUM($J129:AR129))>=ABS(AR129),AR129,IF(ABS($H129-SUM($J129:AR129))>0,$H129-SUM($J129:AR129),0)) -> 0 | AT129: =IF(ABS($H129-SUM($J129:AS129))>=ABS(AS129),AS129,IF(ABS($H129-SUM($J129:AS129))>0,$H129-SUM($J129:AS129),0)) -> 0 | AU129: =IF(ABS($H129-SUM($J129:AT129))>=ABS(AT129),AT129,IF(ABS($H129-SUM($J129:AT129))>0,$H129-SUM($J129:AT129),0)) -> 0 | AV129: =IF(ABS($H129-SUM($J129:AU129))>=ABS(AU129),AU129,IF(ABS($H129-SUM($J129:AU129))>0,$H129-SUM($J129:AU129),0)) -> 0 | AW129: =IF(ABS($H129-SUM($J129:AV129))>=ABS(AV129),AV129,IF(ABS($H129-SUM($J129:AV129))>0,$H129-SUM($J129:AV129),0)) -> 0 | AX129: =IF(ABS($H129-SUM($J129:AW129))>=ABS(AW129),AW129,IF(ABS($H129-SUM($J129:AW129))>0,$H129-SUM($J129:AW129),0)) -> 0 | AY129: =IF(ABS($H129-SUM($J129:AX129))>=ABS(AX129),AX129,IF(ABS($H129-SUM($J129:AX129))>0,$H129-SUM($J129:AX129),0)) -> 0 | AZ129: =IF(ABS($H129-SUM($J129:AY129))>=ABS(AY129),AY129,IF(ABS($H129-SUM($J129:AY129))>0,$H129-SUM($J129:AY129),0)) -> 0 | BA129: =IF(ABS($H129-SUM($J129:AZ129))>=ABS(AZ129),AZ129,IF(ABS($H129-SUM($J129:AZ129))>0,$H129-SUM($J129:AZ129),0)) -> 0 | BB129: =IF(ABS($H129-SUM($J129:BA129))>=ABS(BA129),BA129,IF(ABS($H129-SUM($J129:BA129))>0,$H129-SUM($J129:BA129),0)) -> 0 | BC129: =IF(ABS($H129-SUM($J129:BB129))>=ABS(BB129),BB129,IF(ABS($H129-SUM($J129:BB129))>0,$H129-SUM($J129:BB129),0)) -> 0 | BD129: =IF(ABS($H129-SUM($J129:BC129))>=ABS(BC129),BC129,IF(ABS($H129-SUM($J129:BC129))>0,$H129-SUM($J129:BC129),0)) -> 0 | BE129: =IF(ABS($H129-SUM($J129:BD129))>=ABS(BD129),BD129,IF(ABS($H129-SUM($J129:BD129))>0,$H129-SUM($J129:BD129),0)) -> 0 | BF129: =IF(ABS($H129-SUM($J129:BE129))>=ABS(BE129),BE129,IF(ABS($H129-SUM($J129:BE129))>0,$H129-SUM($J129:BE129),0)) -> 0 | BG129: =IF(ABS($H129-SUM($J129:BF129))>=ABS(BF129),BF129,IF(ABS($H129-SUM($J129:BF129))>0,$H129-SUM($J129:BF129),0)) -> 0 | BH129: =IF(ABS($H129-SUM($J129:BG129))>=ABS(BG129),BG129,IF(ABS($H129-SUM($J129:BG129))>0,$H129-SUM($J129:BG129),0)) -> 0 | BI129: =IF(ABS($H129-SUM($J129:BH129))>=ABS(BH129),BH129,IF(ABS($H129-SUM($J129:BH129))>0,$H129-SUM($J129:BH129),0)) -> 0 | BJ129: =IF(ABS($H129-SUM($J129:BI129))>=ABS(BI129),BI129,IF(ABS($H129-SUM($J129:BI129))>0,$H129-SUM($J129:BI129),0)) -> 0 | BK129: =IF(ABS($H129-SUM($J129:BJ129))>=ABS(BJ129),BJ129,IF(ABS($H129-SUM($J129:BJ129))>0,$H129-SUM($J129:BJ129),0)) -> 0 | BL129: =IF(ABS($H129-SUM($J129:BK129))>=ABS(BK129),BK129,IF(ABS($H129-SUM($J129:BK129))>0,$H129-SUM($J129:BK129),0)) -> 0 | BM129: =IF(ABS($H129-SUM($J129:BL129))>=ABS(BL129),BL129,IF(ABS($H129-SUM($J129:BL129))>0,$H129-SUM($J129:BL129),0)) -> 0 | BN129: =IF(ABS($H129-SUM($J129:BM129))>=ABS(BM129),BM129,IF(ABS($H129-SUM($J129:BM129))>0,$H129-SUM($J129:BM129),0)) -> 0 | BP129: 0
C130: 2013 | D130: AER | E130: $ | F130: nominal | H130: 457114 | R130: 11427.85 | S130: 22855.7 | T130: 22855.7 | U130: 22855.7 | V130: 22855.7 | W130: 22855.7 | X130: 22855.7 | Y130: 22855.7 | Z130: 11427.85 | AA130: 22855.7 | AB130: 22855.7 | AC130: 22855.7 | AD130: 22855.7 | AE130: 22855.7 | AF130: =IF(ABS($H130-SUM($J130:AE130))>=ABS(AE130),AE130,IF(ABS($H130-SUM($J130:AE130))>0,$H130-SUM($J130:AE130),0)) -> 22855.7 | AG130: =IF(ABS($H130-SUM($J130:AF130))>=ABS(AF130),AF130,IF(ABS($H130-SUM($J130:AF130))>0,$H130-SUM($J130:AF130),0)) -> 22855.7 | AH130: =IF(ABS($H130-SUM($J130:AG130))>=ABS(AG130),AG130,IF(ABS($H130-SUM($J130:AG130))>0,$H130-SUM($J130:AG130),0)) -> 22855.7 | AI130: =IF(ABS($H130-SUM($J130:AH130))>=ABS(AH130),AH130,IF(ABS($H130-SUM($J130:AH130))>0,$H130-SUM($J130:AH130),0)) -> 22855.7 | AJ130: =IF(ABS($H130-SUM($J130:AI130))>=ABS(AI130),AI130,IF(ABS($H130-SUM($J130:AI130))>0,$H130-SUM($J130:AI130),0)) -> 22855.7 | AK130: =IF(ABS($H130-SUM($J130:AJ130))>=ABS(AJ130),AJ130,IF(ABS($H130-SUM($J130:AJ130))>0,$H130-SUM($J130:AJ130),0)) -> 22855.7 | AL130: =IF(ABS($H130-SUM($J130:AK130))>=ABS(AK130),AK130,IF(ABS($H130-SUM($J130:AK130))>0,$H130-SUM($J130:AK130),0)) -> 22855.7 | AM130: =IF(ABS($H130-SUM($J130:AL130))>=ABS(AL130),AL130,IF(ABS($H130-SUM($J130:AL130))>0,$H130-SUM($J130:AL130),0)) -> 0 | AN130: =IF(ABS($H130-SUM($J130:AM130))>=ABS(AM130),AM130,IF(ABS($H130-SUM($J130:AM130))>0,$H130-SUM($J130:AM130),0)) -> 0 | AO130: =IF(ABS($H130-SUM($J130:AN130))>=ABS(AN130),AN130,IF(ABS($H130-SUM($J130:AN130))>0,$H130-SUM($J130:AN130),0)) -> 0 | AP130: =IF(ABS($H130-SUM($J130:AO130))>=ABS(AO130),AO130,IF(ABS($H130-SUM($J130:AO130))>0,$H130-SUM($J130:AO130),0)) -> 0 | AQ130: =IF(ABS($H130-SUM($J130:AP130))>=ABS(AP130),AP130,IF(ABS($H130-SUM($J130:AP130))>0,$H130-SUM($J130:AP130),0)) -> 0 | AR130: =IF(ABS($H130-SUM($J130:AQ130))>=ABS(AQ130),AQ130,IF(ABS($H130-SUM($J130:AQ130))>0,$H130-SUM($J130:AQ130),0)) -> 0 | AS130: =IF(ABS($H130-SUM($J130:AR130))>=ABS(AR130),AR130,IF(ABS($H130-SUM($J130:AR130))>0,$H130-SUM($J130:AR130),0)) -> 0 | AT130: =IF(ABS($H130-SUM($J130:AS130))>=ABS(AS130),AS130,IF(ABS($H130-SUM($J130:AS130))>0,$H130-SUM($J130:AS130),0)) -> 0 | AU130: =IF(ABS($H130-SUM($J130:AT130))>=ABS(AT130),AT130,IF(ABS($H130-SUM($J130:AT130))>0,$H130-SUM($J130:AT130),0)) -> 0 | AV130: =IF(ABS($H130-SUM($J130:AU130))>=ABS(AU130),AU130,IF(ABS($H130-SUM($J130:AU130))>0,$H130-SUM($J130:AU130),0)) -> 0 | AW130: =IF(ABS($H130-SUM($J130:AV130))>=ABS(AV130),AV130,IF(ABS($H130-SUM($J130:AV130))>0,$H130-SUM($J130:AV130),0)) -> 0 | AX130: =IF(ABS($H130-SUM($J130:AW130))>=ABS(AW130),AW130,IF(ABS($H130-SUM($J130:AW130))>0,$H130-SUM($J130:AW130),0)) -> 0 | AY130: =IF(ABS($H130-SUM($J130:AX130))>=ABS(AX130),AX130,IF(ABS($H130-SUM($J130:AX130))>0,$H130-SUM($J130:AX130),0)) -> 0 | AZ130: =IF(ABS($H130-SUM($J130:AY130))>=ABS(AY130),AY130,IF(ABS($H130-SUM($J130:AY130))>0,$H130-SUM($J130:AY130),0)) -> 0 | BA130: =IF(ABS($H130-SUM($J130:AZ130))>=ABS(AZ130),AZ130,IF(ABS($H130-SUM($J130:AZ130))>0,$H130-SUM($J130:AZ130),0)) -> 0 | BB130: =IF(ABS($H130-SUM($J130:BA130))>=ABS(BA130),BA130,IF(ABS($H130-SUM($J130:BA130))>0,$H130-SUM($J130:BA130),0)) -> 0 | BC130: =IF(ABS($H130-SUM($J130:BB130))>=ABS(BB130),BB130,IF(ABS($H130-SUM($J130:BB130))>0,$H130-SUM($J130:BB130),0)) -> 0 | BD130: =IF(ABS($H130-SUM($J130:BC130))>=ABS(BC130),BC130,IF(ABS($H130-SUM($J130:BC130))>0,$H130-SUM($J130:BC130),0)) -> 0 | BE130: =IF(ABS($H130-SUM($J130:BD130))>=ABS(BD130),BD130,IF(ABS($H130-SUM($J130:BD130))>0,$H130-SUM($J130:BD130),0)) -> 0 | BF130: =IF(ABS($H130-SUM($J130:BE130))>=ABS(BE130),BE130,IF(ABS($H130-SUM($J130:BE130))>0,$H130-SUM($J130:BE130),0)) -> 0 | BG130: =IF(ABS($H130-SUM($J130:BF130))>=ABS(BF130),BF130,IF(ABS($H130-SUM($J130:BF130))>0,$H130-SUM($J130:BF130),0)) -> 0 | BH130: =IF(ABS($H130-SUM($J130:BG130))>=ABS(BG130),BG130,IF(ABS($H130-SUM($J130:BG130))>0,$H130-SUM($J130:BG130),0)) -> 0 | BI130: =IF(ABS($H130-SUM($J130:BH130))>=ABS(BH130),BH130,IF(ABS($H130-SUM($J130:BH130))>0,$H130-SUM($J130:BH130),0)) -> 0 | BJ130: =IF(ABS($H130-SUM($J130:BI130))>=ABS(BI130),BI130,IF(ABS($H130-SUM($J130:BI130))>0,$H130-SUM($J130:BI130),0)) -> 0 | BK130: =IF(ABS($H130-SUM($J130:BJ130))>=ABS(BJ130),BJ130,IF(ABS($H130-SUM($J130:BJ130))>0,$H130-SUM($J130:BJ130),0)) -> 0 | BL130: =IF(ABS($H130-SUM($J130:BK130))>=ABS(BK130),BK130,IF(ABS($H130-SUM($J130:BK130))>0,$H130-SUM($J130:BK130),0)) -> 0 | BM130: =IF(ABS($H130-SUM($J130:BL130))>=ABS(BL130),BL130,IF(ABS($H130-SUM($J130:BL130))>0,$H130-SUM($J130:BL130),0)) -> 0 | BN130: =IF(ABS($H130-SUM($J130:BM130))>=ABS(BM130),BM130,IF(ABS($H130-SUM($J130:BM130))>0,$H130-SUM($J130:BM130),0)) -> 0 | BP130: 0
C131: 2014 | D131: AER | E131: $ | F131: nominal | H131: 459265.214 | S131: 11481.63035 | T131: 22963.2607 | U131: 22963.2607 | V131: 22963.2607 | W131: 22963.2607 | X131: 22963.2607 | Y131: 22963.2607 | Z131: 11481.63035 | AA131: 22963.2607 | AB131: 22963.2607 | AC131: 22963.2607 | AD131: 22963.2607 | AE131: 22963.2607 | AF131: =IF(ABS($H131-SUM($J131:AE131))>=ABS(AE131),AE131,IF(ABS($H131-SUM($J131:AE131))>0,$H131-SUM($J131:AE131),0)) -> 22963.2607 | AG131: =IF(ABS($H131-SUM($J131:AF131))>=ABS(AF131),AF131,IF(ABS($H131-SUM($J131:AF131))>0,$H131-SUM($J131:AF131),0)) -> 22963.2607 | AH131: =IF(ABS($H131-SUM($J131:AG131))>=ABS(AG131),AG131,IF(ABS($H131-SUM($J131:AG131))>0,$H131-SUM($J131:AG131),0)) -> 22963.2607 | AI131: =IF(ABS($H131-SUM($J131:AH131))>=ABS(AH131),AH131,IF(ABS($H131-SUM($J131:AH131))>0,$H131-SUM($J131:AH131),0)) -> 22963.2607 | AJ131: =IF(ABS($H131-SUM($J131:AI131))>=ABS(AI131),AI131,IF(ABS($H131-SUM($J131:AI131))>0,$H131-SUM($J131:AI131),0)) -> 22963.2607 | AK131: =IF(ABS($H131-SUM($J131:AJ131))>=ABS(AJ131),AJ131,IF(ABS($H131-SUM($J131:AJ131))>0,$H131-SUM($J131:AJ131),0)) -> 22963.2607 | AL131: =IF(ABS($H131-SUM($J131:AK131))>=ABS(AK131),AK131,IF(ABS($H131-SUM($J131:AK131))>0,$H131-SUM($J131:AK131),0)) -> 22963.2607 | AM131: =IF(ABS($H131-SUM($J131:AL131))>=ABS(AL131),AL131,IF(ABS($H131-SUM($J131:AL131))>0,$H131-SUM($J131:AL131),0)) -> 22963.2607 | AN131: =IF(ABS($H131-SUM($J131:AM131))>=ABS(AM131),AM131,IF(ABS($H131-SUM($J131:AM131))>0,$H131-SUM($J131:AM131),0)) -> 0 | AO131: =IF(ABS($H131-SUM($J131:AN131))>=ABS(AN131),AN131,IF(ABS($H131-SUM($J131:AN131))>0,$H131-SUM($J131:AN131),0)) -> 0 | AP131: =IF(ABS($H131-SUM($J131:AO131))>=ABS(AO131),AO131,IF(ABS($H131-SUM($J131:AO131))>0,$H131-SUM($J131:AO131),0)) -> 0 | AQ131: =IF(ABS($H131-SUM($J131:AP131))>=ABS(AP131),AP131,IF(ABS($H131-SUM($J131:AP131))>0,$H131-SUM($J131:AP131),0)) -> 0 | AR131: =IF(ABS($H131-SUM($J131:AQ131))>=ABS(AQ131),AQ131,IF(ABS($H131-SUM($J131:AQ131))>0,$H131-SUM($J131:AQ131),0)) -> 0 | AS131: =IF(ABS($H131-SUM($J131:AR131))>=ABS(AR131),AR131,IF(ABS($H131-SUM($J131:AR131))>0,$H131-SUM($J131:AR131),0)) -> 0 | AT131: =IF(ABS($H131-SUM($J131:AS131))>=ABS(AS131),AS131,IF(ABS($H131-SUM($J131:AS131))>0,$H131-SUM($J131:AS131),0)) -> 0 | AU131: =IF(ABS($H131-SUM($J131:AT131))>=ABS(AT131),AT131,IF(ABS($H131-SUM($J131:AT131))>0,$H131-SUM($J131:AT131),0)) -> 0 | AV131: =IF(ABS($H131-SUM($J131:AU131))>=ABS(AU131),AU131,IF(ABS($H131-SUM($J131:AU131))>0,$H131-SUM($J131:AU131),0)) -> 0 | AW131: =IF(ABS($H131-SUM($J131:AV131))>=ABS(AV131),AV131,IF(ABS($H131-SUM($J131:AV131))>0,$H131-SUM($J131:AV131),0)) -> 0 | AX131: =IF(ABS($H131-SUM($J131:AW131))>=ABS(AW131),AW131,IF(ABS($H131-SUM($J131:AW131))>0,$H131-SUM($J131:AW131),0)) -> 0 | AY131: =IF(ABS($H131-SUM($J131:AX131))>=ABS(AX131),AX131,IF(ABS($H131-SUM($J131:AX131))>0,$H131-SUM($J131:AX131),0)) -> 0 | AZ131: =IF(ABS($H131-SUM($J131:AY131))>=ABS(AY131),AY131,IF(ABS($H131-SUM($J131:AY131))>0,$H131-SUM($J131:AY131),0)) -> 0 | BA131: =IF(ABS($H131-SUM($J131:AZ131))>=ABS(AZ131),AZ131,IF(ABS($H131-SUM($J131:AZ131))>0,$H131-SUM($J131:AZ131),0)) -> 0 | BB131: =IF(ABS($H131-SUM($J131:BA131))>=ABS(BA131),BA131,IF(ABS($H131-SUM($J131:BA131))>0,$H131-SUM($J131:BA131),0)) -> 0 | BC131: =IF(ABS($H131-SUM($J131:BB131))>=ABS(BB131),BB131,IF(ABS($H131-SUM($J131:BB131))>0,$H131-SUM($J131:BB131),0)) -> 0 | BD131: =IF(ABS($H131-SUM($J131:BC131))>=ABS(BC131),BC131,IF(ABS($H131-SUM($J131:BC131))>0,$H131-SUM($J131:BC131),0)) -> 0 | BE131: =IF(ABS($H131-SUM($J131:BD131))>=ABS(BD131),BD131,IF(ABS($H131-SUM($J131:BD131))>0,$H131-SUM($J131:BD131),0)) -> 0 | BF131: =IF(ABS($H131-SUM($J131:BE131))>=ABS(BE131),BE131,IF(ABS($H131-SUM($J131:BE131))>0,$H131-SUM($J131:BE131),0)) -> 0 | BG131: =IF(ABS($H131-SUM($J131:BF131))>=ABS(BF131),BF131,IF(ABS($H131-SUM($J131:BF131))>0,$H131-SUM($J131:BF131),0)) -> 0 | BH131: =IF(ABS($H131-SUM($J131:BG131))>=ABS(BG131),BG131,IF(ABS($H131-SUM($J131:BG131))>0,$H131-SUM($J131:BG131),0)) -> 0 | BI131: =IF(ABS($H131-SUM($J131:BH131))>=ABS(BH131),BH131,IF(ABS($H131-SUM($J131:BH131))>0,$H131-SUM($J131:BH131),0)) -> 0 | BJ131: =IF(ABS($H131-SUM($J131:BI131))>=ABS(BI131),BI131,IF(ABS($H131-SUM($J131:BI131))>0,$H131-SUM($J131:BI131),0)) -> 0 | BK131: =IF(ABS($H131-SUM($J131:BJ131))>=ABS(BJ131),BJ131,IF(ABS($H131-SUM($J131:BJ131))>0,$H131-SUM($J131:BJ131),0)) -> 0 | BL131: =IF(ABS($H131-SUM($J131:BK131))>=ABS(BK131),BK131,IF(ABS($H131-SUM($J131:BK131))>0,$H131-SUM($J131:BK131),0)) -> 0 | BM131: =IF(ABS($H131-SUM($J131:BL131))>=ABS(BL131),BL131,IF(ABS($H131-SUM($J131:BL131))>0,$H131-SUM($J131:BL131),0)) -> 0 | BN131: =IF(ABS($H131-SUM($J131:BM131))>=ABS(BM131),BM131,IF(ABS($H131-SUM($J131:BM131))>0,$H131-SUM($J131:BM131),0)) -> 0 | BP131: 0
C132: 2015 | D132: AER | E132: $ | F132: nominal | H132: -1085707.86 | T132: -27142.6965 | U132: -54285.393 | V132: -54285.393 | W132: -54285.393 | X132: -54285.393 | Y132: -54285.393 | Z132: -27142.6965 | AA132: -54285.393 | AB132: -54285.393 | AC132: -54285.393 | AD132: -54285.393 | AE132: -54285.393 | AF132: =IF(ABS($H132-SUM($J132:AE132))>=ABS(AE132),AE132,IF(ABS($H132-SUM($J132:AE132))>0,$H132-SUM($J132:AE132),0)) -> -54285.393 | AG132: =IF(ABS($H132-SUM($J132:AF132))>=ABS(AF132),AF132,IF(ABS($H132-SUM($J132:AF132))>0,$H132-SUM($J132:AF132),0)) -> -54285.393 | AH132: =IF(ABS($H132-SUM($J132:AG132))>=ABS(AG132),AG132,IF(ABS($H132-SUM($J132:AG132))>0,$H132-SUM($J132:AG132),0)) -> -54285.393 | AI132: =IF(ABS($H132-SUM($J132:AH132))>=ABS(AH132),AH132,IF(ABS($H132-SUM($J132:AH132))>0,$H132-SUM($J132:AH132),0)) -> -54285.393 | AJ132: =IF(ABS($H132-SUM($J132:AI132))>=ABS(AI132),AI132,IF(ABS($H132-SUM($J132:AI132))>0,$H132-SUM($J132:AI132),0)) -> -54285.393 | AK132: =IF(ABS($H132-SUM($J132:AJ132))>=ABS(AJ132),AJ132,IF(ABS($H132-SUM($J132:AJ132))>0,$H132-SUM($J132:AJ132),0)) -> -54285.393 | AL132: =IF(ABS($H132-SUM($J132:AK132))>=ABS(AK132),AK132,IF(ABS($H132-SUM($J132:AK132))>0,$H132-SUM($J132:AK132),0)) -> -54285.393 | AM132: =IF(ABS($H132-SUM($J132:AL132))>=ABS(AL132),AL132,IF(ABS($H132-SUM($J132:AL132))>0,$H132-SUM($J132:AL132),0)) -> -54285.393 | AN132: =IF(ABS($H132-SUM($J132:AM132))>=ABS(AM132),AM132,IF(ABS($H132-SUM($J132:AM132))>0,$H132-SUM($J132:AM132),0)) -> -54285.393 | AO132: =IF(ABS($H132-SUM($J132:AN132))>=ABS(AN132),AN132,IF(ABS($H132-SUM($J132:AN132))>0,$H132-SUM($J132:AN132),0)) -> 0 | AP132: =IF(ABS($H132-SUM($J132:AO132))>=ABS(AO132),AO132,IF(ABS($H132-SUM($J132:AO132))>0,$H132-SUM($J132:AO132),0)) -> 0 | AQ132: =IF(ABS($H132-SUM($J132:AP132))>=ABS(AP132),AP132,IF(ABS($H132-SUM($J132:AP132))>0,$H132-SUM($J132:AP132),0)) -> 0 | AR132: =IF(ABS($H132-SUM($J132:AQ132))>=ABS(AQ132),AQ132,IF(ABS($H132-SUM($J132:AQ132))>0,$H132-SUM($J132:AQ132),0)) -> 0 | AS132: =IF(ABS($H132-SUM($J132:AR132))>=ABS(AR132),AR132,IF(ABS($H132-SUM($J132:AR132))>0,$H132-SUM($J132:AR132),0)) -> 0 | AT132: =IF(ABS($H132-SUM($J132:AS132))>=ABS(AS132),AS132,IF(ABS($H132-SUM($J132:AS132))>0,$H132-SUM($J132:AS132),0)) -> 0 | AU132: =IF(ABS($H132-SUM($J132:AT132))>=ABS(AT132),AT132,IF(ABS($H132-SUM($J132:AT132))>0,$H132-SUM($J132:AT132),0)) -> 0 | AV132: =IF(ABS($H132-SUM($J132:AU132))>=ABS(AU132),AU132,IF(ABS($H132-SUM($J132:AU132))>0,$H132-SUM($J132:AU132),0)) -> 0 | AW132: =IF(ABS($H132-SUM($J132:AV132))>=ABS(AV132),AV132,IF(ABS($H132-SUM($J132:AV132))>0,$H132-SUM($J132:AV132),0)) -> 0 | AX132: =IF(ABS($H132-SUM($J132:AW132))>=ABS(AW132),AW132,IF(ABS($H132-SUM($J132:AW132))>0,$H132-SUM($J132:AW132),0)) -> 0 | AY132: =IF(ABS($H132-SUM($J132:AX132))>=ABS(AX132),AX132,IF(ABS($H132-SUM($J132:AX132))>0,$H132-SUM($J132:AX132),0)) -> 0 | AZ132: =IF(ABS($H132-SUM($J132:AY132))>=ABS(AY132),AY132,IF(ABS($H132-SUM($J132:AY132))>0,$H132-SUM($J132:AY132),0)) -> 0 | BA132: =IF(ABS($H132-SUM($J132:AZ132))>=ABS(AZ132),AZ132,IF(ABS($H132-SUM($J132:AZ132))>0,$H132-SUM($J132:AZ132),0)) -> 0 | BB132: =IF(ABS($H132-SUM($J132:BA132))>=ABS(BA132),BA132,IF(ABS($H132-SUM($J132:BA132))>0,$H132-SUM($J132:BA132),0)) -> 0 | BC132: =IF(ABS($H132-SUM($J132:BB132))>=ABS(BB132),BB132,IF(ABS($H132-SUM($J132:BB132))>0,$H132-SUM($J132:BB132),0)) -> 0 | BD132: =IF(ABS($H132-SUM($J132:BC132))>=ABS(BC132),BC132,IF(ABS($H132-SUM($J132:BC132))>0,$H132-SUM($J132:BC132),0)) -> 0 | BE132: =IF(ABS($H132-SUM($J132:BD132))>=ABS(BD132),BD132,IF(ABS($H132-SUM($J132:BD132))>0,$H132-SUM($J132:BD132),0)) -> 0 | BF132: =IF(ABS($H132-SUM($J132:BE132))>=ABS(BE132),BE132,IF(ABS($H132-SUM($J132:BE132))>0,$H132-SUM($J132:BE132),0)) -> 0 | BG132: =IF(ABS($H132-SUM($J132:BF132))>=ABS(BF132),BF132,IF(ABS($H132-SUM($J132:BF132))>0,$H132-SUM($J132:BF132),0)) -> 0 | BH132: =IF(ABS($H132-SUM($J132:BG132))>=ABS(BG132),BG132,IF(ABS($H132-SUM($J132:BG132))>0,$H132-SUM($J132:BG132),0)) -> 0 | BI132: =IF(ABS($H132-SUM($J132:BH132))>=ABS(BH132),BH132,IF(ABS($H132-SUM($J132:BH132))>0,$H132-SUM($J132:BH132),0)) -> 0 | BJ132: =IF(ABS($H132-SUM($J132:BI132))>=ABS(BI132),BI132,IF(ABS($H132-SUM($J132:BI132))>0,$H132-SUM($J132:BI132),0)) -> 0 | BK132: =IF(ABS($H132-SUM($J132:BJ132))>=ABS(BJ132),BJ132,IF(ABS($H132-SUM($J132:BJ132))>0,$H132-SUM($J132:BJ132),0)) -> 0 | BL132: =IF(ABS($H132-SUM($J132:BK132))>=ABS(BK132),BK132,IF(ABS($H132-SUM($J132:BK132))>0,$H132-SUM($J132:BK132),0)) -> 0 | BM132: =IF(ABS($H132-SUM($J132:BL132))>=ABS(BL132),BL132,IF(ABS($H132-SUM($J132:BL132))>0,$H132-SUM($J132:BL132),0)) -> 0 | BN132: =IF(ABS($H132-SUM($J132:BM132))>=ABS(BM132),BM132,IF(ABS($H132-SUM($J132:BM132))>0,$H132-SUM($J132:BM132),0)) -> 0 | BP132: 0
C133: 2016 | D133: AER | E133: $ | F133: nominal | H133: 527205.07 | U133: 13180.12675 | V133: 26360.2535 | W133: 26360.2535 | X133: 26360.2535 | Y133: 26360.2535 | Z133: 13180.12675 | AA133: 26360.2535 | AB133: 26360.2535 | AC133: 26360.2535 | AD133: 26360.2535 | AE133: 26360.2535 | AF133: =IF(ABS($H133-SUM($J133:AE133))>=ABS(AE133),AE133,IF(ABS($H133-SUM($J133:AE133))>0,$H133-SUM($J133:AE133),0)) -> 26360.2535 | AG133: =IF(ABS($H133-SUM($J133:AF133))>=ABS(AF133),AF133,IF(ABS($H133-SUM($J133:AF133))>0,$H133-SUM($J133:AF133),0)) -> 26360.2535 | AH133: =IF(ABS($H133-SUM($J133:AG133))>=ABS(AG133),AG133,IF(ABS($H133-SUM($J133:AG133))>0,$H133-SUM($J133:AG133),0)) -> 26360.2535 | AI133: =IF(ABS($H133-SUM($J133:AH133))>=ABS(AH133),AH133,IF(ABS($H133-SUM($J133:AH133))>0,$H133-SUM($J133:AH133),0)) -> 26360.2535 | AJ133: =IF(ABS($H133-SUM($J133:AI133))>=ABS(AI133),AI133,IF(ABS($H133-SUM($J133:AI133))>0,$H133-SUM($J133:AI133),0)) -> 26360.2535 | AK133: =IF(ABS($H133-SUM($J133:AJ133))>=ABS(AJ133),AJ133,IF(ABS($H133-SUM($J133:AJ133))>0,$H133-SUM($J133:AJ133),0)) -> 26360.2535 | AL133: =IF(ABS($H133-SUM($J133:AK133))>=ABS(AK133),AK133,IF(ABS($H133-SUM($J133:AK133))>0,$H133-SUM($J133:AK133),0)) -> 26360.2535 | AM133: =IF(ABS($H133-SUM($J133:AL133))>=ABS(AL133),AL133,IF(ABS($H133-SUM($J133:AL133))>0,$H133-SUM($J133:AL133),0)) -> 26360.2535 | AN133: =IF(ABS($H133-SUM($J133:AM133))>=ABS(AM133),AM133,IF(ABS($H133-SUM($J133:AM133))>0,$H133-SUM($J133:AM133),0)) -> 26360.2535 | AO133: =IF(ABS($H133-SUM($J133:AN133))>=ABS(AN133),AN133,IF(ABS($H133-SUM($J133:AN133))>0,$H133-SUM($J133:AN133),0)) -> 26360.2535 | AP133: =IF(ABS($H133-SUM($J133:AO133))>=ABS(AO133),AO133,IF(ABS($H133-SUM($J133:AO133))>0,$H133-SUM($J133:AO133),0)) -> 0 | AQ133: =IF(ABS($H133-SUM($J133:AP133))>=ABS(AP133),AP133,IF(ABS($H133-SUM($J133:AP133))>0,$H133-SUM($J133:AP133),0)) -> 0 | AR133: =IF(ABS($H133-SUM($J133:AQ133))>=ABS(AQ133),AQ133,IF(ABS($H133-SUM($J133:AQ133))>0,$H133-SUM($J133:AQ133),0)) -> 0 | AS133: =IF(ABS($H133-SUM($J133:AR133))>=ABS(AR133),AR133,IF(ABS($H133-SUM($J133:AR133))>0,$H133-SUM($J133:AR133),0)) -> 0 | AT133: =IF(ABS($H133-SUM($J133:AS133))>=ABS(AS133),AS133,IF(ABS($H133-SUM($J133:AS133))>0,$H133-SUM($J133:AS133),0)) -> 0 | AU133: =IF(ABS($H133-SUM($J133:AT133))>=ABS(AT133),AT133,IF(ABS($H133-SUM($J133:AT133))>0,$H133-SUM($J133:AT133),0)) -> 0 | AV133: =IF(ABS($H133-SUM($J133:AU133))>=ABS(AU133),AU133,IF(ABS($H133-SUM($J133:AU133))>0,$H133-SUM($J133:AU133),0)) -> 0 | AW133: =IF(ABS($H133-SUM($J133:AV133))>=ABS(AV133),AV133,IF(ABS($H133-SUM($J133:AV133))>0,$H133-SUM($J133:AV133),0)) -> 0 | AX133: =IF(ABS($H133-SUM($J133:AW133))>=ABS(AW133),AW133,IF(ABS($H133-SUM($J133:AW133))>0,$H133-SUM($J133:AW133),0)) -> 0 | AY133: =IF(ABS($H133-SUM($J133:AX133))>=ABS(AX133),AX133,IF(ABS($H133-SUM($J133:AX133))>0,$H133-SUM($J133:AX133),0)) -> 0 | AZ133: =IF(ABS($H133-SUM($J133:AY133))>=ABS(AY133),AY133,IF(ABS($H133-SUM($J133:AY133))>0,$H133-SUM($J133:AY133),0)) -> 0 | BA133: =IF(ABS($H133-SUM($J133:AZ133))>=ABS(AZ133),AZ133,IF(ABS($H133-SUM($J133:AZ133))>0,$H133-SUM($J133:AZ133),0)) -> 0 | BB133: =IF(ABS($H133-SUM($J133:BA133))>=ABS(BA133),BA133,IF(ABS($H133-SUM($J133:BA133))>0,$H133-SUM($J133:BA133),0)) -> 0 | BC133: =IF(ABS($H133-SUM($J133:BB133))>=ABS(BB133),BB133,IF(ABS($H133-SUM($J133:BB133))>0,$H133-SUM($J133:BB133),0)) -> 0 | BD133: =IF(ABS($H133-SUM($J133:BC133))>=ABS(BC133),BC133,IF(ABS($H133-SUM($J133:BC133))>0,$H133-SUM($J133:BC133),0)) -> 0 | BE133: =IF(ABS($H133-SUM($J133:BD133))>=ABS(BD133),BD133,IF(ABS($H133-SUM($J133:BD133))>0,$H133-SUM($J133:BD133),0)) -> 0 | BF133: =IF(ABS($H133-SUM($J133:BE133))>=ABS(BE133),BE133,IF(ABS($H133-SUM($J133:BE133))>0,$H133-SUM($J133:BE133),0)) -> 0 | BG133: =IF(ABS($H133-SUM($J133:BF133))>=ABS(BF133),BF133,IF(ABS($H133-SUM($J133:BF133))>0,$H133-SUM($J133:BF133),0)) -> 0 | BH133: =IF(ABS($H133-SUM($J133:BG133))>=ABS(BG133),BG133,IF(ABS($H133-SUM($J133:BG133))>0,$H133-SUM($J133:BG133),0)) -> 0 | BI133: =IF(ABS($H133-SUM($J133:BH133))>=ABS(BH133),BH133,IF(ABS($H133-SUM($J133:BH133))>0,$H133-SUM($J133:BH133),0)) -> 0 | BJ133: =IF(ABS($H133-SUM($J133:BI133))>=ABS(BI133),BI133,IF(ABS($H133-SUM($J133:BI133))>0,$H133-SUM($J133:BI133),0)) -> 0 | BK133: =IF(ABS($H133-SUM($J133:BJ133))>=ABS(BJ133),BJ133,IF(ABS($H133-SUM($J133:BJ133))>0,$H133-SUM($J133:BJ133),0)) -> 0 | BL133: =IF(ABS($H133-SUM($J133:BK133))>=ABS(BK133),BK133,IF(ABS($H133-SUM($J133:BK133))>0,$H133-SUM($J133:BK133),0)) -> 0 | BM133: =IF(ABS($H133-SUM($J133:BL133))>=ABS(BL133),BL133,IF(ABS($H133-SUM($J133:BL133))>0,$H133-SUM($J133:BL133),0)) -> 0 | BN133: =IF(ABS($H133-SUM($J133:BM133))>=ABS(BM133),BM133,IF(ABS($H133-SUM($J133:BM133))>0,$H133-SUM($J133:BM133),0)) -> 0 | BP133: 0
C134: 2017 | D134: AER | E134: $ | F134: nominal | H134: 566810.17 | V134: 14170.25425 | W134: 28340.5085 | X134: 28340.5085 | Y134: 28340.5085 | Z134: 14170.25425 | AA134: 28340.5085 | AB134: 28340.5085 | AC134: 28340.5085 | AD134: 28340.5085 | AE134: 28340.5085 | AF134: =IF(ABS($H134-SUM($J134:AE134))>=ABS(AE134),AE134,IF(ABS($H134-SUM($J134:AE134))>0,$H134-SUM($J134:AE134),0)) -> 28340.5085 | AG134: =IF(ABS($H134-SUM($J134:AF134))>=ABS(AF134),AF134,IF(ABS($H134-SUM($J134:AF134))>0,$H134-SUM($J134:AF134),0)) -> 28340.5085 | AH134: =IF(ABS($H134-SUM($J134:AG134))>=ABS(AG134),AG134,IF(ABS($H134-SUM($J134:AG134))>0,$H134-SUM($J134:AG134),0)) -> 28340.5085 | AI134: =IF(ABS($H134-SUM($J134:AH134))>=ABS(AH134),AH134,IF(ABS($H134-SUM($J134:AH134))>0,$H134-SUM($J134:AH134),0)) -> 28340.5085 | AJ134: =IF(ABS($H134-SUM($J134:AI134))>=ABS(AI134),AI134,IF(ABS($H134-SUM($J134:AI134))>0,$H134-SUM($J134:AI134),0)) -> 28340.5085 | AK134: =IF(ABS($H134-SUM($J134:AJ134))>=ABS(AJ134),AJ134,IF(ABS($H134-SUM($J134:AJ134))>0,$H134-SUM($J134:AJ134),0)) -> 28340.5085 | AL134: =IF(ABS($H134-SUM($J134:AK134))>=ABS(AK134),AK134,IF(ABS($H134-SUM($J134:AK134))>0,$H134-SUM($J134:AK134),0)) -> 28340.5085 | AM134: =IF(ABS($H134-SUM($J134:AL134))>=ABS(AL134),AL134,IF(ABS($H134-SUM($J134:AL134))>0,$H134-SUM($J134:AL134),0)) -> 28340.5085 | AN134: =IF(ABS($H134-SUM($J134:AM134))>=ABS(AM134),AM134,IF(ABS($H134-SUM($J134:AM134))>0,$H134-SUM($J134:AM134),0)) -> 28340.5085 | AO134: =IF(ABS($H134-SUM($J134:AN134))>=ABS(AN134),AN134,IF(ABS($H134-SUM($J134:AN134))>0,$H134-SUM($J134:AN134),0)) -> 28340.5085 | AP134: =IF(ABS($H134-SUM($J134:AO134))>=ABS(AO134),AO134,IF(ABS($H134-SUM($J134:AO134))>0,$H134-SUM($J134:AO134),0)) -> 28340.5085 | AQ134: =IF(ABS($H134-SUM($J134:AP134))>=ABS(AP134),AP134,IF(ABS($H134-SUM($J134:AP134))>0,$H134-SUM($J134:AP134),0)) -> 0 | AR134: =IF(ABS($H134-SUM($J134:AQ134))>=ABS(AQ134),AQ134,IF(ABS($H134-SUM($J134:AQ134))>0,$H134-SUM($J134:AQ134),0)) -> 0 | AS134: =IF(ABS($H134-SUM($J134:AR134))>=ABS(AR134),AR134,IF(ABS($H134-SUM($J134:AR134))>0,$H134-SUM($J134:AR134),0)) -> 0 | AT134: =IF(ABS($H134-SUM($J134:AS134))>=ABS(AS134),AS134,IF(ABS($H134-SUM($J134:AS134))>0,$H134-SUM($J134:AS134),0)) -> 0 | AU134: =IF(ABS($H134-SUM($J134:AT134))>=ABS(AT134),AT134,IF(ABS($H134-SUM($J134:AT134))>0,$H134-SUM($J134:AT134),0)) -> 0 | AV134: =IF(ABS($H134-SUM($J134:AU134))>=ABS(AU134),AU134,IF(ABS($H134-SUM($J134:AU134))>0,$H134-SUM($J134:AU134),0)) -> 0 | AW134: =IF(ABS($H134-SUM($J134:AV134))>=ABS(AV134),AV134,IF(ABS($H134-SUM($J134:AV134))>0,$H134-SUM($J134:AV134),0)) -> 0 | AX134: =IF(ABS($H134-SUM($J134:AW134))>=ABS(AW134),AW134,IF(ABS($H134-SUM($J134:AW134))>0,$H134-SUM($J134:AW134),0)) -> 0 | AY134: =IF(ABS($H134-SUM($J134:AX134))>=ABS(AX134),AX134,IF(ABS($H134-SUM($J134:AX134))>0,$H134-SUM($J134:AX134),0)) -> 0 | AZ134: =IF(ABS($H134-SUM($J134:AY134))>=ABS(AY134),AY134,IF(ABS($H134-SUM($J134:AY134))>0,$H134-SUM($J134:AY134),0)) -> 0 | BA134: =IF(ABS($H134-SUM($J134:AZ134))>=ABS(AZ134),AZ134,IF(ABS($H134-SUM($J134:AZ134))>0,$H134-SUM($J134:AZ134),0)) -> 0 | BB134: =IF(ABS($H134-SUM($J134:BA134))>=ABS(BA134),BA134,IF(ABS($H134-SUM($J134:BA134))>0,$H134-SUM($J134:BA134),0)) -> 0 | BC134: =IF(ABS($H134-SUM($J134:BB134))>=ABS(BB134),BB134,IF(ABS($H134-SUM($J134:BB134))>0,$H134-SUM($J134:BB134),0)) -> 0 | BD134: =IF(ABS($H134-SUM($J134:BC134))>=ABS(BC134),BC134,IF(ABS($H134-SUM($J134:BC134))>0,$H134-SUM($J134:BC134),0)) -> 0 | BE134: =IF(ABS($H134-SUM($J134:BD134))>=ABS(BD134),BD134,IF(ABS($H134-SUM($J134:BD134))>0,$H134-SUM($J134:BD134),0)) -> 0 | BF134: =IF(ABS($H134-SUM($J134:BE134))>=ABS(BE134),BE134,IF(ABS($H134-SUM($J134:BE134))>0,$H134-SUM($J134:BE134),0)) -> 0 | BG134: =IF(ABS($H134-SUM($J134:BF134))>=ABS(BF134),BF134,IF(ABS($H134-SUM($J134:BF134))>0,$H134-SUM($J134:BF134),0)) -> 0 | BH134: =IF(ABS($H134-SUM($J134:BG134))>=ABS(BG134),BG134,IF(ABS($H134-SUM($J134:BG134))>0,$H134-SUM($J134:BG134),0)) -> 0 | BI134: =IF(ABS($H134-SUM($J134:BH134))>=ABS(BH134),BH134,IF(ABS($H134-SUM($J134:BH134))>0,$H134-SUM($J134:BH134),0)) -> 0 | BJ134: =IF(ABS($H134-SUM($J134:BI134))>=ABS(BI134),BI134,IF(ABS($H134-SUM($J134:BI134))>0,$H134-SUM($J134:BI134),0)) -> 0 | BK134: =IF(ABS($H134-SUM($J134:BJ134))>=ABS(BJ134),BJ134,IF(ABS($H134-SUM($J134:BJ134))>0,$H134-SUM($J134:BJ134),0)) -> 0 | BL134: =IF(ABS($H134-SUM($J134:BK134))>=ABS(BK134),BK134,IF(ABS($H134-SUM($J134:BK134))>0,$H134-SUM($J134:BK134),0)) -> 0 | BM134: =IF(ABS($H134-SUM($J134:BL134))>=ABS(BL134),BL134,IF(ABS($H134-SUM($J134:BL134))>0,$H134-SUM($J134:BL134),0)) -> 0 | BN134: =IF(ABS($H134-SUM($J134:BM134))>=ABS(BM134),BM134,IF(ABS($H134-SUM($J134:BM134))>0,$H134-SUM($J134:BM134),0)) -> 0 | BP134: 0
C135: 2018 | D135: AER | E135: $ | F135: nominal | H135: 339456.79 | W135: 8486.41975 | X135: 16972.8395 | Y135: 16972.8395 | Z135: 8486.41975 | AA135: 16972.8395 | AB135: 16972.8395 | AC135: 16972.8395 | AD135: 16972.8395 | AE135: 16972.8395 | AF135: =IF(ABS($H135-SUM($J135:AE135))>=ABS(AE135),AE135,IF(ABS($H135-SUM($J135:AE135))>0,$H135-SUM($J135:AE135),0)) -> 16972.8395 | AG135: =IF(ABS($H135-SUM($J135:AF135))>=ABS(AF135),AF135,IF(ABS($H135-SUM($J135:AF135))>0,$H135-SUM($J135:AF135),0)) -> 16972.8395 | AH135: =IF(ABS($H135-SUM($J135:AG135))>=ABS(AG135),AG135,IF(ABS($H135-SUM($J135:AG135))>0,$H135-SUM($J135:AG135),0)) -> 16972.8395 | AI135: =IF(ABS($H135-SUM($J135:AH135))>=ABS(AH135),AH135,IF(ABS($H135-SUM($J135:AH135))>0,$H135-SUM($J135:AH135),0)) -> 16972.8395 | AJ135: =IF(ABS($H135-SUM($J135:AI135))>=ABS(AI135),AI135,IF(ABS($H135-SUM($J135:AI135))>0,$H135-SUM($J135:AI135),0)) -> 16972.8395 | AK135: =IF(ABS($H135-SUM($J135:AJ135))>=ABS(AJ135),AJ135,IF(ABS($H135-SUM($J135:AJ135))>0,$H135-SUM($J135:AJ135),0)) -> 16972.8395 | AL135: =IF(ABS($H135-SUM($J135:AK135))>=ABS(AK135),AK135,IF(ABS($H135-SUM($J135:AK135))>0,$H135-SUM($J135:AK135),0)) -> 16972.8395 | AM135: =IF(ABS($H135-SUM($J135:AL135))>=ABS(AL135),AL135,IF(ABS($H135-SUM($J135:AL135))>0,$H135-SUM($J135:AL135),0)) -> 16972.8395 | AN135: =IF(ABS($H135-SUM($J135:AM135))>=ABS(AM135),AM135,IF(ABS($H135-SUM($J135:AM135))>0,$H135-SUM($J135:AM135),0)) -> 16972.8395 | AO135: =IF(ABS($H135-SUM($J135:AN135))>=ABS(AN135),AN135,IF(ABS($H135-SUM($J135:AN135))>0,$H135-SUM($J135:AN135),0)) -> 16972.8395 | AP135: =IF(ABS($H135-SUM($J135:AO135))>=ABS(AO135),AO135,IF(ABS($H135-SUM($J135:AO135))>0,$H135-SUM($J135:AO135),0)) -> 16972.8395 | AQ135: =IF(ABS($H135-SUM($J135:AP135))>=ABS(AP135),AP135,IF(ABS($H135-SUM($J135:AP135))>0,$H135-SUM($J135:AP135),0)) -> 16972.8395 | AR135: =IF(ABS($H135-SUM($J135:AQ135))>=ABS(AQ135),AQ135,IF(ABS($H135-SUM($J135:AQ135))>0,$H135-SUM($J135:AQ135),0)) -> 0 | AS135: =IF(ABS($H135-SUM($J135:AR135))>=ABS(AR135),AR135,IF(ABS($H135-SUM($J135:AR135))>0,$H135-SUM($J135:AR135),0)) -> 0 | AT135: =IF(ABS($H135-SUM($J135:AS135))>=ABS(AS135),AS135,IF(ABS($H135-SUM($J135:AS135))>0,$H135-SUM($J135:AS135),0)) -> 0 | AU135: =IF(ABS($H135-SUM($J135:AT135))>=ABS(AT135),AT135,IF(ABS($H135-SUM($J135:AT135))>0,$H135-SUM($J135:AT135),0)) -> 0 | AV135: =IF(ABS($H135-SUM($J135:AU135))>=ABS(AU135),AU135,IF(ABS($H135-SUM($J135:AU135))>0,$H135-SUM($J135:AU135),0)) -> 0 | AW135: =IF(ABS($H135-SUM($J135:AV135))>=ABS(AV135),AV135,IF(ABS($H135-SUM($J135:AV135))>0,$H135-SUM($J135:AV135),0)) -> 0 | AX135: =IF(ABS($H135-SUM($J135:AW135))>=ABS(AW135),AW135,IF(ABS($H135-SUM($J135:AW135))>0,$H135-SUM($J135:AW135),0)) -> 0 | AY135: =IF(ABS($H135-SUM($J135:AX135))>=ABS(AX135),AX135,IF(ABS($H135-SUM($J135:AX135))>0,$H135-SUM($J135:AX135),0)) -> 0 | AZ135: =IF(ABS($H135-SUM($J135:AY135))>=ABS(AY135),AY135,IF(ABS($H135-SUM($J135:AY135))>0,$H135-SUM($J135:AY135),0)) -> 0 | BA135: =IF(ABS($H135-SUM($J135:AZ135))>=ABS(AZ135),AZ135,IF(ABS($H135-SUM($J135:AZ135))>0,$H135-SUM($J135:AZ135),0)) -> 0 | BB135: =IF(ABS($H135-SUM($J135:BA135))>=ABS(BA135),BA135,IF(ABS($H135-SUM($J135:BA135))>0,$H135-SUM($J135:BA135),0)) -> 0 | BC135: =IF(ABS($H135-SUM($J135:BB135))>=ABS(BB135),BB135,IF(ABS($H135-SUM($J135:BB135))>0,$H135-SUM($J135:BB135),0)) -> 0 | BD135: =IF(ABS($H135-SUM($J135:BC135))>=ABS(BC135),BC135,IF(ABS($H135-SUM($J135:BC135))>0,$H135-SUM($J135:BC135),0)) -> 0 | BE135: =IF(ABS($H135-SUM($J135:BD135))>=ABS(BD135),BD135,IF(ABS($H135-SUM($J135:BD135))>0,$H135-SUM($J135:BD135),0)) -> 0 | BF135: =IF(ABS($H135-SUM($J135:BE135))>=ABS(BE135),BE135,IF(ABS($H135-SUM($J135:BE135))>0,$H135-SUM($J135:BE135),0)) -> 0 | BG135: =IF(ABS($H135-SUM($J135:BF135))>=ABS(BF135),BF135,IF(ABS($H135-SUM($J135:BF135))>0,$H135-SUM($J135:BF135),0)) -> 0 | BH135: =IF(ABS($H135-SUM($J135:BG135))>=ABS(BG135),BG135,IF(ABS($H135-SUM($J135:BG135))>0,$H135-SUM($J135:BG135),0)) -> 0 | BI135: =IF(ABS($H135-SUM($J135:BH135))>=ABS(BH135),BH135,IF(ABS($H135-SUM($J135:BH135))>0,$H135-SUM($J135:BH135),0)) -> 0 | BJ135: =IF(ABS($H135-SUM($J135:BI135))>=ABS(BI135),BI135,IF(ABS($H135-SUM($J135:BI135))>0,$H135-SUM($J135:BI135),0)) -> 0 | BK135: =IF(ABS($H135-SUM($J135:BJ135))>=ABS(BJ135),BJ135,IF(ABS($H135-SUM($J135:BJ135))>0,$H135-SUM($J135:BJ135),0)) -> 0 | BL135: =IF(ABS($H135-SUM($J135:BK135))>=ABS(BK135),BK135,IF(ABS($H135-SUM($J135:BK135))>0,$H135-SUM($J135:BK135),0)) -> 0 | BM135: =IF(ABS($H135-SUM($J135:BL135))>=ABS(BL135),BL135,IF(ABS($H135-SUM($J135:BL135))>0,$H135-SUM($J135:BL135),0)) -> 0 | BN135: =IF(ABS($H135-SUM($J135:BM135))>=ABS(BM135),BM135,IF(ABS($H135-SUM($J135:BM135))>0,$H135-SUM($J135:BM135),0)) -> 0 | BP135: 0
C136: 2019 | D136: AER | E136: $ | F136: nominal | H136: 569684.98 | X136: 14242.1245 | Y136: 28484.249 | Z136: 14242.1245 | AA136: 28484.249 | AB136: 28484.249 | AC136: 28484.249 | AD136: 28484.249 | AE136: 28484.249 | AF136: =IF(ABS($H136-SUM($J136:AE136))>=ABS(AE136),AE136,IF(ABS($H136-SUM($J136:AE136))>0,$H136-SUM($J136:AE136),0)) -> 28484.249 | AG136: =IF(ABS($H136-SUM($J136:AF136))>=ABS(AF136),AF136,IF(ABS($H136-SUM($J136:AF136))>0,$H136-SUM($J136:AF136),0)) -> 28484.249 | AH136: =IF(ABS($H136-SUM($J136:AG136))>=ABS(AG136),AG136,IF(ABS($H136-SUM($J136:AG136))>0,$H136-SUM($J136:AG136),0)) -> 28484.249 | AI136: =IF(ABS($H136-SUM($J136:AH136))>=ABS(AH136),AH136,IF(ABS($H136-SUM($J136:AH136))>0,$H136-SUM($J136:AH136),0)) -> 28484.249 | AJ136: =IF(ABS($H136-SUM($J136:AI136))>=ABS(AI136),AI136,IF(ABS($H136-SUM($J136:AI136))>0,$H136-SUM($J136:AI136),0)) -> 28484.249 | AK136: =IF(ABS($H136-SUM($J136:AJ136))>=ABS(AJ136),AJ136,IF(ABS($H136-SUM($J136:AJ136))>0,$H136-SUM($J136:AJ136),0)) -> 28484.249 | AL136: =IF(ABS($H136-SUM($J136:AK136))>=ABS(AK136),AK136,IF(ABS($H136-SUM($J136:AK136))>0,$H136-SUM($J136:AK136),0)) -> 28484.249 | AM136: =IF(ABS($H136-SUM($J136:AL136))>=ABS(AL136),AL136,IF(ABS($H136-SUM($J136:AL136))>0,$H136-SUM($J136:AL136),0)) -> 28484.249 | AN136: =IF(ABS($H136-SUM($J136:AM136))>=ABS(AM136),AM136,IF(ABS($H136-SUM($J136:AM136))>0,$H136-SUM($J136:AM136),0)) -> 28484.249 | AO136: =IF(ABS($H136-SUM($J136:AN136))>=ABS(AN136),AN136,IF(ABS($H136-SUM($J136:AN136))>0,$H136-SUM($J136:AN136),0)) -> 28484.249 | AP136: =IF(ABS($H136-SUM($J136:AO136))>=ABS(AO136),AO136,IF(ABS($H136-SUM($J136:AO136))>0,$H136-SUM($J136:AO136),0)) -> 28484.249 | AQ136: =IF(ABS($H136-SUM($J136:AP136))>=ABS(AP136),AP136,IF(ABS($H136-SUM($J136:AP136))>0,$H136-SUM($J136:AP136),0)) -> 28484.249 | AR136: =IF(ABS($H136-SUM($J136:AQ136))>=ABS(AQ136),AQ136,IF(ABS($H136-SUM($J136:AQ136))>0,$H136-SUM($J136:AQ136),0)) -> 28484.249 | AS136: =IF(ABS($H136-SUM($J136:AR136))>=ABS(AR136),AR136,IF(ABS($H136-SUM($J136:AR136))>0,$H136-SUM($J136:AR136),0)) -> 0 | AT136: =IF(ABS($H136-SUM($J136:AS136))>=ABS(AS136),AS136,IF(ABS($H136-SUM($J136:AS136))>0,$H136-SUM($J136:AS136),0)) -> 0 | AU136: =IF(ABS($H136-SUM($J136:AT136))>=ABS(AT136),AT136,IF(ABS($H136-SUM($J136:AT136))>0,$H136-SUM($J136:AT136),0)) -> 0 | AV136: =IF(ABS($H136-SUM($J136:AU136))>=ABS(AU136),AU136,IF(ABS($H136-SUM($J136:AU136))>0,$H136-SUM($J136:AU136),0)) -> 0 | AW136: =IF(ABS($H136-SUM($J136:AV136))>=ABS(AV136),AV136,IF(ABS($H136-SUM($J136:AV136))>0,$H136-SUM($J136:AV136),0)) -> 0 | AX136: =IF(ABS($H136-SUM($J136:AW136))>=ABS(AW136),AW136,IF(ABS($H136-SUM($J136:AW136))>0,$H136-SUM($J136:AW136),0)) -> 0 | AY136: =IF(ABS($H136-SUM($J136:AX136))>=ABS(AX136),AX136,IF(ABS($H136-SUM($J136:AX136))>0,$H136-SUM($J136:AX136),0)) -> 0 | AZ136: =IF(ABS($H136-SUM($J136:AY136))>=ABS(AY136),AY136,IF(ABS($H136-SUM($J136:AY136))>0,$H136-SUM($J136:AY136),0)) -> 0 | BA136: =IF(ABS($H136-SUM($J136:AZ136))>=ABS(AZ136),AZ136,IF(ABS($H136-SUM($J136:AZ136))>0,$H136-SUM($J136:AZ136),0)) -> 0 | BB136: =IF(ABS($H136-SUM($J136:BA136))>=ABS(BA136),BA136,IF(ABS($H136-SUM($J136:BA136))>0,$H136-SUM($J136:BA136),0)) -> 0 | BC136: =IF(ABS($H136-SUM($J136:BB136))>=ABS(BB136),BB136,IF(ABS($H136-SUM($J136:BB136))>0,$H136-SUM($J136:BB136),0)) -> 0 | BD136: =IF(ABS($H136-SUM($J136:BC136))>=ABS(BC136),BC136,IF(ABS($H136-SUM($J136:BC136))>0,$H136-SUM($J136:BC136),0)) -> 0 | BE136: =IF(ABS($H136-SUM($J136:BD136))>=ABS(BD136),BD136,IF(ABS($H136-SUM($J136:BD136))>0,$H136-SUM($J136:BD136),0)) -> 0 | BF136: =IF(ABS($H136-SUM($J136:BE136))>=ABS(BE136),BE136,IF(ABS($H136-SUM($J136:BE136))>0,$H136-SUM($J136:BE136),0)) -> 0 | BG136: =IF(ABS($H136-SUM($J136:BF136))>=ABS(BF136),BF136,IF(ABS($H136-SUM($J136:BF136))>0,$H136-SUM($J136:BF136),0)) -> 0 | BH136: =IF(ABS($H136-SUM($J136:BG136))>=ABS(BG136),BG136,IF(ABS($H136-SUM($J136:BG136))>0,$H136-SUM($J136:BG136),0)) -> 0 | BI136: =IF(ABS($H136-SUM($J136:BH136))>=ABS(BH136),BH136,IF(ABS($H136-SUM($J136:BH136))>0,$H136-SUM($J136:BH136),0)) -> 0 | BJ136: =IF(ABS($H136-SUM($J136:BI136))>=ABS(BI136),BI136,IF(ABS($H136-SUM($J136:BI136))>0,$H136-SUM($J136:BI136),0)) -> 0 | BK136: =IF(ABS($H136-SUM($J136:BJ136))>=ABS(BJ136),BJ136,IF(ABS($H136-SUM($J136:BJ136))>0,$H136-SUM($J136:BJ136),0)) -> 0 | BL136: =IF(ABS($H136-SUM($J136:BK136))>=ABS(BK136),BK136,IF(ABS($H136-SUM($J136:BK136))>0,$H136-SUM($J136:BK136),0)) -> 0 | BM136: =IF(ABS($H136-SUM($J136:BL136))>=ABS(BL136),BL136,IF(ABS($H136-SUM($J136:BL136))>0,$H136-SUM($J136:BL136),0)) -> 0 | BN136: =IF(ABS($H136-SUM($J136:BM136))>=ABS(BM136),BM136,IF(ABS($H136-SUM($J136:BM136))>0,$H136-SUM($J136:BM136),0)) -> 0 | BP136: 0
C137: 2020 | D137: JEN | E137: $ | F137: nominal | H137: 297220.13 | Y137: =$H137/$H$9/2 -> 7430.50325 | Z137: =Y137 -> 7430.50325 | AA137: =$H137/$H$9 -> 14861.0065 | AB137: =IF(ABS($H137-SUM($J137:AA137))>=ABS(AA137),AA137,IF(ABS($H137-SUM($J137:AA137))>0,$H137-SUM($J137:AA137),0)) -> 14861.0065 | AC137: =IF(ABS($H137-SUM($J137:AB137))>=ABS(AB137),AB137,IF(ABS($H137-SUM($J137:AB137))>0,$H137-SUM($J137:AB137),0)) -> 14861.0065 | AD137: =IF(ABS($H137-SUM($J137:AC137))>=ABS(AC137),AC137,IF(ABS($H137-SUM($J137:AC137))>0,$H137-SUM($J137:AC137),0)) -> 14861.0065 | AE137: =IF(ABS($H137-SUM($J137:AD137))>=ABS(AD137),AD137,IF(ABS($H137-SUM($J137:AD137))>0,$H137-SUM($J137:AD137),0)) -> 14861.0065 | AF137: =IF(ABS($H137-SUM($J137:AE137))>=ABS(AE137),AE137,IF(ABS($H137-SUM($J137:AE137))>0,$H137-SUM($J137:AE137),0)) -> 14861.0065 | AG137: =IF(ABS($H137-SUM($J137:AF137))>=ABS(AF137),AF137,IF(ABS($H137-SUM($J137:AF137))>0,$H137-SUM($J137:AF137),0)) -> 14861.0065 | AH137: =IF(ABS($H137-SUM($J137:AG137))>=ABS(AG137),AG137,IF(ABS($H137-SUM($J137:AG137))>0,$H137-SUM($J137:AG137),0)) -> 14861.0065 | AI137: =IF(ABS($H137-SUM($J137:AH137))>=ABS(AH137),AH137,IF(ABS($H137-SUM($J137:AH137))>0,$H137-SUM($J137:AH137),0)) -> 14861.0065 | AJ137: =IF(ABS($H137-SUM($J137:AI137))>=ABS(AI137),AI137,IF(ABS($H137-SUM($J137:AI137))>0,$H137-SUM($J137:AI137),0)) -> 14861.0065 | AK137: =IF(ABS($H137-SUM($J137:AJ137))>=ABS(AJ137),AJ137,IF(ABS($H137-SUM($J137:AJ137))>0,$H137-SUM($J137:AJ137),0)) -> 14861.0065 | AL137: =IF(ABS($H137-SUM($J137:AK137))>=ABS(AK137),AK137,IF(ABS($H137-SUM($J137:AK137))>0,$H137-SUM($J137:AK137),0)) -> 14861.0065 | AM137: =IF(ABS($H137-SUM($J137:AL137))>=ABS(AL137),AL137,IF(ABS($H137-SUM($J137:AL137))>0,$H137-SUM($J137:AL137),0)) -> 14861.0065 | AN137: =IF(ABS($H137-SUM($J137:AM137))>=ABS(AM137),AM137,IF(ABS($H137-SUM($J137:AM137))>0,$H137-SUM($J137:AM137),0)) -> 14861.0065 | AO137: =IF(ABS($H137-SUM($J137:AN137))>=ABS(AN137),AN137,IF(ABS($H137-SUM($J137:AN137))>0,$H137-SUM($J137:AN137),0)) -> 14861.0065 | AP137: =IF(ABS($H137-SUM($J137:AO137))>=ABS(AO137),AO137,IF(ABS($H137-SUM($J137:AO137))>0,$H137-SUM($J137:AO137),0)) -> 14861.0065 | AQ137: =IF(ABS($H137-SUM($J137:AP137))>=ABS(AP137),AP137,IF(ABS($H137-SUM($J137:AP137))>0,$H137-SUM($J137:AP137),0)) -> 14861.0065 | AR137: =IF(ABS($H137-SUM($J137:AQ137))>=ABS(AQ137),AQ137,IF(ABS($H137-SUM($J137:AQ137))>0,$H137-SUM($J137:AQ137),0)) -> 14861.0065 | AS137: =IF(ABS($H137-SUM($J137:AR137))>=ABS(AR137),AR137,IF(ABS($H137-SUM($J137:AR137))>0,$H137-SUM($J137:AR137),0)) -> 14861.0065 | AT137: =IF(ABS($H137-SUM($J137:AS137))>=ABS(AS137),AS137,IF(ABS($H137-SUM($J137:AS137))>0,$H137-SUM($J137:AS137),0)) -> 0 | AU137: =IF(ABS($H137-SUM($J137:AT137))>=ABS(AT137),AT137,IF(ABS($H137-SUM($J137:AT137))>0,$H137-SUM($J137:AT137),0)) -> 0 | AV137: =IF(ABS($H137-SUM($J137:AU137))>=ABS(AU137),AU137,IF(ABS($H137-SUM($J137:AU137))>0,$H137-SUM($J137:AU137),0)) -> 0 | AW137: =IF(ABS($H137-SUM($J137:AV137))>=ABS(AV137),AV137,IF(ABS($H137-SUM($J137:AV137))>0,$H137-SUM($J137:AV137),0)) -> 0 | AX137: =IF(ABS($H137-SUM($J137:AW137))>=ABS(AW137),AW137,IF(ABS($H137-SUM($J137:AW137))>0,$H137-SUM($J137:AW137),0)) -> 0 | AY137: =IF(ABS($H137-SUM($J137:AX137))>=ABS(AX137),AX137,IF(ABS($H137-SUM($J137:AX137))>0,$H137-SUM($J137:AX137),0)) -> 0 | AZ137: =IF(ABS($H137-SUM($J137:AY137))>=ABS(AY137),AY137,IF(ABS($H137-SUM($J137:AY137))>0,$H137-SUM($J137:AY137),0)) -> 0 | BA137: =IF(ABS($H137-SUM($J137:AZ137))>=ABS(AZ137),AZ137,IF(ABS($H137-SUM($J137:AZ137))>0,$H137-SUM($J137:AZ137),0)) -> 0 | BB137: =IF(ABS($H137-SUM($J137:BA137))>=ABS(BA137),BA137,IF(ABS($H137-SUM($J137:BA137))>0,$H137-SUM($J137:BA137),0)) -> 0 | BC137: =IF(ABS($H137-SUM($J137:BB137))>=ABS(BB137),BB137,IF(ABS($H137-SUM($J137:BB137))>0,$H137-SUM($J137:BB137),0)) -> 0 | BD137: =IF(ABS($H137-SUM($J137:BC137))>=ABS(BC137),BC137,IF(ABS($H137-SUM($J137:BC137))>0,$H137-SUM($J137:BC137),0)) -> 0 | BE137: =IF(ABS($H137-SUM($J137:BD137))>=ABS(BD137),BD137,IF(ABS($H137-SUM($J137:BD137))>0,$H137-SUM($J137:BD137),0)) -> 0 | BF137: =IF(ABS($H137-SUM($J137:BE137))>=ABS(BE137),BE137,IF(ABS($H137-SUM($J137:BE137))>0,$H137-SUM($J137:BE137),0)) -> 0 | BG137: =IF(ABS($H137-SUM($J137:BF137))>=ABS(BF137),BF137,IF(ABS($H137-SUM($J137:BF137))>0,$H137-SUM($J137:BF137),0)) -> 0 | BH137: =IF(ABS($H137-SUM($J137:BG137))>=ABS(BG137),BG137,IF(ABS($H137-SUM($J137:BG137))>0,$H137-SUM($J137:BG137),0)) -> 0 | BI137: =IF(ABS($H137-SUM($J137:BH137))>=ABS(BH137),BH137,IF(ABS($H137-SUM($J137:BH137))>0,$H137-SUM($J137:BH137),0)) -> 0 | BJ137: =IF(ABS($H137-SUM($J137:BI137))>=ABS(BI137),BI137,IF(ABS($H137-SUM($J137:BI137))>0,$H137-SUM($J137:BI137),0)) -> 0 | BK137: =IF(ABS($H137-SUM($J137:BJ137))>=ABS(BJ137),BJ137,IF(ABS($H137-SUM($J137:BJ137))>0,$H137-SUM($J137:BJ137),0)) -> 0 | BL137: =IF(ABS($H137-SUM($J137:BK137))>=ABS(BK137),BK137,IF(ABS($H137-SUM($J137:BK137))>0,$H137-SUM($J137:BK137),0)) -> 0 | BM137: =IF(ABS($H137-SUM($J137:BL137))>=ABS(BL137),BL137,IF(ABS($H137-SUM($J137:BL137))>0,$H137-SUM($J137:BL137),0)) -> 0 | BN137: =IF(ABS($H137-SUM($J137:BM137))>=ABS(BM137),BM137,IF(ABS($H137-SUM($J137:BM137))>0,$H137-SUM($J137:BM137),0)) -> 0 | BP137: 0
C138: HY2021 | D138: JEN | E138: $ | F138: nominal | H138: 135194.7 | Z138: =$H138/$H$9/2 -> 3379.8675 | AA138: =$H138/$H$9*2 -> 13519.47 | AB138: =IF(ABS($H138-SUM($J138:AA138))>=ABS(AA138),AA138,IF(ABS($H138-SUM($J138:AA138))>0,$H138-SUM($J138:AA138),0)) -> 13519.47 | AC138: =IF(ABS($H138-SUM($J138:AB138))>=ABS(AB138),AB138,IF(ABS($H138-SUM($J138:AB138))>0,$H138-SUM($J138:AB138),0)) -> 13519.47 | AD138: =IF(ABS($H138-SUM($J138:AC138))>=ABS(AC138),AC138,IF(ABS($H138-SUM($J138:AC138))>0,$H138-SUM($J138:AC138),0)) -> 13519.47 | AE138: =IF(ABS($H138-SUM($J138:AD138))>=ABS(AD138),AD138,IF(ABS($H138-SUM($J138:AD138))>0,$H138-SUM($J138:AD138),0)) -> 13519.47 | AF138: =IF(ABS($H138-SUM($J138:AE138))>=ABS(AE138),AE138,IF(ABS($H138-SUM($J138:AE138))>0,$H138-SUM($J138:AE138),0)) -> 13519.47 | AG138: =IF(ABS($H138-SUM($J138:AF138))>=ABS(AF138),AF138,IF(ABS($H138-SUM($J138:AF138))>0,$H138-SUM($J138:AF138),0)) -> 13519.47 | AH138: =IF(ABS($H138-SUM($J138:AG138))>=ABS(AG138),AG138,IF(ABS($H138-SUM($J138:AG138))>0,$H138-SUM($J138:AG138),0)) -> 13519.47 | AI138: =IF(ABS($H138-SUM($J138:AH138))>=ABS(AH138),AH138,IF(ABS($H138-SUM($J138:AH138))>0,$H138-SUM($J138:AH138),0)) -> 13519.47 | AJ138: =IF(ABS($H138-SUM($J138:AI138))>=ABS(AI138),AI138,IF(ABS($H138-SUM($J138:AI138))>0,$H138-SUM($J138:AI138),0)) -> 10139.6025 | AK138: =IF(ABS($H138-SUM($J138:AJ138))>=ABS(AJ138),AJ138,IF(ABS($H138-SUM($J138:AJ138))>0,$H138-SUM($J138:AJ138),0)) -> 0 | AL138: =IF(ABS($H138-SUM($J138:AK138))>=ABS(AK138),AK138,IF(ABS($H138-SUM($J138:AK138))>0,$H138-SUM($J138:AK138),0)) -> 0 | AM138: =IF(ABS($H138-SUM($J138:AL138))>=ABS(AL138),AL138,IF(ABS($H138-SUM($J138:AL138))>0,$H138-SUM($J138:AL138),0)) -> 0 | AN138: =IF(ABS($H138-SUM($J138:AM138))>=ABS(AM138),AM138,IF(ABS($H138-SUM($J138:AM138))>0,$H138-SUM($J138:AM138),0)) -> 0 | AO138: =IF(ABS($H138-SUM($J138:AN138))>=ABS(AN138),AN138,IF(ABS($H138-SUM($J138:AN138))>0,$H138-SUM($J138:AN138),0)) -> 0 | AP138: =IF(ABS($H138-SUM($J138:AO138))>=ABS(AO138),AO138,IF(ABS($H138-SUM($J138:AO138))>0,$H138-SUM($J138:AO138),0)) -> 0 | AQ138: =IF(ABS($H138-SUM($J138:AP138))>=ABS(AP138),AP138,IF(ABS($H138-SUM($J138:AP138))>0,$H138-SUM($J138:AP138),0)) -> 0 | AR138: =IF(ABS($H138-SUM($J138:AQ138))>=ABS(AQ138),AQ138,IF(ABS($H138-SUM($J138:AQ138))>0,$H138-SUM($J138:AQ138),0)) -> 0 | AS138: =IF(ABS($H138-SUM($J138:AR138))>=ABS(AR138),AR138,IF(ABS($H138-SUM($J138:AR138))>0,$H138-SUM($J138:AR138),0)) -> 0 | AT138: =IF(ABS($H138-SUM($J138:AS138))>=ABS(AS138),AS138,IF(ABS($H138-SUM($J138:AS138))>0,$H138-SUM($J138:AS138),0)) -> 0 | AU138: =IF(ABS($H138-SUM($J138:AT138))>=ABS(AT138),AT138,IF(ABS($H138-SUM($J138:AT138))>0,$H138-SUM($J138:AT138),0)) -> 0 | AV138: =IF(ABS($H138-SUM($J138:AU138))>=ABS(AU138),AU138,IF(ABS($H138-SUM($J138:AU138))>0,$H138-SUM($J138:AU138),0)) -> 0 | AW138: =IF(ABS($H138-SUM($J138:AV138))>=ABS(AV138),AV138,IF(ABS($H138-SUM($J138:AV138))>0,$H138-SUM($J138:AV138),0)) -> 0 | AX138: =IF(ABS($H138-SUM($J138:AW138))>=ABS(AW138),AW138,IF(ABS($H138-SUM($J138:AW138))>0,$H138-SUM($J138:AW138),0)) -> 0 | AY138: =IF(ABS($H138-SUM($J138:AX138))>=ABS(AX138),AX138,IF(ABS($H138-SUM($J138:AX138))>0,$H138-SUM($J138:AX138),0)) -> 0 | AZ138: =IF(ABS($H138-SUM($J138:AY138))>=ABS(AY138),AY138,IF(ABS($H138-SUM($J138:AY138))>0,$H138-SUM($J138:AY138),0)) -> 0 | BA138: =IF(ABS($H138-SUM($J138:AZ138))>=ABS(AZ138),AZ138,IF(ABS($H138-SUM($J138:AZ138))>0,$H138-SUM($J138:AZ138),0)) -> 0 | BB138: =IF(ABS($H138-SUM($J138:BA138))>=ABS(BA138),BA138,IF(ABS($H138-SUM($J138:BA138))>0,$H138-SUM($J138:BA138),0)) -> 0 | BC138: =IF(ABS($H138-SUM($J138:BB138))>=ABS(BB138),BB138,IF(ABS($H138-SUM($J138:BB138))>0,$H138-SUM($J138:BB138),0)) -> 0 | BD138: =IF(ABS($H138-SUM($J138:BC138))>=ABS(BC138),BC138,IF(ABS($H138-SUM($J138:BC138))>0,$H138-SUM($J138:BC138),0)) -> 0 | BE138: =IF(ABS($H138-SUM($J138:BD138))>=ABS(BD138),BD138,IF(ABS($H138-SUM($J138:BD138))>0,$H138-SUM($J138:BD138),0)) -> 0 | BF138: =IF(ABS($H138-SUM($J138:BE138))>=ABS(BE138),BE138,IF(ABS($H138-SUM($J138:BE138))>0,$H138-SUM($J138:BE138),0)) -> 0 | BG138: =IF(ABS($H138-SUM($J138:BF138))>=ABS(BF138),BF138,IF(ABS($H138-SUM($J138:BF138))>0,$H138-SUM($J138:BF138),0)) -> 0 | BH138: =IF(ABS($H138-SUM($J138:BG138))>=ABS(BG138),BG138,IF(ABS($H138-SUM($J138:BG138))>0,$H138-SUM($J138:BG138),0)) -> 0 | BI138: =IF(ABS($H138-SUM($J138:BH138))>=ABS(BH138),BH138,IF(ABS($H138-SUM($J138:BH138))>0,$H138-SUM($J138:BH138),0)) -> 0 | BJ138: =IF(ABS($H138-SUM($J138:BI138))>=ABS(BI138),BI138,IF(ABS($H138-SUM($J138:BI138))>0,$H138-SUM($J138:BI138),0)) -> 0 | BK138: =IF(ABS($H138-SUM($J138:BJ138))>=ABS(BJ138),BJ138,IF(ABS($H138-SUM($J138:BJ138))>0,$H138-SUM($J138:BJ138),0)) -> 0 | BL138: =IF(ABS($H138-SUM($J138:BK138))>=ABS(BK138),BK138,IF(ABS($H138-SUM($J138:BK138))>0,$H138-SUM($J138:BK138),0)) -> 0 | BM138: =IF(ABS($H138-SUM($J138:BL138))>=ABS(BL138),BL138,IF(ABS($H138-SUM($J138:BL138))>0,$H138-SUM($J138:BL138),0)) -> 0 | BN138: =IF(ABS($H138-SUM($J138:BM138))>=ABS(BM138),BM138,IF(ABS($H138-SUM($J138:BM138))>0,$H138-SUM($J138:BM138),0)) -> 0 | BP138: 0
C139: 2021/22 | D139: JEN | E139: $ | F139: nominal | H139: 372186.82 | AA139: =$H139/$H$9/2 -> 9304.6705 | AB139: =$H139/$H$9 -> 18609.341 | AC139: =IF(ABS($H139-SUM($J139:AB139))>=ABS(AB139),AB139,IF(ABS($H139-SUM($J139:AB139))>0,$H139-SUM($J139:AB139),0)) -> 18609.341 | AD139: =IF(ABS($H139-SUM($J139:AC139))>=ABS(AC139),AC139,IF(ABS($H139-SUM($J139:AC139))>0,$H139-SUM($J139:AC139),0)) -> 18609.341 | AE139: =IF(ABS($H139-SUM($J139:AD139))>=ABS(AD139),AD139,IF(ABS($H139-SUM($J139:AD139))>0,$H139-SUM($J139:AD139),0)) -> 18609.341 | AF139: =IF(ABS($H139-SUM($J139:AE139))>=ABS(AE139),AE139,IF(ABS($H139-SUM($J139:AE139))>0,$H139-SUM($J139:AE139),0)) -> 18609.341 | AG139: =IF(ABS($H139-SUM($J139:AF139))>=ABS(AF139),AF139,IF(ABS($H139-SUM($J139:AF139))>0,$H139-SUM($J139:AF139),0)) -> 18609.341 | AH139: =IF(ABS($H139-SUM($J139:AG139))>=ABS(AG139),AG139,IF(ABS($H139-SUM($J139:AG139))>0,$H139-SUM($J139:AG139),0)) -> 18609.341 | AI139: =IF(ABS($H139-SUM($J139:AH139))>=ABS(AH139),AH139,IF(ABS($H139-SUM($J139:AH139))>0,$H139-SUM($J139:AH139),0)) -> 18609.341 | AJ139: =IF(ABS($H139-SUM($J139:AI139))>=ABS(AI139),AI139,IF(ABS($H139-SUM($J139:AI139))>0,$H139-SUM($J139:AI139),0)) -> 18609.341 | AK139: =IF(ABS($H139-SUM($J139:AJ139))>=ABS(AJ139),AJ139,IF(ABS($H139-SUM($J139:AJ139))>0,$H139-SUM($J139:AJ139),0)) -> 18609.341 | AL139: =IF(ABS($H139-SUM($J139:AK139))>=ABS(AK139),AK139,IF(ABS($H139-SUM($J139:AK139))>0,$H139-SUM($J139:AK139),0)) -> 18609.341 | AM139: =IF(ABS($H139-SUM($J139:AL139))>=ABS(AL139),AL139,IF(ABS($H139-SUM($J139:AL139))>0,$H139-SUM($J139:AL139),0)) -> 18609.341 | AN139: =IF(ABS($H139-SUM($J139:AM139))>=ABS(AM139),AM139,IF(ABS($H139-SUM($J139:AM139))>0,$H139-SUM($J139:AM139),0)) -> 18609.341 | AO139: =IF(ABS($H139-SUM($J139:AN139))>=ABS(AN139),AN139,IF(ABS($H139-SUM($J139:AN139))>0,$H139-SUM($J139:AN139),0)) -> 18609.341 | AP139: =IF(ABS($H139-SUM($J139:AO139))>=ABS(AO139),AO139,IF(ABS($H139-SUM($J139:AO139))>0,$H139-SUM($J139:AO139),0)) -> 18609.341 | AQ139: =IF(ABS($H139-SUM($J139:AP139))>=ABS(AP139),AP139,IF(ABS($H139-SUM($J139:AP139))>0,$H139-SUM($J139:AP139),0)) -> 18609.341 | AR139: =IF(ABS($H139-SUM($J139:AQ139))>=ABS(AQ139),AQ139,IF(ABS($H139-SUM($J139:AQ139))>0,$H139-SUM($J139:AQ139),0)) -> 18609.341 | AS139: =IF(ABS($H139-SUM($J139:AR139))>=ABS(AR139),AR139,IF(ABS($H139-SUM($J139:AR139))>0,$H139-SUM($J139:AR139),0)) -> 18609.341 | AT139: =IF(ABS($H139-SUM($J139:AS139))>=ABS(AS139),AS139,IF(ABS($H139-SUM($J139:AS139))>0,$H139-SUM($J139:AS139),0)) -> 18609.341 | AU139: =IF(ABS($H139-SUM($J139:AT139))>=ABS(AT139),AT139,IF(ABS($H139-SUM($J139:AT139))>0,$H139-SUM($J139:AT139),0)) -> 9304.6705 | AV139: =IF(ABS($H139-SUM($J139:AU139))>=ABS(AU139),AU139,IF(ABS($H139-SUM($J139:AU139))>0,$H139-SUM($J139:AU139),0)) -> 0 | AW139: =IF(ABS($H139-SUM($J139:AV139))>=ABS(AV139),AV139,IF(ABS($H139-SUM($J139:AV139))>0,$H139-SUM($J139:AV139),0)) -> 0 | AX139: =IF(ABS($H139-SUM($J139:AW139))>=ABS(AW139),AW139,IF(ABS($H139-SUM($J139:AW139))>0,$H139-SUM($J139:AW139),0)) -> 0 | AY139: =IF(ABS($H139-SUM($J139:AX139))>=ABS(AX139),AX139,IF(ABS($H139-SUM($J139:AX139))>0,$H139-SUM($J139:AX139),0)) -> 0 | AZ139: =IF(ABS($H139-SUM($J139:AY139))>=ABS(AY139),AY139,IF(ABS($H139-SUM($J139:AY139))>0,$H139-SUM($J139:AY139),0)) -> 0 | BA139: =IF(ABS($H139-SUM($J139:AZ139))>=ABS(AZ139),AZ139,IF(ABS($H139-SUM($J139:AZ139))>0,$H139-SUM($J139:AZ139),0)) -> 0 | BB139: =IF(ABS($H139-SUM($J139:BA139))>=ABS(BA139),BA139,IF(ABS($H139-SUM($J139:BA139))>0,$H139-SUM($J139:BA139),0)) -> 0 | BC139: =IF(ABS($H139-SUM($J139:BB139))>=ABS(BB139),BB139,IF(ABS($H139-SUM($J139:BB139))>0,$H139-SUM($J139:BB139),0)) -> 0 | BD139: =IF(ABS($H139-SUM($J139:BC139))>=ABS(BC139),BC139,IF(ABS($H139-SUM($J139:BC139))>0,$H139-SUM($J139:BC139),0)) -> 0 | BE139: =IF(ABS($H139-SUM($J139:BD139))>=ABS(BD139),BD139,IF(ABS($H139-SUM($J139:BD139))>0,$H139-SUM($J139:BD139),0)) -> 0 | BF139: =IF(ABS($H139-SUM($J139:BE139))>=ABS(BE139),BE139,IF(ABS($H139-SUM($J139:BE139))>0,$H139-SUM($J139:BE139),0)) -> 0 | BG139: =IF(ABS($H139-SUM($J139:BF139))>=ABS(BF139),BF139,IF(ABS($H139-SUM($J139:BF139))>0,$H139-SUM($J139:BF139),0)) -> 0 | BH139: =IF(ABS($H139-SUM($J139:BG139))>=ABS(BG139),BG139,IF(ABS($H139-SUM($J139:BG139))>0,$H139-SUM($J139:BG139),0)) -> 0 | BI139: =IF(ABS($H139-SUM($J139:BH139))>=ABS(BH139),BH139,IF(ABS($H139-SUM($J139:BH139))>0,$H139-SUM($J139:BH139),0)) -> 0 | BJ139: =IF(ABS($H139-SUM($J139:BI139))>=ABS(BI139),BI139,IF(ABS($H139-SUM($J139:BI139))>0,$H139-SUM($J139:BI139),0)) -> 0 | BK139: =IF(ABS($H139-SUM($J139:BJ139))>=ABS(BJ139),BJ139,IF(ABS($H139-SUM($J139:BJ139))>0,$H139-SUM($J139:BJ139),0)) -> 0 | BL139: =IF(ABS($H139-SUM($J139:BK139))>=ABS(BK139),BK139,IF(ABS($H139-SUM($J139:BK139))>0,$H139-SUM($J139:BK139),0)) -> 0 | BM139: =IF(ABS($H139-SUM($J139:BL139))>=ABS(BL139),BL139,IF(ABS($H139-SUM($J139:BL139))>0,$H139-SUM($J139:BL139),0)) -> 0 | BN139: =IF(ABS($H139-SUM($J139:BM139))>=ABS(BM139),BM139,IF(ABS($H139-SUM($J139:BM139))>0,$H139-SUM($J139:BM139),0)) -> 0 | BP139: 0
C140: 2022/23 | D140: JEN | E140: $ | F140: nominal | H140: 331295.63 | AB140: =$H140/$H$9/2 -> 8282.39075 | AC140: =$H140/$H$9 -> 16564.7815 | AD140: =IF(ABS($H140-SUM($J140:AC140))>=ABS(AC140),AC140,IF(ABS($H140-SUM($J140:AC140))>0,$H140-SUM($J140:AC140),0)) -> 16564.7815 | AE140: =IF(ABS($H140-SUM($J140:AD140))>=ABS(AD140),AD140,IF(ABS($H140-SUM($J140:AD140))>0,$H140-SUM($J140:AD140),0)) -> 16564.7815 | AF140: =IF(ABS($H140-SUM($J140:AE140))>=ABS(AE140),AE140,IF(ABS($H140-SUM($J140:AE140))>0,$H140-SUM($J140:AE140),0)) -> 16564.7815 | AG140: =IF(ABS($H140-SUM($J140:AF140))>=ABS(AF140),AF140,IF(ABS($H140-SUM($J140:AF140))>0,$H140-SUM($J140:AF140),0)) -> 16564.7815 | AH140: =IF(ABS($H140-SUM($J140:AG140))>=ABS(AG140),AG140,IF(ABS($H140-SUM($J140:AG140))>0,$H140-SUM($J140:AG140),0)) -> 16564.7815 | AI140: =IF(ABS($H140-SUM($J140:AH140))>=ABS(AH140),AH140,IF(ABS($H140-SUM($J140:AH140))>0,$H140-SUM($J140:AH140),0)) -> 16564.7815 | AJ140: =IF(ABS($H140-SUM($J140:AI140))>=ABS(AI140),AI140,IF(ABS($H140-SUM($J140:AI140))>0,$H140-SUM($J140:AI140),0)) -> 16564.7815 | AK140: =IF(ABS($H140-SUM($J140:AJ140))>=ABS(AJ140),AJ140,IF(ABS($H140-SUM($J140:AJ140))>0,$H140-SUM($J140:AJ140),0)) -> 16564.7815 | AL140: =IF(ABS($H140-SUM($J140:AK140))>=ABS(AK140),AK140,IF(ABS($H140-SUM($J140:AK140))>0,$H140-SUM($J140:AK140),0)) -> 16564.7815 | AM140: =IF(ABS($H140-SUM($J140:AL140))>=ABS(AL140),AL140,IF(ABS($H140-SUM($J140:AL140))>0,$H140-SUM($J140:AL140),0)) -> 16564.7815 | AN140: =IF(ABS($H140-SUM($J140:AM140))>=ABS(AM140),AM140,IF(ABS($H140-SUM($J140:AM140))>0,$H140-SUM($J140:AM140),0)) -> 16564.7815 | AO140: =IF(ABS($H140-SUM($J140:AN140))>=ABS(AN140),AN140,IF(ABS($H140-SUM($J140:AN140))>0,$H140-SUM($J140:AN140),0)) -> 16564.7815 | AP140: =IF(ABS($H140-SUM($J140:AO140))>=ABS(AO140),AO140,IF(ABS($H140-SUM($J140:AO140))>0,$H140-SUM($J140:AO140),0)) -> 16564.7815 | AQ140: =IF(ABS($H140-SUM($J140:AP140))>=ABS(AP140),AP140,IF(ABS($H140-SUM($J140:AP140))>0,$H140-SUM($J140:AP140),0)) -> 16564.7815 | AR140: =IF(ABS($H140-SUM($J140:AQ140))>=ABS(AQ140),AQ140,IF(ABS($H140-SUM($J140:AQ140))>0,$H140-SUM($J140:AQ140),0)) -> 16564.7815 | AS140: =IF(ABS($H140-SUM($J140:AR140))>=ABS(AR140),AR140,IF(ABS($H140-SUM($J140:AR140))>0,$H140-SUM($J140:AR140),0)) -> 16564.7815 | AT140: =IF(ABS($H140-SUM($J140:AS140))>=ABS(AS140),AS140,IF(ABS($H140-SUM($J140:AS140))>0,$H140-SUM($J140:AS140),0)) -> 16564.7815 | AU140: =IF(ABS($H140-SUM($J140:AT140))>=ABS(AT140),AT140,IF(ABS($H140-SUM($J140:AT140))>0,$H140-SUM($J140:AT140),0)) -> 16564.7815 | AV140: =IF(ABS($H140-SUM($J140:AU140))>=ABS(AU140),AU140,IF(ABS($H140-SUM($J140:AU140))>0,$H140-SUM($J140:AU140),0)) -> 8282.39075 | AW140: =IF(ABS($H140-SUM($J140:AV140))>=ABS(AV140),AV140,IF(ABS($H140-SUM($J140:AV140))>0,$H140-SUM($J140:AV140),0)) -> 0 | AX140: =IF(ABS($H140-SUM($J140:AW140))>=ABS(AW140),AW140,IF(ABS($H140-SUM($J140:AW140))>0,$H140-SUM($J140:AW140),0)) -> 0 | AY140: =IF(ABS($H140-SUM($J140:AX140))>=ABS(AX140),AX140,IF(ABS($H140-SUM($J140:AX140))>0,$H140-SUM($J140:AX140),0)) -> 0 | AZ140: =IF(ABS($H140-SUM($J140:AY140))>=ABS(AY140),AY140,IF(ABS($H140-SUM($J140:AY140))>0,$H140-SUM($J140:AY140),0)) -> 0 | BA140: =IF(ABS($H140-SUM($J140:AZ140))>=ABS(AZ140),AZ140,IF(ABS($H140-SUM($J140:AZ140))>0,$H140-SUM($J140:AZ140),0)) -> 0 | BB140: =IF(ABS($H140-SUM($J140:BA140))>=ABS(BA140),BA140,IF(ABS($H140-SUM($J140:BA140))>0,$H140-SUM($J140:BA140),0)) -> 0 | BC140: =IF(ABS($H140-SUM($J140:BB140))>=ABS(BB140),BB140,IF(ABS($H140-SUM($J140:BB140))>0,$H140-SUM($J140:BB140),0)) -> 0 | BD140: =IF(ABS($H140-SUM($J140:BC140))>=ABS(BC140),BC140,IF(ABS($H140-SUM($J140:BC140))>0,$H140-SUM($J140:BC140),0)) -> 0 | BE140: =IF(ABS($H140-SUM($J140:BD140))>=ABS(BD140),BD140,IF(ABS($H140-SUM($J140:BD140))>0,$H140-SUM($J140:BD140),0)) -> 0 | BF140: =IF(ABS($H140-SUM($J140:BE140))>=ABS(BE140),BE140,IF(ABS($H140-SUM($J140:BE140))>0,$H140-SUM($J140:BE140),0)) -> 0 | BG140: =IF(ABS($H140-SUM($J140:BF140))>=ABS(BF140),BF140,IF(ABS($H140-SUM($J140:BF140))>0,$H140-SUM($J140:BF140),0)) -> 0 | BH140: =IF(ABS($H140-SUM($J140:BG140))>=ABS(BG140),BG140,IF(ABS($H140-SUM($J140:BG140))>0,$H140-SUM($J140:BG140),0)) -> 0 | BI140: =IF(ABS($H140-SUM($J140:BH140))>=ABS(BH140),BH140,IF(ABS($H140-SUM($J140:BH140))>0,$H140-SUM($J140:BH140),0)) -> 0 | BJ140: =IF(ABS($H140-SUM($J140:BI140))>=ABS(BI140),BI140,IF(ABS($H140-SUM($J140:BI140))>0,$H140-SUM($J140:BI140),0)) -> 0 | BK140: =IF(ABS($H140-SUM($J140:BJ140))>=ABS(BJ140),BJ140,IF(ABS($H140-SUM($J140:BJ140))>0,$H140-SUM($J140:BJ140),0)) -> 0 | BL140: =IF(ABS($H140-SUM($J140:BK140))>=ABS(BK140),BK140,IF(ABS($H140-SUM($J140:BK140))>0,$H140-SUM($J140:BK140),0)) -> 0 | BM140: =IF(ABS($H140-SUM($J140:BL140))>=ABS(BL140),BL140,IF(ABS($H140-SUM($J140:BL140))>0,$H140-SUM($J140:BL140),0)) -> 0 | BN140: =IF(ABS($H140-SUM($J140:BM140))>=ABS(BM140),BM140,IF(ABS($H140-SUM($J140:BM140))>0,$H140-SUM($J140:BM140),0)) -> 0 | BP140: 0
C141: 2023/24 | D141: JEN | E141: $ | F141: nominal | H141: 319649.9 | AC141: =$H141/$H$9/2 -> 7991.2475 | AD141: =$H141/$H$9 -> 15982.495 | AE141: =IF(ABS($H141-SUM($J141:AD141))>=ABS(AD141),AD141,IF(ABS($H141-SUM($J141:AD141))>0,$H141-SUM($J141:AD141),0)) -> 15982.495 | AF141: =IF(ABS($H141-SUM($J141:AE141))>=ABS(AE141),AE141,IF(ABS($H141-SUM($J141:AE141))>0,$H141-SUM($J141:AE141),0)) -> 15982.495 | AG141: =IF(ABS($H141-SUM($J141:AF141))>=ABS(AF141),AF141,IF(ABS($H141-SUM($J141:AF141))>0,$H141-SUM($J141:AF141),0)) -> 15982.495 | AH141: =IF(ABS($H141-SUM($J141:AG141))>=ABS(AG141),AG141,IF(ABS($H141-SUM($J141:AG141))>0,$H141-SUM($J141:AG141),0)) -> 15982.495 | AI141: =IF(ABS($H141-SUM($J141:AH141))>=ABS(AH141),AH141,IF(ABS($H141-SUM($J141:AH141))>0,$H141-SUM($J141:AH141),0)) -> 15982.495 | AJ141: =IF(ABS($H141-SUM($J141:AI141))>=ABS(AI141),AI141,IF(ABS($H141-SUM($J141:AI141))>0,$H141-SUM($J141:AI141),0)) -> 15982.495 | AK141: =IF(ABS($H141-SUM($J141:AJ141))>=ABS(AJ141),AJ141,IF(ABS($H141-SUM($J141:AJ141))>0,$H141-SUM($J141:AJ141),0)) -> 15982.495 | AL141: =IF(ABS($H141-SUM($J141:AK141))>=ABS(AK141),AK141,IF(ABS($H141-SUM($J141:AK141))>0,$H141-SUM($J141:AK141),0)) -> 15982.495 | AM141: =IF(ABS($H141-SUM($J141:AL141))>=ABS(AL141),AL141,IF(ABS($H141-SUM($J141:AL141))>0,$H141-SUM($J141:AL141),0)) -> 15982.495 | AN141: =IF(ABS($H141-SUM($J141:AM141))>=ABS(AM141),AM141,IF(ABS($H141-SUM($J141:AM141))>0,$H141-SUM($J141:AM141),0)) -> 15982.495 | AO141: =IF(ABS($H141-SUM($J141:AN141))>=ABS(AN141),AN141,IF(ABS($H141-SUM($J141:AN141))>0,$H141-SUM($J141:AN141),0)) -> 15982.495 | AP141: =IF(ABS($H141-SUM($J141:AO141))>=ABS(AO141),AO141,IF(ABS($H141-SUM($J141:AO141))>0,$H141-SUM($J141:AO141),0)) -> 15982.495 | AQ141: =IF(ABS($H141-SUM($J141:AP141))>=ABS(AP141),AP141,IF(ABS($H141-SUM($J141:AP141))>0,$H141-SUM($J141:AP141),0)) -> 15982.495 | AR141: =IF(ABS($H141-SUM($J141:AQ141))>=ABS(AQ141),AQ141,IF(ABS($H141-SUM($J141:AQ141))>0,$H141-SUM($J141:AQ141),0)) -> 15982.495 | AS141: =IF(ABS($H141-SUM($J141:AR141))>=ABS(AR141),AR141,IF(ABS($H141-SUM($J141:AR141))>0,$H141-SUM($J141:AR141),0)) -> 15982.495 | AT141: =IF(ABS($H141-SUM($J141:AS141))>=ABS(AS141),AS141,IF(ABS($H141-SUM($J141:AS141))>0,$H141-SUM($J141:AS141),0)) -> 15982.495 | AU141: =IF(ABS($H141-SUM($J141:AT141))>=ABS(AT141),AT141,IF(ABS($H141-SUM($J141:AT141))>0,$H141-SUM($J141:AT141),0)) -> 15982.495 | AV141: =IF(ABS($H141-SUM($J141:AU141))>=ABS(AU141),AU141,IF(ABS($H141-SUM($J141:AU141))>0,$H141-SUM($J141:AU141),0)) -> 15982.495 | AW141: =IF(ABS($H141-SUM($J141:AV141))>=ABS(AV141),AV141,IF(ABS($H141-SUM($J141:AV141))>0,$H141-SUM($J141:AV141),0)) -> 7991.2475 | AX141: =IF(ABS($H141-SUM($J141:AW141))>=ABS(AW141),AW141,IF(ABS($H141-SUM($J141:AW141))>0,$H141-SUM($J141:AW141),0)) -> 0 | AY141: =IF(ABS($H141-SUM($J141:AX141))>=ABS(AX141),AX141,IF(ABS($H141-SUM($J141:AX141))>0,$H141-SUM($J141:AX141),0)) -> 0 | AZ141: =IF(ABS($H141-SUM($J141:AY141))>=ABS(AY141),AY141,IF(ABS($H141-SUM($J141:AY141))>0,$H141-SUM($J141:AY141),0)) -> 0 | BA141: =IF(ABS($H141-SUM($J141:AZ141))>=ABS(AZ141),AZ141,IF(ABS($H141-SUM($J141:AZ141))>0,$H141-SUM($J141:AZ141),0)) -> 0 | BB141: =IF(ABS($H141-SUM($J141:BA141))>=ABS(BA141),BA141,IF(ABS($H141-SUM($J141:BA141))>0,$H141-SUM($J141:BA141),0)) -> 0 | BC141: =IF(ABS($H141-SUM($J141:BB141))>=ABS(BB141),BB141,IF(ABS($H141-SUM($J141:BB141))>0,$H141-SUM($J141:BB141),0)) -> 0 | BD141: =IF(ABS($H141-SUM($J141:BC141))>=ABS(BC141),BC141,IF(ABS($H141-SUM($J141:BC141))>0,$H141-SUM($J141:BC141),0)) -> 0 | BE141: =IF(ABS($H141-SUM($J141:BD141))>=ABS(BD141),BD141,IF(ABS($H141-SUM($J141:BD141))>0,$H141-SUM($J141:BD141),0)) -> 0 | BF141: =IF(ABS($H141-SUM($J141:BE141))>=ABS(BE141),BE141,IF(ABS($H141-SUM($J141:BE141))>0,$H141-SUM($J141:BE141),0)) -> 0 | BG141: =IF(ABS($H141-SUM($J141:BF141))>=ABS(BF141),BF141,IF(ABS($H141-SUM($J141:BF141))>0,$H141-SUM($J141:BF141),0)) -> 0 | BH141: =IF(ABS($H141-SUM($J141:BG141))>=ABS(BG141),BG141,IF(ABS($H141-SUM($J141:BG141))>0,$H141-SUM($J141:BG141),0)) -> 0 | BI141: =IF(ABS($H141-SUM($J141:BH141))>=ABS(BH141),BH141,IF(ABS($H141-SUM($J141:BH141))>0,$H141-SUM($J141:BH141),0)) -> 0 | BJ141: =IF(ABS($H141-SUM($J141:BI141))>=ABS(BI141),BI141,IF(ABS($H141-SUM($J141:BI141))>0,$H141-SUM($J141:BI141),0)) -> 0 | BK141: =IF(ABS($H141-SUM($J141:BJ141))>=ABS(BJ141),BJ141,IF(ABS($H141-SUM($J141:BJ141))>0,$H141-SUM($J141:BJ141),0)) -> 0 | BL141: =IF(ABS($H141-SUM($J141:BK141))>=ABS(BK141),BK141,IF(ABS($H141-SUM($J141:BK141))>0,$H141-SUM($J141:BK141),0)) -> 0 | BM141: =IF(ABS($H141-SUM($J141:BL141))>=ABS(BL141),BL141,IF(ABS($H141-SUM($J141:BL141))>0,$H141-SUM($J141:BL141),0)) -> 0 | BN141: =IF(ABS($H141-SUM($J141:BM141))>=ABS(BM141),BM141,IF(ABS($H141-SUM($J141:BM141))>0,$H141-SUM($J141:BM141),0)) -> 0 | BP141: 0
C142: 2024/25 | D142: JEN | E142: $ | F142: nominal | H142: 306617.14 | AD142: =$H142/$H$9/2 -> 7665.4285 | AE142: =$H142/$H$9 -> 15330.857 | AF142: =IF(ABS($H142-SUM($J142:AE142))>=ABS(AE142),AE142,IF(ABS($H142-SUM($J142:AE142))>0,$H142-SUM($J142:AE142),0)) -> 15330.857 | AG142: =IF(ABS($H142-SUM($J142:AF142))>=ABS(AF142),AF142,IF(ABS($H142-SUM($J142:AF142))>0,$H142-SUM($J142:AF142),0)) -> 15330.857 | AH142: =IF(ABS($H142-SUM($J142:AG142))>=ABS(AG142),AG142,IF(ABS($H142-SUM($J142:AG142))>0,$H142-SUM($J142:AG142),0)) -> 15330.857 | AI142: =IF(ABS($H142-SUM($J142:AH142))>=ABS(AH142),AH142,IF(ABS($H142-SUM($J142:AH142))>0,$H142-SUM($J142:AH142),0)) -> 15330.857 | AJ142: =IF(ABS($H142-SUM($J142:AI142))>=ABS(AI142),AI142,IF(ABS($H142-SUM($J142:AI142))>0,$H142-SUM($J142:AI142),0)) -> 15330.857 | AK142: =IF(ABS($H142-SUM($J142:AJ142))>=ABS(AJ142),AJ142,IF(ABS($H142-SUM($J142:AJ142))>0,$H142-SUM($J142:AJ142),0)) -> 15330.857 | AL142: =IF(ABS($H142-SUM($J142:AK142))>=ABS(AK142),AK142,IF(ABS($H142-SUM($J142:AK142))>0,$H142-SUM($J142:AK142),0)) -> 15330.857 | AM142: =IF(ABS($H142-SUM($J142:AL142))>=ABS(AL142),AL142,IF(ABS($H142-SUM($J142:AL142))>0,$H142-SUM($J142:AL142),0)) -> 15330.857 | AN142: =IF(ABS($H142-SUM($J142:AM142))>=ABS(AM142),AM142,IF(ABS($H142-SUM($J142:AM142))>0,$H142-SUM($J142:AM142),0)) -> 15330.857 | AO142: =IF(ABS($H142-SUM($J142:AN142))>=ABS(AN142),AN142,IF(ABS($H142-SUM($J142:AN142))>0,$H142-SUM($J142:AN142),0)) -> 15330.857 | AP142: =IF(ABS($H142-SUM($J142:AO142))>=ABS(AO142),AO142,IF(ABS($H142-SUM($J142:AO142))>0,$H142-SUM($J142:AO142),0)) -> 15330.857 | AQ142: =IF(ABS($H142-SUM($J142:AP142))>=ABS(AP142),AP142,IF(ABS($H142-SUM($J142:AP142))>0,$H142-SUM($J142:AP142),0)) -> 15330.857 | AR142: =IF(ABS($H142-SUM($J142:AQ142))>=ABS(AQ142),AQ142,IF(ABS($H142-SUM($J142:AQ142))>0,$H142-SUM($J142:AQ142),0)) -> 15330.857 | AS142: =IF(ABS($H142-SUM($J142:AR142))>=ABS(AR142),AR142,IF(ABS($H142-SUM($J142:AR142))>0,$H142-SUM($J142:AR142),0)) -> 15330.857 | AT142: =IF(ABS($H142-SUM($J142:AS142))>=ABS(AS142),AS142,IF(ABS($H142-SUM($J142:AS142))>0,$H142-SUM($J142:AS142),0)) -> 15330.857 | AU142: =IF(ABS($H142-SUM($J142:AT142))>=ABS(AT142),AT142,IF(ABS($H142-SUM($J142:AT142))>0,$H142-SUM($J142:AT142),0)) -> 15330.857 | AV142: =IF(ABS($H142-SUM($J142:AU142))>=ABS(AU142),AU142,IF(ABS($H142-SUM($J142:AU142))>0,$H142-SUM($J142:AU142),0)) -> 15330.857 | AW142: =IF(ABS($H142-SUM($J142:AV142))>=ABS(AV142),AV142,IF(ABS($H142-SUM($J142:AV142))>0,$H142-SUM($J142:AV142),0)) -> 15330.857 | AX142: =IF(ABS($H142-SUM($J142:AW142))>=ABS(AW142),AW142,IF(ABS($H142-SUM($J142:AW142))>0,$H142-SUM($J142:AW142),0)) -> 7665.4285 | AY142: =IF(ABS($H142-SUM($J142:AX142))>=ABS(AX142),AX142,IF(ABS($H142-SUM($J142:AX142))>0,$H142-SUM($J142:AX142),0)) -> 0 | AZ142: =IF(ABS($H142-SUM($J142:AY142))>=ABS(AY142),AY142,IF(ABS($H142-SUM($J142:AY142))>0,$H142-SUM($J142:AY142),0)) -> 0 | BA142: =IF(ABS($H142-SUM($J142:AZ142))>=ABS(AZ142),AZ142,IF(ABS($H142-SUM($J142:AZ142))>0,$H142-SUM($J142:AZ142),0)) -> 0 | BB142: =IF(ABS($H142-SUM($J142:BA142))>=ABS(BA142),BA142,IF(ABS($H142-SUM($J142:BA142))>0,$H142-SUM($J142:BA142),0)) -> 0 | BC142: =IF(ABS($H142-SUM($J142:BB142))>=ABS(BB142),BB142,IF(ABS($H142-SUM($J142:BB142))>0,$H142-SUM($J142:BB142),0)) -> 0 | BD142: =IF(ABS($H142-SUM($J142:BC142))>=ABS(BC142),BC142,IF(ABS($H142-SUM($J142:BC142))>0,$H142-SUM($J142:BC142),0)) -> 0 | BE142: =IF(ABS($H142-SUM($J142:BD142))>=ABS(BD142),BD142,IF(ABS($H142-SUM($J142:BD142))>0,$H142-SUM($J142:BD142),0)) -> 0 | BF142: =IF(ABS($H142-SUM($J142:BE142))>=ABS(BE142),BE142,IF(ABS($H142-SUM($J142:BE142))>0,$H142-SUM($J142:BE142),0)) -> 0 | BG142: =IF(ABS($H142-SUM($J142:BF142))>=ABS(BF142),BF142,IF(ABS($H142-SUM($J142:BF142))>0,$H142-SUM($J142:BF142),0)) -> 0 | BH142: =IF(ABS($H142-SUM($J142:BG142))>=ABS(BG142),BG142,IF(ABS($H142-SUM($J142:BG142))>0,$H142-SUM($J142:BG142),0)) -> 0 | BI142: =IF(ABS($H142-SUM($J142:BH142))>=ABS(BH142),BH142,IF(ABS($H142-SUM($J142:BH142))>0,$H142-SUM($J142:BH142),0)) -> 0 | BJ142: =IF(ABS($H142-SUM($J142:BI142))>=ABS(BI142),BI142,IF(ABS($H142-SUM($J142:BI142))>0,$H142-SUM($J142:BI142),0)) -> 0 | BK142: =IF(ABS($H142-SUM($J142:BJ142))>=ABS(BJ142),BJ142,IF(ABS($H142-SUM($J142:BJ142))>0,$H142-SUM($J142:BJ142),0)) -> 0 | BL142: =IF(ABS($H142-SUM($J142:BK142))>=ABS(BK142),BK142,IF(ABS($H142-SUM($J142:BK142))>0,$H142-SUM($J142:BK142),0)) -> 0 | BM142: =IF(ABS($H142-SUM($J142:BL142))>=ABS(BL142),BL142,IF(ABS($H142-SUM($J142:BL142))>0,$H142-SUM($J142:BL142),0)) -> 0 | BN142: =IF(ABS($H142-SUM($J142:BM142))>=ABS(BM142),BM142,IF(ABS($H142-SUM($J142:BM142))>0,$H142-SUM($J142:BM142),0)) -> 0 | BP142: 0
C143: 2025/26 | D143: Capital Expenditure | E143: $ | F143: nominal | H143: ='Capital Expenditure'!$Q$148 -> 0 | AE143: =$H143/$H$9/2 -> 0 | AF143: =$H143/$H$9 -> 0 | AG143: =IF(ABS($H143-SUM($J143:AF143))>=ABS(AF143),AF143,IF(ABS($H143-SUM($J143:AF143))>0,$H143-SUM($J143:AF143),0)) -> 0 | AH143: =IF(ABS($H143-SUM($J143:AG143))>=ABS(AG143),AG143,IF(ABS($H143-SUM($J143:AG143))>0,$H143-SUM($J143:AG143),0)) -> 0 | AI143: =IF(ABS($H143-SUM($J143:AH143))>=ABS(AH143),AH143,IF(ABS($H143-SUM($J143:AH143))>0,$H143-SUM($J143:AH143),0)) -> 0 | AJ143: =IF(ABS($H143-SUM($J143:AI143))>=ABS(AI143),AI143,IF(ABS($H143-SUM($J143:AI143))>0,$H143-SUM($J143:AI143),0)) -> 0 | AK143: =IF(ABS($H143-SUM($J143:AJ143))>=ABS(AJ143),AJ143,IF(ABS($H143-SUM($J143:AJ143))>0,$H143-SUM($J143:AJ143),0)) -> 0 | AL143: =IF(ABS($H143-SUM($J143:AK143))>=ABS(AK143),AK143,IF(ABS($H143-SUM($J143:AK143))>0,$H143-SUM($J143:AK143),0)) -> 0 | AM143: =IF(ABS($H143-SUM($J143:AL143))>=ABS(AL143),AL143,IF(ABS($H143-SUM($J143:AL143))>0,$H143-SUM($J143:AL143),0)) -> 0 | AN143: =IF(ABS($H143-SUM($J143:AM143))>=ABS(AM143),AM143,IF(ABS($H143-SUM($J143:AM143))>0,$H143-SUM($J143:AM143),0)) -> 0 | AO143: =IF(ABS($H143-SUM($J143:AN143))>=ABS(AN143),AN143,IF(ABS($H143-SUM($J143:AN143))>0,$H143-SUM($J143:AN143),0)) -> 0 | AP143: =IF(ABS($H143-SUM($J143:AO143))>=ABS(AO143),AO143,IF(ABS($H143-SUM($J143:AO143))>0,$H143-SUM($J143:AO143),0)) -> 0 | AQ143: =IF(ABS($H143-SUM($J143:AP143))>=ABS(AP143),AP143,IF(ABS($H143-SUM($J143:AP143))>0,$H143-SUM($J143:AP143),0)) -> 0 | AR143: =IF(ABS($H143-SUM($J143:AQ143))>=ABS(AQ143),AQ143,IF(ABS($H143-SUM($J143:AQ143))>0,$H143-SUM($J143:AQ143),0)) -> 0 | AS143: =IF(ABS($H143-SUM($J143:AR143))>=ABS(AR143),AR143,IF(ABS($H143-SUM($J143:AR143))>0,$H143-SUM($J143:AR143),0)) -> 0 | AT143: =IF(ABS($H143-SUM($J143:AS143))>=ABS(AS143),AS143,IF(ABS($H143-SUM($J143:AS143))>0,$H143-SUM($J143:AS143),0)) -> 0 | AU143: =IF(ABS($H143-SUM($J143:AT143))>=ABS(AT143),AT143,IF(ABS($H143-SUM($J143:AT143))>0,$H143-SUM($J143:AT143),0)) -> 0 | AV143: =IF(ABS($H143-SUM($J143:AU143))>=ABS(AU143),AU143,IF(ABS($H143-SUM($J143:AU143))>0,$H143-SUM($J143:AU143),0)) -> 0 | AW143: =IF(ABS($H143-SUM($J143:AV143))>=ABS(AV143),AV143,IF(ABS($H143-SUM($J143:AV143))>0,$H143-SUM($J143:AV143),0)) -> 0 | AX143: =IF(ABS($H143-SUM($J143:AW143))>=ABS(AW143),AW143,IF(ABS($H143-SUM($J143:AW143))>0,$H143-SUM($J143:AW143),0)) -> 0 | AY143: =IF(ABS($H143-SUM($J143:AX143))>=ABS(AX143),AX143,IF(ABS($H143-SUM($J143:AX143))>0,$H143-SUM($J143:AX143),0)) -> 0 | AZ143: =IF(ABS($H143-SUM($J143:AY143))>=ABS(AY143),AY143,IF(ABS($H143-SUM($J143:AY143))>0,$H143-SUM($J143:AY143),0)) -> 0 | BA143: =IF(ABS($H143-SUM($J143:AZ143))>=ABS(AZ143),AZ143,IF(ABS($H143-SUM($J143:AZ143))>0,$H143-SUM($J143:AZ143),0)) -> 0 | BB143: =IF(ABS($H143-SUM($J143:BA143))>=ABS(BA143),BA143,IF(ABS($H143-SUM($J143:BA143))>0,$H143-SUM($J143:BA143),0)) -> 0 | BC143: =IF(ABS($H143-SUM($J143:BB143))>=ABS(BB143),BB143,IF(ABS($H143-SUM($J143:BB143))>0,$H143-SUM($J143:BB143),0)) -> 0 | BD143: =IF(ABS($H143-SUM($J143:BC143))>=ABS(BC143),BC143,IF(ABS($H143-SUM($J143:BC143))>0,$H143-SUM($J143:BC143),0)) -> 0 | BE143: =IF(ABS($H143-SUM($J143:BD143))>=ABS(BD143),BD143,IF(ABS($H143-SUM($J143:BD143))>0,$H143-SUM($J143:BD143),0)) -> 0 | BF143: =IF(ABS($H143-SUM($J143:BE143))>=ABS(BE143),BE143,IF(ABS($H143-SUM($J143:BE143))>0,$H143-SUM($J143:BE143),0)) -> 0 | BG143: =IF(ABS($H143-SUM($J143:BF143))>=ABS(BF143),BF143,IF(ABS($H143-SUM($J143:BF143))>0,$H143-SUM($J143:BF143),0)) -> 0 | BH143: =IF(ABS($H143-SUM($J143:BG143))>=ABS(BG143),BG143,IF(ABS($H143-SUM($J143:BG143))>0,$H143-SUM($J143:BG143),0)) -> 0 | BI143: =IF(ABS($H143-SUM($J143:BH143))>=ABS(BH143),BH143,IF(ABS($H143-SUM($J143:BH143))>0,$H143-SUM($J143:BH143),0)) -> 0 | BJ143: =IF(ABS($H143-SUM($J143:BI143))>=ABS(BI143),BI143,IF(ABS($H143-SUM($J143:BI143))>0,$H143-SUM($J143:BI143),0)) -> 0 | BK143: =IF(ABS($H143-SUM($J143:BJ143))>=ABS(BJ143),BJ143,IF(ABS($H143-SUM($J143:BJ143))>0,$H143-SUM($J143:BJ143),0)) -> 0 | BL143: =IF(ABS($H143-SUM($J143:BK143))>=ABS(BK143),BK143,IF(ABS($H143-SUM($J143:BK143))>0,$H143-SUM($J143:BK143),0)) -> 0 | BM143: =IF(ABS($H143-SUM($J143:BL143))>=ABS(BL143),BL143,IF(ABS($H143-SUM($J143:BL143))>0,$H143-SUM($J143:BL143),0)) -> 0 | BN143: =IF(ABS($H143-SUM($J143:BM143))>=ABS(BM143),BM143,IF(ABS($H143-SUM($J143:BM143))>0,$H143-SUM($J143:BM143),0)) -> 0 | BP143: 0
A145: =+IF(SUM(BP121:BP145)=0,"Ok","Check") -> Ok | C145: Total | D145: Calculated | E145: $ | F145: nominal | H145: =SUM(H121:H143) -> 9846720.16 | J145: =SUM(J121:J143) -> 166471.524 | K145: 187579.674 | L145: 205794.0863 | M145: 236826.6204 | N145: 274541.3272 | O145: 293176.7522 | P145: 307575.2022 | Q145: 323025.7772 | R145: 339529.0022 | S145: 362438.4825 | T145: 346777.4164 | U145: 332814.8466 | V145: 360165.2276 | W145: 382821.9016 | X145: 405550.4459 | Y145: 427223.0736 | Z145: 220706.6559 | AA145: 457477.7174 | AB145: 397240.8866 | AC145: 335690.6329 | AD145: 351347.3089 | AE145: 337365.2574 | AF145: 316796.4374 | AG145: 300936.4328 | AH145: 254731.3692 | AI145: 225507.0192 | AJ145: 214080.6517 | AK145: 183190.6492 | AL145: 173039.8992 | AM145: 150184.1992 | AN145: 127220.9385 | AO145: 181506.3315 | AP145: =SUM(AP121:AP143) -> 155146.078 | AQ145: 126805.5695 | AR145: 109832.73 | AS145: 81348.481 | AT145: 66487.4745 | AU145: 57182.804 | AV145: 39595.74275 | AW145: 23322.1045 | AX145: 7665.4285 | AY145: 0 | AZ145: 0 | BA145: 0 | BB145: 0 | BC145: 0 | BD145: 0 | BE145: 0 | BF145: 0 | BG145: 0 | BH145: 0 | BI145: 0 | BJ145: 0 | BK145: 0 | BL145: 0 | BM145: 0 | BN145: 0 | BP145: =H145-SUM(J145:BN145) -> 0
B148: =C10 -> Energy efficient lights - luminaires & ballasts
J150: Depreciation ► | AF150: 1 | AG150: =AF150+1 -> 2 | AH150: =AG150+1 -> 3 | AI150: 4 | AJ150: 5 | AK150: 6 | AL150: 7 | AM150: 8 | AN150: 9 | AO150: 10 | AP150: 11 | AQ150: 12 | AR150: 13 | AS150: 14 | AT150: 15 | AU150: 16 | AV150: 17 | AW150: 18 | AX150: 19 | AY150: 20 | AZ150: 21 | BA150: 22 | BB150: 23 | BC150: 24 | BD150: 25 | BE150: 26 | BF150: 27 | BG150: 28 | BH150: 29 | BI150: 30 | BJ150: 31 | BK150: 32 | BL150: 33 | BM150: 34 | BN150: 35
D151: Source | E151: Unit | F151: Basis | H151: Capex | J151: 2005 | K151: 2006 | L151: 2007 | M151: 2008 | N151: 2009 | O151: 2010 | P151: 2011 | Q151: 2012 | R151: 2013 | S151: 2014 | T151: 2015 | U151: 2016 | V151: 2017 | W151: 2018 | X151: 2019 | Y151: 2020 | Z151: HY2021 | AA151: 2021/22 | AB151: 2022/23 | AC151: 2023/24 | AD151: 2024/25 | AE151: 2025/26 | AF151: =(LEFT(AE151,4)+1&IF(MID(AE151,5,1)="","","-"&TEXT(MOD(MID(AE151,6,2)+1,100),"00"))) -> 2026-27 | AG151: 2027-28 | AH151: 2028-29 | AI151: 2029-30 | AJ151: 2030-31 | AK151: 2031-32 | AL151: 2032-33 | AM151: 2033-34 | AN151: 2034-35 | AO151: 2035-36 | AP151: 2036-37 | AQ151: 2037-38 | AR151: 2038-39 | AS151: 2039-40 | AT151: 2040-41 | AU151: 2041-42 | AV151: 2042-43 | AW151: 2043-44 | AX151: 2044-45 | AY151: 2045-46 | AZ151: 2046-47 | BA151: 2047-48 | BB151: 2048-49 | BC151: 2049-50 | BD151: 2050-51 | BE151: 2051-52 | BF151: 2052-53 | BG151: 2053-54 | BH151: 2054-55 | BI151: 2055-56 | BJ151: 2056-57 | BK151: 2057-58 | BL151: =(LEFT(BK151,4)+1&IF(MID(BK151,5,1)="","","-"&TEXT(MOD(MID(BK151,6,2)+1,100),"00"))) -> 2058-59 | BM151: =(LEFT(BL151,4)+1&IF(MID(BL151,5,1)="","","-"&TEXT(MOD(MID(BL151,6,2)+1,100),"00"))) -> 2059-60 | BN151: =(LEFT(BM151,4)+1&IF(MID(BM151,5,1)="","","-"&TEXT(MOD(MID(BM151,6,2)+1,100),"00"))) -> 2060-61 | BP151: Check
C153: 2001-04 | D153: AER | E153: $ | F153: nominal | AF153: =IF(ABS($H153-SUM($J153:AE153))>=ABS(AE153),AE153,IF(ABS($H153-SUM($J153:AE153))>0,$H153-SUM($J153:AE153),0)) -> 0 | AG153: =IF(ABS($H153-SUM($J153:AF153))>=ABS(AF153),AF153,IF(ABS($H153-SUM($J153:AF153))>0,$H153-SUM($J153:AF153),0)) -> 0 | AH153: =IF(ABS($H153-SUM($J153:AG153))>=ABS(AG153),AG153,IF(ABS($H153-SUM($J153:AG153))>0,$H153-SUM($J153:AG153),0)) -> 0 | AI153: =IF(ABS($H153-SUM($J153:AH153))>=ABS(AH153),AH153,IF(ABS($H153-SUM($J153:AH153))>0,$H153-SUM($J153:AH153),0)) -> 0 | AJ153: =IF(ABS($H153-SUM($J153:AI153))>=ABS(AI153),AI153,IF(ABS($H153-SUM($J153:AI153))>0,$H153-SUM($J153:AI153),0)) -> 0 | AK153: =IF(ABS($H153-SUM($J153:AJ153))>=ABS(AJ153),AJ153,IF(ABS($H153-SUM($J153:AJ153))>0,$H153-SUM($J153:AJ153),0)) -> 0 | AL153: =IF(ABS($H153-SUM($J153:AK153))>=ABS(AK153),AK153,IF(ABS($H153-SUM($J153:AK153))>0,$H153-SUM($J153:AK153),0)) -> 0 | AM153: =IF(ABS($H153-SUM($J153:AL153))>=ABS(AL153),AL153,IF(ABS($H153-SUM($J153:AL153))>0,$H153-SUM($J153:AL153),0)) -> 0 | AN153: =IF(ABS($H153-SUM($J153:AM153))>=ABS(AM153),AM153,IF(ABS($H153-SUM($J153:AM153))>0,$H153-SUM($J153:AM153),0)) -> 0 | AO153: =IF(ABS($H153-SUM($J153:AN153))>=ABS(AN153),AN153,IF(ABS($H153-SUM($J153:AN153))>0,$H153-SUM($J153:AN153),0)) -> 0 | AP153: =IF(ABS($H153-SUM($J153:AO153))>=ABS(AO153),AO153,IF(ABS($H153-SUM($J153:AO153))>0,$H153-SUM($J153:AO153),0)) -> 0 | AQ153: =IF(ABS($H153-SUM($J153:AP153))>=ABS(AP153),AP153,IF(ABS($H153-SUM($J153:AP153))>0,$H153-SUM($J153:AP153),0)) -> 0 | AR153: =IF(ABS($H153-SUM($J153:AQ153))>=ABS(AQ153),AQ153,IF(ABS($H153-SUM($J153:AQ153))>0,$H153-SUM($J153:AQ153),0)) -> 0 | AS153: =IF(ABS($H153-SUM($J153:AR153))>=ABS(AR153),AR153,IF(ABS($H153-SUM($J153:AR153))>0,$H153-SUM($J153:AR153),0)) -> 0 | AT153: =IF(ABS($H153-SUM($J153:AS153))>=ABS(AS153),AS153,IF(ABS($H153-SUM($J153:AS153))>0,$H153-SUM($J153:AS153),0)) -> 0 | AU153: =IF(ABS($H153-SUM($J153:AT153))>=ABS(AT153),AT153,IF(ABS($H153-SUM($J153:AT153))>0,$H153-SUM($J153:AT153),0)) -> 0 | AV153: =IF(ABS($H153-SUM($J153:AU153))>=ABS(AU153),AU153,IF(ABS($H153-SUM($J153:AU153))>0,$H153-SUM($J153:AU153),0)) -> 0 | AW153: =IF(ABS($H153-SUM($J153:AV153))>=ABS(AV153),AV153,IF(ABS($H153-SUM($J153:AV153))>0,$H153-SUM($J153:AV153),0)) -> 0 | AX153: =IF(ABS($H153-SUM($J153:AW153))>=ABS(AW153),AW153,IF(ABS($H153-SUM($J153:AW153))>0,$H153-SUM($J153:AW153),0)) -> 0 | AY153: =IF(ABS($H153-SUM($J153:AX153))>=ABS(AX153),AX153,IF(ABS($H153-SUM($J153:AX153))>0,$H153-SUM($J153:AX153),0)) -> 0 | AZ153: =IF(ABS($H153-SUM($J153:AY153))>=ABS(AY153),AY153,IF(ABS($H153-SUM($J153:AY153))>0,$H153-SUM($J153:AY153),0)) -> 0 | BA153: =IF(ABS($H153-SUM($J153:AZ153))>=ABS(AZ153),AZ153,IF(ABS($H153-SUM($J153:AZ153))>0,$H153-SUM($J153:AZ153),0)) -> 0 | BB153: =IF(ABS($H153-SUM($J153:BA153))>=ABS(BA153),BA153,IF(ABS($H153-SUM($J153:BA153))>0,$H153-SUM($J153:BA153),0)) -> 0 | BC153: =IF(ABS($H153-SUM($J153:BB153))>=ABS(BB153),BB153,IF(ABS($H153-SUM($J153:BB153))>0,$H153-SUM($J153:BB153),0)) -> 0 | BD153: =IF(ABS($H153-SUM($J153:BC153))>=ABS(BC153),BC153,IF(ABS($H153-SUM($J153:BC153))>0,$H153-SUM($J153:BC153),0)) -> 0 | BE153: =IF(ABS($H153-SUM($J153:BD153))>=ABS(BD153),BD153,IF(ABS($H153-SUM($J153:BD153))>0,$H153-SUM($J153:BD153),0)) -> 0 | BF153: =IF(ABS($H153-SUM($J153:BE153))>=ABS(BE153),BE153,IF(ABS($H153-SUM($J153:BE153))>0,$H153-SUM($J153:BE153),0)) -> 0 | BG153: =IF(ABS($H153-SUM($J153:BF153))>=ABS(BF153),BF153,IF(ABS($H153-SUM($J153:BF153))>0,$H153-SUM($J153:BF153),0)) -> 0 | BH153: =IF(ABS($H153-SUM($J153:BG153))>=ABS(BG153),BG153,IF(ABS($H153-SUM($J153:BG153))>0,$H153-SUM($J153:BG153),0)) -> 0 | BI153: =IF(ABS($H153-SUM($J153:BH153))>=ABS(BH153),BH153,IF(ABS($H153-SUM($J153:BH153))>0,$H153-SUM($J153:BH153),0)) -> 0 | BJ153: =IF(ABS($H153-SUM($J153:BI153))>=ABS(BI153),BI153,IF(ABS($H153-SUM($J153:BI153))>0,$H153-SUM($J153:BI153),0)) -> 0 | BK153: =IF(ABS($H153-SUM($J153:BJ153))>=ABS(BJ153),BJ153,IF(ABS($H153-SUM($J153:BJ153))>0,$H153-SUM($J153:BJ153),0)) -> 0 | BL153: =IF(ABS($H153-SUM($J153:BK153))>=ABS(BK153),BK153,IF(ABS($H153-SUM($J153:BK153))>0,$H153-SUM($J153:BK153),0)) -> 0 | BM153: =IF(ABS($H153-SUM($J153:BL153))>=ABS(BL153),BL153,IF(ABS($H153-SUM($J153:BL153))>0,$H153-SUM($J153:BL153),0)) -> 0 | BN153: =IF(ABS($H153-SUM($J153:BM153))>=ABS(BM153),BM153,IF(ABS($H153-SUM($J153:BM153))>0,$H153-SUM($J153:BM153),0)) -> 0 | BP153: =H153-SUM(J153:BN153) -> 0
C154: =TRANSPOSE(J151:AE151) -> 2005 | D154: AER | E154: $ | F154: nominal | AF154: =IF(ABS($H154-SUM($J154:AE154))>=ABS(AE154),AE154,IF(ABS($H154-SUM($J154:AE154))>0,$H154-SUM($J154:AE154),0)) -> 0 | AG154: =IF(ABS($H154-SUM($J154:AF154))>=ABS(AF154),AF154,IF(ABS($H154-SUM($J154:AF154))>0,$H154-SUM($J154:AF154),0)) -> 0 | AH154: =IF(ABS($H154-SUM($J154:AG154))>=ABS(AG154),AG154,IF(ABS($H154-SUM($J154:AG154))>0,$H154-SUM($J154:AG154),0)) -> 0 | AI154: =IF(ABS($H154-SUM($J154:AH154))>=ABS(AH154),AH154,IF(ABS($H154-SUM($J154:AH154))>0,$H154-SUM($J154:AH154),0)) -> 0 | AJ154: =IF(ABS($H154-SUM($J154:AI154))>=ABS(AI154),AI154,IF(ABS($H154-SUM($J154:AI154))>0,$H154-SUM($J154:AI154),0)) -> 0 | AK154: =IF(ABS($H154-SUM($J154:AJ154))>=ABS(AJ154),AJ154,IF(ABS($H154-SUM($J154:AJ154))>0,$H154-SUM($J154:AJ154),0)) -> 0 | AL154: =IF(ABS($H154-SUM($J154:AK154))>=ABS(AK154),AK154,IF(ABS($H154-SUM($J154:AK154))>0,$H154-SUM($J154:AK154),0)) -> 0 | AM154: =IF(ABS($H154-SUM($J154:AL154))>=ABS(AL154),AL154,IF(ABS($H154-SUM($J154:AL154))>0,$H154-SUM($J154:AL154),0)) -> 0 | AN154: =IF(ABS($H154-SUM($J154:AM154))>=ABS(AM154),AM154,IF(ABS($H154-SUM($J154:AM154))>0,$H154-SUM($J154:AM154),0)) -> 0 | AO154: =IF(ABS($H154-SUM($J154:AN154))>=ABS(AN154),AN154,IF(ABS($H154-SUM($J154:AN154))>0,$H154-SUM($J154:AN154),0)) -> 0 | AP154: =IF(ABS($H154-SUM($J154:AO154))>=ABS(AO154),AO154,IF(ABS($H154-SUM($J154:AO154))>0,$H154-SUM($J154:AO154),0)) -> 0 | AQ154: =IF(ABS($H154-SUM($J154:AP154))>=ABS(AP154),AP154,IF(ABS($H154-SUM($J154:AP154))>0,$H154-SUM($J154:AP154),0)) -> 0 | AR154: =IF(ABS($H154-SUM($J154:AQ154))>=ABS(AQ154),AQ154,IF(ABS($H154-SUM($J154:AQ154))>0,$H154-SUM($J154:AQ154),0)) -> 0 | AS154: =IF(ABS($H154-SUM($J154:AR154))>=ABS(AR154),AR154,IF(ABS($H154-SUM($J154:AR154))>0,$H154-SUM($J154:AR154),0)) -> 0 | AT154: =IF(ABS($H154-SUM($J154:AS154))>=ABS(AS154),AS154,IF(ABS($H154-SUM($J154:AS154))>0,$H154-SUM($J154:AS154),0)) -> 0 | AU154: =IF(ABS($H154-SUM($J154:AT154))>=ABS(AT154),AT154,IF(ABS($H154-SUM($J154:AT154))>0,$H154-SUM($J154:AT154),0)) -> 0 | AV154: =IF(ABS($H154-SUM($J154:AU154))>=ABS(AU154),AU154,IF(ABS($H154-SUM($J154:AU154))>0,$H154-SUM($J154:AU154),0)) -> 0 | AW154: =IF(ABS($H154-SUM($J154:AV154))>=ABS(AV154),AV154,IF(ABS($H154-SUM($J154:AV154))>0,$H154-SUM($J154:AV154),0)) -> 0 | AX154: =IF(ABS($H154-SUM($J154:AW154))>=ABS(AW154),AW154,IF(ABS($H154-SUM($J154:AW154))>0,$H154-SUM($J154:AW154),0)) -> 0 | AY154: =IF(ABS($H154-SUM($J154:AX154))>=ABS(AX154),AX154,IF(ABS($H154-SUM($J154:AX154))>0,$H154-SUM($J154:AX154),0)) -> 0 | AZ154: =IF(ABS($H154-SUM($J154:AY154))>=ABS(AY154),AY154,IF(ABS($H154-SUM($J154:AY154))>0,$H154-SUM($J154:AY154),0)) -> 0 | BA154: =IF(ABS($H154-SUM($J154:AZ154))>=ABS(AZ154),AZ154,IF(ABS($H154-SUM($J154:AZ154))>0,$H154-SUM($J154:AZ154),0)) -> 0 | BB154: =IF(ABS($H154-SUM($J154:BA154))>=ABS(BA154),BA154,IF(ABS($H154-SUM($J154:BA154))>0,$H154-SUM($J154:BA154),0)) -> 0 | BC154: =IF(ABS($H154-SUM($J154:BB154))>=ABS(BB154),BB154,IF(ABS($H154-SUM($J154:BB154))>0,$H154-SUM($J154:BB154),0)) -> 0 | BD154: =IF(ABS($H154-SUM($J154:BC154))>=ABS(BC154),BC154,IF(ABS($H154-SUM($J154:BC154))>0,$H154-SUM($J154:BC154),0)) -> 0 | BE154: =IF(ABS($H154-SUM($J154:BD154))>=ABS(BD154),BD154,IF(ABS($H154-SUM($J154:BD154))>0,$H154-SUM($J154:BD154),0)) -> 0 | BF154: =IF(ABS($H154-SUM($J154:BE154))>=ABS(BE154),BE154,IF(ABS($H154-SUM($J154:BE154))>0,$H154-SUM($J154:BE154),0)) -> 0 | BG154: =IF(ABS($H154-SUM($J154:BF154))>=ABS(BF154),BF154,IF(ABS($H154-SUM($J154:BF154))>0,$H154-SUM($J154:BF154),0)) -> 0 | BH154: =IF(ABS($H154-SUM($J154:BG154))>=ABS(BG154),BG154,IF(ABS($H154-SUM($J154:BG154))>0,$H154-SUM($J154:BG154),0)) -> 0 | BI154: =IF(ABS($H154-SUM($J154:BH154))>=ABS(BH154),BH154,IF(ABS($H154-SUM($J154:BH154))>0,$H154-SUM($J154:BH154),0)) -> 0 | BJ154: =IF(ABS($H154-SUM($J154:BI154))>=ABS(BI154),BI154,IF(ABS($H154-SUM($J154:BI154))>0,$H154-SUM($J154:BI154),0)) -> 0 | BK154: =IF(ABS($H154-SUM($J154:BJ154))>=ABS(BJ154),BJ154,IF(ABS($H154-SUM($J154:BJ154))>0,$H154-SUM($J154:BJ154),0)) -> 0 | BL154: =IF(ABS($H154-SUM($J154:BK154))>=ABS(BK154),BK154,IF(ABS($H154-SUM($J154:BK154))>0,$H154-SUM($J154:BK154),0)) -> 0 | BM154: =IF(ABS($H154-SUM($J154:BL154))>=ABS(BL154),BL154,IF(ABS($H154-SUM($J154:BL154))>0,$H154-SUM($J154:BL154),0)) -> 0 | BN154: =IF(ABS($H154-SUM($J154:BM154))>=ABS(BM154),BM154,IF(ABS($H154-SUM($J154:BM154))>0,$H154-SUM($J154:BM154),0)) -> 0 | BP154: 0
C155: 2006 | D155: AER | E155: $ | F155: nominal | AF155: =IF(ABS($H155-SUM($J155:AE155))>=ABS(AE155),AE155,IF(ABS($H155-SUM($J155:AE155))>0,$H155-SUM($J155:AE155),0)) -> 0 | AG155: =IF(ABS($H155-SUM($J155:AF155))>=ABS(AF155),AF155,IF(ABS($H155-SUM($J155:AF155))>0,$H155-SUM($J155:AF155),0)) -> 0 | AH155: =IF(ABS($H155-SUM($J155:AG155))>=ABS(AG155),AG155,IF(ABS($H155-SUM($J155:AG155))>0,$H155-SUM($J155:AG155),0)) -> 0 | AI155: =IF(ABS($H155-SUM($J155:AH155))>=ABS(AH155),AH155,IF(ABS($H155-SUM($J155:AH155))>0,$H155-SUM($J155:AH155),0)) -> 0 | AJ155: =IF(ABS($H155-SUM($J155:AI155))>=ABS(AI155),AI155,IF(ABS($H155-SUM($J155:AI155))>0,$H155-SUM($J155:AI155),0)) -> 0 | AK155: =IF(ABS($H155-SUM($J155:AJ155))>=ABS(AJ155),AJ155,IF(ABS($H155-SUM($J155:AJ155))>0,$H155-SUM($J155:AJ155),0)) -> 0 | AL155: =IF(ABS($H155-SUM($J155:AK155))>=ABS(AK155),AK155,IF(ABS($H155-SUM($J155:AK155))>0,$H155-SUM($J155:AK155),0)) -> 0 | AM155: =IF(ABS($H155-SUM($J155:AL155))>=ABS(AL155),AL155,IF(ABS($H155-SUM($J155:AL155))>0,$H155-SUM($J155:AL155),0)) -> 0 | AN155: =IF(ABS($H155-SUM($J155:AM155))>=ABS(AM155),AM155,IF(ABS($H155-SUM($J155:AM155))>0,$H155-SUM($J155:AM155),0)) -> 0 | AO155: =IF(ABS($H155-SUM($J155:AN155))>=ABS(AN155),AN155,IF(ABS($H155-SUM($J155:AN155))>0,$H155-SUM($J155:AN155),0)) -> 0 | AP155: =IF(ABS($H155-SUM($J155:AO155))>=ABS(AO155),AO155,IF(ABS($H155-SUM($J155:AO155))>0,$H155-SUM($J155:AO155),0)) -> 0 | AQ155: =IF(ABS($H155-SUM($J155:AP155))>=ABS(AP155),AP155,IF(ABS($H155-SUM($J155:AP155))>0,$H155-SUM($J155:AP155),0)) -> 0 | AR155: =IF(ABS($H155-SUM($J155:AQ155))>=ABS(AQ155),AQ155,IF(ABS($H155-SUM($J155:AQ155))>0,$H155-SUM($J155:AQ155),0)) -> 0 | AS155: =IF(ABS($H155-SUM($J155:AR155))>=ABS(AR155),AR155,IF(ABS($H155-SUM($J155:AR155))>0,$H155-SUM($J155:AR155),0)) -> 0 | AT155: =IF(ABS($H155-SUM($J155:AS155))>=ABS(AS155),AS155,IF(ABS($H155-SUM($J155:AS155))>0,$H155-SUM($J155:AS155),0)) -> 0 | AU155: =IF(ABS($H155-SUM($J155:AT155))>=ABS(AT155),AT155,IF(ABS($H155-SUM($J155:AT155))>0,$H155-SUM($J155:AT155),0)) -> 0 | AV155: =IF(ABS($H155-SUM($J155:AU155))>=ABS(AU155),AU155,IF(ABS($H155-SUM($J155:AU155))>0,$H155-SUM($J155:AU155),0)) -> 0 | AW155: =IF(ABS($H155-SUM($J155:AV155))>=ABS(AV155),AV155,IF(ABS($H155-SUM($J155:AV155))>0,$H155-SUM($J155:AV155),0)) -> 0 | AX155: =IF(ABS($H155-SUM($J155:AW155))>=ABS(AW155),AW155,IF(ABS($H155-SUM($J155:AW155))>0,$H155-SUM($J155:AW155),0)) -> 0 | AY155: =IF(ABS($H155-SUM($J155:AX155))>=ABS(AX155),AX155,IF(ABS($H155-SUM($J155:AX155))>0,$H155-SUM($J155:AX155),0)) -> 0 | AZ155: =IF(ABS($H155-SUM($J155:AY155))>=ABS(AY155),AY155,IF(ABS($H155-SUM($J155:AY155))>0,$H155-SUM($J155:AY155),0)) -> 0 | BA155: =IF(ABS($H155-SUM($J155:AZ155))>=ABS(AZ155),AZ155,IF(ABS($H155-SUM($J155:AZ155))>0,$H155-SUM($J155:AZ155),0)) -> 0 | BB155: =IF(ABS($H155-SUM($J155:BA155))>=ABS(BA155),BA155,IF(ABS($H155-SUM($J155:BA155))>0,$H155-SUM($J155:BA155),0)) -> 0 | BC155: =IF(ABS($H155-SUM($J155:BB155))>=ABS(BB155),BB155,IF(ABS($H155-SUM($J155:BB155))>0,$H155-SUM($J155:BB155),0)) -> 0 | BD155: =IF(ABS($H155-SUM($J155:BC155))>=ABS(BC155),BC155,IF(ABS($H155-SUM($J155:BC155))>0,$H155-SUM($J155:BC155),0)) -> 0 | BE155: =IF(ABS($H155-SUM($J155:BD155))>=ABS(BD155),BD155,IF(ABS($H155-SUM($J155:BD155))>0,$H155-SUM($J155:BD155),0)) -> 0 | BF155: =IF(ABS($H155-SUM($J155:BE155))>=ABS(BE155),BE155,IF(ABS($H155-SUM($J155:BE155))>0,$H155-SUM($J155:BE155),0)) -> 0 | BG155: =IF(ABS($H155-SUM($J155:BF155))>=ABS(BF155),BF155,IF(ABS($H155-SUM($J155:BF155))>0,$H155-SUM($J155:BF155),0)) -> 0 | BH155: =IF(ABS($H155-SUM($J155:BG155))>=ABS(BG155),BG155,IF(ABS($H155-SUM($J155:BG155))>0,$H155-SUM($J155:BG155),0)) -> 0 | BI155: =IF(ABS($H155-SUM($J155:BH155))>=ABS(BH155),BH155,IF(ABS($H155-SUM($J155:BH155))>0,$H155-SUM($J155:BH155),0)) -> 0 | BJ155: =IF(ABS($H155-SUM($J155:BI155))>=ABS(BI155),BI155,IF(ABS($H155-SUM($J155:BI155))>0,$H155-SUM($J155:BI155),0)) -> 0 | BK155: =IF(ABS($H155-SUM($J155:BJ155))>=ABS(BJ155),BJ155,IF(ABS($H155-SUM($J155:BJ155))>0,$H155-SUM($J155:BJ155),0)) -> 0 | BL155: =IF(ABS($H155-SUM($J155:BK155))>=ABS(BK155),BK155,IF(ABS($H155-SUM($J155:BK155))>0,$H155-SUM($J155:BK155),0)) -> 0 | BM155: =IF(ABS($H155-SUM($J155:BL155))>=ABS(BL155),BL155,IF(ABS($H155-SUM($J155:BL155))>0,$H155-SUM($J155:BL155),0)) -> 0 | BN155: =IF(ABS($H155-SUM($J155:BM155))>=ABS(BM155),BM155,IF(ABS($H155-SUM($J155:BM155))>0,$H155-SUM($J155:BM155),0)) -> 0 | BP155: 0
C156: 2007 | D156: AER | E156: $ | F156: nominal | AF156: =IF(ABS($H156-SUM($J156:AE156))>=ABS(AE156),AE156,IF(ABS($H156-SUM($J156:AE156))>0,$H156-SUM($J156:AE156),0)) -> 0 | AG156: =IF(ABS($H156-SUM($J156:AF156))>=ABS(AF156),AF156,IF(ABS($H156-SUM($J156:AF156))>0,$H156-SUM($J156:AF156),0)) -> 0 | AH156: =IF(ABS($H156-SUM($J156:AG156))>=ABS(AG156),AG156,IF(ABS($H156-SUM($J156:AG156))>0,$H156-SUM($J156:AG156),0)) -> 0 | AI156: =IF(ABS($H156-SUM($J156:AH156))>=ABS(AH156),AH156,IF(ABS($H156-SUM($J156:AH156))>0,$H156-SUM($J156:AH156),0)) -> 0 | AJ156: =IF(ABS($H156-SUM($J156:AI156))>=ABS(AI156),AI156,IF(ABS($H156-SUM($J156:AI156))>0,$H156-SUM($J156:AI156),0)) -> 0 | AK156: =IF(ABS($H156-SUM($J156:AJ156))>=ABS(AJ156),AJ156,IF(ABS($H156-SUM($J156:AJ156))>0,$H156-SUM($J156:AJ156),0)) -> 0 | AL156: =IF(ABS($H156-SUM($J156:AK156))>=ABS(AK156),AK156,IF(ABS($H156-SUM($J156:AK156))>0,$H156-SUM($J156:AK156),0)) -> 0 | AM156: =IF(ABS($H156-SUM($J156:AL156))>=ABS(AL156),AL156,IF(ABS($H156-SUM($J156:AL156))>0,$H156-SUM($J156:AL156),0)) -> 0 | AN156: =IF(ABS($H156-SUM($J156:AM156))>=ABS(AM156),AM156,IF(ABS($H156-SUM($J156:AM156))>0,$H156-SUM($J156:AM156),0)) -> 0 | AO156: =IF(ABS($H156-SUM($J156:AN156))>=ABS(AN156),AN156,IF(ABS($H156-SUM($J156:AN156))>0,$H156-SUM($J156:AN156),0)) -> 0 | AP156: =IF(ABS($H156-SUM($J156:AO156))>=ABS(AO156),AO156,IF(ABS($H156-SUM($J156:AO156))>0,$H156-SUM($J156:AO156),0)) -> 0 | AQ156: =IF(ABS($H156-SUM($J156:AP156))>=ABS(AP156),AP156,IF(ABS($H156-SUM($J156:AP156))>0,$H156-SUM($J156:AP156),0)) -> 0 | AR156: =IF(ABS($H156-SUM($J156:AQ156))>=ABS(AQ156),AQ156,IF(ABS($H156-SUM($J156:AQ156))>0,$H156-SUM($J156:AQ156),0)) -> 0 | AS156: =IF(ABS($H156-SUM($J156:AR156))>=ABS(AR156),AR156,IF(ABS($H156-SUM($J156:AR156))>0,$H156-SUM($J156:AR156),0)) -> 0 | AT156: =IF(ABS($H156-SUM($J156:AS156))>=ABS(AS156),AS156,IF(ABS($H156-SUM($J156:AS156))>0,$H156-SUM($J156:AS156),0)) -> 0 | AU156: =IF(ABS($H156-SUM($J156:AT156))>=ABS(AT156),AT156,IF(ABS($H156-SUM($J156:AT156))>0,$H156-SUM($J156:AT156),0)) -> 0 | AV156: =IF(ABS($H156-SUM($J156:AU156))>=ABS(AU156),AU156,IF(ABS($H156-SUM($J156:AU156))>0,$H156-SUM($J156:AU156),0)) -> 0 | AW156: =IF(ABS($H156-SUM($J156:AV156))>=ABS(AV156),AV156,IF(ABS($H156-SUM($J156:AV156))>0,$H156-SUM($J156:AV156),0)) -> 0 | AX156: =IF(ABS($H156-SUM($J156:AW156))>=ABS(AW156),AW156,IF(ABS($H156-SUM($J156:AW156))>0,$H156-SUM($J156:AW156),0)) -> 0 | AY156: =IF(ABS($H156-SUM($J156:AX156))>=ABS(AX156),AX156,IF(ABS($H156-SUM($J156:AX156))>0,$H156-SUM($J156:AX156),0)) -> 0 | AZ156: =IF(ABS($H156-SUM($J156:AY156))>=ABS(AY156),AY156,IF(ABS($H156-SUM($J156:AY156))>0,$H156-SUM($J156:AY156),0)) -> 0 | BA156: =IF(ABS($H156-SUM($J156:AZ156))>=ABS(AZ156),AZ156,IF(ABS($H156-SUM($J156:AZ156))>0,$H156-SUM($J156:AZ156),0)) -> 0 | BB156: =IF(ABS($H156-SUM($J156:BA156))>=ABS(BA156),BA156,IF(ABS($H156-SUM($J156:BA156))>0,$H156-SUM($J156:BA156),0)) -> 0 | BC156: =IF(ABS($H156-SUM($J156:BB156))>=ABS(BB156),BB156,IF(ABS($H156-SUM($J156:BB156))>0,$H156-SUM($J156:BB156),0)) -> 0 | BD156: =IF(ABS($H156-SUM($J156:BC156))>=ABS(BC156),BC156,IF(ABS($H156-SUM($J156:BC156))>0,$H156-SUM($J156:BC156),0)) -> 0 | BE156: =IF(ABS($H156-SUM($J156:BD156))>=ABS(BD156),BD156,IF(ABS($H156-SUM($J156:BD156))>0,$H156-SUM($J156:BD156),0)) -> 0 | BF156: =IF(ABS($H156-SUM($J156:BE156))>=ABS(BE156),BE156,IF(ABS($H156-SUM($J156:BE156))>0,$H156-SUM($J156:BE156),0)) -> 0 | BG156: =IF(ABS($H156-SUM($J156:BF156))>=ABS(BF156),BF156,IF(ABS($H156-SUM($J156:BF156))>0,$H156-SUM($J156:BF156),0)) -> 0 | BH156: =IF(ABS($H156-SUM($J156:BG156))>=ABS(BG156),BG156,IF(ABS($H156-SUM($J156:BG156))>0,$H156-SUM($J156:BG156),0)) -> 0 | BI156: =IF(ABS($H156-SUM($J156:BH156))>=ABS(BH156),BH156,IF(ABS($H156-SUM($J156:BH156))>0,$H156-SUM($J156:BH156),0)) -> 0 | BJ156: =IF(ABS($H156-SUM($J156:BI156))>=ABS(BI156),BI156,IF(ABS($H156-SUM($J156:BI156))>0,$H156-SUM($J156:BI156),0)) -> 0 | BK156: =IF(ABS($H156-SUM($J156:BJ156))>=ABS(BJ156),BJ156,IF(ABS($H156-SUM($J156:BJ156))>0,$H156-SUM($J156:BJ156),0)) -> 0 | BL156: =IF(ABS($H156-SUM($J156:BK156))>=ABS(BK156),BK156,IF(ABS($H156-SUM($J156:BK156))>0,$H156-SUM($J156:BK156),0)) -> 0 | BM156: =IF(ABS($H156-SUM($J156:BL156))>=ABS(BL156),BL156,IF(ABS($H156-SUM($J156:BL156))>0,$H156-SUM($J156:BL156),0)) -> 0 | BN156: =IF(ABS($H156-SUM($J156:BM156))>=ABS(BM156),BM156,IF(ABS($H156-SUM($J156:BM156))>0,$H156-SUM($J156:BM156),0)) -> 0 | BP156: 0
C157: 2008 | D157: AER | E157: $ | F157: nominal | AF157: =IF(ABS($H157-SUM($J157:AE157))>=ABS(AE157),AE157,IF(ABS($H157-SUM($J157:AE157))>0,$H157-SUM($J157:AE157),0)) -> 0 | AG157: =IF(ABS($H157-SUM($J157:AF157))>=ABS(AF157),AF157,IF(ABS($H157-SUM($J157:AF157))>0,$H157-SUM($J157:AF157),0)) -> 0 | AH157: =IF(ABS($H157-SUM($J157:AG157))>=ABS(AG157),AG157,IF(ABS($H157-SUM($J157:AG157))>0,$H157-SUM($J157:AG157),0)) -> 0 | AI157: =IF(ABS($H157-SUM($J157:AH157))>=ABS(AH157),AH157,IF(ABS($H157-SUM($J157:AH157))>0,$H157-SUM($J157:AH157),0)) -> 0 | AJ157: =IF(ABS($H157-SUM($J157:AI157))>=ABS(AI157),AI157,IF(ABS($H157-SUM($J157:AI157))>0,$H157-SUM($J157:AI157),0)) -> 0 | AK157: =IF(ABS($H157-SUM($J157:AJ157))>=ABS(AJ157),AJ157,IF(ABS($H157-SUM($J157:AJ157))>0,$H157-SUM($J157:AJ157),0)) -> 0 | AL157: =IF(ABS($H157-SUM($J157:AK157))>=ABS(AK157),AK157,IF(ABS($H157-SUM($J157:AK157))>0,$H157-SUM($J157:AK157),0)) -> 0 | AM157: =IF(ABS($H157-SUM($J157:AL157))>=ABS(AL157),AL157,IF(ABS($H157-SUM($J157:AL157))>0,$H157-SUM($J157:AL157),0)) -> 0 | AN157: =IF(ABS($H157-SUM($J157:AM157))>=ABS(AM157),AM157,IF(ABS($H157-SUM($J157:AM157))>0,$H157-SUM($J157:AM157),0)) -> 0 | AO157: =IF(ABS($H157-SUM($J157:AN157))>=ABS(AN157),AN157,IF(ABS($H157-SUM($J157:AN157))>0,$H157-SUM($J157:AN157),0)) -> 0 | AP157: =IF(ABS($H157-SUM($J157:AO157))>=ABS(AO157),AO157,IF(ABS($H157-SUM($J157:AO157))>0,$H157-SUM($J157:AO157),0)) -> 0 | AQ157: =IF(ABS($H157-SUM($J157:AP157))>=ABS(AP157),AP157,IF(ABS($H157-SUM($J157:AP157))>0,$H157-SUM($J157:AP157),0)) -> 0 | AR157: =IF(ABS($H157-SUM($J157:AQ157))>=ABS(AQ157),AQ157,IF(ABS($H157-SUM($J157:AQ157))>0,$H157-SUM($J157:AQ157),0)) -> 0 | AS157: =IF(ABS($H157-SUM($J157:AR157))>=ABS(AR157),AR157,IF(ABS($H157-SUM($J157:AR157))>0,$H157-SUM($J157:AR157),0)) -> 0 | AT157: =IF(ABS($H157-SUM($J157:AS157))>=ABS(AS157),AS157,IF(ABS($H157-SUM($J157:AS157))>0,$H157-SUM($J157:AS157),0)) -> 0 | AU157: =IF(ABS($H157-SUM($J157:AT157))>=ABS(AT157),AT157,IF(ABS($H157-SUM($J157:AT157))>0,$H157-SUM($J157:AT157),0)) -> 0 | AV157: =IF(ABS($H157-SUM($J157:AU157))>=ABS(AU157),AU157,IF(ABS($H157-SUM($J157:AU157))>0,$H157-SUM($J157:AU157),0)) -> 0 | AW157: =IF(ABS($H157-SUM($J157:AV157))>=ABS(AV157),AV157,IF(ABS($H157-SUM($J157:AV157))>0,$H157-SUM($J157:AV157),0)) -> 0 | AX157: =IF(ABS($H157-SUM($J157:AW157))>=ABS(AW157),AW157,IF(ABS($H157-SUM($J157:AW157))>0,$H157-SUM($J157:AW157),0)) -> 0 | AY157: =IF(ABS($H157-SUM($J157:AX157))>=ABS(AX157),AX157,IF(ABS($H157-SUM($J157:AX157))>0,$H157-SUM($J157:AX157),0)) -> 0 | AZ157: =IF(ABS($H157-SUM($J157:AY157))>=ABS(AY157),AY157,IF(ABS($H157-SUM($J157:AY157))>0,$H157-SUM($J157:AY157),0)) -> 0 | BA157: =IF(ABS($H157-SUM($J157:AZ157))>=ABS(AZ157),AZ157,IF(ABS($H157-SUM($J157:AZ157))>0,$H157-SUM($J157:AZ157),0)) -> 0 | BB157: =IF(ABS($H157-SUM($J157:BA157))>=ABS(BA157),BA157,IF(ABS($H157-SUM($J157:BA157))>0,$H157-SUM($J157:BA157),0)) -> 0 | BC157: =IF(ABS($H157-SUM($J157:BB157))>=ABS(BB157),BB157,IF(ABS($H157-SUM($J157:BB157))>0,$H157-SUM($J157:BB157),0)) -> 0 | BD157: =IF(ABS($H157-SUM($J157:BC157))>=ABS(BC157),BC157,IF(ABS($H157-SUM($J157:BC157))>0,$H157-SUM($J157:BC157),0)) -> 0 | BE157: =IF(ABS($H157-SUM($J157:BD157))>=ABS(BD157),BD157,IF(ABS($H157-SUM($J157:BD157))>0,$H157-SUM($J157:BD157),0)) -> 0 | BF157: =IF(ABS($H157-SUM($J157:BE157))>=ABS(BE157),BE157,IF(ABS($H157-SUM($J157:BE157))>0,$H157-SUM($J157:BE157),0)) -> 0 | BG157: =IF(ABS($H157-SUM($J157:BF157))>=ABS(BF157),BF157,IF(ABS($H157-SUM($J157:BF157))>0,$H157-SUM($J157:BF157),0)) -> 0 | BH157: =IF(ABS($H157-SUM($J157:BG157))>=ABS(BG157),BG157,IF(ABS($H157-SUM($J157:BG157))>0,$H157-SUM($J157:BG157),0)) -> 0 | BI157: =IF(ABS($H157-SUM($J157:BH157))>=ABS(BH157),BH157,IF(ABS($H157-SUM($J157:BH157))>0,$H157-SUM($J157:BH157),0)) -> 0 | BJ157: =IF(ABS($H157-SUM($J157:BI157))>=ABS(BI157),BI157,IF(ABS($H157-SUM($J157:BI157))>0,$H157-SUM($J157:BI157),0)) -> 0 | BK157: =IF(ABS($H157-SUM($J157:BJ157))>=ABS(BJ157),BJ157,IF(ABS($H157-SUM($J157:BJ157))>0,$H157-SUM($J157:BJ157),0)) -> 0 | BL157: =IF(ABS($H157-SUM($J157:BK157))>=ABS(BK157),BK157,IF(ABS($H157-SUM($J157:BK157))>0,$H157-SUM($J157:BK157),0)) -> 0 | BM157: =IF(ABS($H157-SUM($J157:BL157))>=ABS(BL157),BL157,IF(ABS($H157-SUM($J157:BL157))>0,$H157-SUM($J157:BL157),0)) -> 0 | BN157: =IF(ABS($H157-SUM($J157:BM157))>=ABS(BM157),BM157,IF(ABS($H157-SUM($J157:BM157))>0,$H157-SUM($J157:BM157),0)) -> 0 | BP157: 0
C158: 2009 | D158: AER | E158: $ | F158: nominal | H158: 0 | N158: 0 | O158: 0 | P158: 0 | Q158: 0 | R158: 0 | S158: 0 | T158: 0 | U158: 0 | V158: 0 | W158: 0 | X158: 0 | Y158: 0 | Z158: 0 | AA158: 0 | AB158: 0 | AC158: 0 | AD158: 0 | AE158: 0 | AF158: =IF(ABS($H158-SUM($J158:AE158))>=ABS(AE158),AE158,IF(ABS($H158-SUM($J158:AE158))>0,$H158-SUM($J158:AE158),0)) -> 0 | AG158: =IF(ABS($H158-SUM($J158:AF158))>=ABS(AF158),AF158,IF(ABS($H158-SUM($J158:AF158))>0,$H158-SUM($J158:AF158),0)) -> 0 | AH158: =IF(ABS($H158-SUM($J158:AG158))>=ABS(AG158),AG158,IF(ABS($H158-SUM($J158:AG158))>0,$H158-SUM($J158:AG158),0)) -> 0 | AI158: =IF(ABS($H158-SUM($J158:AH158))>=ABS(AH158),AH158,IF(ABS($H158-SUM($J158:AH158))>0,$H158-SUM($J158:AH158),0)) -> 0 | AJ158: =IF(ABS($H158-SUM($J158:AI158))>=ABS(AI158),AI158,IF(ABS($H158-SUM($J158:AI158))>0,$H158-SUM($J158:AI158),0)) -> 0 | AK158: =IF(ABS($H158-SUM($J158:AJ158))>=ABS(AJ158),AJ158,IF(ABS($H158-SUM($J158:AJ158))>0,$H158-SUM($J158:AJ158),0)) -> 0 | AL158: =IF(ABS($H158-SUM($J158:AK158))>=ABS(AK158),AK158,IF(ABS($H158-SUM($J158:AK158))>0,$H158-SUM($J158:AK158),0)) -> 0 | AM158: =IF(ABS($H158-SUM($J158:AL158))>=ABS(AL158),AL158,IF(ABS($H158-SUM($J158:AL158))>0,$H158-SUM($J158:AL158),0)) -> 0 | AN158: =IF(ABS($H158-SUM($J158:AM158))>=ABS(AM158),AM158,IF(ABS($H158-SUM($J158:AM158))>0,$H158-SUM($J158:AM158),0)) -> 0 | AO158: =IF(ABS($H158-SUM($J158:AN158))>=ABS(AN158),AN158,IF(ABS($H158-SUM($J158:AN158))>0,$H158-SUM($J158:AN158),0)) -> 0 | AP158: =IF(ABS($H158-SUM($J158:AO158))>=ABS(AO158),AO158,IF(ABS($H158-SUM($J158:AO158))>0,$H158-SUM($J158:AO158),0)) -> 0 | AQ158: =IF(ABS($H158-SUM($J158:AP158))>=ABS(AP158),AP158,IF(ABS($H158-SUM($J158:AP158))>0,$H158-SUM($J158:AP158),0)) -> 0 | AR158: =IF(ABS($H158-SUM($J158:AQ158))>=ABS(AQ158),AQ158,IF(ABS($H158-SUM($J158:AQ158))>0,$H158-SUM($J158:AQ158),0)) -> 0 | AS158: =IF(ABS($H158-SUM($J158:AR158))>=ABS(AR158),AR158,IF(ABS($H158-SUM($J158:AR158))>0,$H158-SUM($J158:AR158),0)) -> 0 | AT158: =IF(ABS($H158-SUM($J158:AS158))>=ABS(AS158),AS158,IF(ABS($H158-SUM($J158:AS158))>0,$H158-SUM($J158:AS158),0)) -> 0 | AU158: =IF(ABS($H158-SUM($J158:AT158))>=ABS(AT158),AT158,IF(ABS($H158-SUM($J158:AT158))>0,$H158-SUM($J158:AT158),0)) -> 0 | AV158: =IF(ABS($H158-SUM($J158:AU158))>=ABS(AU158),AU158,IF(ABS($H158-SUM($J158:AU158))>0,$H158-SUM($J158:AU158),0)) -> 0 | AW158: =IF(ABS($H158-SUM($J158:AV158))>=ABS(AV158),AV158,IF(ABS($H158-SUM($J158:AV158))>0,$H158-SUM($J158:AV158),0)) -> 0 | AX158: =IF(ABS($H158-SUM($J158:AW158))>=ABS(AW158),AW158,IF(ABS($H158-SUM($J158:AW158))>0,$H158-SUM($J158:AW158),0)) -> 0 | AY158: =IF(ABS($H158-SUM($J158:AX158))>=ABS(AX158),AX158,IF(ABS($H158-SUM($J158:AX158))>0,$H158-SUM($J158:AX158),0)) -> 0 | AZ158: =IF(ABS($H158-SUM($J158:AY158))>=ABS(AY158),AY158,IF(ABS($H158-SUM($J158:AY158))>0,$H158-SUM($J158:AY158),0)) -> 0 | BA158: =IF(ABS($H158-SUM($J158:AZ158))>=ABS(AZ158),AZ158,IF(ABS($H158-SUM($J158:AZ158))>0,$H158-SUM($J158:AZ158),0)) -> 0 | BB158: =IF(ABS($H158-SUM($J158:BA158))>=ABS(BA158),BA158,IF(ABS($H158-SUM($J158:BA158))>0,$H158-SUM($J158:BA158),0)) -> 0 | BC158: =IF(ABS($H158-SUM($J158:BB158))>=ABS(BB158),BB158,IF(ABS($H158-SUM($J158:BB158))>0,$H158-SUM($J158:BB158),0)) -> 0 | BD158: =IF(ABS($H158-SUM($J158:BC158))>=ABS(BC158),BC158,IF(ABS($H158-SUM($J158:BC158))>0,$H158-SUM($J158:BC158),0)) -> 0 | BE158: =IF(ABS($H158-SUM($J158:BD158))>=ABS(BD158),BD158,IF(ABS($H158-SUM($J158:BD158))>0,$H158-SUM($J158:BD158),0)) -> 0 | BF158: =IF(ABS($H158-SUM($J158:BE158))>=ABS(BE158),BE158,IF(ABS($H158-SUM($J158:BE158))>0,$H158-SUM($J158:BE158),0)) -> 0 | BG158: =IF(ABS($H158-SUM($J158:BF158))>=ABS(BF158),BF158,IF(ABS($H158-SUM($J158:BF158))>0,$H158-SUM($J158:BF158),0)) -> 0 | BH158: =IF(ABS($H158-SUM($J158:BG158))>=ABS(BG158),BG158,IF(ABS($H158-SUM($J158:BG158))>0,$H158-SUM($J158:BG158),0)) -> 0 | BI158: =IF(ABS($H158-SUM($J158:BH158))>=ABS(BH158),BH158,IF(ABS($H158-SUM($J158:BH158))>0,$H158-SUM($J158:BH158),0)) -> 0 | BJ158: =IF(ABS($H158-SUM($J158:BI158))>=ABS(BI158),BI158,IF(ABS($H158-SUM($J158:BI158))>0,$H158-SUM($J158:BI158),0)) -> 0 | BK158: =IF(ABS($H158-SUM($J158:BJ158))>=ABS(BJ158),BJ158,IF(ABS($H158-SUM($J158:BJ158))>0,$H158-SUM($J158:BJ158),0)) -> 0 | BL158: =IF(ABS($H158-SUM($J158:BK158))>=ABS(BK158),BK158,IF(ABS($H158-SUM($J158:BK158))>0,$H158-SUM($J158:BK158),0)) -> 0 | BM158: =IF(ABS($H158-SUM($J158:BL158))>=ABS(BL158),BL158,IF(ABS($H158-SUM($J158:BL158))>0,$H158-SUM($J158:BL158),0)) -> 0 | BN158: =IF(ABS($H158-SUM($J158:BM158))>=ABS(BM158),BM158,IF(ABS($H158-SUM($J158:BM158))>0,$H158-SUM($J158:BM158),0)) -> 0 | BP158: 0
C159: 2010 | D159: AER | E159: $ | F159: nominal | H159: 137051 | O159: 3426.275 | P159: 6852.55 | Q159: 6852.55 | R159: 6852.55 | S159: 6852.55 | T159: 6852.55 | U159: 6852.55 | V159: 6852.55 | W159: 6852.55 | X159: 6852.55 | Y159: 6852.55 | Z159: 3426.275 | AA159: 6852.55 | AB159: 6852.55 | AC159: 6852.55 | AD159: 6852.55 | AE159: 6852.55 | AF159: =IF(ABS($H159-SUM($J159:AE159))>=ABS(AE159),AE159,IF(ABS($H159-SUM($J159:AE159))>0,$H159-SUM($J159:AE159),0)) -> 6852.55 | AG159: =IF(ABS($H159-SUM($J159:AF159))>=ABS(AF159),AF159,IF(ABS($H159-SUM($J159:AF159))>0,$H159-SUM($J159:AF159),0)) -> 6852.55 | AH159: =IF(ABS($H159-SUM($J159:AG159))>=ABS(AG159),AG159,IF(ABS($H159-SUM($J159:AG159))>0,$H159-SUM($J159:AG159),0)) -> 6852.55 | AI159: =IF(ABS($H159-SUM($J159:AH159))>=ABS(AH159),AH159,IF(ABS($H159-SUM($J159:AH159))>0,$H159-SUM($J159:AH159),0)) -> 6852.55 | AJ159: =IF(ABS($H159-SUM($J159:AI159))>=ABS(AI159),AI159,IF(ABS($H159-SUM($J159:AI159))>0,$H159-SUM($J159:AI159),0)) -> 0 | AK159: =IF(ABS($H159-SUM($J159:AJ159))>=ABS(AJ159),AJ159,IF(ABS($H159-SUM($J159:AJ159))>0,$H159-SUM($J159:AJ159),0)) -> 0 | AL159: =IF(ABS($H159-SUM($J159:AK159))>=ABS(AK159),AK159,IF(ABS($H159-SUM($J159:AK159))>0,$H159-SUM($J159:AK159),0)) -> 0 | AM159: =IF(ABS($H159-SUM($J159:AL159))>=ABS(AL159),AL159,IF(ABS($H159-SUM($J159:AL159))>0,$H159-SUM($J159:AL159),0)) -> 0 | AN159: =IF(ABS($H159-SUM($J159:AM159))>=ABS(AM159),AM159,IF(ABS($H159-SUM($J159:AM159))>0,$H159-SUM($J159:AM159),0)) -> 0 | AO159: =IF(ABS($H159-SUM($J159:AN159))>=ABS(AN159),AN159,IF(ABS($H159-SUM($J159:AN159))>0,$H159-SUM($J159:AN159),0)) -> 0 | AP159: =IF(ABS($H159-SUM($J159:AO159))>=ABS(AO159),AO159,IF(ABS($H159-SUM($J159:AO159))>0,$H159-SUM($J159:AO159),0)) -> 0 | AQ159: =IF(ABS($H159-SUM($J159:AP159))>=ABS(AP159),AP159,IF(ABS($H159-SUM($J159:AP159))>0,$H159-SUM($J159:AP159),0)) -> 0 | AR159: =IF(ABS($H159-SUM($J159:AQ159))>=ABS(AQ159),AQ159,IF(ABS($H159-SUM($J159:AQ159))>0,$H159-SUM($J159:AQ159),0)) -> 0 | AS159: =IF(ABS($H159-SUM($J159:AR159))>=ABS(AR159),AR159,IF(ABS($H159-SUM($J159:AR159))>0,$H159-SUM($J159:AR159),0)) -> 0 | AT159: =IF(ABS($H159-SUM($J159:AS159))>=ABS(AS159),AS159,IF(ABS($H159-SUM($J159:AS159))>0,$H159-SUM($J159:AS159),0)) -> 0 | AU159: =IF(ABS($H159-SUM($J159:AT159))>=ABS(AT159),AT159,IF(ABS($H159-SUM($J159:AT159))>0,$H159-SUM($J159:AT159),0)) -> 0 | AV159: =IF(ABS($H159-SUM($J159:AU159))>=ABS(AU159),AU159,IF(ABS($H159-SUM($J159:AU159))>0,$H159-SUM($J159:AU159),0)) -> 0 | AW159: =IF(ABS($H159-SUM($J159:AV159))>=ABS(AV159),AV159,IF(ABS($H159-SUM($J159:AV159))>0,$H159-SUM($J159:AV159),0)) -> 0 | AX159: =IF(ABS($H159-SUM($J159:AW159))>=ABS(AW159),AW159,IF(ABS($H159-SUM($J159:AW159))>0,$H159-SUM($J159:AW159),0)) -> 0 | AY159: =IF(ABS($H159-SUM($J159:AX159))>=ABS(AX159),AX159,IF(ABS($H159-SUM($J159:AX159))>0,$H159-SUM($J159:AX159),0)) -> 0 | AZ159: =IF(ABS($H159-SUM($J159:AY159))>=ABS(AY159),AY159,IF(ABS($H159-SUM($J159:AY159))>0,$H159-SUM($J159:AY159),0)) -> 0 | BA159: =IF(ABS($H159-SUM($J159:AZ159))>=ABS(AZ159),AZ159,IF(ABS($H159-SUM($J159:AZ159))>0,$H159-SUM($J159:AZ159),0)) -> 0 | BB159: =IF(ABS($H159-SUM($J159:BA159))>=ABS(BA159),BA159,IF(ABS($H159-SUM($J159:BA159))>0,$H159-SUM($J159:BA159),0)) -> 0 | BC159: =IF(ABS($H159-SUM($J159:BB159))>=ABS(BB159),BB159,IF(ABS($H159-SUM($J159:BB159))>0,$H159-SUM($J159:BB159),0)) -> 0 | BD159: =IF(ABS($H159-SUM($J159:BC159))>=ABS(BC159),BC159,IF(ABS($H159-SUM($J159:BC159))>0,$H159-SUM($J159:BC159),0)) -> 0 | BE159: =IF(ABS($H159-SUM($J159:BD159))>=ABS(BD159),BD159,IF(ABS($H159-SUM($J159:BD159))>0,$H159-SUM($J159:BD159),0)) -> 0 | BF159: =IF(ABS($H159-SUM($J159:BE159))>=ABS(BE159),BE159,IF(ABS($H159-SUM($J159:BE159))>0,$H159-SUM($J159:BE159),0)) -> 0 | BG159: =IF(ABS($H159-SUM($J159:BF159))>=ABS(BF159),BF159,IF(ABS($H159-SUM($J159:BF159))>0,$H159-SUM($J159:BF159),0)) -> 0 | BH159: =IF(ABS($H159-SUM($J159:BG159))>=ABS(BG159),BG159,IF(ABS($H159-SUM($J159:BG159))>0,$H159-SUM($J159:BG159),0)) -> 0 | BI159: =IF(ABS($H159-SUM($J159:BH159))>=ABS(BH159),BH159,IF(ABS($H159-SUM($J159:BH159))>0,$H159-SUM($J159:BH159),0)) -> 0 | BJ159: =IF(ABS($H159-SUM($J159:BI159))>=ABS(BI159),BI159,IF(ABS($H159-SUM($J159:BI159))>0,$H159-SUM($J159:BI159),0)) -> 0 | BK159: =IF(ABS($H159-SUM($J159:BJ159))>=ABS(BJ159),BJ159,IF(ABS($H159-SUM($J159:BJ159))>0,$H159-SUM($J159:BJ159),0)) -> 0 | BL159: =IF(ABS($H159-SUM($J159:BK159))>=ABS(BK159),BK159,IF(ABS($H159-SUM($J159:BK159))>0,$H159-SUM($J159:BK159),0)) -> 0 | BM159: =IF(ABS($H159-SUM($J159:BL159))>=ABS(BL159),BL159,IF(ABS($H159-SUM($J159:BL159))>0,$H159-SUM($J159:BL159),0)) -> 0 | BN159: =IF(ABS($H159-SUM($J159:BM159))>=ABS(BM159),BM159,IF(ABS($H159-SUM($J159:BM159))>0,$H159-SUM($J159:BM159),0)) -> 0 | BP159: 0
C160: 2011 | D160: AER | E160: $ | F160: nominal | H160: 39381 | P160: 984.525 | Q160: 1969.05 | R160: 1969.05 | S160: 1969.05 | T160: 1969.05 | U160: 1969.05 | V160: 1969.05 | W160: 1969.05 | X160: 1969.05 | Y160: 1969.05 | Z160: 984.525 | AA160: 1969.05 | AB160: 1969.05 | AC160: 1969.05 | AD160: 1969.05 | AE160: 1969.05 | AF160: =IF(ABS($H160-SUM($J160:AE160))>=ABS(AE160),AE160,IF(ABS($H160-SUM($J160:AE160))>0,$H160-SUM($J160:AE160),0)) -> 1969.05 | AG160: =IF(ABS($H160-SUM($J160:AF160))>=ABS(AF160),AF160,IF(ABS($H160-SUM($J160:AF160))>0,$H160-SUM($J160:AF160),0)) -> 1969.05 | AH160: =IF(ABS($H160-SUM($J160:AG160))>=ABS(AG160),AG160,IF(ABS($H160-SUM($J160:AG160))>0,$H160-SUM($J160:AG160),0)) -> 1969.05 | AI160: =IF(ABS($H160-SUM($J160:AH160))>=ABS(AH160),AH160,IF(ABS($H160-SUM($J160:AH160))>0,$H160-SUM($J160:AH160),0)) -> 1969.05 | AJ160: =IF(ABS($H160-SUM($J160:AI160))>=ABS(AI160),AI160,IF(ABS($H160-SUM($J160:AI160))>0,$H160-SUM($J160:AI160),0)) -> 1969.05 | AK160: =IF(ABS($H160-SUM($J160:AJ160))>=ABS(AJ160),AJ160,IF(ABS($H160-SUM($J160:AJ160))>0,$H160-SUM($J160:AJ160),0)) -> -7.275957614e-12 | AL160: =IF(ABS($H160-SUM($J160:AK160))>=ABS(AK160),AK160,IF(ABS($H160-SUM($J160:AK160))>0,$H160-SUM($J160:AK160),0)) -> 0 | AM160: =IF(ABS($H160-SUM($J160:AL160))>=ABS(AL160),AL160,IF(ABS($H160-SUM($J160:AL160))>0,$H160-SUM($J160:AL160),0)) -> 0 | AN160: =IF(ABS($H160-SUM($J160:AM160))>=ABS(AM160),AM160,IF(ABS($H160-SUM($J160:AM160))>0,$H160-SUM($J160:AM160),0)) -> 0 | AO160: =IF(ABS($H160-SUM($J160:AN160))>=ABS(AN160),AN160,IF(ABS($H160-SUM($J160:AN160))>0,$H160-SUM($J160:AN160),0)) -> 0 | AP160: =IF(ABS($H160-SUM($J160:AO160))>=ABS(AO160),AO160,IF(ABS($H160-SUM($J160:AO160))>0,$H160-SUM($J160:AO160),0)) -> 0 | AQ160: =IF(ABS($H160-SUM($J160:AP160))>=ABS(AP160),AP160,IF(ABS($H160-SUM($J160:AP160))>0,$H160-SUM($J160:AP160),0)) -> 0 | AR160: =IF(ABS($H160-SUM($J160:AQ160))>=ABS(AQ160),AQ160,IF(ABS($H160-SUM($J160:AQ160))>0,$H160-SUM($J160:AQ160),0)) -> 0 | AS160: =IF(ABS($H160-SUM($J160:AR160))>=ABS(AR160),AR160,IF(ABS($H160-SUM($J160:AR160))>0,$H160-SUM($J160:AR160),0)) -> 0 | AT160: =IF(ABS($H160-SUM($J160:AS160))>=ABS(AS160),AS160,IF(ABS($H160-SUM($J160:AS160))>0,$H160-SUM($J160:AS160),0)) -> 0 | AU160: =IF(ABS($H160-SUM($J160:AT160))>=ABS(AT160),AT160,IF(ABS($H160-SUM($J160:AT160))>0,$H160-SUM($J160:AT160),0)) -> 0 | AV160: =IF(ABS($H160-SUM($J160:AU160))>=ABS(AU160),AU160,IF(ABS($H160-SUM($J160:AU160))>0,$H160-SUM($J160:AU160),0)) -> 0 | AW160: =IF(ABS($H160-SUM($J160:AV160))>=ABS(AV160),AV160,IF(ABS($H160-SUM($J160:AV160))>0,$H160-SUM($J160:AV160),0)) -> 0 | AX160: =IF(ABS($H160-SUM($J160:AW160))>=ABS(AW160),AW160,IF(ABS($H160-SUM($J160:AW160))>0,$H160-SUM($J160:AW160),0)) -> 0 | AY160: =IF(ABS($H160-SUM($J160:AX160))>=ABS(AX160),AX160,IF(ABS($H160-SUM($J160:AX160))>0,$H160-SUM($J160:AX160),0)) -> 0 | AZ160: =IF(ABS($H160-SUM($J160:AY160))>=ABS(AY160),AY160,IF(ABS($H160-SUM($J160:AY160))>0,$H160-SUM($J160:AY160),0)) -> 0 | BA160: =IF(ABS($H160-SUM($J160:AZ160))>=ABS(AZ160),AZ160,IF(ABS($H160-SUM($J160:AZ160))>0,$H160-SUM($J160:AZ160),0)) -> 0 | BB160: =IF(ABS($H160-SUM($J160:BA160))>=ABS(BA160),BA160,IF(ABS($H160-SUM($J160:BA160))>0,$H160-SUM($J160:BA160),0)) -> 0 | BC160: =IF(ABS($H160-SUM($J160:BB160))>=ABS(BB160),BB160,IF(ABS($H160-SUM($J160:BB160))>0,$H160-SUM($J160:BB160),0)) -> 0 | BD160: =IF(ABS($H160-SUM($J160:BC160))>=ABS(BC160),BC160,IF(ABS($H160-SUM($J160:BC160))>0,$H160-SUM($J160:BC160),0)) -> 0 | BE160: =IF(ABS($H160-SUM($J160:BD160))>=ABS(BD160),BD160,IF(ABS($H160-SUM($J160:BD160))>0,$H160-SUM($J160:BD160),0)) -> 0 | BF160: =IF(ABS($H160-SUM($J160:BE160))>=ABS(BE160),BE160,IF(ABS($H160-SUM($J160:BE160))>0,$H160-SUM($J160:BE160),0)) -> 0 | BG160: =IF(ABS($H160-SUM($J160:BF160))>=ABS(BF160),BF160,IF(ABS($H160-SUM($J160:BF160))>0,$H160-SUM($J160:BF160),0)) -> 0 | BH160: =IF(ABS($H160-SUM($J160:BG160))>=ABS(BG160),BG160,IF(ABS($H160-SUM($J160:BG160))>0,$H160-SUM($J160:BG160),0)) -> 0 | BI160: =IF(ABS($H160-SUM($J160:BH160))>=ABS(BH160),BH160,IF(ABS($H160-SUM($J160:BH160))>0,$H160-SUM($J160:BH160),0)) -> 0 | BJ160: =IF(ABS($H160-SUM($J160:BI160))>=ABS(BI160),BI160,IF(ABS($H160-SUM($J160:BI160))>0,$H160-SUM($J160:BI160),0)) -> 0 | BK160: =IF(ABS($H160-SUM($J160:BJ160))>=ABS(BJ160),BJ160,IF(ABS($H160-SUM($J160:BJ160))>0,$H160-SUM($J160:BJ160),0)) -> 0 | BL160: =IF(ABS($H160-SUM($J160:BK160))>=ABS(BK160),BK160,IF(ABS($H160-SUM($J160:BK160))>0,$H160-SUM($J160:BK160),0)) -> 0 | BM160: =IF(ABS($H160-SUM($J160:BL160))>=ABS(BL160),BL160,IF(ABS($H160-SUM($J160:BL160))>0,$H160-SUM($J160:BL160),0)) -> 0 | BN160: =IF(ABS($H160-SUM($J160:BM160))>=ABS(BM160),BM160,IF(ABS($H160-SUM($J160:BM160))>0,$H160-SUM($J160:BM160),0)) -> 0 | BP160: 0
C161: 2012 | D161: AER | E161: $ | F161: nominal | H161: 321714 | Q161: 8042.85 | R161: 16085.7 | S161: 16085.7 | T161: 16085.7 | U161: 16085.7 | V161: 16085.7 | W161: 16085.7 | X161: 16085.7 | Y161: 16085.7 | Z161: 8042.85 | AA161: 16085.7 | AB161: 16085.7 | AC161: 16085.7 | AD161: 16085.7 | AE161: 16085.7 | AF161: =IF(ABS($H161-SUM($J161:AE161))>=ABS(AE161),AE161,IF(ABS($H161-SUM($J161:AE161))>0,$H161-SUM($J161:AE161),0)) -> 16085.7 | AG161: =IF(ABS($H161-SUM($J161:AF161))>=ABS(AF161),AF161,IF(ABS($H161-SUM($J161:AF161))>0,$H161-SUM($J161:AF161),0)) -> 16085.7 | AH161: =IF(ABS($H161-SUM($J161:AG161))>=ABS(AG161),AG161,IF(ABS($H161-SUM($J161:AG161))>0,$H161-SUM($J161:AG161),0)) -> 16085.7 | AI161: =IF(ABS($H161-SUM($J161:AH161))>=ABS(AH161),AH161,IF(ABS($H161-SUM($J161:AH161))>0,$H161-SUM($J161:AH161),0)) -> 16085.7 | AJ161: =IF(ABS($H161-SUM($J161:AI161))>=ABS(AI161),AI161,IF(ABS($H161-SUM($J161:AI161))>0,$H161-SUM($J161:AI161),0)) -> 16085.7 | AK161: =IF(ABS($H161-SUM($J161:AJ161))>=ABS(AJ161),AJ161,IF(ABS($H161-SUM($J161:AJ161))>0,$H161-SUM($J161:AJ161),0)) -> 16085.7 | AL161: =IF(ABS($H161-SUM($J161:AK161))>=ABS(AK161),AK161,IF(ABS($H161-SUM($J161:AK161))>0,$H161-SUM($J161:AK161),0)) -> 0 | AM161: =IF(ABS($H161-SUM($J161:AL161))>=ABS(AL161),AL161,IF(ABS($H161-SUM($J161:AL161))>0,$H161-SUM($J161:AL161),0)) -> 0 | AN161: =IF(ABS($H161-SUM($J161:AM161))>=ABS(AM161),AM161,IF(ABS($H161-SUM($J161:AM161))>0,$H161-SUM($J161:AM161),0)) -> 0 | AO161: =IF(ABS($H161-SUM($J161:AN161))>=ABS(AN161),AN161,IF(ABS($H161-SUM($J161:AN161))>0,$H161-SUM($J161:AN161),0)) -> 0 | AP161: =IF(ABS($H161-SUM($J161:AO161))>=ABS(AO161),AO161,IF(ABS($H161-SUM($J161:AO161))>0,$H161-SUM($J161:AO161),0)) -> 0 | AQ161: =IF(ABS($H161-SUM($J161:AP161))>=ABS(AP161),AP161,IF(ABS($H161-SUM($J161:AP161))>0,$H161-SUM($J161:AP161),0)) -> 0 | AR161: =IF(ABS($H161-SUM($J161:AQ161))>=ABS(AQ161),AQ161,IF(ABS($H161-SUM($J161:AQ161))>0,$H161-SUM($J161:AQ161),0)) -> 0 | AS161: =IF(ABS($H161-SUM($J161:AR161))>=ABS(AR161),AR161,IF(ABS($H161-SUM($J161:AR161))>0,$H161-SUM($J161:AR161),0)) -> 0 | AT161: =IF(ABS($H161-SUM($J161:AS161))>=ABS(AS161),AS161,IF(ABS($H161-SUM($J161:AS161))>0,$H161-SUM($J161:AS161),0)) -> 0 | AU161: =IF(ABS($H161-SUM($J161:AT161))>=ABS(AT161),AT161,IF(ABS($H161-SUM($J161:AT161))>0,$H161-SUM($J161:AT161),0)) -> 0 | AV161: =IF(ABS($H161-SUM($J161:AU161))>=ABS(AU161),AU161,IF(ABS($H161-SUM($J161:AU161))>0,$H161-SUM($J161:AU161),0)) -> 0 | AW161: =IF(ABS($H161-SUM($J161:AV161))>=ABS(AV161),AV161,IF(ABS($H161-SUM($J161:AV161))>0,$H161-SUM($J161:AV161),0)) -> 0 | AX161: =IF(ABS($H161-SUM($J161:AW161))>=ABS(AW161),AW161,IF(ABS($H161-SUM($J161:AW161))>0,$H161-SUM($J161:AW161),0)) -> 0 | AY161: =IF(ABS($H161-SUM($J161:AX161))>=ABS(AX161),AX161,IF(ABS($H161-SUM($J161:AX161))>0,$H161-SUM($J161:AX161),0)) -> 0 | AZ161: =IF(ABS($H161-SUM($J161:AY161))>=ABS(AY161),AY161,IF(ABS($H161-SUM($J161:AY161))>0,$H161-SUM($J161:AY161),0)) -> 0 | BA161: =IF(ABS($H161-SUM($J161:AZ161))>=ABS(AZ161),AZ161,IF(ABS($H161-SUM($J161:AZ161))>0,$H161-SUM($J161:AZ161),0)) -> 0 | BB161: =IF(ABS($H161-SUM($J161:BA161))>=ABS(BA161),BA161,IF(ABS($H161-SUM($J161:BA161))>0,$H161-SUM($J161:BA161),0)) -> 0 | BC161: =IF(ABS($H161-SUM($J161:BB161))>=ABS(BB161),BB161,IF(ABS($H161-SUM($J161:BB161))>0,$H161-SUM($J161:BB161),0)) -> 0 | BD161: =IF(ABS($H161-SUM($J161:BC161))>=ABS(BC161),BC161,IF(ABS($H161-SUM($J161:BC161))>0,$H161-SUM($J161:BC161),0)) -> 0 | BE161: =IF(ABS($H161-SUM($J161:BD161))>=ABS(BD161),BD161,IF(ABS($H161-SUM($J161:BD161))>0,$H161-SUM($J161:BD161),0)) -> 0 | BF161: =IF(ABS($H161-SUM($J161:BE161))>=ABS(BE161),BE161,IF(ABS($H161-SUM($J161:BE161))>0,$H161-SUM($J161:BE161),0)) -> 0 | BG161: =IF(ABS($H161-SUM($J161:BF161))>=ABS(BF161),BF161,IF(ABS($H161-SUM($J161:BF161))>0,$H161-SUM($J161:BF161),0)) -> 0 | BH161: =IF(ABS($H161-SUM($J161:BG161))>=ABS(BG161),BG161,IF(ABS($H161-SUM($J161:BG161))>0,$H161-SUM($J161:BG161),0)) -> 0 | BI161: =IF(ABS($H161-SUM($J161:BH161))>=ABS(BH161),BH161,IF(ABS($H161-SUM($J161:BH161))>0,$H161-SUM($J161:BH161),0)) -> 0 | BJ161: =IF(ABS($H161-SUM($J161:BI161))>=ABS(BI161),BI161,IF(ABS($H161-SUM($J161:BI161))>0,$H161-SUM($J161:BI161),0)) -> 0 | BK161: =IF(ABS($H161-SUM($J161:BJ161))>=ABS(BJ161),BJ161,IF(ABS($H161-SUM($J161:BJ161))>0,$H161-SUM($J161:BJ161),0)) -> 0 | BL161: =IF(ABS($H161-SUM($J161:BK161))>=ABS(BK161),BK161,IF(ABS($H161-SUM($J161:BK161))>0,$H161-SUM($J161:BK161),0)) -> 0 | BM161: =IF(ABS($H161-SUM($J161:BL161))>=ABS(BL161),BL161,IF(ABS($H161-SUM($J161:BL161))>0,$H161-SUM($J161:BL161),0)) -> 0 | BN161: =IF(ABS($H161-SUM($J161:BM161))>=ABS(BM161),BM161,IF(ABS($H161-SUM($J161:BM161))>0,$H161-SUM($J161:BM161),0)) -> 0 | BP161: 0
C162: 2013 | D162: AER | E162: $ | F162: nominal | H162: 1127 | R162: 28.175 | S162: 56.35 | T162: 56.35 | U162: 56.35 | V162: 56.35 | W162: 56.35 | X162: 56.35 | Y162: 56.35 | Z162: 28.175 | AA162: 56.35 | AB162: 56.35 | AC162: 56.35 | AD162: 56.35 | AE162: 56.35 | AF162: =IF(ABS($H162-SUM($J162:AE162))>=ABS(AE162),AE162,IF(ABS($H162-SUM($J162:AE162))>0,$H162-SUM($J162:AE162),0)) -> 56.35 | AG162: =IF(ABS($H162-SUM($J162:AF162))>=ABS(AF162),AF162,IF(ABS($H162-SUM($J162:AF162))>0,$H162-SUM($J162:AF162),0)) -> 56.35 | AH162: =IF(ABS($H162-SUM($J162:AG162))>=ABS(AG162),AG162,IF(ABS($H162-SUM($J162:AG162))>0,$H162-SUM($J162:AG162),0)) -> 56.35 | AI162: =IF(ABS($H162-SUM($J162:AH162))>=ABS(AH162),AH162,IF(ABS($H162-SUM($J162:AH162))>0,$H162-SUM($J162:AH162),0)) -> 56.35 | AJ162: =IF(ABS($H162-SUM($J162:AI162))>=ABS(AI162),AI162,IF(ABS($H162-SUM($J162:AI162))>0,$H162-SUM($J162:AI162),0)) -> 56.35 | AK162: =IF(ABS($H162-SUM($J162:AJ162))>=ABS(AJ162),AJ162,IF(ABS($H162-SUM($J162:AJ162))>0,$H162-SUM($J162:AJ162),0)) -> 56.35 | AL162: =IF(ABS($H162-SUM($J162:AK162))>=ABS(AK162),AK162,IF(ABS($H162-SUM($J162:AK162))>0,$H162-SUM($J162:AK162),0)) -> 56.35 | AM162: =IF(ABS($H162-SUM($J162:AL162))>=ABS(AL162),AL162,IF(ABS($H162-SUM($J162:AL162))>0,$H162-SUM($J162:AL162),0)) -> 0 | AN162: =IF(ABS($H162-SUM($J162:AM162))>=ABS(AM162),AM162,IF(ABS($H162-SUM($J162:AM162))>0,$H162-SUM($J162:AM162),0)) -> 0 | AO162: =IF(ABS($H162-SUM($J162:AN162))>=ABS(AN162),AN162,IF(ABS($H162-SUM($J162:AN162))>0,$H162-SUM($J162:AN162),0)) -> 0 | AP162: =IF(ABS($H162-SUM($J162:AO162))>=ABS(AO162),AO162,IF(ABS($H162-SUM($J162:AO162))>0,$H162-SUM($J162:AO162),0)) -> 0 | AQ162: =IF(ABS($H162-SUM($J162:AP162))>=ABS(AP162),AP162,IF(ABS($H162-SUM($J162:AP162))>0,$H162-SUM($J162:AP162),0)) -> 0 | AR162: =IF(ABS($H162-SUM($J162:AQ162))>=ABS(AQ162),AQ162,IF(ABS($H162-SUM($J162:AQ162))>0,$H162-SUM($J162:AQ162),0)) -> 0 | AS162: =IF(ABS($H162-SUM($J162:AR162))>=ABS(AR162),AR162,IF(ABS($H162-SUM($J162:AR162))>0,$H162-SUM($J162:AR162),0)) -> 0 | AT162: =IF(ABS($H162-SUM($J162:AS162))>=ABS(AS162),AS162,IF(ABS($H162-SUM($J162:AS162))>0,$H162-SUM($J162:AS162),0)) -> 0 | AU162: =IF(ABS($H162-SUM($J162:AT162))>=ABS(AT162),AT162,IF(ABS($H162-SUM($J162:AT162))>0,$H162-SUM($J162:AT162),0)) -> 0 | AV162: =IF(ABS($H162-SUM($J162:AU162))>=ABS(AU162),AU162,IF(ABS($H162-SUM($J162:AU162))>0,$H162-SUM($J162:AU162),0)) -> 0 | AW162: =IF(ABS($H162-SUM($J162:AV162))>=ABS(AV162),AV162,IF(ABS($H162-SUM($J162:AV162))>0,$H162-SUM($J162:AV162),0)) -> 0 | AX162: =IF(ABS($H162-SUM($J162:AW162))>=ABS(AW162),AW162,IF(ABS($H162-SUM($J162:AW162))>0,$H162-SUM($J162:AW162),0)) -> 0 | AY162: =IF(ABS($H162-SUM($J162:AX162))>=ABS(AX162),AX162,IF(ABS($H162-SUM($J162:AX162))>0,$H162-SUM($J162:AX162),0)) -> 0 | AZ162: =IF(ABS($H162-SUM($J162:AY162))>=ABS(AY162),AY162,IF(ABS($H162-SUM($J162:AY162))>0,$H162-SUM($J162:AY162),0)) -> 0 | BA162: =IF(ABS($H162-SUM($J162:AZ162))>=ABS(AZ162),AZ162,IF(ABS($H162-SUM($J162:AZ162))>0,$H162-SUM($J162:AZ162),0)) -> 0 | BB162: =IF(ABS($H162-SUM($J162:BA162))>=ABS(BA162),BA162,IF(ABS($H162-SUM($J162:BA162))>0,$H162-SUM($J162:BA162),0)) -> 0 | BC162: =IF(ABS($H162-SUM($J162:BB162))>=ABS(BB162),BB162,IF(ABS($H162-SUM($J162:BB162))>0,$H162-SUM($J162:BB162),0)) -> 0 | BD162: =IF(ABS($H162-SUM($J162:BC162))>=ABS(BC162),BC162,IF(ABS($H162-SUM($J162:BC162))>0,$H162-SUM($J162:BC162),0)) -> 0 | BE162: =IF(ABS($H162-SUM($J162:BD162))>=ABS(BD162),BD162,IF(ABS($H162-SUM($J162:BD162))>0,$H162-SUM($J162:BD162),0)) -> 0 | BF162: =IF(ABS($H162-SUM($J162:BE162))>=ABS(BE162),BE162,IF(ABS($H162-SUM($J162:BE162))>0,$H162-SUM($J162:BE162),0)) -> 0 | BG162: =IF(ABS($H162-SUM($J162:BF162))>=ABS(BF162),BF162,IF(ABS($H162-SUM($J162:BF162))>0,$H162-SUM($J162:BF162),0)) -> 0 | BH162: =IF(ABS($H162-SUM($J162:BG162))>=ABS(BG162),BG162,IF(ABS($H162-SUM($J162:BG162))>0,$H162-SUM($J162:BG162),0)) -> 0 | BI162: =IF(ABS($H162-SUM($J162:BH162))>=ABS(BH162),BH162,IF(ABS($H162-SUM($J162:BH162))>0,$H162-SUM($J162:BH162),0)) -> 0 | BJ162: =IF(ABS($H162-SUM($J162:BI162))>=ABS(BI162),BI162,IF(ABS($H162-SUM($J162:BI162))>0,$H162-SUM($J162:BI162),0)) -> 0 | BK162: =IF(ABS($H162-SUM($J162:BJ162))>=ABS(BJ162),BJ162,IF(ABS($H162-SUM($J162:BJ162))>0,$H162-SUM($J162:BJ162),0)) -> 0 | BL162: =IF(ABS($H162-SUM($J162:BK162))>=ABS(BK162),BK162,IF(ABS($H162-SUM($J162:BK162))>0,$H162-SUM($J162:BK162),0)) -> 0 | BM162: =IF(ABS($H162-SUM($J162:BL162))>=ABS(BL162),BL162,IF(ABS($H162-SUM($J162:BL162))>0,$H162-SUM($J162:BL162),0)) -> 0 | BN162: =IF(ABS($H162-SUM($J162:BM162))>=ABS(BM162),BM162,IF(ABS($H162-SUM($J162:BM162))>0,$H162-SUM($J162:BM162),0)) -> 0 | BP162: 0
